Workbook

Sheet Cover
B7: Victorian Default Offer (VDO)
B9: Calculation model
B11: 2025-26

Sheet Disclaimer
B1: VDO calculation model
B3: Essential Services Commission
B5: Disclaimer, copyright & terms and conditions of use The VDO Price Determination model (model) does not constitute a decision or determination by the Essential Services Commission (commission). The model has been designed by the commission to enable it to calculate the tariffs a retailer may charge prescribed customers under a standing offer. Limited access to this model is made available to third parties (users) for information purposes only and for the sole purpose of illustrating the modelling framework used by the commission to calculate the VDO tariffs. The commission gives no warranty and makes no representation as to the accuracy, reliability, timeliness or other features of the data contained in the model for use other than calculation by the commission of the VDO tariffs. Copyright and all other intellectual property rights in the model vests with the commission. The commission hereby permits a user to view the model, download and use the model, and display and print the model from the commission’s website only in unaltered form, for the purposes of internal study, research, criticism or review by the user only, provided the user acknowledges the source of the model or any parts of the model. A user must not disrupt, modify or interfere with the model, or alter or tamper with any information or material in or associated with the model, or gain or attempt to gain unauthorized access to secure parts of the model. A user must not make the model available to a third party and must direct a third party to access the model directly from the commission’s website. By viewing, downloading, using, displaying or printing the model or parts of the model, you agree to be bound by the disclaimer, copyright provisions and these terms and conditions of use. Note: If you have obtained the model otherwise than by downloading it from the commission’s website, the model may have been modified by a previous user. The commission accepts no liability in relation to modifications made by any user. Note for reading the model: Due to rounding, the sum of individual cost stacks may vary slightly from the total bill amount.

Sheet Contents
B1: =Disclaimer!$B$1 -> VDO calculation model
A2: =_xlfn.SHEET() -> 3 | B2: Contents
B3: Confidentiality | C3: Name | D3: Link | E3: Description
B4: Public | C4: Cover | D4: Cover!A1
B5: Public | C5: Disclaimer | D5: Disclaimer!A1 | E5: This page contains a declaration regarding the limitations and use of this model.
B6: Public | C6: User Guide | D6: User guide | E6: Instructions for model operation.
B7: Public | C7: OP_Rates | D7: OP_Rates | E7: Output rates (both from cost stack calculation and true up) for all tariffs.
B8: Public | C8: OP_CMAB | D8: OP_CMAB | E8: Output annual bills for Compliant Maximum Annual Bill (CMAB).
B9: Private | C9: CH_CostStack_RES | D9: CH_CostStack_RES | E9: Creates the cost stack in the VDO paper for typical residential customer bill
B10: Private | C10: CH_CostStack_SME | D10: CH_CostStack_SME | E10: Creates the cost stack in the VDO paper for small business customer bill with usage of 20Mwh/year
B11: Private | C11: CH_CostStack_SME 10k | D11: CH_CostStack_SME_10k | E11: Creates the cost stack in the VDO paper for small business customer bill with usage of 10Mwh/year
B12: Public | C12: Inputs | D12: Inputs | E12: All cost and non-cost inputs used in the model.
B13: Public | C13: General Assumptions | D13: General assumptions | E13: Assumptions and constants used in the model.
B14: Public | C14: CPI | D14: CPI | E14: Contains CPI indices used in the model.
B15: Public | C15: Calc_Rates | D15: Calc_Rates | E15: Calculations for cost stack rates.
B16: Public | C16: Calc_TU_values | D16: Calc_TU_values | E16: Calculations for total true up amounts to be recovered.
B17: Public | C17: Calc_TU_rates | D17: Calc_TU_rates | E17: Calculations for true up rates to be applied over the determination period.
B18: Public | C18: Sources | D18: Sources | E18: Sources for the input values in the Inputs table

Sheet User Guide
A1: Worksheet description: | B1: << Back to Contents
A2: [Please provide a description of what this sheet does and any specific details or other notes the user needs to know] | C2: VDO calculation model
B3: =_xlfn.SHEET() -> 4 | C3: User Guide
A5: Section/Item notes (where necessary) | B5: =MAX(B$3:B4)+0.01 -> 4.01 | C5: Model Structure
A39: Section/Item notes (where necessary) | B39: =MAX(B$3:B38)+0.01 -> 4.02 | C39: Calculation methodology
C42: Calculated rates and prices
C61: True up costs and rates
C96: Annual bills
A106: Section/Item notes (where necessary) | B106: =MAX(B$3:B105)+0.01 -> 4.03 | C106: Worksheets
C108: Information
C109: Inupts and assumptions
C110: Cost calculations
C111: Output and summary
C112: Supporting information
C113: Charts

Sheet OP_Rates
A1: Worksheet description: | B1: << Back to Contents | F1: Checks:
A2: [Please provide a description of what this sheet does and any specific details or other notes the user needs to know] | C2: =Disclaimer!$B$1 -> VDO calculation model | F2: =Calc_Rates!$D$5 -> VDO 2025-26 - Final | G2: =Calc_Rates!$D$279 -> VDO 2024-25 - Final
B3: =_xlfn.SHEET() -> 5 | C3: ="VDO rates" -> VDO rates | F3: =SUM(G55:K62,Q55:U62,G44:K51,Q44:U51,G66:K74,Q66:U74) -> 0 | G3: =SUM(G128:K135,Q128:U135,G117:K124,Q117:U124,G139:K147,Q139:U147) -> 0
A5: Section/Item notes (where necessary) | B5: =MAX(B$3:B4)+0.01 -> 5.01 | C5: ="VDO rates - "&Calc_Rates!$D$5 -> VDO rates - VDO 2025-26 - Final
C7: VDO residential rates | M7: VDO small business rates
C8: Rate name | D8: Unit | E8: Customer type | F8: - | G8: Ausnet | H8: Citipower | I8: Jemena | J8: Powercor | K8: United Energy | M8: Rate name | N8: Unit | O8: Customer type | P8: - | Q8: Ausnet | R8: Citipower | S8: Jemena | T8: Powercor | U8: United Energy
C9: Anytime - supply | D9: $ | E9: Residential | F9: - | G9: =ROUND( SUMIFS(OP_Rates_RES_1[Ausnet],OP_Rates_RES_1[[Rate name]:[Rate name]],OP_TotalRates_RES_1[[#This Row],[Rate name]:[Rate name]])+ SUMIFS(OP_RatesTU_RES_1[Ausnet], OP_RatesTU_RES_1[[Rate name]:[Rate name]],IF(OP_TotalRates_RES_1[[#This Row],[Unit]:[Unit]]<>"$",OP_TotalRates_RES_1[[#This Row],[Rate name]:[Rate name]],LEFT(OP_TotalRates_RES_1[[#This Row],[Rate name]:[Rate name]],LEN(OP_TotalRates_RES_1[[#This Row],[Rate name]:[Rate name]])-FIND(" - supply",OP_TotalRates_RES_1[[#This Row],[Rate name]:[Rate name]])-1))),4) -> 1.4146 | H9: =ROUND( SUMIFS(OP_Rates_RES_1[Citipower],OP_Rates_RES_1[[Rate name]:[Rate name]],OP_TotalRates_RES_1[[#This Row],[Rate name]:[Rate name]])+ SUMIFS(OP_RatesTU_RES_1[Citipower], OP_RatesTU_RES_1[[Rate name]:[Rate name]],IF(OP_TotalRates_RES_1[[#This Row],[Unit]:[Unit]]<>"$",OP_TotalRates_RES_1[[#This Row],[Rate name]:[Rate name]],LEFT(OP_TotalRates_RES_1[[#This Row],[Rate name]:[Rate name]],LEN(OP_TotalRates_RES_1[[#This Row],[Rate name]:[Rate name]])-FIND(" - supply",OP_TotalRates_RES_1[[#This Row],[Rate name]:[Rate name]])-1))),4) -> 1.2407 | I9: =ROUND( SUMIFS(OP_Rates_RES_1[Jemena],OP_Rates_RES_1[[Rate name]:[Rate name]],OP_TotalRates_RES_1[[#This Row],[Rate name]:[Rate name]])+ SUMIFS(OP_RatesTU_RES_1[Jemena], OP_RatesTU_RES_1[[Rate name]:[Rate name]],IF(OP_TotalRates_RES_1[[#This Row],[Unit]:[Unit]]<>"$",OP_TotalRates_RES_1[[#This Row],[Rate name]:[Rate name]],LEFT(OP_TotalRates_RES_1[[#This Row],[Rate name]:[Rate name]],LEN(OP_TotalRates_RES_1[[#This Row],[Rate name]:[Rate name]])-FIND(" - supply",OP_TotalRates_RES_1[[#This Row],[Rate name]:[Rate name]])-1))),4) -> 1.2301 | J9: =ROUND( SUMIFS(OP_Rates_RES_1[Powercor],OP_Rates_RES_1[[Rate name]:[Rate name]],OP_TotalRates_RES_1[[#This Row],[Rate name]:[Rate name]])+ SUMIFS(OP_RatesTU_RES_1[Powercor], OP_RatesTU_RES_1[[Rate name]:[Rate name]],IF(OP_TotalRates_RES_1[[#This Row],[Unit]:[Unit]]<>"$",OP_TotalRates_RES_1[[#This Row],[Rate name]:[Rate name]],LEFT(OP_TotalRates_RES_1[[#This Row],[Rate name]:[Rate name]],LEN(OP_TotalRates_RES_1[[#This Row],[Rate name]:[Rate name]])-FIND(" - supply",OP_TotalRates_RES_1[[#This Row],[Rate name]:[Rate name]])-1))),4) -> 1.3684 | K9: =ROUND( SUMIFS(OP_Rates_RES_1[United Energy],OP_Rates_RES_1[[Rate name]:[Rate name]],OP_TotalRates_RES_1[[#This Row],[Rate name]:[Rate name]])+ SUMIFS(OP_RatesTU_RES_1[United Energy], OP_RatesTU_RES_1[[Rate name]:[Rate name]],IF(OP_TotalRates_RES_1[[#This Row],[Unit]:[Unit]]<>"$",OP_TotalRates_RES_1[[#This Row],[Rate name]:[Rate name]],LEFT(OP_TotalRates_RES_1[[#This Row],[Rate name]:[Rate name]],LEN(OP_TotalRates_RES_1[[#This Row],[Rate name]:[Rate name]])-FIND(" - supply",OP_TotalRates_RES_1[[#This Row],[Rate name]:[Rate name]])-1))),4) -> 1.1648 | M9: Anytime - supply | N9: $ | O9: Small business | P9: - | Q9: =ROUND( SUMIFS(OP_Rates_SME_1[Ausnet],OP_Rates_SME_1[[Rate name]:[Rate name]],OP_TotalRates_SME_1[[#This Row],[Rate name]:[Rate name]])+ SUMIFS(OP_RatesTU_SME_1[Ausnet], OP_RatesTU_SME_1[[Rate name]:[Rate name]],IF(OP_TotalRates_SME_1[[#This Row],[Unit]:[Unit]]<>"$",OP_TotalRates_SME_1[[#This Row],[Rate name]:[Rate name]],LEFT(OP_TotalRates_SME_1[[#This Row],[Rate name]:[Rate name]],LEN(OP_TotalRates_SME_1[[#This Row],[Rate name]:[Rate name]])-FIND(" - supply",OP_TotalRates_SME_1[[#This Row],[Rate name]:[Rate name]])-1))),4) -> 1.4146 | R9: =ROUND( SUMIFS(OP_Rates_SME_1[Citipower],OP_Rates_SME_1[[Rate name]:[Rate name]],OP_TotalRates_SME_1[[#This Row],[Rate name]:[Rate name]])+ SUMIFS(OP_RatesTU_SME_1[Citipower], OP_RatesTU_SME_1[[Rate name]:[Rate name]],IF(OP_TotalRates_SME_1[[#This Row],[Unit]:[Unit]]<>"$",OP_TotalRates_SME_1[[#This Row],[Rate name]:[Rate name]],LEFT(OP_TotalRates_SME_1[[#This Row],[Rate name]:[Rate name]],LEN(OP_TotalRates_SME_1[[#This Row],[Rate name]:[Rate name]])-FIND(" - supply",OP_TotalRates_SME_1[[#This Row],[Rate name]:[Rate name]])-1))),4) -> 1.4469 | S9: =ROUND( SUMIFS(OP_Rates_SME_1[Jemena],OP_Rates_SME_1[[Rate name]:[Rate name]],OP_TotalRates_SME_1[[#This Row],[Rate name]:[Rate name]])+ SUMIFS(OP_RatesTU_SME_1[Jemena], OP_RatesTU_SME_1[[Rate name]:[Rate name]],IF(OP_TotalRates_SME_1[[#This Row],[Unit]:[Unit]]<>"$",OP_TotalRates_SME_1[[#This Row],[Rate name]:[Rate name]],LEFT(OP_TotalRates_SME_1[[#This Row],[Rate name]:[Rate name]],LEN(OP_TotalRates_SME_1[[#This Row],[Rate name]:[Rate name]])-FIND(" - supply",OP_TotalRates_SME_1[[#This Row],[Rate name]:[Rate name]])-1))),4) -> 1.5834 | T9: =ROUND( SUMIFS(OP_Rates_SME_1[Powercor],OP_Rates_SME_1[[Rate name]:[Rate name]],OP_TotalRates_SME_1[[#This Row],[Rate name]:[Rate name]])+ SUMIFS(OP_RatesTU_SME_1[Powercor], OP_RatesTU_SME_1[[Rate name]:[Rate name]],IF(OP_TotalRates_SME_1[[#This Row],[Unit]:[Unit]]<>"$",OP_TotalRates_SME_1[[#This Row],[Rate name]:[Rate name]],LEFT(OP_TotalRates_SME_1[[#This Row],[Rate name]:[Rate name]],LEN(OP_TotalRates_SME_1[[#This Row],[Rate name]:[Rate name]])-FIND(" - supply",OP_TotalRates_SME_1[[#This Row],[Rate name]:[Rate name]])-1))),4) -> 1.5905 | U9: =ROUND( SUMIFS(OP_Rates_SME_1[United Energy],OP_Rates_SME_1[[Rate name]:[Rate name]],OP_TotalRates_SME_1[[#This Row],[Rate name]:[Rate name]])+ SUMIFS(OP_RatesTU_SME_1[United Energy], OP_RatesTU_SME_1[[Rate name]:[Rate name]],IF(OP_TotalRates_SME_1[[#This Row],[Unit]:[Unit]]<>"$",OP_TotalRates_SME_1[[#This Row],[Rate name]:[Rate name]],LEFT(OP_TotalRates_SME_1[[#This Row],[Rate name]:[Rate name]],LEN(OP_TotalRates_SME_1[[#This Row],[Rate name]:[Rate name]])-FIND(" - supply",OP_TotalRates_SME_1[[#This Row],[Rate name]:[Rate name]])-1))),4) -> 1.3711
C10: Block 1 | D10: $/kWh | E10: Residential | F10: - | G10: =ROUND( SUMIFS(OP_Rates_RES_1[Ausnet],OP_Rates_RES_1[[Rate name]:[Rate name]],OP_TotalRates_RES_1[[#This Row],[Rate name]:[Rate name]])+ SUMIFS(OP_RatesTU_RES_1[Ausnet], OP_RatesTU_RES_1[[Rate name]:[Rate name]],IF(OP_TotalRates_RES_1[[#This Row],[Unit]:[Unit]]<>"$",OP_TotalRates_RES_1[[#This Row],[Rate name]:[Rate name]],LEFT(OP_TotalRates_RES_1[[#This Row],[Rate name]:[Rate name]],LEN(OP_TotalRates_RES_1[[#This Row],[Rate name]:[Rate name]])-FIND(" - supply",OP_TotalRates_RES_1[[#This Row],[Rate name]:[Rate name]])-1))),4) -> 0.3477 | H10: =ROUND( SUMIFS(OP_Rates_RES_1[Citipower],OP_Rates_RES_1[[Rate name]:[Rate name]],OP_TotalRates_RES_1[[#This Row],[Rate name]:[Rate name]])+ SUMIFS(OP_RatesTU_RES_1[Citipower], OP_RatesTU_RES_1[[Rate name]:[Rate name]],IF(OP_TotalRates_RES_1[[#This Row],[Unit]:[Unit]]<>"$",OP_TotalRates_RES_1[[#This Row],[Rate name]:[Rate name]],LEFT(OP_TotalRates_RES_1[[#This Row],[Rate name]:[Rate name]],LEN(OP_TotalRates_RES_1[[#This Row],[Rate name]:[Rate name]])-FIND(" - supply",OP_TotalRates_RES_1[[#This Row],[Rate name]:[Rate name]])-1))),4) -> 0 | I10: =ROUND( SUMIFS(OP_Rates_RES_1[Jemena],OP_Rates_RES_1[[Rate name]:[Rate name]],OP_TotalRates_RES_1[[#This Row],[Rate name]:[Rate name]])+ SUMIFS(OP_RatesTU_RES_1[Jemena], OP_RatesTU_RES_1[[Rate name]:[Rate name]],IF(OP_TotalRates_RES_1[[#This Row],[Unit]:[Unit]]<>"$",OP_TotalRates_RES_1[[#This Row],[Rate name]:[Rate name]],LEFT(OP_TotalRates_RES_1[[#This Row],[Rate name]:[Rate name]],LEN(OP_TotalRates_RES_1[[#This Row],[Rate name]:[Rate name]])-FIND(" - supply",OP_TotalRates_RES_1[[#This Row],[Rate name]:[Rate name]])-1))),4) -> 0 | J10: =ROUND( SUMIFS(OP_Rates_RES_1[Powercor],OP_Rates_RES_1[[Rate name]:[Rate name]],OP_TotalRates_RES_1[[#This Row],[Rate name]:[Rate name]])+ SUMIFS(OP_RatesTU_RES_1[Powercor], OP_RatesTU_RES_1[[Rate name]:[Rate name]],IF(OP_TotalRates_RES_1[[#This Row],[Unit]:[Unit]]<>"$",OP_TotalRates_RES_1[[#This Row],[Rate name]:[Rate name]],LEFT(OP_TotalRates_RES_1[[#This Row],[Rate name]:[Rate name]],LEN(OP_TotalRates_RES_1[[#This Row],[Rate name]:[Rate name]])-FIND(" - supply",OP_TotalRates_RES_1[[#This Row],[Rate name]:[Rate name]])-1))),4) -> 0 | K10: =ROUND( SUMIFS(OP_Rates_RES_1[United Energy],OP_Rates_RES_1[[Rate name]:[Rate name]],OP_TotalRates_RES_1[[#This Row],[Rate name]:[Rate name]])+ SUMIFS(OP_RatesTU_RES_1[United Energy], OP_RatesTU_RES_1[[Rate name]:[Rate name]],IF(OP_TotalRates_RES_1[[#This Row],[Unit]:[Unit]]<>"$",OP_TotalRates_RES_1[[#This Row],[Rate name]:[Rate name]],LEFT(OP_TotalRates_RES_1[[#This Row],[Rate name]:[Rate name]],LEN(OP_TotalRates_RES_1[[#This Row],[Rate name]:[Rate name]])-FIND(" - supply",OP_TotalRates_RES_1[[#This Row],[Rate name]:[Rate name]])-1))),4) -> 0 | M10: Block 1 | N10: $/kWh | O10: Small business | P10: - | Q10: =ROUND( SUMIFS(OP_Rates_SME_1[Ausnet],OP_Rates_SME_1[[Rate name]:[Rate name]],OP_TotalRates_SME_1[[#This Row],[Rate name]:[Rate name]])+ SUMIFS(OP_RatesTU_SME_1[Ausnet], OP_RatesTU_SME_1[[Rate name]:[Rate name]],IF(OP_TotalRates_SME_1[[#This Row],[Unit]:[Unit]]<>"$",OP_TotalRates_SME_1[[#This Row],[Rate name]:[Rate name]],LEFT(OP_TotalRates_SME_1[[#This Row],[Rate name]:[Rate name]],LEN(OP_TotalRates_SME_1[[#This Row],[Rate name]:[Rate name]])-FIND(" - supply",OP_TotalRates_SME_1[[#This Row],[Rate name]:[Rate name]])-1))),4) -> 0.3881 | R10: =ROUND( SUMIFS(OP_Rates_SME_1[Citipower],OP_Rates_SME_1[[Rate name]:[Rate name]],OP_TotalRates_SME_1[[#This Row],[Rate name]:[Rate name]])+ SUMIFS(OP_RatesTU_SME_1[Citipower], OP_RatesTU_SME_1[[Rate name]:[Rate name]],IF(OP_TotalRates_SME_1[[#This Row],[Unit]:[Unit]]<>"$",OP_TotalRates_SME_1[[#This Row],[Rate name]:[Rate name]],LEFT(OP_TotalRates_SME_1[[#This Row],[Rate name]:[Rate name]],LEN(OP_TotalRates_SME_1[[#This Row],[Rate name]:[Rate name]])-FIND(" - supply",OP_TotalRates_SME_1[[#This Row],[Rate name]:[Rate name]])-1))),4) -> 0 | S10: =ROUND( SUMIFS(OP_Rates_SME_1[Jemena],OP_Rates_SME_1[[Rate name]:[Rate name]],OP_TotalRates_SME_1[[#This Row],[Rate name]:[Rate name]])+ SUMIFS(OP_RatesTU_SME_1[Jemena], OP_RatesTU_SME_1[[Rate name]:[Rate name]],IF(OP_TotalRates_SME_1[[#This Row],[Unit]:[Unit]]<>"$",OP_TotalRates_SME_1[[#This Row],[Rate name]:[Rate name]],LEFT(OP_TotalRates_SME_1[[#This Row],[Rate name]:[Rate name]],LEN(OP_TotalRates_SME_1[[#This Row],[Rate name]:[Rate name]])-FIND(" - supply",OP_TotalRates_SME_1[[#This Row],[Rate name]:[Rate name]])-1))),4) -> 0 | T10: =ROUND( SUMIFS(OP_Rates_SME_1[Powercor],OP_Rates_SME_1[[Rate name]:[Rate name]],OP_TotalRates_SME_1[[#This Row],[Rate name]:[Rate name]])+ SUMIFS(OP_RatesTU_SME_1[Powercor], OP_RatesTU_SME_1[[Rate name]:[Rate name]],IF(OP_TotalRates_SME_1[[#This Row],[Unit]:[Unit]]<>"$",OP_TotalRates_SME_1[[#This Row],[Rate name]:[Rate name]],LEFT(OP_TotalRates_SME_1[[#This Row],[Rate name]:[Rate name]],LEN(OP_TotalRates_SME_1[[#This Row],[Rate name]:[Rate name]])-FIND(" - supply",OP_TotalRates_SME_1[[#This Row],[Rate name]:[Rate name]])-1))),4) -> 0 | U10: =ROUND( SUMIFS(OP_Rates_SME_1[United Energy],OP_Rates_SME_1[[Rate name]:[Rate name]],OP_TotalRates_SME_1[[#This Row],[Rate name]:[Rate name]])+ SUMIFS(OP_RatesTU_SME_1[United Energy], OP_RatesTU_SME_1[[Rate name]:[Rate name]],IF(OP_TotalRates_SME_1[[#This Row],[Unit]:[Unit]]<>"$",OP_TotalRates_SME_1[[#This Row],[Rate name]:[Rate name]],LEFT(OP_TotalRates_SME_1[[#This Row],[Rate name]:[Rate name]],LEN(OP_TotalRates_SME_1[[#This Row],[Rate name]:[Rate name]])-FIND(" - supply",OP_TotalRates_SME_1[[#This Row],[Rate name]:[Rate name]])-1))),4) -> 0
C11: Balance | D11: $/kWh | E11: Residential | F11: - | G11: =ROUND( SUMIFS(OP_Rates_RES_1[Ausnet],OP_Rates_RES_1[[Rate name]:[Rate name]],OP_TotalRates_RES_1[[#This Row],[Rate name]:[Rate name]])+ SUMIFS(OP_RatesTU_RES_1[Ausnet], OP_RatesTU_RES_1[[Rate name]:[Rate name]],IF(OP_TotalRates_RES_1[[#This Row],[Unit]:[Unit]]<>"$",OP_TotalRates_RES_1[[#This Row],[Rate name]:[Rate name]],LEFT(OP_TotalRates_RES_1[[#This Row],[Rate name]:[Rate name]],LEN(OP_TotalRates_RES_1[[#This Row],[Rate name]:[Rate name]])-FIND(" - supply",OP_TotalRates_RES_1[[#This Row],[Rate name]:[Rate name]])-1))),4) -> 0.3477 | H11: =ROUND( SUMIFS(OP_Rates_RES_1[Citipower],OP_Rates_RES_1[[Rate name]:[Rate name]],OP_TotalRates_RES_1[[#This Row],[Rate name]:[Rate name]])+ SUMIFS(OP_RatesTU_RES_1[Citipower], OP_RatesTU_RES_1[[Rate name]:[Rate name]],IF(OP_TotalRates_RES_1[[#This Row],[Unit]:[Unit]]<>"$",OP_TotalRates_RES_1[[#This Row],[Rate name]:[Rate name]],LEFT(OP_TotalRates_RES_1[[#This Row],[Rate name]:[Rate name]],LEN(OP_TotalRates_RES_1[[#This Row],[Rate name]:[Rate name]])-FIND(" - supply",OP_TotalRates_RES_1[[#This Row],[Rate name]:[Rate name]])-1))),4) -> 0 | I11: =ROUND( SUMIFS(OP_Rates_RES_1[Jemena],OP_Rates_RES_1[[Rate name]:[Rate name]],OP_TotalRates_RES_1[[#This Row],[Rate name]:[Rate name]])+ SUMIFS(OP_RatesTU_RES_1[Jemena], OP_RatesTU_RES_1[[Rate name]:[Rate name]],IF(OP_TotalRates_RES_1[[#This Row],[Unit]:[Unit]]<>"$",OP_TotalRates_RES_1[[#This Row],[Rate name]:[Rate name]],LEFT(OP_TotalRates_RES_1[[#This Row],[Rate name]:[Rate name]],LEN(OP_TotalRates_RES_1[[#This Row],[Rate name]:[Rate name]])-FIND(" - supply",OP_TotalRates_RES_1[[#This Row],[Rate name]:[Rate name]])-1))),4) -> 0 | J11: =ROUND( SUMIFS(OP_Rates_RES_1[Powercor],OP_Rates_RES_1[[Rate name]:[Rate name]],OP_TotalRates_RES_1[[#This Row],[Rate name]:[Rate name]])+ SUMIFS(OP_RatesTU_RES_1[Powercor], OP_RatesTU_RES_1[[Rate name]:[Rate name]],IF(OP_TotalRates_RES_1[[#This Row],[Unit]:[Unit]]<>"$",OP_TotalRates_RES_1[[#This Row],[Rate name]:[Rate name]],LEFT(OP_TotalRates_RES_1[[#This Row],[Rate name]:[Rate name]],LEN(OP_TotalRates_RES_1[[#This Row],[Rate name]:[Rate name]])-FIND(" - supply",OP_TotalRates_RES_1[[#This Row],[Rate name]:[Rate name]])-1))),4) -> 0 | K11: =ROUND( SUMIFS(OP_Rates_RES_1[United Energy],OP_Rates_RES_1[[Rate name]:[Rate name]],OP_TotalRates_RES_1[[#This Row],[Rate name]:[Rate name]])+ SUMIFS(OP_RatesTU_RES_1[United Energy], OP_RatesTU_RES_1[[Rate name]:[Rate name]],IF(OP_TotalRates_RES_1[[#This Row],[Unit]:[Unit]]<>"$",OP_TotalRates_RES_1[[#This Row],[Rate name]:[Rate name]],LEFT(OP_TotalRates_RES_1[[#This Row],[Rate name]:[Rate name]],LEN(OP_TotalRates_RES_1[[#This Row],[Rate name]:[Rate name]])-FIND(" - supply",OP_TotalRates_RES_1[[#This Row],[Rate name]:[Rate name]])-1))),4) -> 0 | M11: Balance | N11: $/kWh | O11: Small business | P11: - | Q11: =ROUND( SUMIFS(OP_Rates_SME_1[Ausnet],OP_Rates_SME_1[[Rate name]:[Rate name]],OP_TotalRates_SME_1[[#This Row],[Rate name]:[Rate name]])+ SUMIFS(OP_RatesTU_SME_1[Ausnet], OP_RatesTU_SME_1[[Rate name]:[Rate name]],IF(OP_TotalRates_SME_1[[#This Row],[Unit]:[Unit]]<>"$",OP_TotalRates_SME_1[[#This Row],[Rate name]:[Rate name]],LEFT(OP_TotalRates_SME_1[[#This Row],[Rate name]:[Rate name]],LEN(OP_TotalRates_SME_1[[#This Row],[Rate name]:[Rate name]])-FIND(" - supply",OP_TotalRates_SME_1[[#This Row],[Rate name]:[Rate name]])-1))),4) -> 0.3881 | R11: =ROUND( SUMIFS(OP_Rates_SME_1[Citipower],OP_Rates_SME_1[[Rate name]:[Rate name]],OP_TotalRates_SME_1[[#This Row],[Rate name]:[Rate name]])+ SUMIFS(OP_RatesTU_SME_1[Citipower], OP_RatesTU_SME_1[[Rate name]:[Rate name]],IF(OP_TotalRates_SME_1[[#This Row],[Unit]:[Unit]]<>"$",OP_TotalRates_SME_1[[#This Row],[Rate name]:[Rate name]],LEFT(OP_TotalRates_SME_1[[#This Row],[Rate name]:[Rate name]],LEN(OP_TotalRates_SME_1[[#This Row],[Rate name]:[Rate name]])-FIND(" - supply",OP_TotalRates_SME_1[[#This Row],[Rate name]:[Rate name]])-1))),4) -> 0 | S11: =ROUND( SUMIFS(OP_Rates_SME_1[Jemena],OP_Rates_SME_1[[Rate name]:[Rate name]],OP_TotalRates_SME_1[[#This Row],[Rate name]:[Rate name]])+ SUMIFS(OP_RatesTU_SME_1[Jemena], OP_RatesTU_SME_1[[Rate name]:[Rate name]],IF(OP_TotalRates_SME_1[[#This Row],[Unit]:[Unit]]<>"$",OP_TotalRates_SME_1[[#This Row],[Rate name]:[Rate name]],LEFT(OP_TotalRates_SME_1[[#This Row],[Rate name]:[Rate name]],LEN(OP_TotalRates_SME_1[[#This Row],[Rate name]:[Rate name]])-FIND(" - supply",OP_TotalRates_SME_1[[#This Row],[Rate name]:[Rate name]])-1))),4) -> 0 | T11: =ROUND( SUMIFS(OP_Rates_SME_1[Powercor],OP_Rates_SME_1[[Rate name]:[Rate name]],OP_TotalRates_SME_1[[#This Row],[Rate name]:[Rate name]])+ SUMIFS(OP_RatesTU_SME_1[Powercor], OP_RatesTU_SME_1[[Rate name]:[Rate name]],IF(OP_TotalRates_SME_1[[#This Row],[Unit]:[Unit]]<>"$",OP_TotalRates_SME_1[[#This Row],[Rate name]:[Rate name]],LEFT(OP_TotalRates_SME_1[[#This Row],[Rate name]:[Rate name]],LEN(OP_TotalRates_SME_1[[#This Row],[Rate name]:[Rate name]])-FIND(" - supply",OP_TotalRates_SME_1[[#This Row],[Rate name]:[Rate name]])-1))),4) -> 0 | U11: =ROUND( SUMIFS(OP_Rates_SME_1[United Energy],OP_Rates_SME_1[[Rate name]:[Rate name]],OP_TotalRates_SME_1[[#This Row],[Rate name]:[Rate name]])+ SUMIFS(OP_RatesTU_SME_1[United Energy], OP_RatesTU_SME_1[[Rate name]:[Rate name]],IF(OP_TotalRates_SME_1[[#This Row],[Unit]:[Unit]]<>"$",OP_TotalRates_SME_1[[#This Row],[Rate name]:[Rate name]],LEFT(OP_TotalRates_SME_1[[#This Row],[Rate name]:[Rate name]],LEN(OP_TotalRates_SME_1[[#This Row],[Rate name]:[Rate name]])-FIND(" - supply",OP_TotalRates_SME_1[[#This Row],[Rate name]:[Rate name]])-1))),4) -> 0
C12: Single rate | D12: $/kWh | E12: Residential | F12: - | G12: =ROUND( SUMIFS(OP_Rates_RES_1[Ausnet],OP_Rates_RES_1[[Rate name]:[Rate name]],OP_TotalRates_RES_1[[#This Row],[Rate name]:[Rate name]])+ SUMIFS(OP_RatesTU_RES_1[Ausnet], OP_RatesTU_RES_1[[Rate name]:[Rate name]],IF(OP_TotalRates_RES_1[[#This Row],[Unit]:[Unit]]<>"$",OP_TotalRates_RES_1[[#This Row],[Rate name]:[Rate name]],LEFT(OP_TotalRates_RES_1[[#This Row],[Rate name]:[Rate name]],LEN(OP_TotalRates_RES_1[[#This Row],[Rate name]:[Rate name]])-FIND(" - supply",OP_TotalRates_RES_1[[#This Row],[Rate name]:[Rate name]])-1))),4) -> 0 | H12: =ROUND( SUMIFS(OP_Rates_RES_1[Citipower],OP_Rates_RES_1[[Rate name]:[Rate name]],OP_TotalRates_RES_1[[#This Row],[Rate name]:[Rate name]])+ SUMIFS(OP_RatesTU_RES_1[Citipower], OP_RatesTU_RES_1[[Rate name]:[Rate name]],IF(OP_TotalRates_RES_1[[#This Row],[Unit]:[Unit]]<>"$",OP_TotalRates_RES_1[[#This Row],[Rate name]:[Rate name]],LEFT(OP_TotalRates_RES_1[[#This Row],[Rate name]:[Rate name]],LEN(OP_TotalRates_RES_1[[#This Row],[Rate name]:[Rate name]])-FIND(" - supply",OP_TotalRates_RES_1[[#This Row],[Rate name]:[Rate name]])-1))),4) -> 0.2733 | I12: =ROUND( SUMIFS(OP_Rates_RES_1[Jemena],OP_Rates_RES_1[[Rate name]:[Rate name]],OP_TotalRates_RES_1[[#This Row],[Rate name]:[Rate name]])+ SUMIFS(OP_RatesTU_RES_1[Jemena], OP_RatesTU_RES_1[[Rate name]:[Rate name]],IF(OP_TotalRates_RES_1[[#This Row],[Unit]:[Unit]]<>"$",OP_TotalRates_RES_1[[#This Row],[Rate name]:[Rate name]],LEFT(OP_TotalRates_RES_1[[#This Row],[Rate name]:[Rate name]],LEN(OP_TotalRates_RES_1[[#This Row],[Rate name]:[Rate name]])-FIND(" - supply",OP_TotalRates_RES_1[[#This Row],[Rate name]:[Rate name]])-1))),4) -> 0.2972 | J12: =ROUND( SUMIFS(OP_Rates_RES_1[Powercor],OP_Rates_RES_1[[Rate name]:[Rate name]],OP_TotalRates_RES_1[[#This Row],[Rate name]:[Rate name]])+ SUMIFS(OP_RatesTU_RES_1[Powercor], OP_RatesTU_RES_1[[Rate name]:[Rate name]],IF(OP_TotalRates_RES_1[[#This Row],[Unit]:[Unit]]<>"$",OP_TotalRates_RES_1[[#This Row],[Rate name]:[Rate name]],LEFT(OP_TotalRates_RES_1[[#This Row],[Rate name]:[Rate name]],LEN(OP_TotalRates_RES_1[[#This Row],[Rate name]:[Rate name]])-FIND(" - supply",OP_TotalRates_RES_1[[#This Row],[Rate name]:[Rate name]])-1))),4) -> 0.3009 | K12: =ROUND( SUMIFS(OP_Rates_RES_1[United Energy],OP_Rates_RES_1[[Rate name]:[Rate name]],OP_TotalRates_RES_1[[#This Row],[Rate name]:[Rate name]])+ SUMIFS(OP_RatesTU_RES_1[United Energy], OP_RatesTU_RES_1[[Rate name]:[Rate name]],IF(OP_TotalRates_RES_1[[#This Row],[Unit]:[Unit]]<>"$",OP_TotalRates_RES_1[[#This Row],[Rate name]:[Rate name]],LEFT(OP_TotalRates_RES_1[[#This Row],[Rate name]:[Rate name]],LEN(OP_TotalRates_RES_1[[#This Row],[Rate name]:[Rate name]])-FIND(" - supply",OP_TotalRates_RES_1[[#This Row],[Rate name]:[Rate name]])-1))),4) -> 0.2884 | M12: Single rate | N12: $/kWh | O12: Small business | P12: - | Q12: =ROUND( SUMIFS(OP_Rates_SME_1[Ausnet],OP_Rates_SME_1[[Rate name]:[Rate name]],OP_TotalRates_SME_1[[#This Row],[Rate name]:[Rate name]])+ SUMIFS(OP_RatesTU_SME_1[Ausnet], OP_RatesTU_SME_1[[Rate name]:[Rate name]],IF(OP_TotalRates_SME_1[[#This Row],[Unit]:[Unit]]<>"$",OP_TotalRates_SME_1[[#This Row],[Rate name]:[Rate name]],LEFT(OP_TotalRates_SME_1[[#This Row],[Rate name]:[Rate name]],LEN(OP_TotalRates_SME_1[[#This Row],[Rate name]:[Rate name]])-FIND(" - supply",OP_TotalRates_SME_1[[#This Row],[Rate name]:[Rate name]])-1))),4) -> 0 | R12: =ROUND( SUMIFS(OP_Rates_SME_1[Citipower],OP_Rates_SME_1[[Rate name]:[Rate name]],OP_TotalRates_SME_1[[#This Row],[Rate name]:[Rate name]])+ SUMIFS(OP_RatesTU_SME_1[Citipower], OP_RatesTU_SME_1[[Rate name]:[Rate name]],IF(OP_TotalRates_SME_1[[#This Row],[Unit]:[Unit]]<>"$",OP_TotalRates_SME_1[[#This Row],[Rate name]:[Rate name]],LEFT(OP_TotalRates_SME_1[[#This Row],[Rate name]:[Rate name]],LEN(OP_TotalRates_SME_1[[#This Row],[Rate name]:[Rate name]])-FIND(" - supply",OP_TotalRates_SME_1[[#This Row],[Rate name]:[Rate name]])-1))),4) -> 0.2657 | S12: =ROUND( SUMIFS(OP_Rates_SME_1[Jemena],OP_Rates_SME_1[[Rate name]:[Rate name]],OP_TotalRates_SME_1[[#This Row],[Rate name]:[Rate name]])+ SUMIFS(OP_RatesTU_SME_1[Jemena], OP_RatesTU_SME_1[[Rate name]:[Rate name]],IF(OP_TotalRates_SME_1[[#This Row],[Unit]:[Unit]]<>"$",OP_TotalRates_SME_1[[#This Row],[Rate name]:[Rate name]],LEFT(OP_TotalRates_SME_1[[#This Row],[Rate name]:[Rate name]],LEN(OP_TotalRates_SME_1[[#This Row],[Rate name]:[Rate name]])-FIND(" - supply",OP_TotalRates_SME_1[[#This Row],[Rate name]:[Rate name]])-1))),4) -> 0.3141 | T12: =ROUND( SUMIFS(OP_Rates_SME_1[Powercor],OP_Rates_SME_1[[Rate name]:[Rate name]],OP_TotalRates_SME_1[[#This Row],[Rate name]:[Rate name]])+ SUMIFS(OP_RatesTU_SME_1[Powercor], OP_RatesTU_SME_1[[Rate name]:[Rate name]],IF(OP_TotalRates_SME_1[[#This Row],[Unit]:[Unit]]<>"$",OP_TotalRates_SME_1[[#This Row],[Rate name]:[Rate name]],LEFT(OP_TotalRates_SME_1[[#This Row],[Rate name]:[Rate name]],LEN(OP_TotalRates_SME_1[[#This Row],[Rate name]:[Rate name]])-FIND(" - supply",OP_TotalRates_SME_1[[#This Row],[Rate name]:[Rate name]])-1))),4) -> 0.2927 | U12: =ROUND( SUMIFS(OP_Rates_SME_1[United Energy],OP_Rates_SME_1[[Rate name]:[Rate name]],OP_TotalRates_SME_1[[#This Row],[Rate name]:[Rate name]])+ SUMIFS(OP_RatesTU_SME_1[United Energy], OP_RatesTU_SME_1[[Rate name]:[Rate name]],IF(OP_TotalRates_SME_1[[#This Row],[Unit]:[Unit]]<>"$",OP_TotalRates_SME_1[[#This Row],[Rate name]:[Rate name]],LEFT(OP_TotalRates_SME_1[[#This Row],[Rate name]:[Rate name]],LEN(OP_TotalRates_SME_1[[#This Row],[Rate name]:[Rate name]])-FIND(" - supply",OP_TotalRates_SME_1[[#This Row],[Rate name]:[Rate name]])-1))),4) -> 0.2789
C13: TOU - supply | D13: $ | E13: Residential | F13: - | G13: =ROUND( SUMIFS(OP_Rates_RES_1[Ausnet],OP_Rates_RES_1[[Rate name]:[Rate name]],OP_TotalRates_RES_1[[#This Row],[Rate name]:[Rate name]])+ SUMIFS(OP_RatesTU_RES_1[Ausnet], OP_RatesTU_RES_1[[Rate name]:[Rate name]],IF(OP_TotalRates_RES_1[[#This Row],[Unit]:[Unit]]<>"$",OP_TotalRates_RES_1[[#This Row],[Rate name]:[Rate name]],LEFT(OP_TotalRates_RES_1[[#This Row],[Rate name]:[Rate name]],LEN(OP_TotalRates_RES_1[[#This Row],[Rate name]:[Rate name]])-FIND(" - supply",OP_TotalRates_RES_1[[#This Row],[Rate name]:[Rate name]])-1))),4) -> 1.4146 | H13: =ROUND( SUMIFS(OP_Rates_RES_1[Citipower],OP_Rates_RES_1[[Rate name]:[Rate name]],OP_TotalRates_RES_1[[#This Row],[Rate name]:[Rate name]])+ SUMIFS(OP_RatesTU_RES_1[Citipower], OP_RatesTU_RES_1[[Rate name]:[Rate name]],IF(OP_TotalRates_RES_1[[#This Row],[Unit]:[Unit]]<>"$",OP_TotalRates_RES_1[[#This Row],[Rate name]:[Rate name]],LEFT(OP_TotalRates_RES_1[[#This Row],[Rate name]:[Rate name]],LEN(OP_TotalRates_RES_1[[#This Row],[Rate name]:[Rate name]])-FIND(" - supply",OP_TotalRates_RES_1[[#This Row],[Rate name]:[Rate name]])-1))),4) -> 1.2407 | I13: =ROUND( SUMIFS(OP_Rates_RES_1[Jemena],OP_Rates_RES_1[[Rate name]:[Rate name]],OP_TotalRates_RES_1[[#This Row],[Rate name]:[Rate name]])+ SUMIFS(OP_RatesTU_RES_1[Jemena], OP_RatesTU_RES_1[[Rate name]:[Rate name]],IF(OP_TotalRates_RES_1[[#This Row],[Unit]:[Unit]]<>"$",OP_TotalRates_RES_1[[#This Row],[Rate name]:[Rate name]],LEFT(OP_TotalRates_RES_1[[#This Row],[Rate name]:[Rate name]],LEN(OP_TotalRates_RES_1[[#This Row],[Rate name]:[Rate name]])-FIND(" - supply",OP_TotalRates_RES_1[[#This Row],[Rate name]:[Rate name]])-1))),4) -> 1.2301 | J13: =ROUND( SUMIFS(OP_Rates_RES_1[Powercor],OP_Rates_RES_1[[Rate name]:[Rate name]],OP_TotalRates_RES_1[[#This Row],[Rate name]:[Rate name]])+ SUMIFS(OP_RatesTU_RES_1[Powercor], OP_RatesTU_RES_1[[Rate name]:[Rate name]],IF(OP_TotalRates_RES_1[[#This Row],[Unit]:[Unit]]<>"$",OP_TotalRates_RES_1[[#This Row],[Rate name]:[Rate name]],LEFT(OP_TotalRates_RES_1[[#This Row],[Rate name]:[Rate name]],LEN(OP_TotalRates_RES_1[[#This Row],[Rate name]:[Rate name]])-FIND(" - supply",OP_TotalRates_RES_1[[#This Row],[Rate name]:[Rate name]])-1))),4) -> 1.3684 | K13: =ROUND( SUMIFS(OP_Rates_RES_1[United Energy],OP_Rates_RES_1[[Rate name]:[Rate name]],OP_TotalRates_RES_1[[#This Row],[Rate name]:[Rate name]])+ SUMIFS(OP_RatesTU_RES_1[United Energy], OP_RatesTU_RES_1[[Rate name]:[Rate name]],IF(OP_TotalRates_RES_1[[#This Row],[Unit]:[Unit]]<>"$",OP_TotalRates_RES_1[[#This Row],[Rate name]:[Rate name]],LEFT(OP_TotalRates_RES_1[[#This Row],[Rate name]:[Rate name]],LEN(OP_TotalRates_RES_1[[#This Row],[Rate name]:[Rate name]])-FIND(" - supply",OP_TotalRates_RES_1[[#This Row],[Rate name]:[Rate name]])-1))),4) -> 1.1648 | M13: TOU - supply | N13: $ | O13: Small business | P13: - | Q13: =ROUND( SUMIFS(OP_Rates_SME_1[Ausnet],OP_Rates_SME_1[[Rate name]:[Rate name]],OP_TotalRates_SME_1[[#This Row],[Rate name]:[Rate name]])+ SUMIFS(OP_RatesTU_SME_1[Ausnet], OP_RatesTU_SME_1[[Rate name]:[Rate name]],IF(OP_TotalRates_SME_1[[#This Row],[Unit]:[Unit]]<>"$",OP_TotalRates_SME_1[[#This Row],[Rate name]:[Rate name]],LEFT(OP_TotalRates_SME_1[[#This Row],[Rate name]:[Rate name]],LEN(OP_TotalRates_SME_1[[#This Row],[Rate name]:[Rate name]])-FIND(" - supply",OP_TotalRates_SME_1[[#This Row],[Rate name]:[Rate name]])-1))),4) -> 1.4146 | R13: =ROUND( SUMIFS(OP_Rates_SME_1[Citipower],OP_Rates_SME_1[[Rate name]:[Rate name]],OP_TotalRates_SME_1[[#This Row],[Rate name]:[Rate name]])+ SUMIFS(OP_RatesTU_SME_1[Citipower], OP_RatesTU_SME_1[[Rate name]:[Rate name]],IF(OP_TotalRates_SME_1[[#This Row],[Unit]:[Unit]]<>"$",OP_TotalRates_SME_1[[#This Row],[Rate name]:[Rate name]],LEFT(OP_TotalRates_SME_1[[#This Row],[Rate name]:[Rate name]],LEN(OP_TotalRates_SME_1[[#This Row],[Rate name]:[Rate name]])-FIND(" - supply",OP_TotalRates_SME_1[[#This Row],[Rate name]:[Rate name]])-1))),4) -> 1.4469 | S13: =ROUND( SUMIFS(OP_Rates_SME_1[Jemena],OP_Rates_SME_1[[Rate name]:[Rate name]],OP_TotalRates_SME_1[[#This Row],[Rate name]:[Rate name]])+ SUMIFS(OP_RatesTU_SME_1[Jemena], OP_RatesTU_SME_1[[Rate name]:[Rate name]],IF(OP_TotalRates_SME_1[[#This Row],[Unit]:[Unit]]<>"$",OP_TotalRates_SME_1[[#This Row],[Rate name]:[Rate name]],LEFT(OP_TotalRates_SME_1[[#This Row],[Rate name]:[Rate name]],LEN(OP_TotalRates_SME_1[[#This Row],[Rate name]:[Rate name]])-FIND(" - supply",OP_TotalRates_SME_1[[#This Row],[Rate name]:[Rate name]])-1))),4) -> 1.6722 | T13: =ROUND( SUMIFS(OP_Rates_SME_1[Powercor],OP_Rates_SME_1[[Rate name]:[Rate name]],OP_TotalRates_SME_1[[#This Row],[Rate name]:[Rate name]])+ SUMIFS(OP_RatesTU_SME_1[Powercor], OP_RatesTU_SME_1[[Rate name]:[Rate name]],IF(OP_TotalRates_SME_1[[#This Row],[Unit]:[Unit]]<>"$",OP_TotalRates_SME_1[[#This Row],[Rate name]:[Rate name]],LEFT(OP_TotalRates_SME_1[[#This Row],[Rate name]:[Rate name]],LEN(OP_TotalRates_SME_1[[#This Row],[Rate name]:[Rate name]])-FIND(" - supply",OP_TotalRates_SME_1[[#This Row],[Rate name]:[Rate name]])-1))),4) -> 1.5905 | U13: =ROUND( SUMIFS(OP_Rates_SME_1[United Energy],OP_Rates_SME_1[[Rate name]:[Rate name]],OP_TotalRates_SME_1[[#This Row],[Rate name]:[Rate name]])+ SUMIFS(OP_RatesTU_SME_1[United Energy], OP_RatesTU_SME_1[[Rate name]:[Rate name]],IF(OP_TotalRates_SME_1[[#This Row],[Unit]:[Unit]]<>"$",OP_TotalRates_SME_1[[#This Row],[Rate name]:[Rate name]],LEFT(OP_TotalRates_SME_1[[#This Row],[Rate name]:[Rate name]],LEN(OP_TotalRates_SME_1[[#This Row],[Rate name]:[Rate name]])-FIND(" - supply",OP_TotalRates_SME_1[[#This Row],[Rate name]:[Rate name]])-1))),4) -> 1.3711
C14: Peak | D14: $/kWh | E14: Residential | F14: - | G14: =ROUND( SUMIFS(OP_Rates_RES_1[Ausnet],OP_Rates_RES_1[[Rate name]:[Rate name]],OP_TotalRates_RES_1[[#This Row],[Rate name]:[Rate name]])+ SUMIFS(OP_RatesTU_RES_1[Ausnet], OP_RatesTU_RES_1[[Rate name]:[Rate name]],IF(OP_TotalRates_RES_1[[#This Row],[Unit]:[Unit]]<>"$",OP_TotalRates_RES_1[[#This Row],[Rate name]:[Rate name]],LEFT(OP_TotalRates_RES_1[[#This Row],[Rate name]:[Rate name]],LEN(OP_TotalRates_RES_1[[#This Row],[Rate name]:[Rate name]])-FIND(" - supply",OP_TotalRates_RES_1[[#This Row],[Rate name]:[Rate name]])-1))),4) -> 0.4682 | H14: =ROUND( SUMIFS(OP_Rates_RES_1[Citipower],OP_Rates_RES_1[[Rate name]:[Rate name]],OP_TotalRates_RES_1[[#This Row],[Rate name]:[Rate name]])+ SUMIFS(OP_RatesTU_RES_1[Citipower], OP_RatesTU_RES_1[[Rate name]:[Rate name]],IF(OP_TotalRates_RES_1[[#This Row],[Unit]:[Unit]]<>"$",OP_TotalRates_RES_1[[#This Row],[Rate name]:[Rate name]],LEFT(OP_TotalRates_RES_1[[#This Row],[Rate name]:[Rate name]],LEN(OP_TotalRates_RES_1[[#This Row],[Rate name]:[Rate name]])-FIND(" - supply",OP_TotalRates_RES_1[[#This Row],[Rate name]:[Rate name]])-1))),4) -> 0.3633 | I14: =ROUND( SUMIFS(OP_Rates_RES_1[Jemena],OP_Rates_RES_1[[Rate name]:[Rate name]],OP_TotalRates_RES_1[[#This Row],[Rate name]:[Rate name]])+ SUMIFS(OP_RatesTU_RES_1[Jemena], OP_RatesTU_RES_1[[Rate name]:[Rate name]],IF(OP_TotalRates_RES_1[[#This Row],[Unit]:[Unit]]<>"$",OP_TotalRates_RES_1[[#This Row],[Rate name]:[Rate name]],LEFT(OP_TotalRates_RES_1[[#This Row],[Rate name]:[Rate name]],LEN(OP_TotalRates_RES_1[[#This Row],[Rate name]:[Rate name]])-FIND(" - supply",OP_TotalRates_RES_1[[#This Row],[Rate name]:[Rate name]])-1))),4) -> 0.3761 | J14: =ROUND( SUMIFS(OP_Rates_RES_1[Powercor],OP_Rates_RES_1[[Rate name]:[Rate name]],OP_TotalRates_RES_1[[#This Row],[Rate name]:[Rate name]])+ SUMIFS(OP_RatesTU_RES_1[Powercor], OP_RatesTU_RES_1[[Rate name]:[Rate name]],IF(OP_TotalRates_RES_1[[#This Row],[Unit]:[Unit]]<>"$",OP_TotalRates_RES_1[[#This Row],[Rate name]:[Rate name]],LEFT(OP_TotalRates_RES_1[[#This Row],[Rate name]:[Rate name]],LEN(OP_TotalRates_RES_1[[#This Row],[Rate name]:[Rate name]])-FIND(" - supply",OP_TotalRates_RES_1[[#This Row],[Rate name]:[Rate name]])-1))),4) -> 0.404 | K14: =ROUND( SUMIFS(OP_Rates_RES_1[United Energy],OP_Rates_RES_1[[Rate name]:[Rate name]],OP_TotalRates_RES_1[[#This Row],[Rate name]:[Rate name]])+ SUMIFS(OP_RatesTU_RES_1[United Energy], OP_RatesTU_RES_1[[Rate name]:[Rate name]],IF(OP_TotalRates_RES_1[[#This Row],[Unit]:[Unit]]<>"$",OP_TotalRates_RES_1[[#This Row],[Rate name]:[Rate name]],LEFT(OP_TotalRates_RES_1[[#This Row],[Rate name]:[Rate name]],LEN(OP_TotalRates_RES_1[[#This Row],[Rate name]:[Rate name]])-FIND(" - supply",OP_TotalRates_RES_1[[#This Row],[Rate name]:[Rate name]])-1))),4) -> 0.3837 | M14: Peak | N14: $/kWh | O14: Small business | P14: - | Q14: =ROUND( SUMIFS(OP_Rates_SME_1[Ausnet],OP_Rates_SME_1[[Rate name]:[Rate name]],OP_TotalRates_SME_1[[#This Row],[Rate name]:[Rate name]])+ SUMIFS(OP_RatesTU_SME_1[Ausnet], OP_RatesTU_SME_1[[Rate name]:[Rate name]],IF(OP_TotalRates_SME_1[[#This Row],[Unit]:[Unit]]<>"$",OP_TotalRates_SME_1[[#This Row],[Rate name]:[Rate name]],LEFT(OP_TotalRates_SME_1[[#This Row],[Rate name]:[Rate name]],LEN(OP_TotalRates_SME_1[[#This Row],[Rate name]:[Rate name]])-FIND(" - supply",OP_TotalRates_SME_1[[#This Row],[Rate name]:[Rate name]])-1))),4) -> 0.4031 | R14: =ROUND( SUMIFS(OP_Rates_SME_1[Citipower],OP_Rates_SME_1[[Rate name]:[Rate name]],OP_TotalRates_SME_1[[#This Row],[Rate name]:[Rate name]])+ SUMIFS(OP_RatesTU_SME_1[Citipower], OP_RatesTU_SME_1[[Rate name]:[Rate name]],IF(OP_TotalRates_SME_1[[#This Row],[Unit]:[Unit]]<>"$",OP_TotalRates_SME_1[[#This Row],[Rate name]:[Rate name]],LEFT(OP_TotalRates_SME_1[[#This Row],[Rate name]:[Rate name]],LEN(OP_TotalRates_SME_1[[#This Row],[Rate name]:[Rate name]])-FIND(" - supply",OP_TotalRates_SME_1[[#This Row],[Rate name]:[Rate name]])-1))),4) -> 0.3305 | S14: =ROUND( SUMIFS(OP_Rates_SME_1[Jemena],OP_Rates_SME_1[[Rate name]:[Rate name]],OP_TotalRates_SME_1[[#This Row],[Rate name]:[Rate name]])+ SUMIFS(OP_RatesTU_SME_1[Jemena], OP_RatesTU_SME_1[[Rate name]:[Rate name]],IF(OP_TotalRates_SME_1[[#This Row],[Unit]:[Unit]]<>"$",OP_TotalRates_SME_1[[#This Row],[Rate name]:[Rate name]],LEFT(OP_TotalRates_SME_1[[#This Row],[Rate name]:[Rate name]],LEN(OP_TotalRates_SME_1[[#This Row],[Rate name]:[Rate name]])-FIND(" - supply",OP_TotalRates_SME_1[[#This Row],[Rate name]:[Rate name]])-1))),4) -> 0.3579 | T14: =ROUND( SUMIFS(OP_Rates_SME_1[Powercor],OP_Rates_SME_1[[Rate name]:[Rate name]],OP_TotalRates_SME_1[[#This Row],[Rate name]:[Rate name]])+ SUMIFS(OP_RatesTU_SME_1[Powercor], OP_RatesTU_SME_1[[Rate name]:[Rate name]],IF(OP_TotalRates_SME_1[[#This Row],[Unit]:[Unit]]<>"$",OP_TotalRates_SME_1[[#This Row],[Rate name]:[Rate name]],LEFT(OP_TotalRates_SME_1[[#This Row],[Rate name]:[Rate name]],LEN(OP_TotalRates_SME_1[[#This Row],[Rate name]:[Rate name]])-FIND(" - supply",OP_TotalRates_SME_1[[#This Row],[Rate name]:[Rate name]])-1))),4) -> 0.3895 | U14: =ROUND( SUMIFS(OP_Rates_SME_1[United Energy],OP_Rates_SME_1[[Rate name]:[Rate name]],OP_TotalRates_SME_1[[#This Row],[Rate name]:[Rate name]])+ SUMIFS(OP_RatesTU_SME_1[United Energy], OP_RatesTU_SME_1[[Rate name]:[Rate name]],IF(OP_TotalRates_SME_1[[#This Row],[Unit]:[Unit]]<>"$",OP_TotalRates_SME_1[[#This Row],[Rate name]:[Rate name]],LEFT(OP_TotalRates_SME_1[[#This Row],[Rate name]:[Rate name]],LEN(OP_TotalRates_SME_1[[#This Row],[Rate name]:[Rate name]])-FIND(" - supply",OP_TotalRates_SME_1[[#This Row],[Rate name]:[Rate name]])-1))),4) -> 0.3501
C15: Off peak | D15: $/kWh | E15: Residential | F15: - | G15: =ROUND( SUMIFS(OP_Rates_RES_1[Ausnet],OP_Rates_RES_1[[Rate name]:[Rate name]],OP_TotalRates_RES_1[[#This Row],[Rate name]:[Rate name]])+ SUMIFS(OP_RatesTU_RES_1[Ausnet], OP_RatesTU_RES_1[[Rate name]:[Rate name]],IF(OP_TotalRates_RES_1[[#This Row],[Unit]:[Unit]]<>"$",OP_TotalRates_RES_1[[#This Row],[Rate name]:[Rate name]],LEFT(OP_TotalRates_RES_1[[#This Row],[Rate name]:[Rate name]],LEN(OP_TotalRates_RES_1[[#This Row],[Rate name]:[Rate name]])-FIND(" - supply",OP_TotalRates_RES_1[[#This Row],[Rate name]:[Rate name]])-1))),4) -> 0.2399 | H15: =ROUND( SUMIFS(OP_Rates_RES_1[Citipower],OP_Rates_RES_1[[Rate name]:[Rate name]],OP_TotalRates_RES_1[[#This Row],[Rate name]:[Rate name]])+ SUMIFS(OP_RatesTU_RES_1[Citipower], OP_RatesTU_RES_1[[Rate name]:[Rate name]],IF(OP_TotalRates_RES_1[[#This Row],[Unit]:[Unit]]<>"$",OP_TotalRates_RES_1[[#This Row],[Rate name]:[Rate name]],LEFT(OP_TotalRates_RES_1[[#This Row],[Rate name]:[Rate name]],LEN(OP_TotalRates_RES_1[[#This Row],[Rate name]:[Rate name]])-FIND(" - supply",OP_TotalRates_RES_1[[#This Row],[Rate name]:[Rate name]])-1))),4) -> 0.2206 | I15: =ROUND( SUMIFS(OP_Rates_RES_1[Jemena],OP_Rates_RES_1[[Rate name]:[Rate name]],OP_TotalRates_RES_1[[#This Row],[Rate name]:[Rate name]])+ SUMIFS(OP_RatesTU_RES_1[Jemena], OP_RatesTU_RES_1[[Rate name]:[Rate name]],IF(OP_TotalRates_RES_1[[#This Row],[Unit]:[Unit]]<>"$",OP_TotalRates_RES_1[[#This Row],[Rate name]:[Rate name]],LEFT(OP_TotalRates_RES_1[[#This Row],[Rate name]:[Rate name]],LEN(OP_TotalRates_RES_1[[#This Row],[Rate name]:[Rate name]])-FIND(" - supply",OP_TotalRates_RES_1[[#This Row],[Rate name]:[Rate name]])-1))),4) -> 0.2368 | J15: =ROUND( SUMIFS(OP_Rates_RES_1[Powercor],OP_Rates_RES_1[[Rate name]:[Rate name]],OP_TotalRates_RES_1[[#This Row],[Rate name]:[Rate name]])+ SUMIFS(OP_RatesTU_RES_1[Powercor], OP_RatesTU_RES_1[[Rate name]:[Rate name]],IF(OP_TotalRates_RES_1[[#This Row],[Unit]:[Unit]]<>"$",OP_TotalRates_RES_1[[#This Row],[Rate name]:[Rate name]],LEFT(OP_TotalRates_RES_1[[#This Row],[Rate name]:[Rate name]],LEN(OP_TotalRates_RES_1[[#This Row],[Rate name]:[Rate name]])-FIND(" - supply",OP_TotalRates_RES_1[[#This Row],[Rate name]:[Rate name]])-1))),4) -> 0.2365 | K15: =ROUND( SUMIFS(OP_Rates_RES_1[United Energy],OP_Rates_RES_1[[Rate name]:[Rate name]],OP_TotalRates_RES_1[[#This Row],[Rate name]:[Rate name]])+ SUMIFS(OP_RatesTU_RES_1[United Energy], OP_RatesTU_RES_1[[Rate name]:[Rate name]],IF(OP_TotalRates_RES_1[[#This Row],[Unit]:[Unit]]<>"$",OP_TotalRates_RES_1[[#This Row],[Rate name]:[Rate name]],LEFT(OP_TotalRates_RES_1[[#This Row],[Rate name]:[Rate name]],LEN(OP_TotalRates_RES_1[[#This Row],[Rate name]:[Rate name]])-FIND(" - supply",OP_TotalRates_RES_1[[#This Row],[Rate name]:[Rate name]])-1))),4) -> 0.2299 | M15: Off peak | N15: $/kWh | O15: Small business | P15: - | Q15: =ROUND( SUMIFS(OP_Rates_SME_1[Ausnet],OP_Rates_SME_1[[Rate name]:[Rate name]],OP_TotalRates_SME_1[[#This Row],[Rate name]:[Rate name]])+ SUMIFS(OP_RatesTU_SME_1[Ausnet], OP_RatesTU_SME_1[[Rate name]:[Rate name]],IF(OP_TotalRates_SME_1[[#This Row],[Unit]:[Unit]]<>"$",OP_TotalRates_SME_1[[#This Row],[Rate name]:[Rate name]],LEFT(OP_TotalRates_SME_1[[#This Row],[Rate name]:[Rate name]],LEN(OP_TotalRates_SME_1[[#This Row],[Rate name]:[Rate name]])-FIND(" - supply",OP_TotalRates_SME_1[[#This Row],[Rate name]:[Rate name]])-1))),4) -> 0.2198 | R15: =ROUND( SUMIFS(OP_Rates_SME_1[Citipower],OP_Rates_SME_1[[Rate name]:[Rate name]],OP_TotalRates_SME_1[[#This Row],[Rate name]:[Rate name]])+ SUMIFS(OP_RatesTU_SME_1[Citipower], OP_RatesTU_SME_1[[Rate name]:[Rate name]],IF(OP_TotalRates_SME_1[[#This Row],[Unit]:[Unit]]<>"$",OP_TotalRates_SME_1[[#This Row],[Rate name]:[Rate name]],LEFT(OP_TotalRates_SME_1[[#This Row],[Rate name]:[Rate name]],LEN(OP_TotalRates_SME_1[[#This Row],[Rate name]:[Rate name]])-FIND(" - supply",OP_TotalRates_SME_1[[#This Row],[Rate name]:[Rate name]])-1))),4) -> 0.1947 | S15: =ROUND( SUMIFS(OP_Rates_SME_1[Jemena],OP_Rates_SME_1[[Rate name]:[Rate name]],OP_TotalRates_SME_1[[#This Row],[Rate name]:[Rate name]])+ SUMIFS(OP_RatesTU_SME_1[Jemena], OP_RatesTU_SME_1[[Rate name]:[Rate name]],IF(OP_TotalRates_SME_1[[#This Row],[Unit]:[Unit]]<>"$",OP_TotalRates_SME_1[[#This Row],[Rate name]:[Rate name]],LEFT(OP_TotalRates_SME_1[[#This Row],[Rate name]:[Rate name]],LEN(OP_TotalRates_SME_1[[#This Row],[Rate name]:[Rate name]])-FIND(" - supply",OP_TotalRates_SME_1[[#This Row],[Rate name]:[Rate name]])-1))),4) -> 0.2028 | T15: =ROUND( SUMIFS(OP_Rates_SME_1[Powercor],OP_Rates_SME_1[[Rate name]:[Rate name]],OP_TotalRates_SME_1[[#This Row],[Rate name]:[Rate name]])+ SUMIFS(OP_RatesTU_SME_1[Powercor], OP_RatesTU_SME_1[[Rate name]:[Rate name]],IF(OP_TotalRates_SME_1[[#This Row],[Unit]:[Unit]]<>"$",OP_TotalRates_SME_1[[#This Row],[Rate name]:[Rate name]],LEFT(OP_TotalRates_SME_1[[#This Row],[Rate name]:[Rate name]],LEN(OP_TotalRates_SME_1[[#This Row],[Rate name]:[Rate name]])-FIND(" - supply",OP_TotalRates_SME_1[[#This Row],[Rate name]:[Rate name]])-1))),4) -> 0.2111 | U15: =ROUND( SUMIFS(OP_Rates_SME_1[United Energy],OP_Rates_SME_1[[Rate name]:[Rate name]],OP_TotalRates_SME_1[[#This Row],[Rate name]:[Rate name]])+ SUMIFS(OP_RatesTU_SME_1[United Energy], OP_RatesTU_SME_1[[Rate name]:[Rate name]],IF(OP_TotalRates_SME_1[[#This Row],[Unit]:[Unit]]<>"$",OP_TotalRates_SME_1[[#This Row],[Rate name]:[Rate name]],LEFT(OP_TotalRates_SME_1[[#This Row],[Rate name]:[Rate name]],LEN(OP_TotalRates_SME_1[[#This Row],[Rate name]:[Rate name]])-FIND(" - supply",OP_TotalRates_SME_1[[#This Row],[Rate name]:[Rate name]])-1))),4) -> 0.2027
C16: Controlled load | D16: $/kWh | E16: Residential | F16: - | G16: =ROUND( SUMIFS(OP_Rates_RES_1[Ausnet],OP_Rates_RES_1[[Rate name]:[Rate name]],OP_TotalRates_RES_1[[#This Row],[Rate name]:[Rate name]])+ SUMIFS(OP_RatesTU_RES_1[Ausnet], OP_RatesTU_RES_1[[Rate name]:[Rate name]],IF(OP_TotalRates_RES_1[[#This Row],[Unit]:[Unit]]<>"$",OP_TotalRates_RES_1[[#This Row],[Rate name]:[Rate name]],LEFT(OP_TotalRates_RES_1[[#This Row],[Rate name]:[Rate name]],LEN(OP_TotalRates_RES_1[[#This Row],[Rate name]:[Rate name]])-FIND(" - supply",OP_TotalRates_RES_1[[#This Row],[Rate name]:[Rate name]])-1))),4) -> 0.2399 | H16: =ROUND( SUMIFS(OP_Rates_RES_1[Citipower],OP_Rates_RES_1[[Rate name]:[Rate name]],OP_TotalRates_RES_1[[#This Row],[Rate name]:[Rate name]])+ SUMIFS(OP_RatesTU_RES_1[Citipower], OP_RatesTU_RES_1[[Rate name]:[Rate name]],IF(OP_TotalRates_RES_1[[#This Row],[Unit]:[Unit]]<>"$",OP_TotalRates_RES_1[[#This Row],[Rate name]:[Rate name]],LEFT(OP_TotalRates_RES_1[[#This Row],[Rate name]:[Rate name]],LEN(OP_TotalRates_RES_1[[#This Row],[Rate name]:[Rate name]])-FIND(" - supply",OP_TotalRates_RES_1[[#This Row],[Rate name]:[Rate name]])-1))),4) -> 0.2012 | I16: =ROUND( SUMIFS(OP_Rates_RES_1[Jemena],OP_Rates_RES_1[[Rate name]:[Rate name]],OP_TotalRates_RES_1[[#This Row],[Rate name]:[Rate name]])+ SUMIFS(OP_RatesTU_RES_1[Jemena], OP_RatesTU_RES_1[[Rate name]:[Rate name]],IF(OP_TotalRates_RES_1[[#This Row],[Unit]:[Unit]]<>"$",OP_TotalRates_RES_1[[#This Row],[Rate name]:[Rate name]],LEFT(OP_TotalRates_RES_1[[#This Row],[Rate name]:[Rate name]],LEN(OP_TotalRates_RES_1[[#This Row],[Rate name]:[Rate name]])-FIND(" - supply",OP_TotalRates_RES_1[[#This Row],[Rate name]:[Rate name]])-1))),4) -> 0.2314 | J16: =ROUND( SUMIFS(OP_Rates_RES_1[Powercor],OP_Rates_RES_1[[Rate name]:[Rate name]],OP_TotalRates_RES_1[[#This Row],[Rate name]:[Rate name]])+ SUMIFS(OP_RatesTU_RES_1[Powercor], OP_RatesTU_RES_1[[Rate name]:[Rate name]],IF(OP_TotalRates_RES_1[[#This Row],[Unit]:[Unit]]<>"$",OP_TotalRates_RES_1[[#This Row],[Rate name]:[Rate name]],LEFT(OP_TotalRates_RES_1[[#This Row],[Rate name]:[Rate name]],LEN(OP_TotalRates_RES_1[[#This Row],[Rate name]:[Rate name]])-FIND(" - supply",OP_TotalRates_RES_1[[#This Row],[Rate name]:[Rate name]])-1))),4) -> 0.2122 | K16: =ROUND( SUMIFS(OP_Rates_RES_1[United Energy],OP_Rates_RES_1[[Rate name]:[Rate name]],OP_TotalRates_RES_1[[#This Row],[Rate name]:[Rate name]])+ SUMIFS(OP_RatesTU_RES_1[United Energy], OP_RatesTU_RES_1[[Rate name]:[Rate name]],IF(OP_TotalRates_RES_1[[#This Row],[Unit]:[Unit]]<>"$",OP_TotalRates_RES_1[[#This Row],[Rate name]:[Rate name]],LEFT(OP_TotalRates_RES_1[[#This Row],[Rate name]:[Rate name]],LEN(OP_TotalRates_RES_1[[#This Row],[Rate name]:[Rate name]])-FIND(" - supply",OP_TotalRates_RES_1[[#This Row],[Rate name]:[Rate name]])-1))),4) -> 0.2107 | P16: - | Q16: =ROUND( SUMIFS(OP_Rates_SME_1[Ausnet],OP_Rates_SME_1[[Rate name]:[Rate name]],OP_TotalRates_SME_1[[#This Row],[Rate name]:[Rate name]])+ SUMIFS(OP_RatesTU_SME_1[Ausnet], OP_RatesTU_SME_1[[Rate name]:[Rate name]],IF(OP_TotalRates_SME_1[[#This Row],[Unit]:[Unit]]<>"$",OP_TotalRates_SME_1[[#This Row],[Rate name]:[Rate name]],LEFT(OP_TotalRates_SME_1[[#This Row],[Rate name]:[Rate name]],LEN(OP_TotalRates_SME_1[[#This Row],[Rate name]:[Rate name]])-FIND(" - supply",OP_TotalRates_SME_1[[#This Row],[Rate name]:[Rate name]])-1))),4) -> 0 | R16: =ROUND( SUMIFS(OP_Rates_SME_1[Citipower],OP_Rates_SME_1[[Rate name]:[Rate name]],OP_TotalRates_SME_1[[#This Row],[Rate name]:[Rate name]])+ SUMIFS(OP_RatesTU_SME_1[Citipower], OP_RatesTU_SME_1[[Rate name]:[Rate name]],IF(OP_TotalRates_SME_1[[#This Row],[Unit]:[Unit]]<>"$",OP_TotalRates_SME_1[[#This Row],[Rate name]:[Rate name]],LEFT(OP_TotalRates_SME_1[[#This Row],[Rate name]:[Rate name]],LEN(OP_TotalRates_SME_1[[#This Row],[Rate name]:[Rate name]])-FIND(" - supply",OP_TotalRates_SME_1[[#This Row],[Rate name]:[Rate name]])-1))),4) -> 0 | S16: =ROUND( SUMIFS(OP_Rates_SME_1[Jemena],OP_Rates_SME_1[[Rate name]:[Rate name]],OP_TotalRates_SME_1[[#This Row],[Rate name]:[Rate name]])+ SUMIFS(OP_RatesTU_SME_1[Jemena], OP_RatesTU_SME_1[[Rate name]:[Rate name]],IF(OP_TotalRates_SME_1[[#This Row],[Unit]:[Unit]]<>"$",OP_TotalRates_SME_1[[#This Row],[Rate name]:[Rate name]],LEFT(OP_TotalRates_SME_1[[#This Row],[Rate name]:[Rate name]],LEN(OP_TotalRates_SME_1[[#This Row],[Rate name]:[Rate name]])-FIND(" - supply",OP_TotalRates_SME_1[[#This Row],[Rate name]:[Rate name]])-1))),4) -> 0 | T16: =ROUND( SUMIFS(OP_Rates_SME_1[Powercor],OP_Rates_SME_1[[Rate name]:[Rate name]],OP_TotalRates_SME_1[[#This Row],[Rate name]:[Rate name]])+ SUMIFS(OP_RatesTU_SME_1[Powercor], OP_RatesTU_SME_1[[Rate name]:[Rate name]],IF(OP_TotalRates_SME_1[[#This Row],[Unit]:[Unit]]<>"$",OP_TotalRates_SME_1[[#This Row],[Rate name]:[Rate name]],LEFT(OP_TotalRates_SME_1[[#This Row],[Rate name]:[Rate name]],LEN(OP_TotalRates_SME_1[[#This Row],[Rate name]:[Rate name]])-FIND(" - supply",OP_TotalRates_SME_1[[#This Row],[Rate name]:[Rate name]])-1))),4) -> 0 | U16: =ROUND( SUMIFS(OP_Rates_SME_1[United Energy],OP_Rates_SME_1[[Rate name]:[Rate name]],OP_TotalRates_SME_1[[#This Row],[Rate name]:[Rate name]])+ SUMIFS(OP_RatesTU_SME_1[United Energy], OP_RatesTU_SME_1[[Rate name]:[Rate name]],IF(OP_TotalRates_SME_1[[#This Row],[Unit]:[Unit]]<>"$",OP_TotalRates_SME_1[[#This Row],[Rate name]:[Rate name]],LEFT(OP_TotalRates_SME_1[[#This Row],[Rate name]:[Rate name]],LEN(OP_TotalRates_SME_1[[#This Row],[Rate name]:[Rate name]])-FIND(" - supply",OP_TotalRates_SME_1[[#This Row],[Rate name]:[Rate name]])-1))),4) -> 0
C18: Residential calculated rate | M18: Small business calculated rate
C19: Rate name | D19: Unit | E19: Customer type | F19: - | G19: Ausnet | H19: Citipower | I19: Jemena | J19: Powercor | K19: United Energy | M19: Rate name | N19: Unit | O19: Customer type | P19: - | Q19: Ausnet | R19: Citipower | S19: Jemena | T19: Powercor | U19: United Energy
C20: Anytime - supply | D20: $ | E20: Residential | F20: - | G20: =SUMIFS(Calc_Rates!G$18:G$48,Calc_Rates!$C$18:$C$48,OP_Rates!$C20,Calc_Rates!$F$18:$F$48,OP_Rates!$E20) -> 1.414560192 | H20: =SUMIFS(Calc_Rates!H$18:H$48,Calc_Rates!$C$18:$C$48,OP_Rates!$C20,Calc_Rates!$F$18:$F$48,OP_Rates!$E20) -> 1.240667483 | I20: =SUMIFS(Calc_Rates!I$18:I$48,Calc_Rates!$C$18:$C$48,OP_Rates!$C20,Calc_Rates!$F$18:$F$48,OP_Rates!$E20) -> 1.230085821 | J20: =SUMIFS(Calc_Rates!J$18:J$48,Calc_Rates!$C$18:$C$48,OP_Rates!$C20,Calc_Rates!$F$18:$F$48,OP_Rates!$E20) -> 1.368375184 | K20: =SUMIFS(Calc_Rates!K$18:K$48,Calc_Rates!$C$18:$C$48,OP_Rates!$C20,Calc_Rates!$F$18:$F$48,OP_Rates!$E20) -> 1.164839023 | M20: Anytime - supply | N20: $ | O20: Small business | P20: - | Q20: =IF(SUMIFS(Calc_Rates!G$18:G$48,Calc_Rates!$C$18:$C$48,OP_Rates!$M20,Calc_Rates!$F$18:$F$48,OP_Rates!$O20)=0,"-",SUMIFS(Calc_Rates!G$18:G$48,Calc_Rates!$C$18:$C$48,OP_Rates!$M20,Calc_Rates!$F$18:$F$48,OP_Rates!$O20)) -> 1.414560192 | R20: =IF(SUMIFS(Calc_Rates!H$18:H$48,Calc_Rates!$C$18:$C$48,OP_Rates!$M20,Calc_Rates!$F$18:$F$48,OP_Rates!$O20)=0,"-",SUMIFS(Calc_Rates!H$18:H$48,Calc_Rates!$C$18:$C$48,OP_Rates!$M20,Calc_Rates!$F$18:$F$48,OP_Rates!$O20)) -> 1.446882349 | S20: =IF(SUMIFS(Calc_Rates!I$18:I$48,Calc_Rates!$C$18:$C$48,OP_Rates!$M20,Calc_Rates!$F$18:$F$48,OP_Rates!$O20)=0,"-",SUMIFS(Calc_Rates!I$18:I$48,Calc_Rates!$C$18:$C$48,OP_Rates!$M20,Calc_Rates!$F$18:$F$48,OP_Rates!$O20)) -> 1.58338856 | T20: =IF(SUMIFS(Calc_Rates!J$18:J$48,Calc_Rates!$C$18:$C$48,OP_Rates!$M20,Calc_Rates!$F$18:$F$48,OP_Rates!$O20)=0,"-",SUMIFS(Calc_Rates!J$18:J$48,Calc_Rates!$C$18:$C$48,OP_Rates!$M20,Calc_Rates!$F$18:$F$48,OP_Rates!$O20)) -> 1.590452732 | U20: =IF(SUMIFS(Calc_Rates!K$18:K$48,Calc_Rates!$C$18:$C$48,OP_Rates!$M20,Calc_Rates!$F$18:$F$48,OP_Rates!$O20)=0,"-",SUMIFS(Calc_Rates!K$18:K$48,Calc_Rates!$C$18:$C$48,OP_Rates!$M20,Calc_Rates!$F$18:$F$48,OP_Rates!$O20)) -> 1.371053889
C21: Block 1 | D21: $/kWh | E21: Residential | F21: - | G21: =IF(SUMIFS(Calc_Rates!G$63:G$141,Calc_Rates!$C$63:$C$141,OP_Rates!$C21&" charge",Calc_Rates!$F$63:$F$141,OP_Rates!$E21)=0,"-",SUMIFS(Calc_Rates!G$63:G$141,Calc_Rates!$C$63:$C$141,OP_Rates!$C21&" charge",Calc_Rates!$F$63:$F$141,OP_Rates!$E21)) -> 0.3484257347 | H21: =IF(SUMIFS(Calc_Rates!H$63:H$141,Calc_Rates!$C$63:$C$141,OP_Rates!$C21&" charge",Calc_Rates!$F$63:$F$141,OP_Rates!$E21)=0,"-",SUMIFS(Calc_Rates!H$63:H$141,Calc_Rates!$C$63:$C$141,OP_Rates!$C21&" charge",Calc_Rates!$F$63:$F$141,OP_Rates!$E21)) -> - | I21: =IF(SUMIFS(Calc_Rates!I$63:I$141,Calc_Rates!$C$63:$C$141,OP_Rates!$C21&" charge",Calc_Rates!$F$63:$F$141,OP_Rates!$E21)=0,"-",SUMIFS(Calc_Rates!I$63:I$141,Calc_Rates!$C$63:$C$141,OP_Rates!$C21&" charge",Calc_Rates!$F$63:$F$141,OP_Rates!$E21)) -> - | J21: =IF(SUMIFS(Calc_Rates!J$63:J$141,Calc_Rates!$C$63:$C$141,OP_Rates!$C21&" charge",Calc_Rates!$F$63:$F$141,OP_Rates!$E21)=0,"-",SUMIFS(Calc_Rates!J$63:J$141,Calc_Rates!$C$63:$C$141,OP_Rates!$C21&" charge",Calc_Rates!$F$63:$F$141,OP_Rates!$E21)) -> - | K21: =IF(SUMIFS(Calc_Rates!K$63:K$141,Calc_Rates!$C$63:$C$141,OP_Rates!$C21&" charge",Calc_Rates!$F$63:$F$141,OP_Rates!$E21)=0,"-",SUMIFS(Calc_Rates!K$63:K$141,Calc_Rates!$C$63:$C$141,OP_Rates!$C21&" charge",Calc_Rates!$F$63:$F$141,OP_Rates!$E21)) -> - | M21: Block 1 | N21: $/kWh | O21: Small business | P21: - | Q21: =IF(SUMIFS(Calc_Rates!G$63:G$141,Calc_Rates!$C$63:$C$141,OP_Rates!$M21&" charge",Calc_Rates!$F$63:$F$141,OP_Rates!$O21)=0,"-",SUMIFS(Calc_Rates!G$63:G$141,Calc_Rates!$C$63:$C$141,OP_Rates!$M21&" charge",Calc_Rates!$F$63:$F$141,OP_Rates!$O21)) -> 0.3888617625 | R21: =IF(SUMIFS(Calc_Rates!H$63:H$141,Calc_Rates!$C$63:$C$141,OP_Rates!$M21&" charge",Calc_Rates!$F$63:$F$141,OP_Rates!$O21)=0,"-",SUMIFS(Calc_Rates!H$63:H$141,Calc_Rates!$C$63:$C$141,OP_Rates!$M21&" charge",Calc_Rates!$F$63:$F$141,OP_Rates!$O21)) -> - | S21: =IF(SUMIFS(Calc_Rates!I$63:I$141,Calc_Rates!$C$63:$C$141,OP_Rates!$M21&" charge",Calc_Rates!$F$63:$F$141,OP_Rates!$O21)=0,"-",SUMIFS(Calc_Rates!I$63:I$141,Calc_Rates!$C$63:$C$141,OP_Rates!$M21&" charge",Calc_Rates!$F$63:$F$141,OP_Rates!$O21)) -> - | T21: =IF(SUMIFS(Calc_Rates!J$63:J$141,Calc_Rates!$C$63:$C$141,OP_Rates!$M21&" charge",Calc_Rates!$F$63:$F$141,OP_Rates!$O21)=0,"-",SUMIFS(Calc_Rates!J$63:J$141,Calc_Rates!$C$63:$C$141,OP_Rates!$M21&" charge",Calc_Rates!$F$63:$F$141,OP_Rates!$O21)) -> - | U21: =IF(SUMIFS(Calc_Rates!K$63:K$141,Calc_Rates!$C$63:$C$141,OP_Rates!$M21&" charge",Calc_Rates!$F$63:$F$141,OP_Rates!$O21)=0,"-",SUMIFS(Calc_Rates!K$63:K$141,Calc_Rates!$C$63:$C$141,OP_Rates!$M21&" charge",Calc_Rates!$F$63:$F$141,OP_Rates!$O21)) -> -
C22: Balance | D22: $/kWh | E22: Residential | F22: - | G22: =IF(SUMIFS(Calc_Rates!G$63:G$141,Calc_Rates!$C$63:$C$141,OP_Rates!$C22&" charge",Calc_Rates!$F$63:$F$141,OP_Rates!$E22)=0,"-",SUMIFS(Calc_Rates!G$63:G$141,Calc_Rates!$C$63:$C$141,OP_Rates!$C22&" charge",Calc_Rates!$F$63:$F$141,OP_Rates!$E22)) -> 0.3484256207 | H22: =IF(SUMIFS(Calc_Rates!H$63:H$141,Calc_Rates!$C$63:$C$141,OP_Rates!$C22&" charge",Calc_Rates!$F$63:$F$141,OP_Rates!$E22)=0,"-",SUMIFS(Calc_Rates!H$63:H$141,Calc_Rates!$C$63:$C$141,OP_Rates!$C22&" charge",Calc_Rates!$F$63:$F$141,OP_Rates!$E22)) -> - | I22: =IF(SUMIFS(Calc_Rates!I$63:I$141,Calc_Rates!$C$63:$C$141,OP_Rates!$C22&" charge",Calc_Rates!$F$63:$F$141,OP_Rates!$E22)=0,"-",SUMIFS(Calc_Rates!I$63:I$141,Calc_Rates!$C$63:$C$141,OP_Rates!$C22&" charge",Calc_Rates!$F$63:$F$141,OP_Rates!$E22)) -> - | J22: =IF(SUMIFS(Calc_Rates!J$63:J$141,Calc_Rates!$C$63:$C$141,OP_Rates!$C22&" charge",Calc_Rates!$F$63:$F$141,OP_Rates!$E22)=0,"-",SUMIFS(Calc_Rates!J$63:J$141,Calc_Rates!$C$63:$C$141,OP_Rates!$C22&" charge",Calc_Rates!$F$63:$F$141,OP_Rates!$E22)) -> - | K22: =IF(SUMIFS(Calc_Rates!K$63:K$141,Calc_Rates!$C$63:$C$141,OP_Rates!$C22&" charge",Calc_Rates!$F$63:$F$141,OP_Rates!$E22)=0,"-",SUMIFS(Calc_Rates!K$63:K$141,Calc_Rates!$C$63:$C$141,OP_Rates!$C22&" charge",Calc_Rates!$F$63:$F$141,OP_Rates!$E22)) -> - | M22: Balance | N22: $/kWh | O22: Small business | P22: - | Q22: =IF(SUMIFS(Calc_Rates!G$63:G$141,Calc_Rates!$C$63:$C$141,OP_Rates!$M22&" charge",Calc_Rates!$F$63:$F$141,OP_Rates!$O22)=0,"-",SUMIFS(Calc_Rates!G$63:G$141,Calc_Rates!$C$63:$C$141,OP_Rates!$M22&" charge",Calc_Rates!$F$63:$F$141,OP_Rates!$O22)) -> 0.3888617625 | R22: =IF(SUMIFS(Calc_Rates!H$63:H$141,Calc_Rates!$C$63:$C$141,OP_Rates!$M22&" charge",Calc_Rates!$F$63:$F$141,OP_Rates!$O22)=0,"-",SUMIFS(Calc_Rates!H$63:H$141,Calc_Rates!$C$63:$C$141,OP_Rates!$M22&" charge",Calc_Rates!$F$63:$F$141,OP_Rates!$O22)) -> - | S22: =IF(SUMIFS(Calc_Rates!I$63:I$141,Calc_Rates!$C$63:$C$141,OP_Rates!$M22&" charge",Calc_Rates!$F$63:$F$141,OP_Rates!$O22)=0,"-",SUMIFS(Calc_Rates!I$63:I$141,Calc_Rates!$C$63:$C$141,OP_Rates!$M22&" charge",Calc_Rates!$F$63:$F$141,OP_Rates!$O22)) -> - | T22: =IF(SUMIFS(Calc_Rates!J$63:J$141,Calc_Rates!$C$63:$C$141,OP_Rates!$M22&" charge",Calc_Rates!$F$63:$F$141,OP_Rates!$O22)=0,"-",SUMIFS(Calc_Rates!J$63:J$141,Calc_Rates!$C$63:$C$141,OP_Rates!$M22&" charge",Calc_Rates!$F$63:$F$141,OP_Rates!$O22)) -> - | U22: =IF(SUMIFS(Calc_Rates!K$63:K$141,Calc_Rates!$C$63:$C$141,OP_Rates!$M22&" charge",Calc_Rates!$F$63:$F$141,OP_Rates!$O22)=0,"-",SUMIFS(Calc_Rates!K$63:K$141,Calc_Rates!$C$63:$C$141,OP_Rates!$M22&" charge",Calc_Rates!$F$63:$F$141,OP_Rates!$O22)) -> -
C23: Single rate | D23: $/kWh | E23: Residential | F23: - | G23: =IF(SUMIFS(Calc_Rates!G$63:G$141,Calc_Rates!$C$63:$C$141,OP_Rates!$C23&" charge",Calc_Rates!$F$63:$F$141,OP_Rates!$E23)=0,"-",SUMIFS(Calc_Rates!G$63:G$141,Calc_Rates!$C$63:$C$141,OP_Rates!$C23&" charge",Calc_Rates!$F$63:$F$141,OP_Rates!$E23)) -> - | H23: =IF(SUMIFS(Calc_Rates!H$63:H$141,Calc_Rates!$C$63:$C$141,OP_Rates!$C23&" charge",Calc_Rates!$F$63:$F$141,OP_Rates!$E23)=0,"-",SUMIFS(Calc_Rates!H$63:H$141,Calc_Rates!$C$63:$C$141,OP_Rates!$C23&" charge",Calc_Rates!$F$63:$F$141,OP_Rates!$E23)) -> 0.2739700002 | I23: =IF(SUMIFS(Calc_Rates!I$63:I$141,Calc_Rates!$C$63:$C$141,OP_Rates!$C23&" charge",Calc_Rates!$F$63:$F$141,OP_Rates!$E23)=0,"-",SUMIFS(Calc_Rates!I$63:I$141,Calc_Rates!$C$63:$C$141,OP_Rates!$C23&" charge",Calc_Rates!$F$63:$F$141,OP_Rates!$E23)) -> 0.2978769446 | J23: =IF(SUMIFS(Calc_Rates!J$63:J$141,Calc_Rates!$C$63:$C$141,OP_Rates!$C23&" charge",Calc_Rates!$F$63:$F$141,OP_Rates!$E23)=0,"-",SUMIFS(Calc_Rates!J$63:J$141,Calc_Rates!$C$63:$C$141,OP_Rates!$C23&" charge",Calc_Rates!$F$63:$F$141,OP_Rates!$E23)) -> 0.3016110475 | K23: =IF(SUMIFS(Calc_Rates!K$63:K$141,Calc_Rates!$C$63:$C$141,OP_Rates!$C23&" charge",Calc_Rates!$F$63:$F$141,OP_Rates!$E23)=0,"-",SUMIFS(Calc_Rates!K$63:K$141,Calc_Rates!$C$63:$C$141,OP_Rates!$C23&" charge",Calc_Rates!$F$63:$F$141,OP_Rates!$E23)) -> 0.2890786944 | M23: Single rate | N23: $/kWh | O23: Small business | P23: - | Q23: =IF(SUMIFS(Calc_Rates!G$63:G$141,Calc_Rates!$C$63:$C$141,OP_Rates!$M23&" charge",Calc_Rates!$F$63:$F$141,OP_Rates!$O23)=0,"-",SUMIFS(Calc_Rates!G$63:G$141,Calc_Rates!$C$63:$C$141,OP_Rates!$M23&" charge",Calc_Rates!$F$63:$F$141,OP_Rates!$O23)) -> - | R23: =IF(SUMIFS(Calc_Rates!H$63:H$141,Calc_Rates!$C$63:$C$141,OP_Rates!$M23&" charge",Calc_Rates!$F$63:$F$141,OP_Rates!$O23)=0,"-",SUMIFS(Calc_Rates!H$63:H$141,Calc_Rates!$C$63:$C$141,OP_Rates!$M23&" charge",Calc_Rates!$F$63:$F$141,OP_Rates!$O23)) -> 0.266419542 | S23: =IF(SUMIFS(Calc_Rates!I$63:I$141,Calc_Rates!$C$63:$C$141,OP_Rates!$M23&" charge",Calc_Rates!$F$63:$F$141,OP_Rates!$O23)=0,"-",SUMIFS(Calc_Rates!I$63:I$141,Calc_Rates!$C$63:$C$141,OP_Rates!$M23&" charge",Calc_Rates!$F$63:$F$141,OP_Rates!$O23)) -> 0.3148595314 | T23: =IF(SUMIFS(Calc_Rates!J$63:J$141,Calc_Rates!$C$63:$C$141,OP_Rates!$M23&" charge",Calc_Rates!$F$63:$F$141,OP_Rates!$O23)=0,"-",SUMIFS(Calc_Rates!J$63:J$141,Calc_Rates!$C$63:$C$141,OP_Rates!$M23&" charge",Calc_Rates!$F$63:$F$141,OP_Rates!$O23)) -> 0.2934655721 | U23: =IF(SUMIFS(Calc_Rates!K$63:K$141,Calc_Rates!$C$63:$C$141,OP_Rates!$M23&" charge",Calc_Rates!$F$63:$F$141,OP_Rates!$O23)=0,"-",SUMIFS(Calc_Rates!K$63:K$141,Calc_Rates!$C$63:$C$141,OP_Rates!$M23&" charge",Calc_Rates!$F$63:$F$141,OP_Rates!$O23)) -> 0.2796495664
C24: TOU - supply | D24: $ | E24: Residential | F24: - | G24: =IF(SUMIFS(Calc_Rates!G$18:G$48,Calc_Rates!$C$18:$C$48,OP_Rates!$C24,Calc_Rates!$F$18:$F$48,OP_Rates!$E24)=0,"-",SUMIFS(Calc_Rates!G$18:G$48,Calc_Rates!$C$18:$C$48,OP_Rates!$C24,Calc_Rates!$F$18:$F$48,OP_Rates!$E24)) -> 1.414560192 | H24: =IF(SUMIFS(Calc_Rates!H$18:H$48,Calc_Rates!$C$18:$C$48,OP_Rates!$C24,Calc_Rates!$F$18:$F$48,OP_Rates!$E24)=0,"-",SUMIFS(Calc_Rates!H$18:H$48,Calc_Rates!$C$18:$C$48,OP_Rates!$C24,Calc_Rates!$F$18:$F$48,OP_Rates!$E24)) -> 1.240667483 | I24: =IF(SUMIFS(Calc_Rates!I$18:I$48,Calc_Rates!$C$18:$C$48,OP_Rates!$C24,Calc_Rates!$F$18:$F$48,OP_Rates!$E24)=0,"-",SUMIFS(Calc_Rates!I$18:I$48,Calc_Rates!$C$18:$C$48,OP_Rates!$C24,Calc_Rates!$F$18:$F$48,OP_Rates!$E24)) -> 1.230085821 | J24: =IF(SUMIFS(Calc_Rates!J$18:J$48,Calc_Rates!$C$18:$C$48,OP_Rates!$C24,Calc_Rates!$F$18:$F$48,OP_Rates!$E24)=0,"-",SUMIFS(Calc_Rates!J$18:J$48,Calc_Rates!$C$18:$C$48,OP_Rates!$C24,Calc_Rates!$F$18:$F$48,OP_Rates!$E24)) -> 1.368375184 | K24: =IF(SUMIFS(Calc_Rates!K$18:K$48,Calc_Rates!$C$18:$C$48,OP_Rates!$C24,Calc_Rates!$F$18:$F$48,OP_Rates!$E24)=0,"-",SUMIFS(Calc_Rates!K$18:K$48,Calc_Rates!$C$18:$C$48,OP_Rates!$C24,Calc_Rates!$F$18:$F$48,OP_Rates!$E24)) -> 1.164839023 | M24: TOU - supply | N24: $ | O24: Small business | P24: - | Q24: =IF(SUMIFS(Calc_Rates!G$18:G$48,Calc_Rates!$C$18:$C$48,OP_Rates!$M24,Calc_Rates!$F$18:$F$48,OP_Rates!$O24)=0,"-",SUMIFS(Calc_Rates!G$18:G$48,Calc_Rates!$C$18:$C$48,OP_Rates!$M24,Calc_Rates!$F$18:$F$48,OP_Rates!$O24)) -> 1.414560192 | R24: =IF(SUMIFS(Calc_Rates!H$18:H$48,Calc_Rates!$C$18:$C$48,OP_Rates!$M24,Calc_Rates!$F$18:$F$48,OP_Rates!$O24)=0,"-",SUMIFS(Calc_Rates!H$18:H$48,Calc_Rates!$C$18:$C$48,OP_Rates!$M24,Calc_Rates!$F$18:$F$48,OP_Rates!$O24)) -> 1.446882349 | S24: =IF(SUMIFS(Calc_Rates!I$18:I$48,Calc_Rates!$C$18:$C$48,OP_Rates!$M24,Calc_Rates!$F$18:$F$48,OP_Rates!$O24)=0,"-",SUMIFS(Calc_Rates!I$18:I$48,Calc_Rates!$C$18:$C$48,OP_Rates!$M24,Calc_Rates!$F$18:$F$48,OP_Rates!$O24)) -> 1.672210697 | T24: =IF(SUMIFS(Calc_Rates!J$18:J$48,Calc_Rates!$C$18:$C$48,OP_Rates!$M24,Calc_Rates!$F$18:$F$48,OP_Rates!$O24)=0,"-",SUMIFS(Calc_Rates!J$18:J$48,Calc_Rates!$C$18:$C$48,OP_Rates!$M24,Calc_Rates!$F$18:$F$48,OP_Rates!$O24)) -> 1.590452732 | U24: =IF(SUMIFS(Calc_Rates!K$18:K$48,Calc_Rates!$C$18:$C$48,OP_Rates!$M24,Calc_Rates!$F$18:$F$48,OP_Rates!$O24)=0,"-",SUMIFS(Calc_Rates!K$18:K$48,Calc_Rates!$C$18:$C$48,OP_Rates!$M24,Calc_Rates!$F$18:$F$48,OP_Rates!$O24)) -> 1.371053889
C25: Peak | D25: $/kWh | E25: Residential | F25: - | G25: =IF(SUMIFS(Calc_Rates!G$63:G$141,Calc_Rates!$C$63:$C$141,OP_Rates!$C25&" charge",Calc_Rates!$F$63:$F$141,OP_Rates!$E25)=0,"-",SUMIFS(Calc_Rates!G$63:G$141,Calc_Rates!$C$63:$C$141,OP_Rates!$C25&" charge",Calc_Rates!$F$63:$F$141,OP_Rates!$E25)) -> 0.4689326694 | H25: =IF(SUMIFS(Calc_Rates!H$63:H$141,Calc_Rates!$C$63:$C$141,OP_Rates!$C25&" charge",Calc_Rates!$F$63:$F$141,OP_Rates!$E25)=0,"-",SUMIFS(Calc_Rates!H$63:H$141,Calc_Rates!$C$63:$C$141,OP_Rates!$C25&" charge",Calc_Rates!$F$63:$F$141,OP_Rates!$E25)) -> 0.3640515082 | I25: =IF(SUMIFS(Calc_Rates!I$63:I$141,Calc_Rates!$C$63:$C$141,OP_Rates!$C25&" charge",Calc_Rates!$F$63:$F$141,OP_Rates!$E25)=0,"-",SUMIFS(Calc_Rates!I$63:I$141,Calc_Rates!$C$63:$C$141,OP_Rates!$C25&" charge",Calc_Rates!$F$63:$F$141,OP_Rates!$E25)) -> 0.376773525 | J25: =IF(SUMIFS(Calc_Rates!J$63:J$141,Calc_Rates!$C$63:$C$141,OP_Rates!$C25&" charge",Calc_Rates!$F$63:$F$141,OP_Rates!$E25)=0,"-",SUMIFS(Calc_Rates!J$63:J$141,Calc_Rates!$C$63:$C$141,OP_Rates!$C25&" charge",Calc_Rates!$F$63:$F$141,OP_Rates!$E25)) -> 0.4047763735 | K25: =IF(SUMIFS(Calc_Rates!K$63:K$141,Calc_Rates!$C$63:$C$141,OP_Rates!$C25&" charge",Calc_Rates!$F$63:$F$141,OP_Rates!$E25)=0,"-",SUMIFS(Calc_Rates!K$63:K$141,Calc_Rates!$C$63:$C$141,OP_Rates!$C25&" charge",Calc_Rates!$F$63:$F$141,OP_Rates!$E25)) -> 0.3843705724 | M25: Peak | N25: $/kWh | O25: Small business | P25: - | Q25: =IF(SUMIFS(Calc_Rates!G$63:G$141,Calc_Rates!$C$63:$C$141,OP_Rates!$M25&" charge",Calc_Rates!$F$63:$F$141,OP_Rates!$O25)=0,"-",SUMIFS(Calc_Rates!G$63:G$141,Calc_Rates!$C$63:$C$141,OP_Rates!$M25&" charge",Calc_Rates!$F$63:$F$141,OP_Rates!$O25)) -> 0.4038654143 | R25: =IF(SUMIFS(Calc_Rates!H$63:H$141,Calc_Rates!$C$63:$C$141,OP_Rates!$M25&" charge",Calc_Rates!$F$63:$F$141,OP_Rates!$O25)=0,"-",SUMIFS(Calc_Rates!H$63:H$141,Calc_Rates!$C$63:$C$141,OP_Rates!$M25&" charge",Calc_Rates!$F$63:$F$141,OP_Rates!$O25)) -> 0.331259702 | S25: =IF(SUMIFS(Calc_Rates!I$63:I$141,Calc_Rates!$C$63:$C$141,OP_Rates!$M25&" charge",Calc_Rates!$F$63:$F$141,OP_Rates!$O25)=0,"-",SUMIFS(Calc_Rates!I$63:I$141,Calc_Rates!$C$63:$C$141,OP_Rates!$M25&" charge",Calc_Rates!$F$63:$F$141,OP_Rates!$O25)) -> 0.3586497966 | T25: =IF(SUMIFS(Calc_Rates!J$63:J$141,Calc_Rates!$C$63:$C$141,OP_Rates!$M25&" charge",Calc_Rates!$F$63:$F$141,OP_Rates!$O25)=0,"-",SUMIFS(Calc_Rates!J$63:J$141,Calc_Rates!$C$63:$C$141,OP_Rates!$M25&" charge",Calc_Rates!$F$63:$F$141,OP_Rates!$O25)) -> 0.3902626681 | U25: =IF(SUMIFS(Calc_Rates!K$63:K$141,Calc_Rates!$C$63:$C$141,OP_Rates!$M25&" charge",Calc_Rates!$F$63:$F$141,OP_Rates!$O25)=0,"-",SUMIFS(Calc_Rates!K$63:K$141,Calc_Rates!$C$63:$C$141,OP_Rates!$M25&" charge",Calc_Rates!$F$63:$F$141,OP_Rates!$O25)) -> 0.3508579564
C26: Off peak | D26: $/kWh | E26: Residential | F26: - | G26: =IF(SUMIFS(Calc_Rates!G$63:G$141,Calc_Rates!$C$63:$C$141,OP_Rates!$C26&" charge",Calc_Rates!$F$63:$F$141,OP_Rates!$E26)=0,"-",SUMIFS(Calc_Rates!G$63:G$141,Calc_Rates!$C$63:$C$141,OP_Rates!$C26&" charge",Calc_Rates!$F$63:$F$141,OP_Rates!$E26)) -> 0.2406312759 | H26: =IF(SUMIFS(Calc_Rates!H$63:H$141,Calc_Rates!$C$63:$C$141,OP_Rates!$C26&" charge",Calc_Rates!$F$63:$F$141,OP_Rates!$E26)=0,"-",SUMIFS(Calc_Rates!H$63:H$141,Calc_Rates!$C$63:$C$141,OP_Rates!$C26&" charge",Calc_Rates!$F$63:$F$141,OP_Rates!$E26)) -> 0.2212873702 | I26: =IF(SUMIFS(Calc_Rates!I$63:I$141,Calc_Rates!$C$63:$C$141,OP_Rates!$C26&" charge",Calc_Rates!$F$63:$F$141,OP_Rates!$E26)=0,"-",SUMIFS(Calc_Rates!I$63:I$141,Calc_Rates!$C$63:$C$141,OP_Rates!$C26&" charge",Calc_Rates!$F$63:$F$141,OP_Rates!$E26)) -> 0.2374713884 | J26: =IF(SUMIFS(Calc_Rates!J$63:J$141,Calc_Rates!$C$63:$C$141,OP_Rates!$C26&" charge",Calc_Rates!$F$63:$F$141,OP_Rates!$E26)=0,"-",SUMIFS(Calc_Rates!J$63:J$141,Calc_Rates!$C$63:$C$141,OP_Rates!$C26&" charge",Calc_Rates!$F$63:$F$141,OP_Rates!$E26)) -> 0.2372340315 | K26: =IF(SUMIFS(Calc_Rates!K$63:K$141,Calc_Rates!$C$63:$C$141,OP_Rates!$C26&" charge",Calc_Rates!$F$63:$F$141,OP_Rates!$E26)=0,"-",SUMIFS(Calc_Rates!K$63:K$141,Calc_Rates!$C$63:$C$141,OP_Rates!$C26&" charge",Calc_Rates!$F$63:$F$141,OP_Rates!$E26)) -> 0.2306067644 | M26: Off peak | N26: $/kWh | O26: Small business | P26: - | Q26: =IF(SUMIFS(Calc_Rates!G$63:G$141,Calc_Rates!$C$63:$C$141,OP_Rates!$M26&" charge",Calc_Rates!$F$63:$F$141,OP_Rates!$O26)=0,"-",SUMIFS(Calc_Rates!G$63:G$141,Calc_Rates!$C$63:$C$141,OP_Rates!$M26&" charge",Calc_Rates!$F$63:$F$141,OP_Rates!$O26)) -> 0.2205262339 | R26: =IF(SUMIFS(Calc_Rates!H$63:H$141,Calc_Rates!$C$63:$C$141,OP_Rates!$M26&" charge",Calc_Rates!$F$63:$F$141,OP_Rates!$O26)=0,"-",SUMIFS(Calc_Rates!H$63:H$141,Calc_Rates!$C$63:$C$141,OP_Rates!$M26&" charge",Calc_Rates!$F$63:$F$141,OP_Rates!$O26)) -> 0.195442724 | S26: =IF(SUMIFS(Calc_Rates!I$63:I$141,Calc_Rates!$C$63:$C$141,OP_Rates!$M26&" charge",Calc_Rates!$F$63:$F$141,OP_Rates!$O26)=0,"-",SUMIFS(Calc_Rates!I$63:I$141,Calc_Rates!$C$63:$C$141,OP_Rates!$M26&" charge",Calc_Rates!$F$63:$F$141,OP_Rates!$O26)) -> 0.2035544496 | T26: =IF(SUMIFS(Calc_Rates!J$63:J$141,Calc_Rates!$C$63:$C$141,OP_Rates!$M26&" charge",Calc_Rates!$F$63:$F$141,OP_Rates!$O26)=0,"-",SUMIFS(Calc_Rates!J$63:J$141,Calc_Rates!$C$63:$C$141,OP_Rates!$M26&" charge",Calc_Rates!$F$63:$F$141,OP_Rates!$O26)) -> 0.2118364421 | U26: =IF(SUMIFS(Calc_Rates!K$63:K$141,Calc_Rates!$C$63:$C$141,OP_Rates!$M26&" charge",Calc_Rates!$F$63:$F$141,OP_Rates!$O26)=0,"-",SUMIFS(Calc_Rates!K$63:K$141,Calc_Rates!$C$63:$C$141,OP_Rates!$M26&" charge",Calc_Rates!$F$63:$F$141,OP_Rates!$O26)) -> 0.2034623784
C27: Controlled load | D27: $/kWh | E27: Residential | F27: - | G27: =IF(SUMIFS(Calc_Rates!G$63:G$141,Calc_Rates!$C$63:$C$141,OP_Rates!$C27&" charge",Calc_Rates!$F$63:$F$141,OP_Rates!$E27)=0,"-",SUMIFS(Calc_Rates!G$63:G$141,Calc_Rates!$C$63:$C$141,OP_Rates!$C27&" charge",Calc_Rates!$F$63:$F$141,OP_Rates!$E27)) -> 0.2406312759 | H27: =IF(SUMIFS(Calc_Rates!H$63:H$141,Calc_Rates!$C$63:$C$141,OP_Rates!$C27&" charge",Calc_Rates!$F$63:$F$141,OP_Rates!$E27)=0,"-",SUMIFS(Calc_Rates!H$63:H$141,Calc_Rates!$C$63:$C$141,OP_Rates!$C27&" charge",Calc_Rates!$F$63:$F$141,OP_Rates!$E27)) -> 0.2019511082 | I27: =IF(SUMIFS(Calc_Rates!I$63:I$141,Calc_Rates!$C$63:$C$141,OP_Rates!$C27&" charge",Calc_Rates!$F$63:$F$141,OP_Rates!$E27)=0,"-",SUMIFS(Calc_Rates!I$63:I$141,Calc_Rates!$C$63:$C$141,OP_Rates!$C27&" charge",Calc_Rates!$F$63:$F$141,OP_Rates!$E27)) -> 0.2321220752 | J27: =IF(SUMIFS(Calc_Rates!J$63:J$141,Calc_Rates!$C$63:$C$141,OP_Rates!$C27&" charge",Calc_Rates!$F$63:$F$141,OP_Rates!$E27)=0,"-",SUMIFS(Calc_Rates!J$63:J$141,Calc_Rates!$C$63:$C$141,OP_Rates!$C27&" charge",Calc_Rates!$F$63:$F$141,OP_Rates!$E27)) -> 0.2129189715 | K27: =IF(SUMIFS(Calc_Rates!K$63:K$141,Calc_Rates!$C$63:$C$141,OP_Rates!$C27&" charge",Calc_Rates!$F$63:$F$141,OP_Rates!$E27)=0,"-",SUMIFS(Calc_Rates!K$63:K$141,Calc_Rates!$C$63:$C$141,OP_Rates!$C27&" charge",Calc_Rates!$F$63:$F$141,OP_Rates!$E27)) -> 0.2113862884 | P27: -
C29: Residential True Up | M29: Small business True Up
C30: Rate name | D30: Unit | E30: Customer type | F30: Cost element | G30: Ausnet | H30: Citipower | I30: Jemena | J30: Powercor | K30: United Energy | M30: Rate name | N30: Unit | O30: Customer type | P30: Cost element | Q30: Ausnet | R30: Citipower | S30: Jemena | T30: Powercor | U30: United Energy
C31: Anytime | D31: $ | E31: Residential | F31: Network | G31: =IFERROR( IF(OP_RatesTU_RES_1[[#This Row],[Cost element]:[Cost element]]="Network", IF(OP_RatesTU_RES_1[[#This Row],[Rate name]:[Rate name]]<>"Controlled load", INDEX(Calc_TUR_Net_1[[Ausnet]:[United Energy]],MATCH(1,(Calc_TUR_Net_1[[Customer type]:[Customer type]]=OP_RatesTU_RES_1[[#This Row],[Customer type]:[Customer type]])*(Calc_TUR_Net_1[[Rate type]:[Rate type]]=OP_RatesTU_RES_1[[#This Row],[Rate name]:[Rate name]]),0),MATCH(OP_RatesTU_RES_1[[#Headers],[Ausnet]],Calc_TUR_Net_1[[#Headers],[Ausnet]:[United Energy]],0)), INDEX(Calc_TUR_NetCL_1[[Ausnet]:[United Energy]],MATCH(OP_RatesTU_RES_1[[#This Row],[Customer type]:[Customer type]],Calc_TUR_NetCL_1[[Customer type]:[Customer type]],0),MATCH(OP_RatesTU_RES_1[[#Headers],[Ausnet]],Calc_TUR_NetCL_1[[#Headers],[Ausnet]:[United Energy]],0))), IF(OP_RatesTU_RES_1[[#This Row],[Cost element]:[Cost element]]="Environmental", SUMIFS(INDEX(Calc_TUR_Env_1[[Ausnet]:[United Energy]],0,MATCH(OP_RatesTU_RES_1[[#Headers],[Ausnet]],Calc_TUR_Env_1[[#Headers],[Ausnet]:[United Energy]],0)), Calc_TUR_Env_1[[Customer type]:[Customer type]],OP_RatesTU_RES_1[[#This Row],[Customer type]:[Customer type]],Calc_TUR_Env_1[[Rate type]:[Rate type]],OP_RatesTU_RES_1[[#This Row],[Rate name]:[Rate name]]), "-")),"-") -> - | H31: =IFERROR( IF(OP_RatesTU_RES_1[[#This Row],[Cost element]:[Cost element]]="Network", IF(OP_RatesTU_RES_1[[#This Row],[Rate name]:[Rate name]]<>"Controlled load", INDEX(Calc_TUR_Net_1[[Ausnet]:[United Energy]],MATCH(1,(Calc_TUR_Net_1[[Customer type]:[Customer type]]=OP_RatesTU_RES_1[[#This Row],[Customer type]:[Customer type]])*(Calc_TUR_Net_1[[Rate type]:[Rate type]]=OP_RatesTU_RES_1[[#This Row],[Rate name]:[Rate name]]),0),MATCH(OP_RatesTU_RES_1[[#Headers],[Citipower]],Calc_TUR_Net_1[[#Headers],[Ausnet]:[United Energy]],0)), INDEX(Calc_TUR_NetCL_1[[Ausnet]:[United Energy]],MATCH(OP_RatesTU_RES_1[[#This Row],[Customer type]:[Customer type]],Calc_TUR_NetCL_1[[Customer type]:[Customer type]],0),MATCH(OP_RatesTU_RES_1[[#Headers],[Citipower]],Calc_TUR_NetCL_1[[#Headers],[Ausnet]:[United Energy]],0))), IF(OP_RatesTU_RES_1[[#This Row],[Cost element]:[Cost element]]="Environmental", SUMIFS(INDEX(Calc_TUR_Env_1[[Ausnet]:[United Energy]],0,MATCH(OP_RatesTU_RES_1[[#Headers],[Citipower]],Calc_TUR_Env_1[[#Headers],[Ausnet]:[United Energy]],0)), Calc_TUR_Env_1[[Customer type]:[Customer type]],OP_RatesTU_RES_1[[#This Row],[Customer type]:[Customer type]],Calc_TUR_Env_1[[Rate type]:[Rate type]],OP_RatesTU_RES_1[[#This Row],[Rate name]:[Rate name]]), "-")),"-") -> - | I31: =IFERROR( IF(OP_RatesTU_RES_1[[#This Row],[Cost element]:[Cost element]]="Network", IF(OP_RatesTU_RES_1[[#This Row],[Rate name]:[Rate name]]<>"Controlled load", INDEX(Calc_TUR_Net_1[[Ausnet]:[United Energy]],MATCH(1,(Calc_TUR_Net_1[[Customer type]:[Customer type]]=OP_RatesTU_RES_1[[#This Row],[Customer type]:[Customer type]])*(Calc_TUR_Net_1[[Rate type]:[Rate type]]=OP_RatesTU_RES_1[[#This Row],[Rate name]:[Rate name]]),0),MATCH(OP_RatesTU_RES_1[[#Headers],[Jemena]],Calc_TUR_Net_1[[#Headers],[Ausnet]:[United Energy]],0)), INDEX(Calc_TUR_NetCL_1[[Ausnet]:[United Energy]],MATCH(OP_RatesTU_RES_1[[#This Row],[Customer type]:[Customer type]],Calc_TUR_NetCL_1[[Customer type]:[Customer type]],0),MATCH(OP_RatesTU_RES_1[[#Headers],[Jemena]],Calc_TUR_NetCL_1[[#Headers],[Ausnet]:[United Energy]],0))), IF(OP_RatesTU_RES_1[[#This Row],[Cost element]:[Cost element]]="Environmental", SUMIFS(INDEX(Calc_TUR_Env_1[[Ausnet]:[United Energy]],0,MATCH(OP_RatesTU_RES_1[[#Headers],[Jemena]],Calc_TUR_Env_1[[#Headers],[Ausnet]:[United Energy]],0)), Calc_TUR_Env_1[[Customer type]:[Customer type]],OP_RatesTU_RES_1[[#This Row],[Customer type]:[Customer type]],Calc_TUR_Env_1[[Rate type]:[Rate type]],OP_RatesTU_RES_1[[#This Row],[Rate name]:[Rate name]]), "-")),"-") -> - | J31: =IFERROR( IF(OP_RatesTU_RES_1[[#This Row],[Cost element]:[Cost element]]="Network", IF(OP_RatesTU_RES_1[[#This Row],[Rate name]:[Rate name]]<>"Controlled load", INDEX(Calc_TUR_Net_1[[Ausnet]:[United Energy]],MATCH(1,(Calc_TUR_Net_1[[Customer type]:[Customer type]]=OP_RatesTU_RES_1[[#This Row],[Customer type]:[Customer type]])*(Calc_TUR_Net_1[[Rate type]:[Rate type]]=OP_RatesTU_RES_1[[#This Row],[Rate name]:[Rate name]]),0),MATCH(OP_RatesTU_RES_1[[#Headers],[Powercor]],Calc_TUR_Net_1[[#Headers],[Ausnet]:[United Energy]],0)), INDEX(Calc_TUR_NetCL_1[[Ausnet]:[United Energy]],MATCH(OP_RatesTU_RES_1[[#This Row],[Customer type]:[Customer type]],Calc_TUR_NetCL_1[[Customer type]:[Customer type]],0),MATCH(OP_RatesTU_RES_1[[#Headers],[Powercor]],Calc_TUR_NetCL_1[[#Headers],[Ausnet]:[United Energy]],0))), IF(OP_RatesTU_RES_1[[#This Row],[Cost element]:[Cost element]]="Environmental", SUMIFS(INDEX(Calc_TUR_Env_1[[Ausnet]:[United Energy]],0,MATCH(OP_RatesTU_RES_1[[#Headers],[Powercor]],Calc_TUR_Env_1[[#Headers],[Ausnet]:[United Energy]],0)), Calc_TUR_Env_1[[Customer type]:[Customer type]],OP_RatesTU_RES_1[[#This Row],[Customer type]:[Customer type]],Calc_TUR_Env_1[[Rate type]:[Rate type]],OP_RatesTU_RES_1[[#This Row],[Rate name]:[Rate name]]), "-")),"-") -> - | K31: =IFERROR( IF(OP_RatesTU_RES_1[[#This Row],[Cost element]:[Cost element]]="Network", IF(OP_RatesTU_RES_1[[#This Row],[Rate name]:[Rate name]]<>"Controlled load", INDEX(Calc_TUR_Net_1[[Ausnet]:[United Energy]],MATCH(1,(Calc_TUR_Net_1[[Customer type]:[Customer type]]=OP_RatesTU_RES_1[[#This Row],[Customer type]:[Customer type]])*(Calc_TUR_Net_1[[Rate type]:[Rate type]]=OP_RatesTU_RES_1[[#This Row],[Rate name]:[Rate name]]),0),MATCH(OP_RatesTU_RES_1[[#Headers],[United Energy]],Calc_TUR_Net_1[[#Headers],[Ausnet]:[United Energy]],0)), INDEX(Calc_TUR_NetCL_1[[Ausnet]:[United Energy]],MATCH(OP_RatesTU_RES_1[[#This Row],[Customer type]:[Customer type]],Calc_TUR_NetCL_1[[Customer type]:[Customer type]],0),MATCH(OP_RatesTU_RES_1[[#Headers],[United Energy]],Calc_TUR_NetCL_1[[#Headers],[Ausnet]:[United Energy]],0))), IF(OP_RatesTU_RES_1[[#This Row],[Cost element]:[Cost element]]="Environmental", SUMIFS(INDEX(Calc_TUR_Env_1[[Ausnet]:[United Energy]],0,MATCH(OP_RatesTU_RES_1[[#Headers],[United Energy]],Calc_TUR_Env_1[[#Headers],[Ausnet]:[United Energy]],0)), Calc_TUR_Env_1[[Customer type]:[Customer type]],OP_RatesTU_RES_1[[#This Row],[Customer type]:[Customer type]],Calc_TUR_Env_1[[Rate type]:[Rate type]],OP_RatesTU_RES_1[[#This Row],[Rate name]:[Rate name]]), "-")),"-") -> - | M31: Anytime | N31: $ | O31: Small business | P31: Network | Q31: =IFERROR( IF(OP_RatesTU_SME_1[[#This Row],[Cost element]:[Cost element]]="Network", INDEX(Calc_TUR_Net_1[[Ausnet]:[United Energy]],MATCH(1,(Calc_TUR_Net_1[[Customer type]:[Customer type]]=OP_RatesTU_SME_1[[#This Row],[Customer type]:[Customer type]])*(Calc_TUR_Net_1[[Rate type]:[Rate type]]=OP_RatesTU_SME_1[[#This Row],[Rate name]:[Rate name]]),0),MATCH(OP_RatesTU_SME_1[[#Headers],[Ausnet]],Calc_TUR_Net_1[[#Headers],[Ausnet]:[United Energy]],0)), IF(OP_RatesTU_SME_1[[#This Row],[Cost element]:[Cost element]]="Environmental", SUMIFS(INDEX(Calc_TUR_Env_1[[Ausnet]:[United Energy]],0,MATCH(OP_RatesTU_SME_1[[#Headers],[Ausnet]],Calc_TUR_Env_1[[#Headers],[Ausnet]:[United Energy]],0)), Calc_TUR_Env_1[[Customer type]:[Customer type]],OP_RatesTU_SME_1[[#This Row],[Customer type]:[Customer type]],Calc_TUR_Env_1[[Rate type]:[Rate type]],OP_RatesTU_SME_1[[#This Row],[Rate name]:[Rate name]]), "-")),"-") -> - | R31: =IFERROR( IF(OP_RatesTU_SME_1[[#This Row],[Cost element]:[Cost element]]="Network", INDEX(Calc_TUR_Net_1[[Ausnet]:[United Energy]],MATCH(1,(Calc_TUR_Net_1[[Customer type]:[Customer type]]=OP_RatesTU_SME_1[[#This Row],[Customer type]:[Customer type]])*(Calc_TUR_Net_1[[Rate type]:[Rate type]]=OP_RatesTU_SME_1[[#This Row],[Rate name]:[Rate name]]),0),MATCH(OP_RatesTU_SME_1[[#Headers],[Citipower]],Calc_TUR_Net_1[[#Headers],[Ausnet]:[United Energy]],0)), IF(OP_RatesTU_SME_1[[#This Row],[Cost element]:[Cost element]]="Environmental", SUMIFS(INDEX(Calc_TUR_Env_1[[Ausnet]:[United Energy]],0,MATCH(OP_RatesTU_SME_1[[#Headers],[Citipower]],Calc_TUR_Env_1[[#Headers],[Ausnet]:[United Energy]],0)), Calc_TUR_Env_1[[Customer type]:[Customer type]],OP_RatesTU_SME_1[[#This Row],[Customer type]:[Customer type]],Calc_TUR_Env_1[[Rate type]:[Rate type]],OP_RatesTU_SME_1[[#This Row],[Rate name]:[Rate name]]), "-")),"-") -> - | S31: =IFERROR( IF(OP_RatesTU_SME_1[[#This Row],[Cost element]:[Cost element]]="Network", INDEX(Calc_TUR_Net_1[[Ausnet]:[United Energy]],MATCH(1,(Calc_TUR_Net_1[[Customer type]:[Customer type]]=OP_RatesTU_SME_1[[#This Row],[Customer type]:[Customer type]])*(Calc_TUR_Net_1[[Rate type]:[Rate type]]=OP_RatesTU_SME_1[[#This Row],[Rate name]:[Rate name]]),0),MATCH(OP_RatesTU_SME_1[[#Headers],[Jemena]],Calc_TUR_Net_1[[#Headers],[Ausnet]:[United Energy]],0)), IF(OP_RatesTU_SME_1[[#This Row],[Cost element]:[Cost element]]="Environmental", SUMIFS(INDEX(Calc_TUR_Env_1[[Ausnet]:[United Energy]],0,MATCH(OP_RatesTU_SME_1[[#Headers],[Jemena]],Calc_TUR_Env_1[[#Headers],[Ausnet]:[United Energy]],0)), Calc_TUR_Env_1[[Customer type]:[Customer type]],OP_RatesTU_SME_1[[#This Row],[Customer type]:[Customer type]],Calc_TUR_Env_1[[Rate type]:[Rate type]],OP_RatesTU_SME_1[[#This Row],[Rate name]:[Rate name]]), "-")),"-") -> - | T31: =IFERROR( IF(OP_RatesTU_SME_1[[#This Row],[Cost element]:[Cost element]]="Network", INDEX(Calc_TUR_Net_1[[Ausnet]:[United Energy]],MATCH(1,(Calc_TUR_Net_1[[Customer type]:[Customer type]]=OP_RatesTU_SME_1[[#This Row],[Customer type]:[Customer type]])*(Calc_TUR_Net_1[[Rate type]:[Rate type]]=OP_RatesTU_SME_1[[#This Row],[Rate name]:[Rate name]]),0),MATCH(OP_RatesTU_SME_1[[#Headers],[Powercor]],Calc_TUR_Net_1[[#Headers],[Ausnet]:[United Energy]],0)), IF(OP_RatesTU_SME_1[[#This Row],[Cost element]:[Cost element]]="Environmental", SUMIFS(INDEX(Calc_TUR_Env_1[[Ausnet]:[United Energy]],0,MATCH(OP_RatesTU_SME_1[[#Headers],[Powercor]],Calc_TUR_Env_1[[#Headers],[Ausnet]:[United Energy]],0)), Calc_TUR_Env_1[[Customer type]:[Customer type]],OP_RatesTU_SME_1[[#This Row],[Customer type]:[Customer type]],Calc_TUR_Env_1[[Rate type]:[Rate type]],OP_RatesTU_SME_1[[#This Row],[Rate name]:[Rate name]]), "-")),"-") -> - | U31: =IFERROR( IF(OP_RatesTU_SME_1[[#This Row],[Cost element]:[Cost element]]="Network", INDEX(Calc_TUR_Net_1[[Ausnet]:[United Energy]],MATCH(1,(Calc_TUR_Net_1[[Customer type]:[Customer type]]=OP_RatesTU_SME_1[[#This Row],[Customer type]:[Customer type]])*(Calc_TUR_Net_1[[Rate type]:[Rate type]]=OP_RatesTU_SME_1[[#This Row],[Rate name]:[Rate name]]),0),MATCH(OP_RatesTU_SME_1[[#Headers],[United Energy]],Calc_TUR_Net_1[[#Headers],[Ausnet]:[United Energy]],0)), IF(OP_RatesTU_SME_1[[#This Row],[Cost element]:[Cost element]]="Environmental", SUMIFS(INDEX(Calc_TUR_Env_1[[Ausnet]:[United Energy]],0,MATCH(OP_RatesTU_SME_1[[#Headers],[United Energy]],Calc_TUR_Env_1[[#Headers],[Ausnet]:[United Energy]],0)), Calc_TUR_Env_1[[Customer type]:[Customer type]],OP_RatesTU_SME_1[[#This Row],[Customer type]:[Customer type]],Calc_TUR_Env_1[[Rate type]:[Rate type]],OP_RatesTU_SME_1[[#This Row],[Rate name]:[Rate name]]), "-")),"-") -> -
C32: TOU | D32: $ | E32: Residential | F32: Network | G32: =IFERROR( IF(OP_RatesTU_RES_1[[#This Row],[Cost element]:[Cost element]]="Network", IF(OP_RatesTU_RES_1[[#This Row],[Rate name]:[Rate name]]<>"Controlled load", INDEX(Calc_TUR_Net_1[[Ausnet]:[United Energy]],MATCH(1,(Calc_TUR_Net_1[[Customer type]:[Customer type]]=OP_RatesTU_RES_1[[#This Row],[Customer type]:[Customer type]])*(Calc_TUR_Net_1[[Rate type]:[Rate type]]=OP_RatesTU_RES_1[[#This Row],[Rate name]:[Rate name]]),0),MATCH(OP_RatesTU_RES_1[[#Headers],[Ausnet]],Calc_TUR_Net_1[[#Headers],[Ausnet]:[United Energy]],0)), INDEX(Calc_TUR_NetCL_1[[Ausnet]:[United Energy]],MATCH(OP_RatesTU_RES_1[[#This Row],[Customer type]:[Customer type]],Calc_TUR_NetCL_1[[Customer type]:[Customer type]],0),MATCH(OP_RatesTU_RES_1[[#Headers],[Ausnet]],Calc_TUR_NetCL_1[[#Headers],[Ausnet]:[United Energy]],0))), IF(OP_RatesTU_RES_1[[#This Row],[Cost element]:[Cost element]]="Environmental", SUMIFS(INDEX(Calc_TUR_Env_1[[Ausnet]:[United Energy]],0,MATCH(OP_RatesTU_RES_1[[#Headers],[Ausnet]],Calc_TUR_Env_1[[#Headers],[Ausnet]:[United Energy]],0)), Calc_TUR_Env_1[[Customer type]:[Customer type]],OP_RatesTU_RES_1[[#This Row],[Customer type]:[Customer type]],Calc_TUR_Env_1[[Rate type]:[Rate type]],OP_RatesTU_RES_1[[#This Row],[Rate name]:[Rate name]]), "-")),"-") -> - | H32: =IFERROR( IF(OP_RatesTU_RES_1[[#This Row],[Cost element]:[Cost element]]="Network", IF(OP_RatesTU_RES_1[[#This Row],[Rate name]:[Rate name]]<>"Controlled load", INDEX(Calc_TUR_Net_1[[Ausnet]:[United Energy]],MATCH(1,(Calc_TUR_Net_1[[Customer type]:[Customer type]]=OP_RatesTU_RES_1[[#This Row],[Customer type]:[Customer type]])*(Calc_TUR_Net_1[[Rate type]:[Rate type]]=OP_RatesTU_RES_1[[#This Row],[Rate name]:[Rate name]]),0),MATCH(OP_RatesTU_RES_1[[#Headers],[Citipower]],Calc_TUR_Net_1[[#Headers],[Ausnet]:[United Energy]],0)), INDEX(Calc_TUR_NetCL_1[[Ausnet]:[United Energy]],MATCH(OP_RatesTU_RES_1[[#This Row],[Customer type]:[Customer type]],Calc_TUR_NetCL_1[[Customer type]:[Customer type]],0),MATCH(OP_RatesTU_RES_1[[#Headers],[Citipower]],Calc_TUR_NetCL_1[[#Headers],[Ausnet]:[United Energy]],0))), IF(OP_RatesTU_RES_1[[#This Row],[Cost element]:[Cost element]]="Environmental", SUMIFS(INDEX(Calc_TUR_Env_1[[Ausnet]:[United Energy]],0,MATCH(OP_RatesTU_RES_1[[#Headers],[Citipower]],Calc_TUR_Env_1[[#Headers],[Ausnet]:[United Energy]],0)), Calc_TUR_Env_1[[Customer type]:[Customer type]],OP_RatesTU_RES_1[[#This Row],[Customer type]:[Customer type]],Calc_TUR_Env_1[[Rate type]:[Rate type]],OP_RatesTU_RES_1[[#This Row],[Rate name]:[Rate name]]), "-")),"-") -> - | I32: =IFERROR( IF(OP_RatesTU_RES_1[[#This Row],[Cost element]:[Cost element]]="Network", IF(OP_RatesTU_RES_1[[#This Row],[Rate name]:[Rate name]]<>"Controlled load", INDEX(Calc_TUR_Net_1[[Ausnet]:[United Energy]],MATCH(1,(Calc_TUR_Net_1[[Customer type]:[Customer type]]=OP_RatesTU_RES_1[[#This Row],[Customer type]:[Customer type]])*(Calc_TUR_Net_1[[Rate type]:[Rate type]]=OP_RatesTU_RES_1[[#This Row],[Rate name]:[Rate name]]),0),MATCH(OP_RatesTU_RES_1[[#Headers],[Jemena]],Calc_TUR_Net_1[[#Headers],[Ausnet]:[United Energy]],0)), INDEX(Calc_TUR_NetCL_1[[Ausnet]:[United Energy]],MATCH(OP_RatesTU_RES_1[[#This Row],[Customer type]:[Customer type]],Calc_TUR_NetCL_1[[Customer type]:[Customer type]],0),MATCH(OP_RatesTU_RES_1[[#Headers],[Jemena]],Calc_TUR_NetCL_1[[#Headers],[Ausnet]:[United Energy]],0))), IF(OP_RatesTU_RES_1[[#This Row],[Cost element]:[Cost element]]="Environmental", SUMIFS(INDEX(Calc_TUR_Env_1[[Ausnet]:[United Energy]],0,MATCH(OP_RatesTU_RES_1[[#Headers],[Jemena]],Calc_TUR_Env_1[[#Headers],[Ausnet]:[United Energy]],0)), Calc_TUR_Env_1[[Customer type]:[Customer type]],OP_RatesTU_RES_1[[#This Row],[Customer type]:[Customer type]],Calc_TUR_Env_1[[Rate type]:[Rate type]],OP_RatesTU_RES_1[[#This Row],[Rate name]:[Rate name]]), "-")),"-") -> - | J32: =IFERROR( IF(OP_RatesTU_RES_1[[#This Row],[Cost element]:[Cost element]]="Network", IF(OP_RatesTU_RES_1[[#This Row],[Rate name]:[Rate name]]<>"Controlled load", INDEX(Calc_TUR_Net_1[[Ausnet]:[United Energy]],MATCH(1,(Calc_TUR_Net_1[[Customer type]:[Customer type]]=OP_RatesTU_RES_1[[#This Row],[Customer type]:[Customer type]])*(Calc_TUR_Net_1[[Rate type]:[Rate type]]=OP_RatesTU_RES_1[[#This Row],[Rate name]:[Rate name]]),0),MATCH(OP_RatesTU_RES_1[[#Headers],[Powercor]],Calc_TUR_Net_1[[#Headers],[Ausnet]:[United Energy]],0)), INDEX(Calc_TUR_NetCL_1[[Ausnet]:[United Energy]],MATCH(OP_RatesTU_RES_1[[#This Row],[Customer type]:[Customer type]],Calc_TUR_NetCL_1[[Customer type]:[Customer type]],0),MATCH(OP_RatesTU_RES_1[[#Headers],[Powercor]],Calc_TUR_NetCL_1[[#Headers],[Ausnet]:[United Energy]],0))), IF(OP_RatesTU_RES_1[[#This Row],[Cost element]:[Cost element]]="Environmental", SUMIFS(INDEX(Calc_TUR_Env_1[[Ausnet]:[United Energy]],0,MATCH(OP_RatesTU_RES_1[[#Headers],[Powercor]],Calc_TUR_Env_1[[#Headers],[Ausnet]:[United Energy]],0)), Calc_TUR_Env_1[[Customer type]:[Customer type]],OP_RatesTU_RES_1[[#This Row],[Customer type]:[Customer type]],Calc_TUR_Env_1[[Rate type]:[Rate type]],OP_RatesTU_RES_1[[#This Row],[Rate name]:[Rate name]]), "-")),"-") -> - | K32: =IFERROR( IF(OP_RatesTU_RES_1[[#This Row],[Cost element]:[Cost element]]="Network", IF(OP_RatesTU_RES_1[[#This Row],[Rate name]:[Rate name]]<>"Controlled load", INDEX(Calc_TUR_Net_1[[Ausnet]:[United Energy]],MATCH(1,(Calc_TUR_Net_1[[Customer type]:[Customer type]]=OP_RatesTU_RES_1[[#This Row],[Customer type]:[Customer type]])*(Calc_TUR_Net_1[[Rate type]:[Rate type]]=OP_RatesTU_RES_1[[#This Row],[Rate name]:[Rate name]]),0),MATCH(OP_RatesTU_RES_1[[#Headers],[United Energy]],Calc_TUR_Net_1[[#Headers],[Ausnet]:[United Energy]],0)), INDEX(Calc_TUR_NetCL_1[[Ausnet]:[United Energy]],MATCH(OP_RatesTU_RES_1[[#This Row],[Customer type]:[Customer type]],Calc_TUR_NetCL_1[[Customer type]:[Customer type]],0),MATCH(OP_RatesTU_RES_1[[#Headers],[United Energy]],Calc_TUR_NetCL_1[[#Headers],[Ausnet]:[United Energy]],0))), IF(OP_RatesTU_RES_1[[#This Row],[Cost element]:[Cost element]]="Environmental", SUMIFS(INDEX(Calc_TUR_Env_1[[Ausnet]:[United Energy]],0,MATCH(OP_RatesTU_RES_1[[#Headers],[United Energy]],Calc_TUR_Env_1[[#Headers],[Ausnet]:[United Energy]],0)), Calc_TUR_Env_1[[Customer type]:[Customer type]],OP_RatesTU_RES_1[[#This Row],[Customer type]:[Customer type]],Calc_TUR_Env_1[[Rate type]:[Rate type]],OP_RatesTU_RES_1[[#This Row],[Rate name]:[Rate name]]), "-")),"-") -> - | M32: TOU | N32: $ | O32: Small business | P32: Network | Q32: =IFERROR( IF(OP_RatesTU_SME_1[[#This Row],[Cost element]:[Cost element]]="Network", INDEX(Calc_TUR_Net_1[[Ausnet]:[United Energy]],MATCH(1,(Calc_TUR_Net_1[[Customer type]:[Customer type]]=OP_RatesTU_SME_1[[#This Row],[Customer type]:[Customer type]])*(Calc_TUR_Net_1[[Rate type]:[Rate type]]=OP_RatesTU_SME_1[[#This Row],[Rate name]:[Rate name]]),0),MATCH(OP_RatesTU_SME_1[[#Headers],[Ausnet]],Calc_TUR_Net_1[[#Headers],[Ausnet]:[United Energy]],0)), IF(OP_RatesTU_SME_1[[#This Row],[Cost element]:[Cost element]]="Environmental", SUMIFS(INDEX(Calc_TUR_Env_1[[Ausnet]:[United Energy]],0,MATCH(OP_RatesTU_SME_1[[#Headers],[Ausnet]],Calc_TUR_Env_1[[#Headers],[Ausnet]:[United Energy]],0)), Calc_TUR_Env_1[[Customer type]:[Customer type]],OP_RatesTU_SME_1[[#This Row],[Customer type]:[Customer type]],Calc_TUR_Env_1[[Rate type]:[Rate type]],OP_RatesTU_SME_1[[#This Row],[Rate name]:[Rate name]]), "-")),"-") -> - | R32: =IFERROR( IF(OP_RatesTU_SME_1[[#This Row],[Cost element]:[Cost element]]="Network", INDEX(Calc_TUR_Net_1[[Ausnet]:[United Energy]],MATCH(1,(Calc_TUR_Net_1[[Customer type]:[Customer type]]=OP_RatesTU_SME_1[[#This Row],[Customer type]:[Customer type]])*(Calc_TUR_Net_1[[Rate type]:[Rate type]]=OP_RatesTU_SME_1[[#This Row],[Rate name]:[Rate name]]),0),MATCH(OP_RatesTU_SME_1[[#Headers],[Citipower]],Calc_TUR_Net_1[[#Headers],[Ausnet]:[United Energy]],0)), IF(OP_RatesTU_SME_1[[#This Row],[Cost element]:[Cost element]]="Environmental", SUMIFS(INDEX(Calc_TUR_Env_1[[Ausnet]:[United Energy]],0,MATCH(OP_RatesTU_SME_1[[#Headers],[Citipower]],Calc_TUR_Env_1[[#Headers],[Ausnet]:[United Energy]],0)), Calc_TUR_Env_1[[Customer type]:[Customer type]],OP_RatesTU_SME_1[[#This Row],[Customer type]:[Customer type]],Calc_TUR_Env_1[[Rate type]:[Rate type]],OP_RatesTU_SME_1[[#This Row],[Rate name]:[Rate name]]), "-")),"-") -> - | S32: =IFERROR( IF(OP_RatesTU_SME_1[[#This Row],[Cost element]:[Cost element]]="Network", INDEX(Calc_TUR_Net_1[[Ausnet]:[United Energy]],MATCH(1,(Calc_TUR_Net_1[[Customer type]:[Customer type]]=OP_RatesTU_SME_1[[#This Row],[Customer type]:[Customer type]])*(Calc_TUR_Net_1[[Rate type]:[Rate type]]=OP_RatesTU_SME_1[[#This Row],[Rate name]:[Rate name]]),0),MATCH(OP_RatesTU_SME_1[[#Headers],[Jemena]],Calc_TUR_Net_1[[#Headers],[Ausnet]:[United Energy]],0)), IF(OP_RatesTU_SME_1[[#This Row],[Cost element]:[Cost element]]="Environmental", SUMIFS(INDEX(Calc_TUR_Env_1[[Ausnet]:[United Energy]],0,MATCH(OP_RatesTU_SME_1[[#Headers],[Jemena]],Calc_TUR_Env_1[[#Headers],[Ausnet]:[United Energy]],0)), Calc_TUR_Env_1[[Customer type]:[Customer type]],OP_RatesTU_SME_1[[#This Row],[Customer type]:[Customer type]],Calc_TUR_Env_1[[Rate type]:[Rate type]],OP_RatesTU_SME_1[[#This Row],[Rate name]:[Rate name]]), "-")),"-") -> - | T32: =IFERROR( IF(OP_RatesTU_SME_1[[#This Row],[Cost element]:[Cost element]]="Network", INDEX(Calc_TUR_Net_1[[Ausnet]:[United Energy]],MATCH(1,(Calc_TUR_Net_1[[Customer type]:[Customer type]]=OP_RatesTU_SME_1[[#This Row],[Customer type]:[Customer type]])*(Calc_TUR_Net_1[[Rate type]:[Rate type]]=OP_RatesTU_SME_1[[#This Row],[Rate name]:[Rate name]]),0),MATCH(OP_RatesTU_SME_1[[#Headers],[Powercor]],Calc_TUR_Net_1[[#Headers],[Ausnet]:[United Energy]],0)), IF(OP_RatesTU_SME_1[[#This Row],[Cost element]:[Cost element]]="Environmental", SUMIFS(INDEX(Calc_TUR_Env_1[[Ausnet]:[United Energy]],0,MATCH(OP_RatesTU_SME_1[[#Headers],[Powercor]],Calc_TUR_Env_1[[#Headers],[Ausnet]:[United Energy]],0)), Calc_TUR_Env_1[[Customer type]:[Customer type]],OP_RatesTU_SME_1[[#This Row],[Customer type]:[Customer type]],Calc_TUR_Env_1[[Rate type]:[Rate type]],OP_RatesTU_SME_1[[#This Row],[Rate name]:[Rate name]]), "-")),"-") -> - | U32: =IFERROR( IF(OP_RatesTU_SME_1[[#This Row],[Cost element]:[Cost element]]="Network", INDEX(Calc_TUR_Net_1[[Ausnet]:[United Energy]],MATCH(1,(Calc_TUR_Net_1[[Customer type]:[Customer type]]=OP_RatesTU_SME_1[[#This Row],[Customer type]:[Customer type]])*(Calc_TUR_Net_1[[Rate type]:[Rate type]]=OP_RatesTU_SME_1[[#This Row],[Rate name]:[Rate name]]),0),MATCH(OP_RatesTU_SME_1[[#Headers],[United Energy]],Calc_TUR_Net_1[[#Headers],[Ausnet]:[United Energy]],0)), IF(OP_RatesTU_SME_1[[#This Row],[Cost element]:[Cost element]]="Environmental", SUMIFS(INDEX(Calc_TUR_Env_1[[Ausnet]:[United Energy]],0,MATCH(OP_RatesTU_SME_1[[#Headers],[United Energy]],Calc_TUR_Env_1[[#Headers],[Ausnet]:[United Energy]],0)), Calc_TUR_Env_1[[Customer type]:[Customer type]],OP_RatesTU_SME_1[[#This Row],[Customer type]:[Customer type]],Calc_TUR_Env_1[[Rate type]:[Rate type]],OP_RatesTU_SME_1[[#This Row],[Rate name]:[Rate name]]), "-")),"-") -> -
C33: Controlled load | D33: $/kWh | E33: Residential | F33: Network | G33: =IFERROR( IF(OP_RatesTU_RES_1[[#This Row],[Cost element]:[Cost element]]="Network", IF(OP_RatesTU_RES_1[[#This Row],[Rate name]:[Rate name]]<>"Controlled load", INDEX(Calc_TUR_Net_1[[Ausnet]:[United Energy]],MATCH(1,(Calc_TUR_Net_1[[Customer type]:[Customer type]]=OP_RatesTU_RES_1[[#This Row],[Customer type]:[Customer type]])*(Calc_TUR_Net_1[[Rate type]:[Rate type]]=OP_RatesTU_RES_1[[#This Row],[Rate name]:[Rate name]]),0),MATCH(OP_RatesTU_RES_1[[#Headers],[Ausnet]],Calc_TUR_Net_1[[#Headers],[Ausnet]:[United Energy]],0)), INDEX(Calc_TUR_NetCL_1[[Ausnet]:[United Energy]],MATCH(OP_RatesTU_RES_1[[#This Row],[Customer type]:[Customer type]],Calc_TUR_NetCL_1[[Customer type]:[Customer type]],0),MATCH(OP_RatesTU_RES_1[[#Headers],[Ausnet]],Calc_TUR_NetCL_1[[#Headers],[Ausnet]:[United Energy]],0))), IF(OP_RatesTU_RES_1[[#This Row],[Cost element]:[Cost element]]="Environmental", SUMIFS(INDEX(Calc_TUR_Env_1[[Ausnet]:[United Energy]],0,MATCH(OP_RatesTU_RES_1[[#Headers],[Ausnet]],Calc_TUR_Env_1[[#Headers],[Ausnet]:[United Energy]],0)), Calc_TUR_Env_1[[Customer type]:[Customer type]],OP_RatesTU_RES_1[[#This Row],[Customer type]:[Customer type]],Calc_TUR_Env_1[[Rate type]:[Rate type]],OP_RatesTU_RES_1[[#This Row],[Rate name]:[Rate name]]), "-")),"-") -> - | H33: =IFERROR( IF(OP_RatesTU_RES_1[[#This Row],[Cost element]:[Cost element]]="Network", IF(OP_RatesTU_RES_1[[#This Row],[Rate name]:[Rate name]]<>"Controlled load", INDEX(Calc_TUR_Net_1[[Ausnet]:[United Energy]],MATCH(1,(Calc_TUR_Net_1[[Customer type]:[Customer type]]=OP_RatesTU_RES_1[[#This Row],[Customer type]:[Customer type]])*(Calc_TUR_Net_1[[Rate type]:[Rate type]]=OP_RatesTU_RES_1[[#This Row],[Rate name]:[Rate name]]),0),MATCH(OP_RatesTU_RES_1[[#Headers],[Citipower]],Calc_TUR_Net_1[[#Headers],[Ausnet]:[United Energy]],0)), INDEX(Calc_TUR_NetCL_1[[Ausnet]:[United Energy]],MATCH(OP_RatesTU_RES_1[[#This Row],[Customer type]:[Customer type]],Calc_TUR_NetCL_1[[Customer type]:[Customer type]],0),MATCH(OP_RatesTU_RES_1[[#Headers],[Citipower]],Calc_TUR_NetCL_1[[#Headers],[Ausnet]:[United Energy]],0))), IF(OP_RatesTU_RES_1[[#This Row],[Cost element]:[Cost element]]="Environmental", SUMIFS(INDEX(Calc_TUR_Env_1[[Ausnet]:[United Energy]],0,MATCH(OP_RatesTU_RES_1[[#Headers],[Citipower]],Calc_TUR_Env_1[[#Headers],[Ausnet]:[United Energy]],0)), Calc_TUR_Env_1[[Customer type]:[Customer type]],OP_RatesTU_RES_1[[#This Row],[Customer type]:[Customer type]],Calc_TUR_Env_1[[Rate type]:[Rate type]],OP_RatesTU_RES_1[[#This Row],[Rate name]:[Rate name]]), "-")),"-") -> - | I33: =IFERROR( IF(OP_RatesTU_RES_1[[#This Row],[Cost element]:[Cost element]]="Network", IF(OP_RatesTU_RES_1[[#This Row],[Rate name]:[Rate name]]<>"Controlled load", INDEX(Calc_TUR_Net_1[[Ausnet]:[United Energy]],MATCH(1,(Calc_TUR_Net_1[[Customer type]:[Customer type]]=OP_RatesTU_RES_1[[#This Row],[Customer type]:[Customer type]])*(Calc_TUR_Net_1[[Rate type]:[Rate type]]=OP_RatesTU_RES_1[[#This Row],[Rate name]:[Rate name]]),0),MATCH(OP_RatesTU_RES_1[[#Headers],[Jemena]],Calc_TUR_Net_1[[#Headers],[Ausnet]:[United Energy]],0)), INDEX(Calc_TUR_NetCL_1[[Ausnet]:[United Energy]],MATCH(OP_RatesTU_RES_1[[#This Row],[Customer type]:[Customer type]],Calc_TUR_NetCL_1[[Customer type]:[Customer type]],0),MATCH(OP_RatesTU_RES_1[[#Headers],[Jemena]],Calc_TUR_NetCL_1[[#Headers],[Ausnet]:[United Energy]],0))), IF(OP_RatesTU_RES_1[[#This Row],[Cost element]:[Cost element]]="Environmental", SUMIFS(INDEX(Calc_TUR_Env_1[[Ausnet]:[United Energy]],0,MATCH(OP_RatesTU_RES_1[[#Headers],[Jemena]],Calc_TUR_Env_1[[#Headers],[Ausnet]:[United Energy]],0)), Calc_TUR_Env_1[[Customer type]:[Customer type]],OP_RatesTU_RES_1[[#This Row],[Customer type]:[Customer type]],Calc_TUR_Env_1[[Rate type]:[Rate type]],OP_RatesTU_RES_1[[#This Row],[Rate name]:[Rate name]]), "-")),"-") -> - | J33: =IFERROR( IF(OP_RatesTU_RES_1[[#This Row],[Cost element]:[Cost element]]="Network", IF(OP_RatesTU_RES_1[[#This Row],[Rate name]:[Rate name]]<>"Controlled load", INDEX(Calc_TUR_Net_1[[Ausnet]:[United Energy]],MATCH(1,(Calc_TUR_Net_1[[Customer type]:[Customer type]]=OP_RatesTU_RES_1[[#This Row],[Customer type]:[Customer type]])*(Calc_TUR_Net_1[[Rate type]:[Rate type]]=OP_RatesTU_RES_1[[#This Row],[Rate name]:[Rate name]]),0),MATCH(OP_RatesTU_RES_1[[#Headers],[Powercor]],Calc_TUR_Net_1[[#Headers],[Ausnet]:[United Energy]],0)), INDEX(Calc_TUR_NetCL_1[[Ausnet]:[United Energy]],MATCH(OP_RatesTU_RES_1[[#This Row],[Customer type]:[Customer type]],Calc_TUR_NetCL_1[[Customer type]:[Customer type]],0),MATCH(OP_RatesTU_RES_1[[#Headers],[Powercor]],Calc_TUR_NetCL_1[[#Headers],[Ausnet]:[United Energy]],0))), IF(OP_RatesTU_RES_1[[#This Row],[Cost element]:[Cost element]]="Environmental", SUMIFS(INDEX(Calc_TUR_Env_1[[Ausnet]:[United Energy]],0,MATCH(OP_RatesTU_RES_1[[#Headers],[Powercor]],Calc_TUR_Env_1[[#Headers],[Ausnet]:[United Energy]],0)), Calc_TUR_Env_1[[Customer type]:[Customer type]],OP_RatesTU_RES_1[[#This Row],[Customer type]:[Customer type]],Calc_TUR_Env_1[[Rate type]:[Rate type]],OP_RatesTU_RES_1[[#This Row],[Rate name]:[Rate name]]), "-")),"-") -> - | K33: =IFERROR( IF(OP_RatesTU_RES_1[[#This Row],[Cost element]:[Cost element]]="Network", IF(OP_RatesTU_RES_1[[#This Row],[Rate name]:[Rate name]]<>"Controlled load", INDEX(Calc_TUR_Net_1[[Ausnet]:[United Energy]],MATCH(1,(Calc_TUR_Net_1[[Customer type]:[Customer type]]=OP_RatesTU_RES_1[[#This Row],[Customer type]:[Customer type]])*(Calc_TUR_Net_1[[Rate type]:[Rate type]]=OP_RatesTU_RES_1[[#This Row],[Rate name]:[Rate name]]),0),MATCH(OP_RatesTU_RES_1[[#Headers],[United Energy]],Calc_TUR_Net_1[[#Headers],[Ausnet]:[United Energy]],0)), INDEX(Calc_TUR_NetCL_1[[Ausnet]:[United Energy]],MATCH(OP_RatesTU_RES_1[[#This Row],[Customer type]:[Customer type]],Calc_TUR_NetCL_1[[Customer type]:[Customer type]],0),MATCH(OP_RatesTU_RES_1[[#Headers],[United Energy]],Calc_TUR_NetCL_1[[#Headers],[Ausnet]:[United Energy]],0))), IF(OP_RatesTU_RES_1[[#This Row],[Cost element]:[Cost element]]="Environmental", SUMIFS(INDEX(Calc_TUR_Env_1[[Ausnet]:[United Energy]],0,MATCH(OP_RatesTU_RES_1[[#Headers],[United Energy]],Calc_TUR_Env_1[[#Headers],[Ausnet]:[United Energy]],0)), Calc_TUR_Env_1[[Customer type]:[Customer type]],OP_RatesTU_RES_1[[#This Row],[Customer type]:[Customer type]],Calc_TUR_Env_1[[Rate type]:[Rate type]],OP_RatesTU_RES_1[[#This Row],[Rate name]:[Rate name]]), "-")),"-") -> - | Q33: =IFERROR( IF(OP_RatesTU_SME_1[[#This Row],[Cost element]:[Cost element]]="Network", INDEX(Calc_TUR_Net_1[[Ausnet]:[United Energy]],MATCH(1,(Calc_TUR_Net_1[[Customer type]:[Customer type]]=OP_RatesTU_SME_1[[#This Row],[Customer type]:[Customer type]])*(Calc_TUR_Net_1[[Rate type]:[Rate type]]=OP_RatesTU_SME_1[[#This Row],[Rate name]:[Rate name]]),0),MATCH(OP_RatesTU_SME_1[[#Headers],[Ausnet]],Calc_TUR_Net_1[[#Headers],[Ausnet]:[United Energy]],0)), IF(OP_RatesTU_SME_1[[#This Row],[Cost element]:[Cost element]]="Environmental", SUMIFS(INDEX(Calc_TUR_Env_1[[Ausnet]:[United Energy]],0,MATCH(OP_RatesTU_SME_1[[#Headers],[Ausnet]],Calc_TUR_Env_1[[#Headers],[Ausnet]:[United Energy]],0)), Calc_TUR_Env_1[[Customer type]:[Customer type]],OP_RatesTU_SME_1[[#This Row],[Customer type]:[Customer type]],Calc_TUR_Env_1[[Rate type]:[Rate type]],OP_RatesTU_SME_1[[#This Row],[Rate name]:[Rate name]]), "-")),"-") -> - | R33: =IFERROR( IF(OP_RatesTU_SME_1[[#This Row],[Cost element]:[Cost element]]="Network", INDEX(Calc_TUR_Net_1[[Ausnet]:[United Energy]],MATCH(1,(Calc_TUR_Net_1[[Customer type]:[Customer type]]=OP_RatesTU_SME_1[[#This Row],[Customer type]:[Customer type]])*(Calc_TUR_Net_1[[Rate type]:[Rate type]]=OP_RatesTU_SME_1[[#This Row],[Rate name]:[Rate name]]),0),MATCH(OP_RatesTU_SME_1[[#Headers],[Citipower]],Calc_TUR_Net_1[[#Headers],[Ausnet]:[United Energy]],0)), IF(OP_RatesTU_SME_1[[#This Row],[Cost element]:[Cost element]]="Environmental", SUMIFS(INDEX(Calc_TUR_Env_1[[Ausnet]:[United Energy]],0,MATCH(OP_RatesTU_SME_1[[#Headers],[Citipower]],Calc_TUR_Env_1[[#Headers],[Ausnet]:[United Energy]],0)), Calc_TUR_Env_1[[Customer type]:[Customer type]],OP_RatesTU_SME_1[[#This Row],[Customer type]:[Customer type]],Calc_TUR_Env_1[[Rate type]:[Rate type]],OP_RatesTU_SME_1[[#This Row],[Rate name]:[Rate name]]), "-")),"-") -> - | S33: =IFERROR( IF(OP_RatesTU_SME_1[[#This Row],[Cost element]:[Cost element]]="Network", INDEX(Calc_TUR_Net_1[[Ausnet]:[United Energy]],MATCH(1,(Calc_TUR_Net_1[[Customer type]:[Customer type]]=OP_RatesTU_SME_1[[#This Row],[Customer type]:[Customer type]])*(Calc_TUR_Net_1[[Rate type]:[Rate type]]=OP_RatesTU_SME_1[[#This Row],[Rate name]:[Rate name]]),0),MATCH(OP_RatesTU_SME_1[[#Headers],[Jemena]],Calc_TUR_Net_1[[#Headers],[Ausnet]:[United Energy]],0)), IF(OP_RatesTU_SME_1[[#This Row],[Cost element]:[Cost element]]="Environmental", SUMIFS(INDEX(Calc_TUR_Env_1[[Ausnet]:[United Energy]],0,MATCH(OP_RatesTU_SME_1[[#Headers],[Jemena]],Calc_TUR_Env_1[[#Headers],[Ausnet]:[United Energy]],0)), Calc_TUR_Env_1[[Customer type]:[Customer type]],OP_RatesTU_SME_1[[#This Row],[Customer type]:[Customer type]],Calc_TUR_Env_1[[Rate type]:[Rate type]],OP_RatesTU_SME_1[[#This Row],[Rate name]:[Rate name]]), "-")),"-") -> - | T33: =IFERROR( IF(OP_RatesTU_SME_1[[#This Row],[Cost element]:[Cost element]]="Network", INDEX(Calc_TUR_Net_1[[Ausnet]:[United Energy]],MATCH(1,(Calc_TUR_Net_1[[Customer type]:[Customer type]]=OP_RatesTU_SME_1[[#This Row],[Customer type]:[Customer type]])*(Calc_TUR_Net_1[[Rate type]:[Rate type]]=OP_RatesTU_SME_1[[#This Row],[Rate name]:[Rate name]]),0),MATCH(OP_RatesTU_SME_1[[#Headers],[Powercor]],Calc_TUR_Net_1[[#Headers],[Ausnet]:[United Energy]],0)), IF(OP_RatesTU_SME_1[[#This Row],[Cost element]:[Cost element]]="Environmental", SUMIFS(INDEX(Calc_TUR_Env_1[[Ausnet]:[United Energy]],0,MATCH(OP_RatesTU_SME_1[[#Headers],[Powercor]],Calc_TUR_Env_1[[#Headers],[Ausnet]:[United Energy]],0)), Calc_TUR_Env_1[[Customer type]:[Customer type]],OP_RatesTU_SME_1[[#This Row],[Customer type]:[Customer type]],Calc_TUR_Env_1[[Rate type]:[Rate type]],OP_RatesTU_SME_1[[#This Row],[Rate name]:[Rate name]]), "-")),"-") -> - | U33: =IFERROR( IF(OP_RatesTU_SME_1[[#This Row],[Cost element]:[Cost element]]="Network", INDEX(Calc_TUR_Net_1[[Ausnet]:[United Energy]],MATCH(1,(Calc_TUR_Net_1[[Customer type]:[Customer type]]=OP_RatesTU_SME_1[[#This Row],[Customer type]:[Customer type]])*(Calc_TUR_Net_1[[Rate type]:[Rate type]]=OP_RatesTU_SME_1[[#This Row],[Rate name]:[Rate name]]),0),MATCH(OP_RatesTU_SME_1[[#Headers],[United Energy]],Calc_TUR_Net_1[[#Headers],[Ausnet]:[United Energy]],0)), IF(OP_RatesTU_SME_1[[#This Row],[Cost element]:[Cost element]]="Environmental", SUMIFS(INDEX(Calc_TUR_Env_1[[Ausnet]:[United Energy]],0,MATCH(OP_RatesTU_SME_1[[#Headers],[United Energy]],Calc_TUR_Env_1[[#Headers],[Ausnet]:[United Energy]],0)), Calc_TUR_Env_1[[Customer type]:[Customer type]],OP_RatesTU_SME_1[[#This Row],[Customer type]:[Customer type]],Calc_TUR_Env_1[[Rate type]:[Rate type]],OP_RatesTU_SME_1[[#This Row],[Rate name]:[Rate name]]), "-")),"-") -> -
C34: Block 1 | D34: $/kWh | E34: Residential | F34: Environmental | G34: =IFERROR( IF(OP_RatesTU_RES_1[[#This Row],[Cost element]:[Cost element]]="Network", IF(OP_RatesTU_RES_1[[#This Row],[Rate name]:[Rate name]]<>"Controlled load", INDEX(Calc_TUR_Net_1[[Ausnet]:[United Energy]],MATCH(1,(Calc_TUR_Net_1[[Customer type]:[Customer type]]=OP_RatesTU_RES_1[[#This Row],[Customer type]:[Customer type]])*(Calc_TUR_Net_1[[Rate type]:[Rate type]]=OP_RatesTU_RES_1[[#This Row],[Rate name]:[Rate name]]),0),MATCH(OP_RatesTU_RES_1[[#Headers],[Ausnet]],Calc_TUR_Net_1[[#Headers],[Ausnet]:[United Energy]],0)), INDEX(Calc_TUR_NetCL_1[[Ausnet]:[United Energy]],MATCH(OP_RatesTU_RES_1[[#This Row],[Customer type]:[Customer type]],Calc_TUR_NetCL_1[[Customer type]:[Customer type]],0),MATCH(OP_RatesTU_RES_1[[#Headers],[Ausnet]],Calc_TUR_NetCL_1[[#Headers],[Ausnet]:[United Energy]],0))), IF(OP_RatesTU_RES_1[[#This Row],[Cost element]:[Cost element]]="Environmental", SUMIFS(INDEX(Calc_TUR_Env_1[[Ausnet]:[United Energy]],0,MATCH(OP_RatesTU_RES_1[[#Headers],[Ausnet]],Calc_TUR_Env_1[[#Headers],[Ausnet]:[United Energy]],0)), Calc_TUR_Env_1[[Customer type]:[Customer type]],OP_RatesTU_RES_1[[#This Row],[Customer type]:[Customer type]],Calc_TUR_Env_1[[Rate type]:[Rate type]],OP_RatesTU_RES_1[[#This Row],[Rate name]:[Rate name]]), "-")),"-") -> -0.0007395108907 | H34: =IFERROR( IF(OP_RatesTU_RES_1[[#This Row],[Cost element]:[Cost element]]="Network", IF(OP_RatesTU_RES_1[[#This Row],[Rate name]:[Rate name]]<>"Controlled load", INDEX(Calc_TUR_Net_1[[Ausnet]:[United Energy]],MATCH(1,(Calc_TUR_Net_1[[Customer type]:[Customer type]]=OP_RatesTU_RES_1[[#This Row],[Customer type]:[Customer type]])*(Calc_TUR_Net_1[[Rate type]:[Rate type]]=OP_RatesTU_RES_1[[#This Row],[Rate name]:[Rate name]]),0),MATCH(OP_RatesTU_RES_1[[#Headers],[Citipower]],Calc_TUR_Net_1[[#Headers],[Ausnet]:[United Energy]],0)), INDEX(Calc_TUR_NetCL_1[[Ausnet]:[United Energy]],MATCH(OP_RatesTU_RES_1[[#This Row],[Customer type]:[Customer type]],Calc_TUR_NetCL_1[[Customer type]:[Customer type]],0),MATCH(OP_RatesTU_RES_1[[#Headers],[Citipower]],Calc_TUR_NetCL_1[[#Headers],[Ausnet]:[United Energy]],0))), IF(OP_RatesTU_RES_1[[#This Row],[Cost element]:[Cost element]]="Environmental", SUMIFS(INDEX(Calc_TUR_Env_1[[Ausnet]:[United Energy]],0,MATCH(OP_RatesTU_RES_1[[#Headers],[Citipower]],Calc_TUR_Env_1[[#Headers],[Ausnet]:[United Energy]],0)), Calc_TUR_Env_1[[Customer type]:[Customer type]],OP_RatesTU_RES_1[[#This Row],[Customer type]:[Customer type]],Calc_TUR_Env_1[[Rate type]:[Rate type]],OP_RatesTU_RES_1[[#This Row],[Rate name]:[Rate name]]), "-")),"-") -> 0 | I34: =IFERROR( IF(OP_RatesTU_RES_1[[#This Row],[Cost element]:[Cost element]]="Network", IF(OP_RatesTU_RES_1[[#This Row],[Rate name]:[Rate name]]<>"Controlled load", INDEX(Calc_TUR_Net_1[[Ausnet]:[United Energy]],MATCH(1,(Calc_TUR_Net_1[[Customer type]:[Customer type]]=OP_RatesTU_RES_1[[#This Row],[Customer type]:[Customer type]])*(Calc_TUR_Net_1[[Rate type]:[Rate type]]=OP_RatesTU_RES_1[[#This Row],[Rate name]:[Rate name]]),0),MATCH(OP_RatesTU_RES_1[[#Headers],[Jemena]],Calc_TUR_Net_1[[#Headers],[Ausnet]:[United Energy]],0)), INDEX(Calc_TUR_NetCL_1[[Ausnet]:[United Energy]],MATCH(OP_RatesTU_RES_1[[#This Row],[Customer type]:[Customer type]],Calc_TUR_NetCL_1[[Customer type]:[Customer type]],0),MATCH(OP_RatesTU_RES_1[[#Headers],[Jemena]],Calc_TUR_NetCL_1[[#Headers],[Ausnet]:[United Energy]],0))), IF(OP_RatesTU_RES_1[[#This Row],[Cost element]:[Cost element]]="Environmental", SUMIFS(INDEX(Calc_TUR_Env_1[[Ausnet]:[United Energy]],0,MATCH(OP_RatesTU_RES_1[[#Headers],[Jemena]],Calc_TUR_Env_1[[#Headers],[Ausnet]:[United Energy]],0)), Calc_TUR_Env_1[[Customer type]:[Customer type]],OP_RatesTU_RES_1[[#This Row],[Customer type]:[Customer type]],Calc_TUR_Env_1[[Rate type]:[Rate type]],OP_RatesTU_RES_1[[#This Row],[Rate name]:[Rate name]]), "-")),"-") -> 0 | J34: =IFERROR( IF(OP_RatesTU_RES_1[[#This Row],[Cost element]:[Cost element]]="Network", IF(OP_RatesTU_RES_1[[#This Row],[Rate name]:[Rate name]]<>"Controlled load", INDEX(Calc_TUR_Net_1[[Ausnet]:[United Energy]],MATCH(1,(Calc_TUR_Net_1[[Customer type]:[Customer type]]=OP_RatesTU_RES_1[[#This Row],[Customer type]:[Customer type]])*(Calc_TUR_Net_1[[Rate type]:[Rate type]]=OP_RatesTU_RES_1[[#This Row],[Rate name]:[Rate name]]),0),MATCH(OP_RatesTU_RES_1[[#Headers],[Powercor]],Calc_TUR_Net_1[[#Headers],[Ausnet]:[United Energy]],0)), INDEX(Calc_TUR_NetCL_1[[Ausnet]:[United Energy]],MATCH(OP_RatesTU_RES_1[[#This Row],[Customer type]:[Customer type]],Calc_TUR_NetCL_1[[Customer type]:[Customer type]],0),MATCH(OP_RatesTU_RES_1[[#Headers],[Powercor]],Calc_TUR_NetCL_1[[#Headers],[Ausnet]:[United Energy]],0))), IF(OP_RatesTU_RES_1[[#This Row],[Cost element]:[Cost element]]="Environmental", SUMIFS(INDEX(Calc_TUR_Env_1[[Ausnet]:[United Energy]],0,MATCH(OP_RatesTU_RES_1[[#Headers],[Powercor]],Calc_TUR_Env_1[[#Headers],[Ausnet]:[United Energy]],0)), Calc_TUR_Env_1[[Customer type]:[Customer type]],OP_RatesTU_RES_1[[#This Row],[Customer type]:[Customer type]],Calc_TUR_Env_1[[Rate type]:[Rate type]],OP_RatesTU_RES_1[[#This Row],[Rate name]:[Rate name]]), "-")),"-") -> 0 | K34: =IFERROR( IF(OP_RatesTU_RES_1[[#This Row],[Cost element]:[Cost element]]="Network", IF(OP_RatesTU_RES_1[[#This Row],[Rate name]:[Rate name]]<>"Controlled load", INDEX(Calc_TUR_Net_1[[Ausnet]:[United Energy]],MATCH(1,(Calc_TUR_Net_1[[Customer type]:[Customer type]]=OP_RatesTU_RES_1[[#This Row],[Customer type]:[Customer type]])*(Calc_TUR_Net_1[[Rate type]:[Rate type]]=OP_RatesTU_RES_1[[#This Row],[Rate name]:[Rate name]]),0),MATCH(OP_RatesTU_RES_1[[#Headers],[United Energy]],Calc_TUR_Net_1[[#Headers],[Ausnet]:[United Energy]],0)), INDEX(Calc_TUR_NetCL_1[[Ausnet]:[United Energy]],MATCH(OP_RatesTU_RES_1[[#This Row],[Customer type]:[Customer type]],Calc_TUR_NetCL_1[[Customer type]:[Customer type]],0),MATCH(OP_RatesTU_RES_1[[#Headers],[United Energy]],Calc_TUR_NetCL_1[[#Headers],[Ausnet]:[United Energy]],0))), IF(OP_RatesTU_RES_1[[#This Row],[Cost element]:[Cost element]]="Environmental", SUMIFS(INDEX(Calc_TUR_Env_1[[Ausnet]:[United Energy]],0,MATCH(OP_RatesTU_RES_1[[#Headers],[United Energy]],Calc_TUR_Env_1[[#Headers],[Ausnet]:[United Energy]],0)), Calc_TUR_Env_1[[Customer type]:[Customer type]],OP_RatesTU_RES_1[[#This Row],[Customer type]:[Customer type]],Calc_TUR_Env_1[[Rate type]:[Rate type]],OP_RatesTU_RES_1[[#This Row],[Rate name]:[Rate name]]), "-")),"-") -> 0 | M34: Block 1 | N34: $/kWh | O34: Small business | P34: Environmental | Q34: =IFERROR( IF(OP_RatesTU_SME_1[[#This Row],[Cost element]:[Cost element]]="Network", INDEX(Calc_TUR_Net_1[[Ausnet]:[United Energy]],MATCH(1,(Calc_TUR_Net_1[[Customer type]:[Customer type]]=OP_RatesTU_SME_1[[#This Row],[Customer type]:[Customer type]])*(Calc_TUR_Net_1[[Rate type]:[Rate type]]=OP_RatesTU_SME_1[[#This Row],[Rate name]:[Rate name]]),0),MATCH(OP_RatesTU_SME_1[[#Headers],[Ausnet]],Calc_TUR_Net_1[[#Headers],[Ausnet]:[United Energy]],0)), IF(OP_RatesTU_SME_1[[#This Row],[Cost element]:[Cost element]]="Environmental", SUMIFS(INDEX(Calc_TUR_Env_1[[Ausnet]:[United Energy]],0,MATCH(OP_RatesTU_SME_1[[#Headers],[Ausnet]],Calc_TUR_Env_1[[#Headers],[Ausnet]:[United Energy]],0)), Calc_TUR_Env_1[[Customer type]:[Customer type]],OP_RatesTU_SME_1[[#This Row],[Customer type]:[Customer type]],Calc_TUR_Env_1[[Rate type]:[Rate type]],OP_RatesTU_SME_1[[#This Row],[Rate name]:[Rate name]]), "-")),"-") -> -0.0007395108907 | R34: =IFERROR( IF(OP_RatesTU_SME_1[[#This Row],[Cost element]:[Cost element]]="Network", INDEX(Calc_TUR_Net_1[[Ausnet]:[United Energy]],MATCH(1,(Calc_TUR_Net_1[[Customer type]:[Customer type]]=OP_RatesTU_SME_1[[#This Row],[Customer type]:[Customer type]])*(Calc_TUR_Net_1[[Rate type]:[Rate type]]=OP_RatesTU_SME_1[[#This Row],[Rate name]:[Rate name]]),0),MATCH(OP_RatesTU_SME_1[[#Headers],[Citipower]],Calc_TUR_Net_1[[#Headers],[Ausnet]:[United Energy]],0)), IF(OP_RatesTU_SME_1[[#This Row],[Cost element]:[Cost element]]="Environmental", SUMIFS(INDEX(Calc_TUR_Env_1[[Ausnet]:[United Energy]],0,MATCH(OP_RatesTU_SME_1[[#Headers],[Citipower]],Calc_TUR_Env_1[[#Headers],[Ausnet]:[United Energy]],0)), Calc_TUR_Env_1[[Customer type]:[Customer type]],OP_RatesTU_SME_1[[#This Row],[Customer type]:[Customer type]],Calc_TUR_Env_1[[Rate type]:[Rate type]],OP_RatesTU_SME_1[[#This Row],[Rate name]:[Rate name]]), "-")),"-") -> 0 | S34: =IFERROR( IF(OP_RatesTU_SME_1[[#This Row],[Cost element]:[Cost element]]="Network", INDEX(Calc_TUR_Net_1[[Ausnet]:[United Energy]],MATCH(1,(Calc_TUR_Net_1[[Customer type]:[Customer type]]=OP_RatesTU_SME_1[[#This Row],[Customer type]:[Customer type]])*(Calc_TUR_Net_1[[Rate type]:[Rate type]]=OP_RatesTU_SME_1[[#This Row],[Rate name]:[Rate name]]),0),MATCH(OP_RatesTU_SME_1[[#Headers],[Jemena]],Calc_TUR_Net_1[[#Headers],[Ausnet]:[United Energy]],0)), IF(OP_RatesTU_SME_1[[#This Row],[Cost element]:[Cost element]]="Environmental", SUMIFS(INDEX(Calc_TUR_Env_1[[Ausnet]:[United Energy]],0,MATCH(OP_RatesTU_SME_1[[#Headers],[Jemena]],Calc_TUR_Env_1[[#Headers],[Ausnet]:[United Energy]],0)), Calc_TUR_Env_1[[Customer type]:[Customer type]],OP_RatesTU_SME_1[[#This Row],[Customer type]:[Customer type]],Calc_TUR_Env_1[[Rate type]:[Rate type]],OP_RatesTU_SME_1[[#This Row],[Rate name]:[Rate name]]), "-")),"-") -> 0 | T34: =IFERROR( IF(OP_RatesTU_SME_1[[#This Row],[Cost element]:[Cost element]]="Network", INDEX(Calc_TUR_Net_1[[Ausnet]:[United Energy]],MATCH(1,(Calc_TUR_Net_1[[Customer type]:[Customer type]]=OP_RatesTU_SME_1[[#This Row],[Customer type]:[Customer type]])*(Calc_TUR_Net_1[[Rate type]:[Rate type]]=OP_RatesTU_SME_1[[#This Row],[Rate name]:[Rate name]]),0),MATCH(OP_RatesTU_SME_1[[#Headers],[Powercor]],Calc_TUR_Net_1[[#Headers],[Ausnet]:[United Energy]],0)), IF(OP_RatesTU_SME_1[[#This Row],[Cost element]:[Cost element]]="Environmental", SUMIFS(INDEX(Calc_TUR_Env_1[[Ausnet]:[United Energy]],0,MATCH(OP_RatesTU_SME_1[[#Headers],[Powercor]],Calc_TUR_Env_1[[#Headers],[Ausnet]:[United Energy]],0)), Calc_TUR_Env_1[[Customer type]:[Customer type]],OP_RatesTU_SME_1[[#This Row],[Customer type]:[Customer type]],Calc_TUR_Env_1[[Rate type]:[Rate type]],OP_RatesTU_SME_1[[#This Row],[Rate name]:[Rate name]]), "-")),"-") -> 0 | U34: =IFERROR( IF(OP_RatesTU_SME_1[[#This Row],[Cost element]:[Cost element]]="Network", INDEX(Calc_TUR_Net_1[[Ausnet]:[United Energy]],MATCH(1,(Calc_TUR_Net_1[[Customer type]:[Customer type]]=OP_RatesTU_SME_1[[#This Row],[Customer type]:[Customer type]])*(Calc_TUR_Net_1[[Rate type]:[Rate type]]=OP_RatesTU_SME_1[[#This Row],[Rate name]:[Rate name]]),0),MATCH(OP_RatesTU_SME_1[[#Headers],[United Energy]],Calc_TUR_Net_1[[#Headers],[Ausnet]:[United Energy]],0)), IF(OP_RatesTU_SME_1[[#This Row],[Cost element]:[Cost element]]="Environmental", SUMIFS(INDEX(Calc_TUR_Env_1[[Ausnet]:[United Energy]],0,MATCH(OP_RatesTU_SME_1[[#Headers],[United Energy]],Calc_TUR_Env_1[[#Headers],[Ausnet]:[United Energy]],0)), Calc_TUR_Env_1[[Customer type]:[Customer type]],OP_RatesTU_SME_1[[#This Row],[Customer type]:[Customer type]],Calc_TUR_Env_1[[Rate type]:[Rate type]],OP_RatesTU_SME_1[[#This Row],[Rate name]:[Rate name]]), "-")),"-") -> 0
C35: Balance | D35: $/kWh | E35: Residential | F35: Environmental | G35: =IFERROR( IF(OP_RatesTU_RES_1[[#This Row],[Cost element]:[Cost element]]="Network", IF(OP_RatesTU_RES_1[[#This Row],[Rate name]:[Rate name]]<>"Controlled load", INDEX(Calc_TUR_Net_1[[Ausnet]:[United Energy]],MATCH(1,(Calc_TUR_Net_1[[Customer type]:[Customer type]]=OP_RatesTU_RES_1[[#This Row],[Customer type]:[Customer type]])*(Calc_TUR_Net_1[[Rate type]:[Rate type]]=OP_RatesTU_RES_1[[#This Row],[Rate name]:[Rate name]]),0),MATCH(OP_RatesTU_RES_1[[#Headers],[Ausnet]],Calc_TUR_Net_1[[#Headers],[Ausnet]:[United Energy]],0)), INDEX(Calc_TUR_NetCL_1[[Ausnet]:[United Energy]],MATCH(OP_RatesTU_RES_1[[#This Row],[Customer type]:[Customer type]],Calc_TUR_NetCL_1[[Customer type]:[Customer type]],0),MATCH(OP_RatesTU_RES_1[[#Headers],[Ausnet]],Calc_TUR_NetCL_1[[#Headers],[Ausnet]:[United Energy]],0))), IF(OP_RatesTU_RES_1[[#This Row],[Cost element]:[Cost element]]="Environmental", SUMIFS(INDEX(Calc_TUR_Env_1[[Ausnet]:[United Energy]],0,MATCH(OP_RatesTU_RES_1[[#Headers],[Ausnet]],Calc_TUR_Env_1[[#Headers],[Ausnet]:[United Energy]],0)), Calc_TUR_Env_1[[Customer type]:[Customer type]],OP_RatesTU_RES_1[[#This Row],[Customer type]:[Customer type]],Calc_TUR_Env_1[[Rate type]:[Rate type]],OP_RatesTU_RES_1[[#This Row],[Rate name]:[Rate name]]), "-")),"-") -> -0.0007395108907 | H35: =IFERROR( IF(OP_RatesTU_RES_1[[#This Row],[Cost element]:[Cost element]]="Network", IF(OP_RatesTU_RES_1[[#This Row],[Rate name]:[Rate name]]<>"Controlled load", INDEX(Calc_TUR_Net_1[[Ausnet]:[United Energy]],MATCH(1,(Calc_TUR_Net_1[[Customer type]:[Customer type]]=OP_RatesTU_RES_1[[#This Row],[Customer type]:[Customer type]])*(Calc_TUR_Net_1[[Rate type]:[Rate type]]=OP_RatesTU_RES_1[[#This Row],[Rate name]:[Rate name]]),0),MATCH(OP_RatesTU_RES_1[[#Headers],[Citipower]],Calc_TUR_Net_1[[#Headers],[Ausnet]:[United Energy]],0)), INDEX(Calc_TUR_NetCL_1[[Ausnet]:[United Energy]],MATCH(OP_RatesTU_RES_1[[#This Row],[Customer type]:[Customer type]],Calc_TUR_NetCL_1[[Customer type]:[Customer type]],0),MATCH(OP_RatesTU_RES_1[[#Headers],[Citipower]],Calc_TUR_NetCL_1[[#Headers],[Ausnet]:[United Energy]],0))), IF(OP_RatesTU_RES_1[[#This Row],[Cost element]:[Cost element]]="Environmental", SUMIFS(INDEX(Calc_TUR_Env_1[[Ausnet]:[United Energy]],0,MATCH(OP_RatesTU_RES_1[[#Headers],[Citipower]],Calc_TUR_Env_1[[#Headers],[Ausnet]:[United Energy]],0)), Calc_TUR_Env_1[[Customer type]:[Customer type]],OP_RatesTU_RES_1[[#This Row],[Customer type]:[Customer type]],Calc_TUR_Env_1[[Rate type]:[Rate type]],OP_RatesTU_RES_1[[#This Row],[Rate name]:[Rate name]]), "-")),"-") -> 0 | I35: =IFERROR( IF(OP_RatesTU_RES_1[[#This Row],[Cost element]:[Cost element]]="Network", IF(OP_RatesTU_RES_1[[#This Row],[Rate name]:[Rate name]]<>"Controlled load", INDEX(Calc_TUR_Net_1[[Ausnet]:[United Energy]],MATCH(1,(Calc_TUR_Net_1[[Customer type]:[Customer type]]=OP_RatesTU_RES_1[[#This Row],[Customer type]:[Customer type]])*(Calc_TUR_Net_1[[Rate type]:[Rate type]]=OP_RatesTU_RES_1[[#This Row],[Rate name]:[Rate name]]),0),MATCH(OP_RatesTU_RES_1[[#Headers],[Jemena]],Calc_TUR_Net_1[[#Headers],[Ausnet]:[United Energy]],0)), INDEX(Calc_TUR_NetCL_1[[Ausnet]:[United Energy]],MATCH(OP_RatesTU_RES_1[[#This Row],[Customer type]:[Customer type]],Calc_TUR_NetCL_1[[Customer type]:[Customer type]],0),MATCH(OP_RatesTU_RES_1[[#Headers],[Jemena]],Calc_TUR_NetCL_1[[#Headers],[Ausnet]:[United Energy]],0))), IF(OP_RatesTU_RES_1[[#This Row],[Cost element]:[Cost element]]="Environmental", SUMIFS(INDEX(Calc_TUR_Env_1[[Ausnet]:[United Energy]],0,MATCH(OP_RatesTU_RES_1[[#Headers],[Jemena]],Calc_TUR_Env_1[[#Headers],[Ausnet]:[United Energy]],0)), Calc_TUR_Env_1[[Customer type]:[Customer type]],OP_RatesTU_RES_1[[#This Row],[Customer type]:[Customer type]],Calc_TUR_Env_1[[Rate type]:[Rate type]],OP_RatesTU_RES_1[[#This Row],[Rate name]:[Rate name]]), "-")),"-") -> 0 | J35: =IFERROR( IF(OP_RatesTU_RES_1[[#This Row],[Cost element]:[Cost element]]="Network", IF(OP_RatesTU_RES_1[[#This Row],[Rate name]:[Rate name]]<>"Controlled load", INDEX(Calc_TUR_Net_1[[Ausnet]:[United Energy]],MATCH(1,(Calc_TUR_Net_1[[Customer type]:[Customer type]]=OP_RatesTU_RES_1[[#This Row],[Customer type]:[Customer type]])*(Calc_TUR_Net_1[[Rate type]:[Rate type]]=OP_RatesTU_RES_1[[#This Row],[Rate name]:[Rate name]]),0),MATCH(OP_RatesTU_RES_1[[#Headers],[Powercor]],Calc_TUR_Net_1[[#Headers],[Ausnet]:[United Energy]],0)), INDEX(Calc_TUR_NetCL_1[[Ausnet]:[United Energy]],MATCH(OP_RatesTU_RES_1[[#This Row],[Customer type]:[Customer type]],Calc_TUR_NetCL_1[[Customer type]:[Customer type]],0),MATCH(OP_RatesTU_RES_1[[#Headers],[Powercor]],Calc_TUR_NetCL_1[[#Headers],[Ausnet]:[United Energy]],0))), IF(OP_RatesTU_RES_1[[#This Row],[Cost element]:[Cost element]]="Environmental", SUMIFS(INDEX(Calc_TUR_Env_1[[Ausnet]:[United Energy]],0,MATCH(OP_RatesTU_RES_1[[#Headers],[Powercor]],Calc_TUR_Env_1[[#Headers],[Ausnet]:[United Energy]],0)), Calc_TUR_Env_1[[Customer type]:[Customer type]],OP_RatesTU_RES_1[[#This Row],[Customer type]:[Customer type]],Calc_TUR_Env_1[[Rate type]:[Rate type]],OP_RatesTU_RES_1[[#This Row],[Rate name]:[Rate name]]), "-")),"-") -> 0 | K35: =IFERROR( IF(OP_RatesTU_RES_1[[#This Row],[Cost element]:[Cost element]]="Network", IF(OP_RatesTU_RES_1[[#This Row],[Rate name]:[Rate name]]<>"Controlled load", INDEX(Calc_TUR_Net_1[[Ausnet]:[United Energy]],MATCH(1,(Calc_TUR_Net_1[[Customer type]:[Customer type]]=OP_RatesTU_RES_1[[#This Row],[Customer type]:[Customer type]])*(Calc_TUR_Net_1[[Rate type]:[Rate type]]=OP_RatesTU_RES_1[[#This Row],[Rate name]:[Rate name]]),0),MATCH(OP_RatesTU_RES_1[[#Headers],[United Energy]],Calc_TUR_Net_1[[#Headers],[Ausnet]:[United Energy]],0)), INDEX(Calc_TUR_NetCL_1[[Ausnet]:[United Energy]],MATCH(OP_RatesTU_RES_1[[#This Row],[Customer type]:[Customer type]],Calc_TUR_NetCL_1[[Customer type]:[Customer type]],0),MATCH(OP_RatesTU_RES_1[[#Headers],[United Energy]],Calc_TUR_NetCL_1[[#Headers],[Ausnet]:[United Energy]],0))), IF(OP_RatesTU_RES_1[[#This Row],[Cost element]:[Cost element]]="Environmental", SUMIFS(INDEX(Calc_TUR_Env_1[[Ausnet]:[United Energy]],0,MATCH(OP_RatesTU_RES_1[[#Headers],[United Energy]],Calc_TUR_Env_1[[#Headers],[Ausnet]:[United Energy]],0)), Calc_TUR_Env_1[[Customer type]:[Customer type]],OP_RatesTU_RES_1[[#This Row],[Customer type]:[Customer type]],Calc_TUR_Env_1[[Rate type]:[Rate type]],OP_RatesTU_RES_1[[#This Row],[Rate name]:[Rate name]]), "-")),"-") -> 0 | M35: Balance | N35: $/kWh | O35: Small business | P35: Environmental | Q35: =IFERROR( IF(OP_RatesTU_SME_1[[#This Row],[Cost element]:[Cost element]]="Network", INDEX(Calc_TUR_Net_1[[Ausnet]:[United Energy]],MATCH(1,(Calc_TUR_Net_1[[Customer type]:[Customer type]]=OP_RatesTU_SME_1[[#This Row],[Customer type]:[Customer type]])*(Calc_TUR_Net_1[[Rate type]:[Rate type]]=OP_RatesTU_SME_1[[#This Row],[Rate name]:[Rate name]]),0),MATCH(OP_RatesTU_SME_1[[#Headers],[Ausnet]],Calc_TUR_Net_1[[#Headers],[Ausnet]:[United Energy]],0)), IF(OP_RatesTU_SME_1[[#This Row],[Cost element]:[Cost element]]="Environmental", SUMIFS(INDEX(Calc_TUR_Env_1[[Ausnet]:[United Energy]],0,MATCH(OP_RatesTU_SME_1[[#Headers],[Ausnet]],Calc_TUR_Env_1[[#Headers],[Ausnet]:[United Energy]],0)), Calc_TUR_Env_1[[Customer type]:[Customer type]],OP_RatesTU_SME_1[[#This Row],[Customer type]:[Customer type]],Calc_TUR_Env_1[[Rate type]:[Rate type]],OP_RatesTU_SME_1[[#This Row],[Rate name]:[Rate name]]), "-")),"-") -> -0.0007395108907 | R35: =IFERROR( IF(OP_RatesTU_SME_1[[#This Row],[Cost element]:[Cost element]]="Network", INDEX(Calc_TUR_Net_1[[Ausnet]:[United Energy]],MATCH(1,(Calc_TUR_Net_1[[Customer type]:[Customer type]]=OP_RatesTU_SME_1[[#This Row],[Customer type]:[Customer type]])*(Calc_TUR_Net_1[[Rate type]:[Rate type]]=OP_RatesTU_SME_1[[#This Row],[Rate name]:[Rate name]]),0),MATCH(OP_RatesTU_SME_1[[#Headers],[Citipower]],Calc_TUR_Net_1[[#Headers],[Ausnet]:[United Energy]],0)), IF(OP_RatesTU_SME_1[[#This Row],[Cost element]:[Cost element]]="Environmental", SUMIFS(INDEX(Calc_TUR_Env_1[[Ausnet]:[United Energy]],0,MATCH(OP_RatesTU_SME_1[[#Headers],[Citipower]],Calc_TUR_Env_1[[#Headers],[Ausnet]:[United Energy]],0)), Calc_TUR_Env_1[[Customer type]:[Customer type]],OP_RatesTU_SME_1[[#This Row],[Customer type]:[Customer type]],Calc_TUR_Env_1[[Rate type]:[Rate type]],OP_RatesTU_SME_1[[#This Row],[Rate name]:[Rate name]]), "-")),"-") -> 0 | S35: =IFERROR( IF(OP_RatesTU_SME_1[[#This Row],[Cost element]:[Cost element]]="Network", INDEX(Calc_TUR_Net_1[[Ausnet]:[United Energy]],MATCH(1,(Calc_TUR_Net_1[[Customer type]:[Customer type]]=OP_RatesTU_SME_1[[#This Row],[Customer type]:[Customer type]])*(Calc_TUR_Net_1[[Rate type]:[Rate type]]=OP_RatesTU_SME_1[[#This Row],[Rate name]:[Rate name]]),0),MATCH(OP_RatesTU_SME_1[[#Headers],[Jemena]],Calc_TUR_Net_1[[#Headers],[Ausnet]:[United Energy]],0)), IF(OP_RatesTU_SME_1[[#This Row],[Cost element]:[Cost element]]="Environmental", SUMIFS(INDEX(Calc_TUR_Env_1[[Ausnet]:[United Energy]],0,MATCH(OP_RatesTU_SME_1[[#Headers],[Jemena]],Calc_TUR_Env_1[[#Headers],[Ausnet]:[United Energy]],0)), Calc_TUR_Env_1[[Customer type]:[Customer type]],OP_RatesTU_SME_1[[#This Row],[Customer type]:[Customer type]],Calc_TUR_Env_1[[Rate type]:[Rate type]],OP_RatesTU_SME_1[[#This Row],[Rate name]:[Rate name]]), "-")),"-") -> 0 | T35: =IFERROR( IF(OP_RatesTU_SME_1[[#This Row],[Cost element]:[Cost element]]="Network", INDEX(Calc_TUR_Net_1[[Ausnet]:[United Energy]],MATCH(1,(Calc_TUR_Net_1[[Customer type]:[Customer type]]=OP_RatesTU_SME_1[[#This Row],[Customer type]:[Customer type]])*(Calc_TUR_Net_1[[Rate type]:[Rate type]]=OP_RatesTU_SME_1[[#This Row],[Rate name]:[Rate name]]),0),MATCH(OP_RatesTU_SME_1[[#Headers],[Powercor]],Calc_TUR_Net_1[[#Headers],[Ausnet]:[United Energy]],0)), IF(OP_RatesTU_SME_1[[#This Row],[Cost element]:[Cost element]]="Environmental", SUMIFS(INDEX(Calc_TUR_Env_1[[Ausnet]:[United Energy]],0,MATCH(OP_RatesTU_SME_1[[#Headers],[Powercor]],Calc_TUR_Env_1[[#Headers],[Ausnet]:[United Energy]],0)), Calc_TUR_Env_1[[Customer type]:[Customer type]],OP_RatesTU_SME_1[[#This Row],[Customer type]:[Customer type]],Calc_TUR_Env_1[[Rate type]:[Rate type]],OP_RatesTU_SME_1[[#This Row],[Rate name]:[Rate name]]), "-")),"-") -> 0 | U35: =IFERROR( IF(OP_RatesTU_SME_1[[#This Row],[Cost element]:[Cost element]]="Network", INDEX(Calc_TUR_Net_1[[Ausnet]:[United Energy]],MATCH(1,(Calc_TUR_Net_1[[Customer type]:[Customer type]]=OP_RatesTU_SME_1[[#This Row],[Customer type]:[Customer type]])*(Calc_TUR_Net_1[[Rate type]:[Rate type]]=OP_RatesTU_SME_1[[#This Row],[Rate name]:[Rate name]]),0),MATCH(OP_RatesTU_SME_1[[#Headers],[United Energy]],Calc_TUR_Net_1[[#Headers],[Ausnet]:[United Energy]],0)), IF(OP_RatesTU_SME_1[[#This Row],[Cost element]:[Cost element]]="Environmental", SUMIFS(INDEX(Calc_TUR_Env_1[[Ausnet]:[United Energy]],0,MATCH(OP_RatesTU_SME_1[[#Headers],[United Energy]],Calc_TUR_Env_1[[#Headers],[Ausnet]:[United Energy]],0)), Calc_TUR_Env_1[[Customer type]:[Customer type]],OP_RatesTU_SME_1[[#This Row],[Customer type]:[Customer type]],Calc_TUR_Env_1[[Rate type]:[Rate type]],OP_RatesTU_SME_1[[#This Row],[Rate name]:[Rate name]]), "-")),"-") -> 0
C36: Single rate | D36: $/kWh | E36: Residential | F36: Environmental | G36: =IFERROR( IF(OP_RatesTU_RES_1[[#This Row],[Cost element]:[Cost element]]="Network", IF(OP_RatesTU_RES_1[[#This Row],[Rate name]:[Rate name]]<>"Controlled load", INDEX(Calc_TUR_Net_1[[Ausnet]:[United Energy]],MATCH(1,(Calc_TUR_Net_1[[Customer type]:[Customer type]]=OP_RatesTU_RES_1[[#This Row],[Customer type]:[Customer type]])*(Calc_TUR_Net_1[[Rate type]:[Rate type]]=OP_RatesTU_RES_1[[#This Row],[Rate name]:[Rate name]]),0),MATCH(OP_RatesTU_RES_1[[#Headers],[Ausnet]],Calc_TUR_Net_1[[#Headers],[Ausnet]:[United Energy]],0)), INDEX(Calc_TUR_NetCL_1[[Ausnet]:[United Energy]],MATCH(OP_RatesTU_RES_1[[#This Row],[Customer type]:[Customer type]],Calc_TUR_NetCL_1[[Customer type]:[Customer type]],0),MATCH(OP_RatesTU_RES_1[[#Headers],[Ausnet]],Calc_TUR_NetCL_1[[#Headers],[Ausnet]:[United Energy]],0))), IF(OP_RatesTU_RES_1[[#This Row],[Cost element]:[Cost element]]="Environmental", SUMIFS(INDEX(Calc_TUR_Env_1[[Ausnet]:[United Energy]],0,MATCH(OP_RatesTU_RES_1[[#Headers],[Ausnet]],Calc_TUR_Env_1[[#Headers],[Ausnet]:[United Energy]],0)), Calc_TUR_Env_1[[Customer type]:[Customer type]],OP_RatesTU_RES_1[[#This Row],[Customer type]:[Customer type]],Calc_TUR_Env_1[[Rate type]:[Rate type]],OP_RatesTU_RES_1[[#This Row],[Rate name]:[Rate name]]), "-")),"-") -> 0 | H36: =IFERROR( IF(OP_RatesTU_RES_1[[#This Row],[Cost element]:[Cost element]]="Network", IF(OP_RatesTU_RES_1[[#This Row],[Rate name]:[Rate name]]<>"Controlled load", INDEX(Calc_TUR_Net_1[[Ausnet]:[United Energy]],MATCH(1,(Calc_TUR_Net_1[[Customer type]:[Customer type]]=OP_RatesTU_RES_1[[#This Row],[Customer type]:[Customer type]])*(Calc_TUR_Net_1[[Rate type]:[Rate type]]=OP_RatesTU_RES_1[[#This Row],[Rate name]:[Rate name]]),0),MATCH(OP_RatesTU_RES_1[[#Headers],[Citipower]],Calc_TUR_Net_1[[#Headers],[Ausnet]:[United Energy]],0)), INDEX(Calc_TUR_NetCL_1[[Ausnet]:[United Energy]],MATCH(OP_RatesTU_RES_1[[#This Row],[Customer type]:[Customer type]],Calc_TUR_NetCL_1[[Customer type]:[Customer type]],0),MATCH(OP_RatesTU_RES_1[[#Headers],[Citipower]],Calc_TUR_NetCL_1[[#Headers],[Ausnet]:[United Energy]],0))), IF(OP_RatesTU_RES_1[[#This Row],[Cost element]:[Cost element]]="Environmental", SUMIFS(INDEX(Calc_TUR_Env_1[[Ausnet]:[United Energy]],0,MATCH(OP_RatesTU_RES_1[[#Headers],[Citipower]],Calc_TUR_Env_1[[#Headers],[Ausnet]:[United Energy]],0)), Calc_TUR_Env_1[[Customer type]:[Customer type]],OP_RatesTU_RES_1[[#This Row],[Customer type]:[Customer type]],Calc_TUR_Env_1[[Rate type]:[Rate type]],OP_RatesTU_RES_1[[#This Row],[Rate name]:[Rate name]]), "-")),"-") -> -0.0007146458416 | I36: =IFERROR( IF(OP_RatesTU_RES_1[[#This Row],[Cost element]:[Cost element]]="Network", IF(OP_RatesTU_RES_1[[#This Row],[Rate name]:[Rate name]]<>"Controlled load", INDEX(Calc_TUR_Net_1[[Ausnet]:[United Energy]],MATCH(1,(Calc_TUR_Net_1[[Customer type]:[Customer type]]=OP_RatesTU_RES_1[[#This Row],[Customer type]:[Customer type]])*(Calc_TUR_Net_1[[Rate type]:[Rate type]]=OP_RatesTU_RES_1[[#This Row],[Rate name]:[Rate name]]),0),MATCH(OP_RatesTU_RES_1[[#Headers],[Jemena]],Calc_TUR_Net_1[[#Headers],[Ausnet]:[United Energy]],0)), INDEX(Calc_TUR_NetCL_1[[Ausnet]:[United Energy]],MATCH(OP_RatesTU_RES_1[[#This Row],[Customer type]:[Customer type]],Calc_TUR_NetCL_1[[Customer type]:[Customer type]],0),MATCH(OP_RatesTU_RES_1[[#Headers],[Jemena]],Calc_TUR_NetCL_1[[#Headers],[Ausnet]:[United Energy]],0))), IF(OP_RatesTU_RES_1[[#This Row],[Cost element]:[Cost element]]="Environmental", SUMIFS(INDEX(Calc_TUR_Env_1[[Ausnet]:[United Energy]],0,MATCH(OP_RatesTU_RES_1[[#Headers],[Jemena]],Calc_TUR_Env_1[[#Headers],[Ausnet]:[United Energy]],0)), Calc_TUR_Env_1[[Customer type]:[Customer type]],OP_RatesTU_RES_1[[#This Row],[Customer type]:[Customer type]],Calc_TUR_Env_1[[Rate type]:[Rate type]],OP_RatesTU_RES_1[[#This Row],[Rate name]:[Rate name]]), "-")),"-") -> -0.0007177777187 | J36: =IFERROR( IF(OP_RatesTU_RES_1[[#This Row],[Cost element]:[Cost element]]="Network", IF(OP_RatesTU_RES_1[[#This Row],[Rate name]:[Rate name]]<>"Controlled load", INDEX(Calc_TUR_Net_1[[Ausnet]:[United Energy]],MATCH(1,(Calc_TUR_Net_1[[Customer type]:[Customer type]]=OP_RatesTU_RES_1[[#This Row],[Customer type]:[Customer type]])*(Calc_TUR_Net_1[[Rate type]:[Rate type]]=OP_RatesTU_RES_1[[#This Row],[Rate name]:[Rate name]]),0),MATCH(OP_RatesTU_RES_1[[#Headers],[Powercor]],Calc_TUR_Net_1[[#Headers],[Ausnet]:[United Energy]],0)), INDEX(Calc_TUR_NetCL_1[[Ausnet]:[United Energy]],MATCH(OP_RatesTU_RES_1[[#This Row],[Customer type]:[Customer type]],Calc_TUR_NetCL_1[[Customer type]:[Customer type]],0),MATCH(OP_RatesTU_RES_1[[#Headers],[Powercor]],Calc_TUR_NetCL_1[[#Headers],[Ausnet]:[United Energy]],0))), IF(OP_RatesTU_RES_1[[#This Row],[Cost element]:[Cost element]]="Environmental", SUMIFS(INDEX(Calc_TUR_Env_1[[Ausnet]:[United Energy]],0,MATCH(OP_RatesTU_RES_1[[#Headers],[Powercor]],Calc_TUR_Env_1[[#Headers],[Ausnet]:[United Energy]],0)), Calc_TUR_Env_1[[Customer type]:[Customer type]],OP_RatesTU_RES_1[[#This Row],[Customer type]:[Customer type]],Calc_TUR_Env_1[[Rate type]:[Rate type]],OP_RatesTU_RES_1[[#This Row],[Rate name]:[Rate name]]), "-")),"-") -> -0.0007295666624 | K36: =IFERROR( IF(OP_RatesTU_RES_1[[#This Row],[Cost element]:[Cost element]]="Network", IF(OP_RatesTU_RES_1[[#This Row],[Rate name]:[Rate name]]<>"Controlled load", INDEX(Calc_TUR_Net_1[[Ausnet]:[United Energy]],MATCH(1,(Calc_TUR_Net_1[[Customer type]:[Customer type]]=OP_RatesTU_RES_1[[#This Row],[Customer type]:[Customer type]])*(Calc_TUR_Net_1[[Rate type]:[Rate type]]=OP_RatesTU_RES_1[[#This Row],[Rate name]:[Rate name]]),0),MATCH(OP_RatesTU_RES_1[[#Headers],[United Energy]],Calc_TUR_Net_1[[#Headers],[Ausnet]:[United Energy]],0)), INDEX(Calc_TUR_NetCL_1[[Ausnet]:[United Energy]],MATCH(OP_RatesTU_RES_1[[#This Row],[Customer type]:[Customer type]],Calc_TUR_NetCL_1[[Customer type]:[Customer type]],0),MATCH(OP_RatesTU_RES_1[[#Headers],[United Energy]],Calc_TUR_NetCL_1[[#Headers],[Ausnet]:[United Energy]],0))), IF(OP_RatesTU_RES_1[[#This Row],[Cost element]:[Cost element]]="Environmental", SUMIFS(INDEX(Calc_TUR_Env_1[[Ausnet]:[United Energy]],0,MATCH(OP_RatesTU_RES_1[[#Headers],[United Energy]],Calc_TUR_Env_1[[#Headers],[Ausnet]:[United Energy]],0)), Calc_TUR_Env_1[[Customer type]:[Customer type]],OP_RatesTU_RES_1[[#This Row],[Customer type]:[Customer type]],Calc_TUR_Env_1[[Rate type]:[Rate type]],OP_RatesTU_RES_1[[#This Row],[Rate name]:[Rate name]]), "-")),"-") -> -0.0007155094131 | M36: Single rate | N36: $/kWh | O36: Small business | P36: Environmental | Q36: =IFERROR( IF(OP_RatesTU_SME_1[[#This Row],[Cost element]:[Cost element]]="Network", INDEX(Calc_TUR_Net_1[[Ausnet]:[United Energy]],MATCH(1,(Calc_TUR_Net_1[[Customer type]:[Customer type]]=OP_RatesTU_SME_1[[#This Row],[Customer type]:[Customer type]])*(Calc_TUR_Net_1[[Rate type]:[Rate type]]=OP_RatesTU_SME_1[[#This Row],[Rate name]:[Rate name]]),0),MATCH(OP_RatesTU_SME_1[[#Headers],[Ausnet]],Calc_TUR_Net_1[[#Headers],[Ausnet]:[United Energy]],0)), IF(OP_RatesTU_SME_1[[#This Row],[Cost element]:[Cost element]]="Environmental", SUMIFS(INDEX(Calc_TUR_Env_1[[Ausnet]:[United Energy]],0,MATCH(OP_RatesTU_SME_1[[#Headers],[Ausnet]],Calc_TUR_Env_1[[#Headers],[Ausnet]:[United Energy]],0)), Calc_TUR_Env_1[[Customer type]:[Customer type]],OP_RatesTU_SME_1[[#This Row],[Customer type]:[Customer type]],Calc_TUR_Env_1[[Rate type]:[Rate type]],OP_RatesTU_SME_1[[#This Row],[Rate name]:[Rate name]]), "-")),"-") -> 0 | R36: =IFERROR( IF(OP_RatesTU_SME_1[[#This Row],[Cost element]:[Cost element]]="Network", INDEX(Calc_TUR_Net_1[[Ausnet]:[United Energy]],MATCH(1,(Calc_TUR_Net_1[[Customer type]:[Customer type]]=OP_RatesTU_SME_1[[#This Row],[Customer type]:[Customer type]])*(Calc_TUR_Net_1[[Rate type]:[Rate type]]=OP_RatesTU_SME_1[[#This Row],[Rate name]:[Rate name]]),0),MATCH(OP_RatesTU_SME_1[[#Headers],[Citipower]],Calc_TUR_Net_1[[#Headers],[Ausnet]:[United Energy]],0)), IF(OP_RatesTU_SME_1[[#This Row],[Cost element]:[Cost element]]="Environmental", SUMIFS(INDEX(Calc_TUR_Env_1[[Ausnet]:[United Energy]],0,MATCH(OP_RatesTU_SME_1[[#Headers],[Citipower]],Calc_TUR_Env_1[[#Headers],[Ausnet]:[United Energy]],0)), Calc_TUR_Env_1[[Customer type]:[Customer type]],OP_RatesTU_SME_1[[#This Row],[Customer type]:[Customer type]],Calc_TUR_Env_1[[Rate type]:[Rate type]],OP_RatesTU_SME_1[[#This Row],[Rate name]:[Rate name]]), "-")),"-") -> -0.0007146458416 | S36: =IFERROR( IF(OP_RatesTU_SME_1[[#This Row],[Cost element]:[Cost element]]="Network", INDEX(Calc_TUR_Net_1[[Ausnet]:[United Energy]],MATCH(1,(Calc_TUR_Net_1[[Customer type]:[Customer type]]=OP_RatesTU_SME_1[[#This Row],[Customer type]:[Customer type]])*(Calc_TUR_Net_1[[Rate type]:[Rate type]]=OP_RatesTU_SME_1[[#This Row],[Rate name]:[Rate name]]),0),MATCH(OP_RatesTU_SME_1[[#Headers],[Jemena]],Calc_TUR_Net_1[[#Headers],[Ausnet]:[United Energy]],0)), IF(OP_RatesTU_SME_1[[#This Row],[Cost element]:[Cost element]]="Environmental", SUMIFS(INDEX(Calc_TUR_Env_1[[Ausnet]:[United Energy]],0,MATCH(OP_RatesTU_SME_1[[#Headers],[Jemena]],Calc_TUR_Env_1[[#Headers],[Ausnet]:[United Energy]],0)), Calc_TUR_Env_1[[Customer type]:[Customer type]],OP_RatesTU_SME_1[[#This Row],[Customer type]:[Customer type]],Calc_TUR_Env_1[[Rate type]:[Rate type]],OP_RatesTU_SME_1[[#This Row],[Rate name]:[Rate name]]), "-")),"-") -> -0.0007177777187 | T36: =IFERROR( IF(OP_RatesTU_SME_1[[#This Row],[Cost element]:[Cost element]]="Network", INDEX(Calc_TUR_Net_1[[Ausnet]:[United Energy]],MATCH(1,(Calc_TUR_Net_1[[Customer type]:[Customer type]]=OP_RatesTU_SME_1[[#This Row],[Customer type]:[Customer type]])*(Calc_TUR_Net_1[[Rate type]:[Rate type]]=OP_RatesTU_SME_1[[#This Row],[Rate name]:[Rate name]]),0),MATCH(OP_RatesTU_SME_1[[#Headers],[Powercor]],Calc_TUR_Net_1[[#Headers],[Ausnet]:[United Energy]],0)), IF(OP_RatesTU_SME_1[[#This Row],[Cost element]:[Cost element]]="Environmental", SUMIFS(INDEX(Calc_TUR_Env_1[[Ausnet]:[United Energy]],0,MATCH(OP_RatesTU_SME_1[[#Headers],[Powercor]],Calc_TUR_Env_1[[#Headers],[Ausnet]:[United Energy]],0)), Calc_TUR_Env_1[[Customer type]:[Customer type]],OP_RatesTU_SME_1[[#This Row],[Customer type]:[Customer type]],Calc_TUR_Env_1[[Rate type]:[Rate type]],OP_RatesTU_SME_1[[#This Row],[Rate name]:[Rate name]]), "-")),"-") -> -0.0007295666624 | U36: =IFERROR( IF(OP_RatesTU_SME_1[[#This Row],[Cost element]:[Cost element]]="Network", INDEX(Calc_TUR_Net_1[[Ausnet]:[United Energy]],MATCH(1,(Calc_TUR_Net_1[[Customer type]:[Customer type]]=OP_RatesTU_SME_1[[#This Row],[Customer type]:[Customer type]])*(Calc_TUR_Net_1[[Rate type]:[Rate type]]=OP_RatesTU_SME_1[[#This Row],[Rate name]:[Rate name]]),0),MATCH(OP_RatesTU_SME_1[[#Headers],[United Energy]],Calc_TUR_Net_1[[#Headers],[Ausnet]:[United Energy]],0)), IF(OP_RatesTU_SME_1[[#This Row],[Cost element]:[Cost element]]="Environmental", SUMIFS(INDEX(Calc_TUR_Env_1[[Ausnet]:[United Energy]],0,MATCH(OP_RatesTU_SME_1[[#Headers],[United Energy]],Calc_TUR_Env_1[[#Headers],[Ausnet]:[United Energy]],0)), Calc_TUR_Env_1[[Customer type]:[Customer type]],OP_RatesTU_SME_1[[#This Row],[Customer type]:[Customer type]],Calc_TUR_Env_1[[Rate type]:[Rate type]],OP_RatesTU_SME_1[[#This Row],[Rate name]:[Rate name]]), "-")),"-") -> -0.0007155094131
C37: Peak | D37: $/kWh | E37: Residential | F37: Environmental | G37: =IFERROR( IF(OP_RatesTU_RES_1[[#This Row],[Cost element]:[Cost element]]="Network", IF(OP_RatesTU_RES_1[[#This Row],[Rate name]:[Rate name]]<>"Controlled load", INDEX(Calc_TUR_Net_1[[Ausnet]:[United Energy]],MATCH(1,(Calc_TUR_Net_1[[Customer type]:[Customer type]]=OP_RatesTU_RES_1[[#This Row],[Customer type]:[Customer type]])*(Calc_TUR_Net_1[[Rate type]:[Rate type]]=OP_RatesTU_RES_1[[#This Row],[Rate name]:[Rate name]]),0),MATCH(OP_RatesTU_RES_1[[#Headers],[Ausnet]],Calc_TUR_Net_1[[#Headers],[Ausnet]:[United Energy]],0)), INDEX(Calc_TUR_NetCL_1[[Ausnet]:[United Energy]],MATCH(OP_RatesTU_RES_1[[#This Row],[Customer type]:[Customer type]],Calc_TUR_NetCL_1[[Customer type]:[Customer type]],0),MATCH(OP_RatesTU_RES_1[[#Headers],[Ausnet]],Calc_TUR_NetCL_1[[#Headers],[Ausnet]:[United Energy]],0))), IF(OP_RatesTU_RES_1[[#This Row],[Cost element]:[Cost element]]="Environmental", SUMIFS(INDEX(Calc_TUR_Env_1[[Ausnet]:[United Energy]],0,MATCH(OP_RatesTU_RES_1[[#Headers],[Ausnet]],Calc_TUR_Env_1[[#Headers],[Ausnet]:[United Energy]],0)), Calc_TUR_Env_1[[Customer type]:[Customer type]],OP_RatesTU_RES_1[[#This Row],[Customer type]:[Customer type]],Calc_TUR_Env_1[[Rate type]:[Rate type]],OP_RatesTU_RES_1[[#This Row],[Rate name]:[Rate name]]), "-")),"-") -> -0.0007395108907 | H37: =IFERROR( IF(OP_RatesTU_RES_1[[#This Row],[Cost element]:[Cost element]]="Network", IF(OP_RatesTU_RES_1[[#This Row],[Rate name]:[Rate name]]<>"Controlled load", INDEX(Calc_TUR_Net_1[[Ausnet]:[United Energy]],MATCH(1,(Calc_TUR_Net_1[[Customer type]:[Customer type]]=OP_RatesTU_RES_1[[#This Row],[Customer type]:[Customer type]])*(Calc_TUR_Net_1[[Rate type]:[Rate type]]=OP_RatesTU_RES_1[[#This Row],[Rate name]:[Rate name]]),0),MATCH(OP_RatesTU_RES_1[[#Headers],[Citipower]],Calc_TUR_Net_1[[#Headers],[Ausnet]:[United Energy]],0)), INDEX(Calc_TUR_NetCL_1[[Ausnet]:[United Energy]],MATCH(OP_RatesTU_RES_1[[#This Row],[Customer type]:[Customer type]],Calc_TUR_NetCL_1[[Customer type]:[Customer type]],0),MATCH(OP_RatesTU_RES_1[[#Headers],[Citipower]],Calc_TUR_NetCL_1[[#Headers],[Ausnet]:[United Energy]],0))), IF(OP_RatesTU_RES_1[[#This Row],[Cost element]:[Cost element]]="Environmental", SUMIFS(INDEX(Calc_TUR_Env_1[[Ausnet]:[United Energy]],0,MATCH(OP_RatesTU_RES_1[[#Headers],[Citipower]],Calc_TUR_Env_1[[#Headers],[Ausnet]:[United Energy]],0)), Calc_TUR_Env_1[[Customer type]:[Customer type]],OP_RatesTU_RES_1[[#This Row],[Customer type]:[Customer type]],Calc_TUR_Env_1[[Rate type]:[Rate type]],OP_RatesTU_RES_1[[#This Row],[Rate name]:[Rate name]]), "-")),"-") -> -0.0007146458416 | I37: =IFERROR( IF(OP_RatesTU_RES_1[[#This Row],[Cost element]:[Cost element]]="Network", IF(OP_RatesTU_RES_1[[#This Row],[Rate name]:[Rate name]]<>"Controlled load", INDEX(Calc_TUR_Net_1[[Ausnet]:[United Energy]],MATCH(1,(Calc_TUR_Net_1[[Customer type]:[Customer type]]=OP_RatesTU_RES_1[[#This Row],[Customer type]:[Customer type]])*(Calc_TUR_Net_1[[Rate type]:[Rate type]]=OP_RatesTU_RES_1[[#This Row],[Rate name]:[Rate name]]),0),MATCH(OP_RatesTU_RES_1[[#Headers],[Jemena]],Calc_TUR_Net_1[[#Headers],[Ausnet]:[United Energy]],0)), INDEX(Calc_TUR_NetCL_1[[Ausnet]:[United Energy]],MATCH(OP_RatesTU_RES_1[[#This Row],[Customer type]:[Customer type]],Calc_TUR_NetCL_1[[Customer type]:[Customer type]],0),MATCH(OP_RatesTU_RES_1[[#Headers],[Jemena]],Calc_TUR_NetCL_1[[#Headers],[Ausnet]:[United Energy]],0))), IF(OP_RatesTU_RES_1[[#This Row],[Cost element]:[Cost element]]="Environmental", SUMIFS(INDEX(Calc_TUR_Env_1[[Ausnet]:[United Energy]],0,MATCH(OP_RatesTU_RES_1[[#Headers],[Jemena]],Calc_TUR_Env_1[[#Headers],[Ausnet]:[United Energy]],0)), Calc_TUR_Env_1[[Customer type]:[Customer type]],OP_RatesTU_RES_1[[#This Row],[Customer type]:[Customer type]],Calc_TUR_Env_1[[Rate type]:[Rate type]],OP_RatesTU_RES_1[[#This Row],[Rate name]:[Rate name]]), "-")),"-") -> -0.0007177777187 | J37: =IFERROR( IF(OP_RatesTU_RES_1[[#This Row],[Cost element]:[Cost element]]="Network", IF(OP_RatesTU_RES_1[[#This Row],[Rate name]:[Rate name]]<>"Controlled load", INDEX(Calc_TUR_Net_1[[Ausnet]:[United Energy]],MATCH(1,(Calc_TUR_Net_1[[Customer type]:[Customer type]]=OP_RatesTU_RES_1[[#This Row],[Customer type]:[Customer type]])*(Calc_TUR_Net_1[[Rate type]:[Rate type]]=OP_RatesTU_RES_1[[#This Row],[Rate name]:[Rate name]]),0),MATCH(OP_RatesTU_RES_1[[#Headers],[Powercor]],Calc_TUR_Net_1[[#Headers],[Ausnet]:[United Energy]],0)), INDEX(Calc_TUR_NetCL_1[[Ausnet]:[United Energy]],MATCH(OP_RatesTU_RES_1[[#This Row],[Customer type]:[Customer type]],Calc_TUR_NetCL_1[[Customer type]:[Customer type]],0),MATCH(OP_RatesTU_RES_1[[#Headers],[Powercor]],Calc_TUR_NetCL_1[[#Headers],[Ausnet]:[United Energy]],0))), IF(OP_RatesTU_RES_1[[#This Row],[Cost element]:[Cost element]]="Environmental", SUMIFS(INDEX(Calc_TUR_Env_1[[Ausnet]:[United Energy]],0,MATCH(OP_RatesTU_RES_1[[#Headers],[Powercor]],Calc_TUR_Env_1[[#Headers],[Ausnet]:[United Energy]],0)), Calc_TUR_Env_1[[Customer type]:[Customer type]],OP_RatesTU_RES_1[[#This Row],[Customer type]:[Customer type]],Calc_TUR_Env_1[[Rate type]:[Rate type]],OP_RatesTU_RES_1[[#This Row],[Rate name]:[Rate name]]), "-")),"-") -> -0.0007295666624 | K37: =IFERROR( IF(OP_RatesTU_RES_1[[#This Row],[Cost element]:[Cost element]]="Network", IF(OP_RatesTU_RES_1[[#This Row],[Rate name]:[Rate name]]<>"Controlled load", INDEX(Calc_TUR_Net_1[[Ausnet]:[United Energy]],MATCH(1,(Calc_TUR_Net_1[[Customer type]:[Customer type]]=OP_RatesTU_RES_1[[#This Row],[Customer type]:[Customer type]])*(Calc_TUR_Net_1[[Rate type]:[Rate type]]=OP_RatesTU_RES_1[[#This Row],[Rate name]:[Rate name]]),0),MATCH(OP_RatesTU_RES_1[[#Headers],[United Energy]],Calc_TUR_Net_1[[#Headers],[Ausnet]:[United Energy]],0)), INDEX(Calc_TUR_NetCL_1[[Ausnet]:[United Energy]],MATCH(OP_RatesTU_RES_1[[#This Row],[Customer type]:[Customer type]],Calc_TUR_NetCL_1[[Customer type]:[Customer type]],0),MATCH(OP_RatesTU_RES_1[[#Headers],[United Energy]],Calc_TUR_NetCL_1[[#Headers],[Ausnet]:[United Energy]],0))), IF(OP_RatesTU_RES_1[[#This Row],[Cost element]:[Cost element]]="Environmental", SUMIFS(INDEX(Calc_TUR_Env_1[[Ausnet]:[United Energy]],0,MATCH(OP_RatesTU_RES_1[[#Headers],[United Energy]],Calc_TUR_Env_1[[#Headers],[Ausnet]:[United Energy]],0)), Calc_TUR_Env_1[[Customer type]:[Customer type]],OP_RatesTU_RES_1[[#This Row],[Customer type]:[Customer type]],Calc_TUR_Env_1[[Rate type]:[Rate type]],OP_RatesTU_RES_1[[#This Row],[Rate name]:[Rate name]]), "-")),"-") -> -0.0007155094131 | M37: Peak | N37: $/kWh | O37: Small business | P37: Environmental | Q37: =IFERROR( IF(OP_RatesTU_SME_1[[#This Row],[Cost element]:[Cost element]]="Network", INDEX(Calc_TUR_Net_1[[Ausnet]:[United Energy]],MATCH(1,(Calc_TUR_Net_1[[Customer type]:[Customer type]]=OP_RatesTU_SME_1[[#This Row],[Customer type]:[Customer type]])*(Calc_TUR_Net_1[[Rate type]:[Rate type]]=OP_RatesTU_SME_1[[#This Row],[Rate name]:[Rate name]]),0),MATCH(OP_RatesTU_SME_1[[#Headers],[Ausnet]],Calc_TUR_Net_1[[#Headers],[Ausnet]:[United Energy]],0)), IF(OP_RatesTU_SME_1[[#This Row],[Cost element]:[Cost element]]="Environmental", SUMIFS(INDEX(Calc_TUR_Env_1[[Ausnet]:[United Energy]],0,MATCH(OP_RatesTU_SME_1[[#Headers],[Ausnet]],Calc_TUR_Env_1[[#Headers],[Ausnet]:[United Energy]],0)), Calc_TUR_Env_1[[Customer type]:[Customer type]],OP_RatesTU_SME_1[[#This Row],[Customer type]:[Customer type]],Calc_TUR_Env_1[[Rate type]:[Rate type]],OP_RatesTU_SME_1[[#This Row],[Rate name]:[Rate name]]), "-")),"-") -> -0.0007395108907 | R37: =IFERROR( IF(OP_RatesTU_SME_1[[#This Row],[Cost element]:[Cost element]]="Network", INDEX(Calc_TUR_Net_1[[Ausnet]:[United Energy]],MATCH(1,(Calc_TUR_Net_1[[Customer type]:[Customer type]]=OP_RatesTU_SME_1[[#This Row],[Customer type]:[Customer type]])*(Calc_TUR_Net_1[[Rate type]:[Rate type]]=OP_RatesTU_SME_1[[#This Row],[Rate name]:[Rate name]]),0),MATCH(OP_RatesTU_SME_1[[#Headers],[Citipower]],Calc_TUR_Net_1[[#Headers],[Ausnet]:[United Energy]],0)), IF(OP_RatesTU_SME_1[[#This Row],[Cost element]:[Cost element]]="Environmental", SUMIFS(INDEX(Calc_TUR_Env_1[[Ausnet]:[United Energy]],0,MATCH(OP_RatesTU_SME_1[[#Headers],[Citipower]],Calc_TUR_Env_1[[#Headers],[Ausnet]:[United Energy]],0)), Calc_TUR_Env_1[[Customer type]:[Customer type]],OP_RatesTU_SME_1[[#This Row],[Customer type]:[Customer type]],Calc_TUR_Env_1[[Rate type]:[Rate type]],OP_RatesTU_SME_1[[#This Row],[Rate name]:[Rate name]]), "-")),"-") -> -0.0007146458416 | S37: =IFERROR( IF(OP_RatesTU_SME_1[[#This Row],[Cost element]:[Cost element]]="Network", INDEX(Calc_TUR_Net_1[[Ausnet]:[United Energy]],MATCH(1,(Calc_TUR_Net_1[[Customer type]:[Customer type]]=OP_RatesTU_SME_1[[#This Row],[Customer type]:[Customer type]])*(Calc_TUR_Net_1[[Rate type]:[Rate type]]=OP_RatesTU_SME_1[[#This Row],[Rate name]:[Rate name]]),0),MATCH(OP_RatesTU_SME_1[[#Headers],[Jemena]],Calc_TUR_Net_1[[#Headers],[Ausnet]:[United Energy]],0)), IF(OP_RatesTU_SME_1[[#This Row],[Cost element]:[Cost element]]="Environmental", SUMIFS(INDEX(Calc_TUR_Env_1[[Ausnet]:[United Energy]],0,MATCH(OP_RatesTU_SME_1[[#Headers],[Jemena]],Calc_TUR_Env_1[[#Headers],[Ausnet]:[United Energy]],0)), Calc_TUR_Env_1[[Customer type]:[Customer type]],OP_RatesTU_SME_1[[#This Row],[Customer type]:[Customer type]],Calc_TUR_Env_1[[Rate type]:[Rate type]],OP_RatesTU_SME_1[[#This Row],[Rate name]:[Rate name]]), "-")),"-") -> -0.0007177777187 | T37: =IFERROR( IF(OP_RatesTU_SME_1[[#This Row],[Cost element]:[Cost element]]="Network", INDEX(Calc_TUR_Net_1[[Ausnet]:[United Energy]],MATCH(1,(Calc_TUR_Net_1[[Customer type]:[Customer type]]=OP_RatesTU_SME_1[[#This Row],[Customer type]:[Customer type]])*(Calc_TUR_Net_1[[Rate type]:[Rate type]]=OP_RatesTU_SME_1[[#This Row],[Rate name]:[Rate name]]),0),MATCH(OP_RatesTU_SME_1[[#Headers],[Powercor]],Calc_TUR_Net_1[[#Headers],[Ausnet]:[United Energy]],0)), IF(OP_RatesTU_SME_1[[#This Row],[Cost element]:[Cost element]]="Environmental", SUMIFS(INDEX(Calc_TUR_Env_1[[Ausnet]:[United Energy]],0,MATCH(OP_RatesTU_SME_1[[#Headers],[Powercor]],Calc_TUR_Env_1[[#Headers],[Ausnet]:[United Energy]],0)), Calc_TUR_Env_1[[Customer type]:[Customer type]],OP_RatesTU_SME_1[[#This Row],[Customer type]:[Customer type]],Calc_TUR_Env_1[[Rate type]:[Rate type]],OP_RatesTU_SME_1[[#This Row],[Rate name]:[Rate name]]), "-")),"-") -> -0.0007295666624 | U37: =IFERROR( IF(OP_RatesTU_SME_1[[#This Row],[Cost element]:[Cost element]]="Network", INDEX(Calc_TUR_Net_1[[Ausnet]:[United Energy]],MATCH(1,(Calc_TUR_Net_1[[Customer type]:[Customer type]]=OP_RatesTU_SME_1[[#This Row],[Customer type]:[Customer type]])*(Calc_TUR_Net_1[[Rate type]:[Rate type]]=OP_RatesTU_SME_1[[#This Row],[Rate name]:[Rate name]]),0),MATCH(OP_RatesTU_SME_1[[#Headers],[United Energy]],Calc_TUR_Net_1[[#Headers],[Ausnet]:[United Energy]],0)), IF(OP_RatesTU_SME_1[[#This Row],[Cost element]:[Cost element]]="Environmental", SUMIFS(INDEX(Calc_TUR_Env_1[[Ausnet]:[United Energy]],0,MATCH(OP_RatesTU_SME_1[[#Headers],[United Energy]],Calc_TUR_Env_1[[#Headers],[Ausnet]:[United Energy]],0)), Calc_TUR_Env_1[[Customer type]:[Customer type]],OP_RatesTU_SME_1[[#This Row],[Customer type]:[Customer type]],Calc_TUR_Env_1[[Rate type]:[Rate type]],OP_RatesTU_SME_1[[#This Row],[Rate name]:[Rate name]]), "-")),"-") -> -0.0007155094131
C38: Off peak | D38: $/kWh | E38: Residential | F38: Environmental | G38: =IFERROR( IF(OP_RatesTU_RES_1[[#This Row],[Cost element]:[Cost element]]="Network", IF(OP_RatesTU_RES_1[[#This Row],[Rate name]:[Rate name]]<>"Controlled load", INDEX(Calc_TUR_Net_1[[Ausnet]:[United Energy]],MATCH(1,(Calc_TUR_Net_1[[Customer type]:[Customer type]]=OP_RatesTU_RES_1[[#This Row],[Customer type]:[Customer type]])*(Calc_TUR_Net_1[[Rate type]:[Rate type]]=OP_RatesTU_RES_1[[#This Row],[Rate name]:[Rate name]]),0),MATCH(OP_RatesTU_RES_1[[#Headers],[Ausnet]],Calc_TUR_Net_1[[#Headers],[Ausnet]:[United Energy]],0)), INDEX(Calc_TUR_NetCL_1[[Ausnet]:[United Energy]],MATCH(OP_RatesTU_RES_1[[#This Row],[Customer type]:[Customer type]],Calc_TUR_NetCL_1[[Customer type]:[Customer type]],0),MATCH(OP_RatesTU_RES_1[[#Headers],[Ausnet]],Calc_TUR_NetCL_1[[#Headers],[Ausnet]:[United Energy]],0))), IF(OP_RatesTU_RES_1[[#This Row],[Cost element]:[Cost element]]="Environmental", SUMIFS(INDEX(Calc_TUR_Env_1[[Ausnet]:[United Energy]],0,MATCH(OP_RatesTU_RES_1[[#Headers],[Ausnet]],Calc_TUR_Env_1[[#Headers],[Ausnet]:[United Energy]],0)), Calc_TUR_Env_1[[Customer type]:[Customer type]],OP_RatesTU_RES_1[[#This Row],[Customer type]:[Customer type]],Calc_TUR_Env_1[[Rate type]:[Rate type]],OP_RatesTU_RES_1[[#This Row],[Rate name]:[Rate name]]), "-")),"-") -> -0.0007395108907 | H38: =IFERROR( IF(OP_RatesTU_RES_1[[#This Row],[Cost element]:[Cost element]]="Network", IF(OP_RatesTU_RES_1[[#This Row],[Rate name]:[Rate name]]<>"Controlled load", INDEX(Calc_TUR_Net_1[[Ausnet]:[United Energy]],MATCH(1,(Calc_TUR_Net_1[[Customer type]:[Customer type]]=OP_RatesTU_RES_1[[#This Row],[Customer type]:[Customer type]])*(Calc_TUR_Net_1[[Rate type]:[Rate type]]=OP_RatesTU_RES_1[[#This Row],[Rate name]:[Rate name]]),0),MATCH(OP_RatesTU_RES_1[[#Headers],[Citipower]],Calc_TUR_Net_1[[#Headers],[Ausnet]:[United Energy]],0)), INDEX(Calc_TUR_NetCL_1[[Ausnet]:[United Energy]],MATCH(OP_RatesTU_RES_1[[#This Row],[Customer type]:[Customer type]],Calc_TUR_NetCL_1[[Customer type]:[Customer type]],0),MATCH(OP_RatesTU_RES_1[[#Headers],[Citipower]],Calc_TUR_NetCL_1[[#Headers],[Ausnet]:[United Energy]],0))), IF(OP_RatesTU_RES_1[[#This Row],[Cost element]:[Cost element]]="Environmental", SUMIFS(INDEX(Calc_TUR_Env_1[[Ausnet]:[United Energy]],0,MATCH(OP_RatesTU_RES_1[[#Headers],[Citipower]],Calc_TUR_Env_1[[#Headers],[Ausnet]:[United Energy]],0)), Calc_TUR_Env_1[[Customer type]:[Customer type]],OP_RatesTU_RES_1[[#This Row],[Customer type]:[Customer type]],Calc_TUR_Env_1[[Rate type]:[Rate type]],OP_RatesTU_RES_1[[#This Row],[Rate name]:[Rate name]]), "-")),"-") -> -0.0007146458416 | I38: =IFERROR( IF(OP_RatesTU_RES_1[[#This Row],[Cost element]:[Cost element]]="Network", IF(OP_RatesTU_RES_1[[#This Row],[Rate name]:[Rate name]]<>"Controlled load", INDEX(Calc_TUR_Net_1[[Ausnet]:[United Energy]],MATCH(1,(Calc_TUR_Net_1[[Customer type]:[Customer type]]=OP_RatesTU_RES_1[[#This Row],[Customer type]:[Customer type]])*(Calc_TUR_Net_1[[Rate type]:[Rate type]]=OP_RatesTU_RES_1[[#This Row],[Rate name]:[Rate name]]),0),MATCH(OP_RatesTU_RES_1[[#Headers],[Jemena]],Calc_TUR_Net_1[[#Headers],[Ausnet]:[United Energy]],0)), INDEX(Calc_TUR_NetCL_1[[Ausnet]:[United Energy]],MATCH(OP_RatesTU_RES_1[[#This Row],[Customer type]:[Customer type]],Calc_TUR_NetCL_1[[Customer type]:[Customer type]],0),MATCH(OP_RatesTU_RES_1[[#Headers],[Jemena]],Calc_TUR_NetCL_1[[#Headers],[Ausnet]:[United Energy]],0))), IF(OP_RatesTU_RES_1[[#This Row],[Cost element]:[Cost element]]="Environmental", SUMIFS(INDEX(Calc_TUR_Env_1[[Ausnet]:[United Energy]],0,MATCH(OP_RatesTU_RES_1[[#Headers],[Jemena]],Calc_TUR_Env_1[[#Headers],[Ausnet]:[United Energy]],0)), Calc_TUR_Env_1[[Customer type]:[Customer type]],OP_RatesTU_RES_1[[#This Row],[Customer type]:[Customer type]],Calc_TUR_Env_1[[Rate type]:[Rate type]],OP_RatesTU_RES_1[[#This Row],[Rate name]:[Rate name]]), "-")),"-") -> -0.0007177777187 | J38: =IFERROR( IF(OP_RatesTU_RES_1[[#This Row],[Cost element]:[Cost element]]="Network", IF(OP_RatesTU_RES_1[[#This Row],[Rate name]:[Rate name]]<>"Controlled load", INDEX(Calc_TUR_Net_1[[Ausnet]:[United Energy]],MATCH(1,(Calc_TUR_Net_1[[Customer type]:[Customer type]]=OP_RatesTU_RES_1[[#This Row],[Customer type]:[Customer type]])*(Calc_TUR_Net_1[[Rate type]:[Rate type]]=OP_RatesTU_RES_1[[#This Row],[Rate name]:[Rate name]]),0),MATCH(OP_RatesTU_RES_1[[#Headers],[Powercor]],Calc_TUR_Net_1[[#Headers],[Ausnet]:[United Energy]],0)), INDEX(Calc_TUR_NetCL_1[[Ausnet]:[United Energy]],MATCH(OP_RatesTU_RES_1[[#This Row],[Customer type]:[Customer type]],Calc_TUR_NetCL_1[[Customer type]:[Customer type]],0),MATCH(OP_RatesTU_RES_1[[#Headers],[Powercor]],Calc_TUR_NetCL_1[[#Headers],[Ausnet]:[United Energy]],0))), IF(OP_RatesTU_RES_1[[#This Row],[Cost element]:[Cost element]]="Environmental", SUMIFS(INDEX(Calc_TUR_Env_1[[Ausnet]:[United Energy]],0,MATCH(OP_RatesTU_RES_1[[#Headers],[Powercor]],Calc_TUR_Env_1[[#Headers],[Ausnet]:[United Energy]],0)), Calc_TUR_Env_1[[Customer type]:[Customer type]],OP_RatesTU_RES_1[[#This Row],[Customer type]:[Customer type]],Calc_TUR_Env_1[[Rate type]:[Rate type]],OP_RatesTU_RES_1[[#This Row],[Rate name]:[Rate name]]), "-")),"-") -> -0.0007295666624 | K38: =IFERROR( IF(OP_RatesTU_RES_1[[#This Row],[Cost element]:[Cost element]]="Network", IF(OP_RatesTU_RES_1[[#This Row],[Rate name]:[Rate name]]<>"Controlled load", INDEX(Calc_TUR_Net_1[[Ausnet]:[United Energy]],MATCH(1,(Calc_TUR_Net_1[[Customer type]:[Customer type]]=OP_RatesTU_RES_1[[#This Row],[Customer type]:[Customer type]])*(Calc_TUR_Net_1[[Rate type]:[Rate type]]=OP_RatesTU_RES_1[[#This Row],[Rate name]:[Rate name]]),0),MATCH(OP_RatesTU_RES_1[[#Headers],[United Energy]],Calc_TUR_Net_1[[#Headers],[Ausnet]:[United Energy]],0)), INDEX(Calc_TUR_NetCL_1[[Ausnet]:[United Energy]],MATCH(OP_RatesTU_RES_1[[#This Row],[Customer type]:[Customer type]],Calc_TUR_NetCL_1[[Customer type]:[Customer type]],0),MATCH(OP_RatesTU_RES_1[[#Headers],[United Energy]],Calc_TUR_NetCL_1[[#Headers],[Ausnet]:[United Energy]],0))), IF(OP_RatesTU_RES_1[[#This Row],[Cost element]:[Cost element]]="Environmental", SUMIFS(INDEX(Calc_TUR_Env_1[[Ausnet]:[United Energy]],0,MATCH(OP_RatesTU_RES_1[[#Headers],[United Energy]],Calc_TUR_Env_1[[#Headers],[Ausnet]:[United Energy]],0)), Calc_TUR_Env_1[[Customer type]:[Customer type]],OP_RatesTU_RES_1[[#This Row],[Customer type]:[Customer type]],Calc_TUR_Env_1[[Rate type]:[Rate type]],OP_RatesTU_RES_1[[#This Row],[Rate name]:[Rate name]]), "-")),"-") -> -0.0007155094131 | M38: Off peak | N38: $/kWh | O38: Small business | P38: Environmental | Q38: =IFERROR( IF(OP_RatesTU_SME_1[[#This Row],[Cost element]:[Cost element]]="Network", INDEX(Calc_TUR_Net_1[[Ausnet]:[United Energy]],MATCH(1,(Calc_TUR_Net_1[[Customer type]:[Customer type]]=OP_RatesTU_SME_1[[#This Row],[Customer type]:[Customer type]])*(Calc_TUR_Net_1[[Rate type]:[Rate type]]=OP_RatesTU_SME_1[[#This Row],[Rate name]:[Rate name]]),0),MATCH(OP_RatesTU_SME_1[[#Headers],[Ausnet]],Calc_TUR_Net_1[[#Headers],[Ausnet]:[United Energy]],0)), IF(OP_RatesTU_SME_1[[#This Row],[Cost element]:[Cost element]]="Environmental", SUMIFS(INDEX(Calc_TUR_Env_1[[Ausnet]:[United Energy]],0,MATCH(OP_RatesTU_SME_1[[#Headers],[Ausnet]],Calc_TUR_Env_1[[#Headers],[Ausnet]:[United Energy]],0)), Calc_TUR_Env_1[[Customer type]:[Customer type]],OP_RatesTU_SME_1[[#This Row],[Customer type]:[Customer type]],Calc_TUR_Env_1[[Rate type]:[Rate type]],OP_RatesTU_SME_1[[#This Row],[Rate name]:[Rate name]]), "-")),"-") -> -0.0007395108907 | R38: =IFERROR( IF(OP_RatesTU_SME_1[[#This Row],[Cost element]:[Cost element]]="Network", INDEX(Calc_TUR_Net_1[[Ausnet]:[United Energy]],MATCH(1,(Calc_TUR_Net_1[[Customer type]:[Customer type]]=OP_RatesTU_SME_1[[#This Row],[Customer type]:[Customer type]])*(Calc_TUR_Net_1[[Rate type]:[Rate type]]=OP_RatesTU_SME_1[[#This Row],[Rate name]:[Rate name]]),0),MATCH(OP_RatesTU_SME_1[[#Headers],[Citipower]],Calc_TUR_Net_1[[#Headers],[Ausnet]:[United Energy]],0)), IF(OP_RatesTU_SME_1[[#This Row],[Cost element]:[Cost element]]="Environmental", SUMIFS(INDEX(Calc_TUR_Env_1[[Ausnet]:[United Energy]],0,MATCH(OP_RatesTU_SME_1[[#Headers],[Citipower]],Calc_TUR_Env_1[[#Headers],[Ausnet]:[United Energy]],0)), Calc_TUR_Env_1[[Customer type]:[Customer type]],OP_RatesTU_SME_1[[#This Row],[Customer type]:[Customer type]],Calc_TUR_Env_1[[Rate type]:[Rate type]],OP_RatesTU_SME_1[[#This Row],[Rate name]:[Rate name]]), "-")),"-") -> -0.0007146458416 | S38: =IFERROR( IF(OP_RatesTU_SME_1[[#This Row],[Cost element]:[Cost element]]="Network", INDEX(Calc_TUR_Net_1[[Ausnet]:[United Energy]],MATCH(1,(Calc_TUR_Net_1[[Customer type]:[Customer type]]=OP_RatesTU_SME_1[[#This Row],[Customer type]:[Customer type]])*(Calc_TUR_Net_1[[Rate type]:[Rate type]]=OP_RatesTU_SME_1[[#This Row],[Rate name]:[Rate name]]),0),MATCH(OP_RatesTU_SME_1[[#Headers],[Jemena]],Calc_TUR_Net_1[[#Headers],[Ausnet]:[United Energy]],0)), IF(OP_RatesTU_SME_1[[#This Row],[Cost element]:[Cost element]]="Environmental", SUMIFS(INDEX(Calc_TUR_Env_1[[Ausnet]:[United Energy]],0,MATCH(OP_RatesTU_SME_1[[#Headers],[Jemena]],Calc_TUR_Env_1[[#Headers],[Ausnet]:[United Energy]],0)), Calc_TUR_Env_1[[Customer type]:[Customer type]],OP_RatesTU_SME_1[[#This Row],[Customer type]:[Customer type]],Calc_TUR_Env_1[[Rate type]:[Rate type]],OP_RatesTU_SME_1[[#This Row],[Rate name]:[Rate name]]), "-")),"-") -> -0.0007177777187 | T38: =IFERROR( IF(OP_RatesTU_SME_1[[#This Row],[Cost element]:[Cost element]]="Network", INDEX(Calc_TUR_Net_1[[Ausnet]:[United Energy]],MATCH(1,(Calc_TUR_Net_1[[Customer type]:[Customer type]]=OP_RatesTU_SME_1[[#This Row],[Customer type]:[Customer type]])*(Calc_TUR_Net_1[[Rate type]:[Rate type]]=OP_RatesTU_SME_1[[#This Row],[Rate name]:[Rate name]]),0),MATCH(OP_RatesTU_SME_1[[#Headers],[Powercor]],Calc_TUR_Net_1[[#Headers],[Ausnet]:[United Energy]],0)), IF(OP_RatesTU_SME_1[[#This Row],[Cost element]:[Cost element]]="Environmental", SUMIFS(INDEX(Calc_TUR_Env_1[[Ausnet]:[United Energy]],0,MATCH(OP_RatesTU_SME_1[[#Headers],[Powercor]],Calc_TUR_Env_1[[#Headers],[Ausnet]:[United Energy]],0)), Calc_TUR_Env_1[[Customer type]:[Customer type]],OP_RatesTU_SME_1[[#This Row],[Customer type]:[Customer type]],Calc_TUR_Env_1[[Rate type]:[Rate type]],OP_RatesTU_SME_1[[#This Row],[Rate name]:[Rate name]]), "-")),"-") -> -0.0007295666624 | U38: =IFERROR( IF(OP_RatesTU_SME_1[[#This Row],[Cost element]:[Cost element]]="Network", INDEX(Calc_TUR_Net_1[[Ausnet]:[United Energy]],MATCH(1,(Calc_TUR_Net_1[[Customer type]:[Customer type]]=OP_RatesTU_SME_1[[#This Row],[Customer type]:[Customer type]])*(Calc_TUR_Net_1[[Rate type]:[Rate type]]=OP_RatesTU_SME_1[[#This Row],[Rate name]:[Rate name]]),0),MATCH(OP_RatesTU_SME_1[[#Headers],[United Energy]],Calc_TUR_Net_1[[#Headers],[Ausnet]:[United Energy]],0)), IF(OP_RatesTU_SME_1[[#This Row],[Cost element]:[Cost element]]="Environmental", SUMIFS(INDEX(Calc_TUR_Env_1[[Ausnet]:[United Energy]],0,MATCH(OP_RatesTU_SME_1[[#Headers],[United Energy]],Calc_TUR_Env_1[[#Headers],[Ausnet]:[United Energy]],0)), Calc_TUR_Env_1[[Customer type]:[Customer type]],OP_RatesTU_SME_1[[#This Row],[Customer type]:[Customer type]],Calc_TUR_Env_1[[Rate type]:[Rate type]],OP_RatesTU_SME_1[[#This Row],[Rate name]:[Rate name]]), "-")),"-") -> -0.0007155094131
C39: Controlled load | D39: $/kWh | E39: Residential | F39: Environmental | G39: =IFERROR( IF(OP_RatesTU_RES_1[[#This Row],[Cost element]:[Cost element]]="Network", IF(OP_RatesTU_RES_1[[#This Row],[Rate name]:[Rate name]]<>"Controlled load", INDEX(Calc_TUR_Net_1[[Ausnet]:[United Energy]],MATCH(1,(Calc_TUR_Net_1[[Customer type]:[Customer type]]=OP_RatesTU_RES_1[[#This Row],[Customer type]:[Customer type]])*(Calc_TUR_Net_1[[Rate type]:[Rate type]]=OP_RatesTU_RES_1[[#This Row],[Rate name]:[Rate name]]),0),MATCH(OP_RatesTU_RES_1[[#Headers],[Ausnet]],Calc_TUR_Net_1[[#Headers],[Ausnet]:[United Energy]],0)), INDEX(Calc_TUR_NetCL_1[[Ausnet]:[United Energy]],MATCH(OP_RatesTU_RES_1[[#This Row],[Customer type]:[Customer type]],Calc_TUR_NetCL_1[[Customer type]:[Customer type]],0),MATCH(OP_RatesTU_RES_1[[#Headers],[Ausnet]],Calc_TUR_NetCL_1[[#Headers],[Ausnet]:[United Energy]],0))), IF(OP_RatesTU_RES_1[[#This Row],[Cost element]:[Cost element]]="Environmental", SUMIFS(INDEX(Calc_TUR_Env_1[[Ausnet]:[United Energy]],0,MATCH(OP_RatesTU_RES_1[[#Headers],[Ausnet]],Calc_TUR_Env_1[[#Headers],[Ausnet]:[United Energy]],0)), Calc_TUR_Env_1[[Customer type]:[Customer type]],OP_RatesTU_RES_1[[#This Row],[Customer type]:[Customer type]],Calc_TUR_Env_1[[Rate type]:[Rate type]],OP_RatesTU_RES_1[[#This Row],[Rate name]:[Rate name]]), "-")),"-") -> -0.0007395108907 | H39: =IFERROR( IF(OP_RatesTU_RES_1[[#This Row],[Cost element]:[Cost element]]="Network", IF(OP_RatesTU_RES_1[[#This Row],[Rate name]:[Rate name]]<>"Controlled load", INDEX(Calc_TUR_Net_1[[Ausnet]:[United Energy]],MATCH(1,(Calc_TUR_Net_1[[Customer type]:[Customer type]]=OP_RatesTU_RES_1[[#This Row],[Customer type]:[Customer type]])*(Calc_TUR_Net_1[[Rate type]:[Rate type]]=OP_RatesTU_RES_1[[#This Row],[Rate name]:[Rate name]]),0),MATCH(OP_RatesTU_RES_1[[#Headers],[Citipower]],Calc_TUR_Net_1[[#Headers],[Ausnet]:[United Energy]],0)), INDEX(Calc_TUR_NetCL_1[[Ausnet]:[United Energy]],MATCH(OP_RatesTU_RES_1[[#This Row],[Customer type]:[Customer type]],Calc_TUR_NetCL_1[[Customer type]:[Customer type]],0),MATCH(OP_RatesTU_RES_1[[#Headers],[Citipower]],Calc_TUR_NetCL_1[[#Headers],[Ausnet]:[United Energy]],0))), IF(OP_RatesTU_RES_1[[#This Row],[Cost element]:[Cost element]]="Environmental", SUMIFS(INDEX(Calc_TUR_Env_1[[Ausnet]:[United Energy]],0,MATCH(OP_RatesTU_RES_1[[#Headers],[Citipower]],Calc_TUR_Env_1[[#Headers],[Ausnet]:[United Energy]],0)), Calc_TUR_Env_1[[Customer type]:[Customer type]],OP_RatesTU_RES_1[[#This Row],[Customer type]:[Customer type]],Calc_TUR_Env_1[[Rate type]:[Rate type]],OP_RatesTU_RES_1[[#This Row],[Rate name]:[Rate name]]), "-")),"-") -> -0.0007146458416 | I39: =IFERROR( IF(OP_RatesTU_RES_1[[#This Row],[Cost element]:[Cost element]]="Network", IF(OP_RatesTU_RES_1[[#This Row],[Rate name]:[Rate name]]<>"Controlled load", INDEX(Calc_TUR_Net_1[[Ausnet]:[United Energy]],MATCH(1,(Calc_TUR_Net_1[[Customer type]:[Customer type]]=OP_RatesTU_RES_1[[#This Row],[Customer type]:[Customer type]])*(Calc_TUR_Net_1[[Rate type]:[Rate type]]=OP_RatesTU_RES_1[[#This Row],[Rate name]:[Rate name]]),0),MATCH(OP_RatesTU_RES_1[[#Headers],[Jemena]],Calc_TUR_Net_1[[#Headers],[Ausnet]:[United Energy]],0)), INDEX(Calc_TUR_NetCL_1[[Ausnet]:[United Energy]],MATCH(OP_RatesTU_RES_1[[#This Row],[Customer type]:[Customer type]],Calc_TUR_NetCL_1[[Customer type]:[Customer type]],0),MATCH(OP_RatesTU_RES_1[[#Headers],[Jemena]],Calc_TUR_NetCL_1[[#Headers],[Ausnet]:[United Energy]],0))), IF(OP_RatesTU_RES_1[[#This Row],[Cost element]:[Cost element]]="Environmental", SUMIFS(INDEX(Calc_TUR_Env_1[[Ausnet]:[United Energy]],0,MATCH(OP_RatesTU_RES_1[[#Headers],[Jemena]],Calc_TUR_Env_1[[#Headers],[Ausnet]:[United Energy]],0)), Calc_TUR_Env_1[[Customer type]:[Customer type]],OP_RatesTU_RES_1[[#This Row],[Customer type]:[Customer type]],Calc_TUR_Env_1[[Rate type]:[Rate type]],OP_RatesTU_RES_1[[#This Row],[Rate name]:[Rate name]]), "-")),"-") -> -0.0007177777187 | J39: =IFERROR( IF(OP_RatesTU_RES_1[[#This Row],[Cost element]:[Cost element]]="Network", IF(OP_RatesTU_RES_1[[#This Row],[Rate name]:[Rate name]]<>"Controlled load", INDEX(Calc_TUR_Net_1[[Ausnet]:[United Energy]],MATCH(1,(Calc_TUR_Net_1[[Customer type]:[Customer type]]=OP_RatesTU_RES_1[[#This Row],[Customer type]:[Customer type]])*(Calc_TUR_Net_1[[Rate type]:[Rate type]]=OP_RatesTU_RES_1[[#This Row],[Rate name]:[Rate name]]),0),MATCH(OP_RatesTU_RES_1[[#Headers],[Powercor]],Calc_TUR_Net_1[[#Headers],[Ausnet]:[United Energy]],0)), INDEX(Calc_TUR_NetCL_1[[Ausnet]:[United Energy]],MATCH(OP_RatesTU_RES_1[[#This Row],[Customer type]:[Customer type]],Calc_TUR_NetCL_1[[Customer type]:[Customer type]],0),MATCH(OP_RatesTU_RES_1[[#Headers],[Powercor]],Calc_TUR_NetCL_1[[#Headers],[Ausnet]:[United Energy]],0))), IF(OP_RatesTU_RES_1[[#This Row],[Cost element]:[Cost element]]="Environmental", SUMIFS(INDEX(Calc_TUR_Env_1[[Ausnet]:[United Energy]],0,MATCH(OP_RatesTU_RES_1[[#Headers],[Powercor]],Calc_TUR_Env_1[[#Headers],[Ausnet]:[United Energy]],0)), Calc_TUR_Env_1[[Customer type]:[Customer type]],OP_RatesTU_RES_1[[#This Row],[Customer type]:[Customer type]],Calc_TUR_Env_1[[Rate type]:[Rate type]],OP_RatesTU_RES_1[[#This Row],[Rate name]:[Rate name]]), "-")),"-") -> -0.0007295666624 | K39: =IFERROR( IF(OP_RatesTU_RES_1[[#This Row],[Cost element]:[Cost element]]="Network", IF(OP_RatesTU_RES_1[[#This Row],[Rate name]:[Rate name]]<>"Controlled load", INDEX(Calc_TUR_Net_1[[Ausnet]:[United Energy]],MATCH(1,(Calc_TUR_Net_1[[Customer type]:[Customer type]]=OP_RatesTU_RES_1[[#This Row],[Customer type]:[Customer type]])*(Calc_TUR_Net_1[[Rate type]:[Rate type]]=OP_RatesTU_RES_1[[#This Row],[Rate name]:[Rate name]]),0),MATCH(OP_RatesTU_RES_1[[#Headers],[United Energy]],Calc_TUR_Net_1[[#Headers],[Ausnet]:[United Energy]],0)), INDEX(Calc_TUR_NetCL_1[[Ausnet]:[United Energy]],MATCH(OP_RatesTU_RES_1[[#This Row],[Customer type]:[Customer type]],Calc_TUR_NetCL_1[[Customer type]:[Customer type]],0),MATCH(OP_RatesTU_RES_1[[#Headers],[United Energy]],Calc_TUR_NetCL_1[[#Headers],[Ausnet]:[United Energy]],0))), IF(OP_RatesTU_RES_1[[#This Row],[Cost element]:[Cost element]]="Environmental", SUMIFS(INDEX(Calc_TUR_Env_1[[Ausnet]:[United Energy]],0,MATCH(OP_RatesTU_RES_1[[#Headers],[United Energy]],Calc_TUR_Env_1[[#Headers],[Ausnet]:[United Energy]],0)), Calc_TUR_Env_1[[Customer type]:[Customer type]],OP_RatesTU_RES_1[[#This Row],[Customer type]:[Customer type]],Calc_TUR_Env_1[[Rate type]:[Rate type]],OP_RatesTU_RES_1[[#This Row],[Rate name]:[Rate name]]), "-")),"-") -> -0.0007155094131 | Q39: =IFERROR( IF(OP_RatesTU_SME_1[[#This Row],[Cost element]:[Cost element]]="Network", INDEX(Calc_TUR_Net_1[[Ausnet]:[United Energy]],MATCH(1,(Calc_TUR_Net_1[[Customer type]:[Customer type]]=OP_RatesTU_SME_1[[#This Row],[Customer type]:[Customer type]])*(Calc_TUR_Net_1[[Rate type]:[Rate type]]=OP_RatesTU_SME_1[[#This Row],[Rate name]:[Rate name]]),0),MATCH(OP_RatesTU_SME_1[[#Headers],[Ausnet]],Calc_TUR_Net_1[[#Headers],[Ausnet]:[United Energy]],0)), IF(OP_RatesTU_SME_1[[#This Row],[Cost element]:[Cost element]]="Environmental", SUMIFS(INDEX(Calc_TUR_Env_1[[Ausnet]:[United Energy]],0,MATCH(OP_RatesTU_SME_1[[#Headers],[Ausnet]],Calc_TUR_Env_1[[#Headers],[Ausnet]:[United Energy]],0)), Calc_TUR_Env_1[[Customer type]:[Customer type]],OP_RatesTU_SME_1[[#This Row],[Customer type]:[Customer type]],Calc_TUR_Env_1[[Rate type]:[Rate type]],OP_RatesTU_SME_1[[#This Row],[Rate name]:[Rate name]]), "-")),"-") -> - | R39: =IFERROR( IF(OP_RatesTU_SME_1[[#This Row],[Cost element]:[Cost element]]="Network", INDEX(Calc_TUR_Net_1[[Ausnet]:[United Energy]],MATCH(1,(Calc_TUR_Net_1[[Customer type]:[Customer type]]=OP_RatesTU_SME_1[[#This Row],[Customer type]:[Customer type]])*(Calc_TUR_Net_1[[Rate type]:[Rate type]]=OP_RatesTU_SME_1[[#This Row],[Rate name]:[Rate name]]),0),MATCH(OP_RatesTU_SME_1[[#Headers],[Citipower]],Calc_TUR_Net_1[[#Headers],[Ausnet]:[United Energy]],0)), IF(OP_RatesTU_SME_1[[#This Row],[Cost element]:[Cost element]]="Environmental", SUMIFS(INDEX(Calc_TUR_Env_1[[Ausnet]:[United Energy]],0,MATCH(OP_RatesTU_SME_1[[#Headers],[Citipower]],Calc_TUR_Env_1[[#Headers],[Ausnet]:[United Energy]],0)), Calc_TUR_Env_1[[Customer type]:[Customer type]],OP_RatesTU_SME_1[[#This Row],[Customer type]:[Customer type]],Calc_TUR_Env_1[[Rate type]:[Rate type]],OP_RatesTU_SME_1[[#This Row],[Rate name]:[Rate name]]), "-")),"-") -> - | S39: =IFERROR( IF(OP_RatesTU_SME_1[[#This Row],[Cost element]:[Cost element]]="Network", INDEX(Calc_TUR_Net_1[[Ausnet]:[United Energy]],MATCH(1,(Calc_TUR_Net_1[[Customer type]:[Customer type]]=OP_RatesTU_SME_1[[#This Row],[Customer type]:[Customer type]])*(Calc_TUR_Net_1[[Rate type]:[Rate type]]=OP_RatesTU_SME_1[[#This Row],[Rate name]:[Rate name]]),0),MATCH(OP_RatesTU_SME_1[[#Headers],[Jemena]],Calc_TUR_Net_1[[#Headers],[Ausnet]:[United Energy]],0)), IF(OP_RatesTU_SME_1[[#This Row],[Cost element]:[Cost element]]="Environmental", SUMIFS(INDEX(Calc_TUR_Env_1[[Ausnet]:[United Energy]],0,MATCH(OP_RatesTU_SME_1[[#Headers],[Jemena]],Calc_TUR_Env_1[[#Headers],[Ausnet]:[United Energy]],0)), Calc_TUR_Env_1[[Customer type]:[Customer type]],OP_RatesTU_SME_1[[#This Row],[Customer type]:[Customer type]],Calc_TUR_Env_1[[Rate type]:[Rate type]],OP_RatesTU_SME_1[[#This Row],[Rate name]:[Rate name]]), "-")),"-") -> - | T39: =IFERROR( IF(OP_RatesTU_SME_1[[#This Row],[Cost element]:[Cost element]]="Network", INDEX(Calc_TUR_Net_1[[Ausnet]:[United Energy]],MATCH(1,(Calc_TUR_Net_1[[Customer type]:[Customer type]]=OP_RatesTU_SME_1[[#This Row],[Customer type]:[Customer type]])*(Calc_TUR_Net_1[[Rate type]:[Rate type]]=OP_RatesTU_SME_1[[#This Row],[Rate name]:[Rate name]]),0),MATCH(OP_RatesTU_SME_1[[#Headers],[Powercor]],Calc_TUR_Net_1[[#Headers],[Ausnet]:[United Energy]],0)), IF(OP_RatesTU_SME_1[[#This Row],[Cost element]:[Cost element]]="Environmental", SUMIFS(INDEX(Calc_TUR_Env_1[[Ausnet]:[United Energy]],0,MATCH(OP_RatesTU_SME_1[[#Headers],[Powercor]],Calc_TUR_Env_1[[#Headers],[Ausnet]:[United Energy]],0)), Calc_TUR_Env_1[[Customer type]:[Customer type]],OP_RatesTU_SME_1[[#This Row],[Customer type]:[Customer type]],Calc_TUR_Env_1[[Rate type]:[Rate type]],OP_RatesTU_SME_1[[#This Row],[Rate name]:[Rate name]]), "-")),"-") -> - | U39: =IFERROR( IF(OP_RatesTU_SME_1[[#This Row],[Cost element]:[Cost element]]="Network", INDEX(Calc_TUR_Net_1[[Ausnet]:[United Energy]],MATCH(1,(Calc_TUR_Net_1[[Customer type]:[Customer type]]=OP_RatesTU_SME_1[[#This Row],[Customer type]:[Customer type]])*(Calc_TUR_Net_1[[Rate type]:[Rate type]]=OP_RatesTU_SME_1[[#This Row],[Rate name]:[Rate name]]),0),MATCH(OP_RatesTU_SME_1[[#Headers],[United Energy]],Calc_TUR_Net_1[[#Headers],[Ausnet]:[United Energy]],0)), IF(OP_RatesTU_SME_1[[#This Row],[Cost element]:[Cost element]]="Environmental", SUMIFS(INDEX(Calc_TUR_Env_1[[Ausnet]:[United Energy]],0,MATCH(OP_RatesTU_SME_1[[#Headers],[United Energy]],Calc_TUR_Env_1[[#Headers],[Ausnet]:[United Energy]],0)), Calc_TUR_Env_1[[Customer type]:[Customer type]],OP_RatesTU_SME_1[[#This Row],[Customer type]:[Customer type]],Calc_TUR_Env_1[[Rate type]:[Rate type]],OP_RatesTU_SME_1[[#This Row],[Rate name]:[Rate name]]), "-")),"-") -> -
C41: Checks
C42: =C$7&" - checks" -> VDO residential rates - checks | M42: =M$7&" - checks" -> VDO small business rates - checks
C43: Rate name | D43: Unit | E43: Customer type | G43: Ausnet | H43: Citipower | I43: Jemena | J43: Powercor | K43: United Energy | M43: Rate name | N43: Unit | O43: Customer type | Q43: Ausnet | R43: Citipower | S43: Jemena | T43: Powercor | U43: United Energy
C44: Anytime - supply | D44: $ | E44: Residential | G44: =IF(ROUND(G9,4)=ROUND( SUMIFS(OP_Rates_RES_1[Ausnet],OP_Rates_RES_1[[Rate name]:[Rate name]],$C44)+ SUMIFS(OP_RatesTU_RES_1[Ausnet],OP_RatesTU_RES_1[[Rate name]:[Rate name]], IF($D44<>"$",$C44,LEFT($C44,LEN($C44)-FIND(" - supply",$C44)-1))),4), 0,1) -> 0 | H44: =IF(ROUND(H9,4)=ROUND( SUMIFS(OP_Rates_RES_1[Citipower],OP_Rates_RES_1[[Rate name]:[Rate name]],$C44)+ SUMIFS(OP_RatesTU_RES_1[Citipower],OP_RatesTU_RES_1[[Rate name]:[Rate name]], IF($D44<>"$",$C44,LEFT($C44,LEN($C44)-FIND(" - supply",$C44)-1))),4), 0,1) -> 0 | I44: =IF(ROUND(I9,4)=ROUND( SUMIFS(OP_Rates_RES_1[Jemena],OP_Rates_RES_1[[Rate name]:[Rate name]],$C44)+ SUMIFS(OP_RatesTU_RES_1[Jemena],OP_RatesTU_RES_1[[Rate name]:[Rate name]], IF($D44<>"$",$C44,LEFT($C44,LEN($C44)-FIND(" - supply",$C44)-1))),4), 0,1) -> 0 | J44: =IF(ROUND(J9,4)=ROUND( SUMIFS(OP_Rates_RES_1[Powercor],OP_Rates_RES_1[[Rate name]:[Rate name]],$C44)+ SUMIFS(OP_RatesTU_RES_1[Powercor],OP_RatesTU_RES_1[[Rate name]:[Rate name]], IF($D44<>"$",$C44,LEFT($C44,LEN($C44)-FIND(" - supply",$C44)-1))),4), 0,1) -> 0 | K44: =IF(ROUND(K9,4)=ROUND( SUMIFS(OP_Rates_RES_1[United Energy],OP_Rates_RES_1[[Rate name]:[Rate name]],$C44)+ SUMIFS(OP_RatesTU_RES_1[United Energy],OP_RatesTU_RES_1[[Rate name]:[Rate name]], IF($D44<>"$",$C44,LEFT($C44,LEN($C44)-FIND(" - supply",$C44)-1))),4), 0,1) -> 0 | M44: Anytime - supply | N44: $ | O44: Small business | Q44: =IF(ROUND(Q9,4)=ROUND( SUMIFS(OP_Rates_SME_1[Ausnet],OP_Rates_SME_1[[Rate name]:[Rate name]],$C44)+ SUMIFS(OP_RatesTU_SME_1[Ausnet],OP_RatesTU_SME_1[[Rate name]:[Rate name]], IF($D44<>"$",$C44,LEFT($C44,LEN($C44)-FIND(" - supply",$C44)-1))),4), 0,1) -> 0 | R44: =IF(ROUND(R9,4)=ROUND( SUMIFS(OP_Rates_SME_1[Citipower],OP_Rates_SME_1[[Rate name]:[Rate name]],$C44)+ SUMIFS(OP_RatesTU_SME_1[Citipower],OP_RatesTU_SME_1[[Rate name]:[Rate name]], IF($D44<>"$",$C44,LEFT($C44,LEN($C44)-FIND(" - supply",$C44)-1))),4), 0,1) -> 0 | S44: =IF(ROUND(S9,4)=ROUND( SUMIFS(OP_Rates_SME_1[Jemena],OP_Rates_SME_1[[Rate name]:[Rate name]],$C44)+ SUMIFS(OP_RatesTU_SME_1[Jemena],OP_RatesTU_SME_1[[Rate name]:[Rate name]], IF($D44<>"$",$C44,LEFT($C44,LEN($C44)-FIND(" - supply",$C44)-1))),4), 0,1) -> 0 | T44: =IF(ROUND(T9,4)=ROUND( SUMIFS(OP_Rates_SME_1[Powercor],OP_Rates_SME_1[[Rate name]:[Rate name]],$C44)+ SUMIFS(OP_RatesTU_SME_1[Powercor],OP_RatesTU_SME_1[[Rate name]:[Rate name]], IF($D44<>"$",$C44,LEFT($C44,LEN($C44)-FIND(" - supply",$C44)-1))),4), 0,1) -> 0 | U44: =IF(ROUND(U9,4)=ROUND( SUMIFS(OP_Rates_SME_1[United Energy],OP_Rates_SME_1[[Rate name]:[Rate name]],$C44)+ SUMIFS(OP_RatesTU_SME_1[United Energy],OP_RatesTU_SME_1[[Rate name]:[Rate name]], IF($D44<>"$",$C44,LEFT($C44,LEN($C44)-FIND(" - supply",$C44)-1))),4), 0,1) -> 0
C45: Block 1 | D45: $/kWh | E45: Residential | G45: =IF(ROUND(G10,4)=ROUND( SUMIFS(OP_Rates_RES_1[Ausnet],OP_Rates_RES_1[[Rate name]:[Rate name]],$C45)+ SUMIFS(OP_RatesTU_RES_1[Ausnet],OP_RatesTU_RES_1[[Rate name]:[Rate name]], IF($D45<>"$",$C45,LEFT($C45,LEN($C45)-FIND(" - supply",$C45)-1))),4), 0,1) -> 0 | H45: =IF(ROUND(H10,4)=ROUND( SUMIFS(OP_Rates_RES_1[Citipower],OP_Rates_RES_1[[Rate name]:[Rate name]],$C45)+ SUMIFS(OP_RatesTU_RES_1[Citipower],OP_RatesTU_RES_1[[Rate name]:[Rate name]], IF($D45<>"$",$C45,LEFT($C45,LEN($C45)-FIND(" - supply",$C45)-1))),4), 0,1) -> 0 | I45: =IF(ROUND(I10,4)=ROUND( SUMIFS(OP_Rates_RES_1[Jemena],OP_Rates_RES_1[[Rate name]:[Rate name]],$C45)+ SUMIFS(OP_RatesTU_RES_1[Jemena],OP_RatesTU_RES_1[[Rate name]:[Rate name]], IF($D45<>"$",$C45,LEFT($C45,LEN($C45)-FIND(" - supply",$C45)-1))),4), 0,1) -> 0 | J45: =IF(ROUND(J10,4)=ROUND( SUMIFS(OP_Rates_RES_1[Powercor],OP_Rates_RES_1[[Rate name]:[Rate name]],$C45)+ SUMIFS(OP_RatesTU_RES_1[Powercor],OP_RatesTU_RES_1[[Rate name]:[Rate name]], IF($D45<>"$",$C45,LEFT($C45,LEN($C45)-FIND(" - supply",$C45)-1))),4), 0,1) -> 0 | K45: =IF(ROUND(K10,4)=ROUND( SUMIFS(OP_Rates_RES_1[United Energy],OP_Rates_RES_1[[Rate name]:[Rate name]],$C45)+ SUMIFS(OP_RatesTU_RES_1[United Energy],OP_RatesTU_RES_1[[Rate name]:[Rate name]], IF($D45<>"$",$C45,LEFT($C45,LEN($C45)-FIND(" - supply",$C45)-1))),4), 0,1) -> 0 | M45: Block 1 | N45: $/kWh | O45: Small business | Q45: =IF(ROUND(Q10,4)=ROUND( SUMIFS(OP_Rates_SME_1[Ausnet],OP_Rates_SME_1[[Rate name]:[Rate name]],$C45)+ SUMIFS(OP_RatesTU_SME_1[Ausnet],OP_RatesTU_SME_1[[Rate name]:[Rate name]], IF($D45<>"$",$C45,LEFT($C45,LEN($C45)-FIND(" - supply",$C45)-1))),4), 0,1) -> 0 | R45: =IF(ROUND(R10,4)=ROUND( SUMIFS(OP_Rates_SME_1[Citipower],OP_Rates_SME_1[[Rate name]:[Rate name]],$C45)+ SUMIFS(OP_RatesTU_SME_1[Citipower],OP_RatesTU_SME_1[[Rate name]:[Rate name]], IF($D45<>"$",$C45,LEFT($C45,LEN($C45)-FIND(" - supply",$C45)-1))),4), 0,1) -> 0 | S45: =IF(ROUND(S10,4)=ROUND( SUMIFS(OP_Rates_SME_1[Jemena],OP_Rates_SME_1[[Rate name]:[Rate name]],$C45)+ SUMIFS(OP_RatesTU_SME_1[Jemena],OP_RatesTU_SME_1[[Rate name]:[Rate name]], IF($D45<>"$",$C45,LEFT($C45,LEN($C45)-FIND(" - supply",$C45)-1))),4), 0,1) -> 0 | T45: =IF(ROUND(T10,4)=ROUND( SUMIFS(OP_Rates_SME_1[Powercor],OP_Rates_SME_1[[Rate name]:[Rate name]],$C45)+ SUMIFS(OP_RatesTU_SME_1[Powercor],OP_RatesTU_SME_1[[Rate name]:[Rate name]], IF($D45<>"$",$C45,LEFT($C45,LEN($C45)-FIND(" - supply",$C45)-1))),4), 0,1) -> 0 | U45: =IF(ROUND(U10,4)=ROUND( SUMIFS(OP_Rates_SME_1[United Energy],OP_Rates_SME_1[[Rate name]:[Rate name]],$C45)+ SUMIFS(OP_RatesTU_SME_1[United Energy],OP_RatesTU_SME_1[[Rate name]:[Rate name]], IF($D45<>"$",$C45,LEFT($C45,LEN($C45)-FIND(" - supply",$C45)-1))),4), 0,1) -> 0
C46: Balance | D46: $/kWh | E46: Residential | G46: =IF(ROUND(G11,4)=ROUND( SUMIFS(OP_Rates_RES_1[Ausnet],OP_Rates_RES_1[[Rate name]:[Rate name]],$C46)+ SUMIFS(OP_RatesTU_RES_1[Ausnet],OP_RatesTU_RES_1[[Rate name]:[Rate name]], IF($D46<>"$",$C46,LEFT($C46,LEN($C46)-FIND(" - supply",$C46)-1))),4), 0,1) -> 0 | H46: =IF(ROUND(H11,4)=ROUND( SUMIFS(OP_Rates_RES_1[Citipower],OP_Rates_RES_1[[Rate name]:[Rate name]],$C46)+ SUMIFS(OP_RatesTU_RES_1[Citipower],OP_RatesTU_RES_1[[Rate name]:[Rate name]], IF($D46<>"$",$C46,LEFT($C46,LEN($C46)-FIND(" - supply",$C46)-1))),4), 0,1) -> 0 | I46: =IF(ROUND(I11,4)=ROUND( SUMIFS(OP_Rates_RES_1[Jemena],OP_Rates_RES_1[[Rate name]:[Rate name]],$C46)+ SUMIFS(OP_RatesTU_RES_1[Jemena],OP_RatesTU_RES_1[[Rate name]:[Rate name]], IF($D46<>"$",$C46,LEFT($C46,LEN($C46)-FIND(" - supply",$C46)-1))),4), 0,1) -> 0 | J46: =IF(ROUND(J11,4)=ROUND( SUMIFS(OP_Rates_RES_1[Powercor],OP_Rates_RES_1[[Rate name]:[Rate name]],$C46)+ SUMIFS(OP_RatesTU_RES_1[Powercor],OP_RatesTU_RES_1[[Rate name]:[Rate name]], IF($D46<>"$",$C46,LEFT($C46,LEN($C46)-FIND(" - supply",$C46)-1))),4), 0,1) -> 0 | K46: =IF(ROUND(K11,4)=ROUND( SUMIFS(OP_Rates_RES_1[United Energy],OP_Rates_RES_1[[Rate name]:[Rate name]],$C46)+ SUMIFS(OP_RatesTU_RES_1[United Energy],OP_RatesTU_RES_1[[Rate name]:[Rate name]], IF($D46<>"$",$C46,LEFT($C46,LEN($C46)-FIND(" - supply",$C46)-1))),4), 0,1) -> 0 | M46: Balance | N46: $/kWh | O46: Small business | Q46: =IF(ROUND(Q11,4)=ROUND( SUMIFS(OP_Rates_SME_1[Ausnet],OP_Rates_SME_1[[Rate name]:[Rate name]],$C46)+ SUMIFS(OP_RatesTU_SME_1[Ausnet],OP_RatesTU_SME_1[[Rate name]:[Rate name]], IF($D46<>"$",$C46,LEFT($C46,LEN($C46)-FIND(" - supply",$C46)-1))),4), 0,1) -> 0 | R46: =IF(ROUND(R11,4)=ROUND( SUMIFS(OP_Rates_SME_1[Citipower],OP_Rates_SME_1[[Rate name]:[Rate name]],$C46)+ SUMIFS(OP_RatesTU_SME_1[Citipower],OP_RatesTU_SME_1[[Rate name]:[Rate name]], IF($D46<>"$",$C46,LEFT($C46,LEN($C46)-FIND(" - supply",$C46)-1))),4), 0,1) -> 0 | S46: =IF(ROUND(S11,4)=ROUND( SUMIFS(OP_Rates_SME_1[Jemena],OP_Rates_SME_1[[Rate name]:[Rate name]],$C46)+ SUMIFS(OP_RatesTU_SME_1[Jemena],OP_RatesTU_SME_1[[Rate name]:[Rate name]], IF($D46<>"$",$C46,LEFT($C46,LEN($C46)-FIND(" - supply",$C46)-1))),4), 0,1) -> 0 | T46: =IF(ROUND(T11,4)=ROUND( SUMIFS(OP_Rates_SME_1[Powercor],OP_Rates_SME_1[[Rate name]:[Rate name]],$C46)+ SUMIFS(OP_RatesTU_SME_1[Powercor],OP_RatesTU_SME_1[[Rate name]:[Rate name]], IF($D46<>"$",$C46,LEFT($C46,LEN($C46)-FIND(" - supply",$C46)-1))),4), 0,1) -> 0 | U46: =IF(ROUND(U11,4)=ROUND( SUMIFS(OP_Rates_SME_1[United Energy],OP_Rates_SME_1[[Rate name]:[Rate name]],$C46)+ SUMIFS(OP_RatesTU_SME_1[United Energy],OP_RatesTU_SME_1[[Rate name]:[Rate name]], IF($D46<>"$",$C46,LEFT($C46,LEN($C46)-FIND(" - supply",$C46)-1))),4), 0,1) -> 0
C47: Single rate | D47: $/kWh | E47: Residential | G47: =IF(ROUND(G12,4)=ROUND( SUMIFS(OP_Rates_RES_1[Ausnet],OP_Rates_RES_1[[Rate name]:[Rate name]],$C47)+ SUMIFS(OP_RatesTU_RES_1[Ausnet],OP_RatesTU_RES_1[[Rate name]:[Rate name]], IF($D47<>"$",$C47,LEFT($C47,LEN($C47)-FIND(" - supply",$C47)-1))),4), 0,1) -> 0 | H47: =IF(ROUND(H12,4)=ROUND( SUMIFS(OP_Rates_RES_1[Citipower],OP_Rates_RES_1[[Rate name]:[Rate name]],$C47)+ SUMIFS(OP_RatesTU_RES_1[Citipower],OP_RatesTU_RES_1[[Rate name]:[Rate name]], IF($D47<>"$",$C47,LEFT($C47,LEN($C47)-FIND(" - supply",$C47)-1))),4), 0,1) -> 0 | I47: =IF(ROUND(I12,4)=ROUND( SUMIFS(OP_Rates_RES_1[Jemena],OP_Rates_RES_1[[Rate name]:[Rate name]],$C47)+ SUMIFS(OP_RatesTU_RES_1[Jemena],OP_RatesTU_RES_1[[Rate name]:[Rate name]], IF($D47<>"$",$C47,LEFT($C47,LEN($C47)-FIND(" - supply",$C47)-1))),4), 0,1) -> 0 | J47: =IF(ROUND(J12,4)=ROUND( SUMIFS(OP_Rates_RES_1[Powercor],OP_Rates_RES_1[[Rate name]:[Rate name]],$C47)+ SUMIFS(OP_RatesTU_RES_1[Powercor],OP_RatesTU_RES_1[[Rate name]:[Rate name]], IF($D47<>"$",$C47,LEFT($C47,LEN($C47)-FIND(" - supply",$C47)-1))),4), 0,1) -> 0 | K47: =IF(ROUND(K12,4)=ROUND( SUMIFS(OP_Rates_RES_1[United Energy],OP_Rates_RES_1[[Rate name]:[Rate name]],$C47)+ SUMIFS(OP_RatesTU_RES_1[United Energy],OP_RatesTU_RES_1[[Rate name]:[Rate name]], IF($D47<>"$",$C47,LEFT($C47,LEN($C47)-FIND(" - supply",$C47)-1))),4), 0,1) -> 0 | M47: Single rate | N47: $/kWh | O47: Small business | Q47: =IF(ROUND(Q12,4)=ROUND( SUMIFS(OP_Rates_SME_1[Ausnet],OP_Rates_SME_1[[Rate name]:[Rate name]],$C47)+ SUMIFS(OP_RatesTU_SME_1[Ausnet],OP_RatesTU_SME_1[[Rate name]:[Rate name]], IF($D47<>"$",$C47,LEFT($C47,LEN($C47)-FIND(" - supply",$C47)-1))),4), 0,1) -> 0 | R47: =IF(ROUND(R12,4)=ROUND( SUMIFS(OP_Rates_SME_1[Citipower],OP_Rates_SME_1[[Rate name]:[Rate name]],$C47)+ SUMIFS(OP_RatesTU_SME_1[Citipower],OP_RatesTU_SME_1[[Rate name]:[Rate name]], IF($D47<>"$",$C47,LEFT($C47,LEN($C47)-FIND(" - supply",$C47)-1))),4), 0,1) -> 0 | S47: =IF(ROUND(S12,4)=ROUND( SUMIFS(OP_Rates_SME_1[Jemena],OP_Rates_SME_1[[Rate name]:[Rate name]],$C47)+ SUMIFS(OP_RatesTU_SME_1[Jemena],OP_RatesTU_SME_1[[Rate name]:[Rate name]], IF($D47<>"$",$C47,LEFT($C47,LEN($C47)-FIND(" - supply",$C47)-1))),4), 0,1) -> 0 | T47: =IF(ROUND(T12,4)=ROUND( SUMIFS(OP_Rates_SME_1[Powercor],OP_Rates_SME_1[[Rate name]:[Rate name]],$C47)+ SUMIFS(OP_RatesTU_SME_1[Powercor],OP_RatesTU_SME_1[[Rate name]:[Rate name]], IF($D47<>"$",$C47,LEFT($C47,LEN($C47)-FIND(" - supply",$C47)-1))),4), 0,1) -> 0 | U47: =IF(ROUND(U12,4)=ROUND( SUMIFS(OP_Rates_SME_1[United Energy],OP_Rates_SME_1[[Rate name]:[Rate name]],$C47)+ SUMIFS(OP_RatesTU_SME_1[United Energy],OP_RatesTU_SME_1[[Rate name]:[Rate name]], IF($D47<>"$",$C47,LEFT($C47,LEN($C47)-FIND(" - supply",$C47)-1))),4), 0,1) -> 0
C48: TOU - supply | D48: $ | E48: Residential | G48: =IF(ROUND(G13,4)=ROUND( SUMIFS(OP_Rates_RES_1[Ausnet],OP_Rates_RES_1[[Rate name]:[Rate name]],$C48)+ SUMIFS(OP_RatesTU_RES_1[Ausnet],OP_RatesTU_RES_1[[Rate name]:[Rate name]], IF($D48<>"$",$C48,LEFT($C48,LEN($C48)-FIND(" - supply",$C48)-1))),4), 0,1) -> 0 | H48: =IF(ROUND(H13,4)=ROUND( SUMIFS(OP_Rates_RES_1[Citipower],OP_Rates_RES_1[[Rate name]:[Rate name]],$C48)+ SUMIFS(OP_RatesTU_RES_1[Citipower],OP_RatesTU_RES_1[[Rate name]:[Rate name]], IF($D48<>"$",$C48,LEFT($C48,LEN($C48)-FIND(" - supply",$C48)-1))),4), 0,1) -> 0 | I48: =IF(ROUND(I13,4)=ROUND( SUMIFS(OP_Rates_RES_1[Jemena],OP_Rates_RES_1[[Rate name]:[Rate name]],$C48)+ SUMIFS(OP_RatesTU_RES_1[Jemena],OP_RatesTU_RES_1[[Rate name]:[Rate name]], IF($D48<>"$",$C48,LEFT($C48,LEN($C48)-FIND(" - supply",$C48)-1))),4), 0,1) -> 0 | J48: =IF(ROUND(J13,4)=ROUND( SUMIFS(OP_Rates_RES_1[Powercor],OP_Rates_RES_1[[Rate name]:[Rate name]],$C48)+ SUMIFS(OP_RatesTU_RES_1[Powercor],OP_RatesTU_RES_1[[Rate name]:[Rate name]], IF($D48<>"$",$C48,LEFT($C48,LEN($C48)-FIND(" - supply",$C48)-1))),4), 0,1) -> 0 | K48: =IF(ROUND(K13,4)=ROUND( SUMIFS(OP_Rates_RES_1[United Energy],OP_Rates_RES_1[[Rate name]:[Rate name]],$C48)+ SUMIFS(OP_RatesTU_RES_1[United Energy],OP_RatesTU_RES_1[[Rate name]:[Rate name]], IF($D48<>"$",$C48,LEFT($C48,LEN($C48)-FIND(" - supply",$C48)-1))),4), 0,1) -> 0 | M48: TOU - supply | N48: $ | O48: Small business | Q48: =IF(ROUND(Q13,4)=ROUND( SUMIFS(OP_Rates_SME_1[Ausnet],OP_Rates_SME_1[[Rate name]:[Rate name]],$C48)+ SUMIFS(OP_RatesTU_SME_1[Ausnet],OP_RatesTU_SME_1[[Rate name]:[Rate name]], IF($D48<>"$",$C48,LEFT($C48,LEN($C48)-FIND(" - supply",$C48)-1))),4), 0,1) -> 0 | R48: =IF(ROUND(R13,4)=ROUND( SUMIFS(OP_Rates_SME_1[Citipower],OP_Rates_SME_1[[Rate name]:[Rate name]],$C48)+ SUMIFS(OP_RatesTU_SME_1[Citipower],OP_RatesTU_SME_1[[Rate name]:[Rate name]], IF($D48<>"$",$C48,LEFT($C48,LEN($C48)-FIND(" - supply",$C48)-1))),4), 0,1) -> 0 | S48: =IF(ROUND(S13,4)=ROUND( SUMIFS(OP_Rates_SME_1[Jemena],OP_Rates_SME_1[[Rate name]:[Rate name]],$C48)+ SUMIFS(OP_RatesTU_SME_1[Jemena],OP_RatesTU_SME_1[[Rate name]:[Rate name]], IF($D48<>"$",$C48,LEFT($C48,LEN($C48)-FIND(" - supply",$C48)-1))),4), 0,1) -> 0 | T48: =IF(ROUND(T13,4)=ROUND( SUMIFS(OP_Rates_SME_1[Powercor],OP_Rates_SME_1[[Rate name]:[Rate name]],$C48)+ SUMIFS(OP_RatesTU_SME_1[Powercor],OP_RatesTU_SME_1[[Rate name]:[Rate name]], IF($D48<>"$",$C48,LEFT($C48,LEN($C48)-FIND(" - supply",$C48)-1))),4), 0,1) -> 0 | U48: =IF(ROUND(U13,4)=ROUND( SUMIFS(OP_Rates_SME_1[United Energy],OP_Rates_SME_1[[Rate name]:[Rate name]],$C48)+ SUMIFS(OP_RatesTU_SME_1[United Energy],OP_RatesTU_SME_1[[Rate name]:[Rate name]], IF($D48<>"$",$C48,LEFT($C48,LEN($C48)-FIND(" - supply",$C48)-1))),4), 0,1) -> 0
C49: Peak | D49: $/kWh | E49: Residential | G49: =IF(ROUND(G14,4)=ROUND( SUMIFS(OP_Rates_RES_1[Ausnet],OP_Rates_RES_1[[Rate name]:[Rate name]],$C49)+ SUMIFS(OP_RatesTU_RES_1[Ausnet],OP_RatesTU_RES_1[[Rate name]:[Rate name]], IF($D49<>"$",$C49,LEFT($C49,LEN($C49)-FIND(" - supply",$C49)-1))),4), 0,1) -> 0 | H49: =IF(ROUND(H14,4)=ROUND( SUMIFS(OP_Rates_RES_1[Citipower],OP_Rates_RES_1[[Rate name]:[Rate name]],$C49)+ SUMIFS(OP_RatesTU_RES_1[Citipower],OP_RatesTU_RES_1[[Rate name]:[Rate name]], IF($D49<>"$",$C49,LEFT($C49,LEN($C49)-FIND(" - supply",$C49)-1))),4), 0,1) -> 0 | I49: =IF(ROUND(I14,4)=ROUND( SUMIFS(OP_Rates_RES_1[Jemena],OP_Rates_RES_1[[Rate name]:[Rate name]],$C49)+ SUMIFS(OP_RatesTU_RES_1[Jemena],OP_RatesTU_RES_1[[Rate name]:[Rate name]], IF($D49<>"$",$C49,LEFT($C49,LEN($C49)-FIND(" - supply",$C49)-1))),4), 0,1) -> 0 | J49: =IF(ROUND(J14,4)=ROUND( SUMIFS(OP_Rates_RES_1[Powercor],OP_Rates_RES_1[[Rate name]:[Rate name]],$C49)+ SUMIFS(OP_RatesTU_RES_1[Powercor],OP_RatesTU_RES_1[[Rate name]:[Rate name]], IF($D49<>"$",$C49,LEFT($C49,LEN($C49)-FIND(" - supply",$C49)-1))),4), 0,1) -> 0 | K49: =IF(ROUND(K14,4)=ROUND( SUMIFS(OP_Rates_RES_1[United Energy],OP_Rates_RES_1[[Rate name]:[Rate name]],$C49)+ SUMIFS(OP_RatesTU_RES_1[United Energy],OP_RatesTU_RES_1[[Rate name]:[Rate name]], IF($D49<>"$",$C49,LEFT($C49,LEN($C49)-FIND(" - supply",$C49)-1))),4), 0,1) -> 0 | M49: Peak | N49: $/kWh | O49: Small business | Q49: =IF(ROUND(Q14,4)=ROUND( SUMIFS(OP_Rates_SME_1[Ausnet],OP_Rates_SME_1[[Rate name]:[Rate name]],$C49)+ SUMIFS(OP_RatesTU_SME_1[Ausnet],OP_RatesTU_SME_1[[Rate name]:[Rate name]], IF($D49<>"$",$C49,LEFT($C49,LEN($C49)-FIND(" - supply",$C49)-1))),4), 0,1) -> 0 | R49: =IF(ROUND(R14,4)=ROUND( SUMIFS(OP_Rates_SME_1[Citipower],OP_Rates_SME_1[[Rate name]:[Rate name]],$C49)+ SUMIFS(OP_RatesTU_SME_1[Citipower],OP_RatesTU_SME_1[[Rate name]:[Rate name]], IF($D49<>"$",$C49,LEFT($C49,LEN($C49)-FIND(" - supply",$C49)-1))),4), 0,1) -> 0 | S49: =IF(ROUND(S14,4)=ROUND( SUMIFS(OP_Rates_SME_1[Jemena],OP_Rates_SME_1[[Rate name]:[Rate name]],$C49)+ SUMIFS(OP_RatesTU_SME_1[Jemena],OP_RatesTU_SME_1[[Rate name]:[Rate name]], IF($D49<>"$",$C49,LEFT($C49,LEN($C49)-FIND(" - supply",$C49)-1))),4), 0,1) -> 0 | T49: =IF(ROUND(T14,4)=ROUND( SUMIFS(OP_Rates_SME_1[Powercor],OP_Rates_SME_1[[Rate name]:[Rate name]],$C49)+ SUMIFS(OP_RatesTU_SME_1[Powercor],OP_RatesTU_SME_1[[Rate name]:[Rate name]], IF($D49<>"$",$C49,LEFT($C49,LEN($C49)-FIND(" - supply",$C49)-1))),4), 0,1) -> 0 | U49: =IF(ROUND(U14,4)=ROUND( SUMIFS(OP_Rates_SME_1[United Energy],OP_Rates_SME_1[[Rate name]:[Rate name]],$C49)+ SUMIFS(OP_RatesTU_SME_1[United Energy],OP_RatesTU_SME_1[[Rate name]:[Rate name]], IF($D49<>"$",$C49,LEFT($C49,LEN($C49)-FIND(" - supply",$C49)-1))),4), 0,1) -> 0
C50: Off peak | D50: $/kWh | E50: Residential | G50: =IF(ROUND(G15,4)=ROUND( SUMIFS(OP_Rates_RES_1[Ausnet],OP_Rates_RES_1[[Rate name]:[Rate name]],$C50)+ SUMIFS(OP_RatesTU_RES_1[Ausnet],OP_RatesTU_RES_1[[Rate name]:[Rate name]], IF($D50<>"$",$C50,LEFT($C50,LEN($C50)-FIND(" - supply",$C50)-1))),4), 0,1) -> 0 | H50: =IF(ROUND(H15,4)=ROUND( SUMIFS(OP_Rates_RES_1[Citipower],OP_Rates_RES_1[[Rate name]:[Rate name]],$C50)+ SUMIFS(OP_RatesTU_RES_1[Citipower],OP_RatesTU_RES_1[[Rate name]:[Rate name]], IF($D50<>"$",$C50,LEFT($C50,LEN($C50)-FIND(" - supply",$C50)-1))),4), 0,1) -> 0 | I50: =IF(ROUND(I15,4)=ROUND( SUMIFS(OP_Rates_RES_1[Jemena],OP_Rates_RES_1[[Rate name]:[Rate name]],$C50)+ SUMIFS(OP_RatesTU_RES_1[Jemena],OP_RatesTU_RES_1[[Rate name]:[Rate name]], IF($D50<>"$",$C50,LEFT($C50,LEN($C50)-FIND(" - supply",$C50)-1))),4), 0,1) -> 0 | J50: =IF(ROUND(J15,4)=ROUND( SUMIFS(OP_Rates_RES_1[Powercor],OP_Rates_RES_1[[Rate name]:[Rate name]],$C50)+ SUMIFS(OP_RatesTU_RES_1[Powercor],OP_RatesTU_RES_1[[Rate name]:[Rate name]], IF($D50<>"$",$C50,LEFT($C50,LEN($C50)-FIND(" - supply",$C50)-1))),4), 0,1) -> 0 | K50: =IF(ROUND(K15,4)=ROUND( SUMIFS(OP_Rates_RES_1[United Energy],OP_Rates_RES_1[[Rate name]:[Rate name]],$C50)+ SUMIFS(OP_RatesTU_RES_1[United Energy],OP_RatesTU_RES_1[[Rate name]:[Rate name]], IF($D50<>"$",$C50,LEFT($C50,LEN($C50)-FIND(" - supply",$C50)-1))),4), 0,1) -> 0 | M50: Off peak | N50: $/kWh | O50: Small business | Q50: =IF(ROUND(Q15,4)=ROUND( SUMIFS(OP_Rates_SME_1[Ausnet],OP_Rates_SME_1[[Rate name]:[Rate name]],$C50)+ SUMIFS(OP_RatesTU_SME_1[Ausnet],OP_RatesTU_SME_1[[Rate name]:[Rate name]], IF($D50<>"$",$C50,LEFT($C50,LEN($C50)-FIND(" - supply",$C50)-1))),4), 0,1) -> 0 | R50: =IF(ROUND(R15,4)=ROUND( SUMIFS(OP_Rates_SME_1[Citipower],OP_Rates_SME_1[[Rate name]:[Rate name]],$C50)+ SUMIFS(OP_RatesTU_SME_1[Citipower],OP_RatesTU_SME_1[[Rate name]:[Rate name]], IF($D50<>"$",$C50,LEFT($C50,LEN($C50)-FIND(" - supply",$C50)-1))),4), 0,1) -> 0 | S50: =IF(ROUND(S15,4)=ROUND( SUMIFS(OP_Rates_SME_1[Jemena],OP_Rates_SME_1[[Rate name]:[Rate name]],$C50)+ SUMIFS(OP_RatesTU_SME_1[Jemena],OP_RatesTU_SME_1[[Rate name]:[Rate name]], IF($D50<>"$",$C50,LEFT($C50,LEN($C50)-FIND(" - supply",$C50)-1))),4), 0,1) -> 0 | T50: =IF(ROUND(T15,4)=ROUND( SUMIFS(OP_Rates_SME_1[Powercor],OP_Rates_SME_1[[Rate name]:[Rate name]],$C50)+ SUMIFS(OP_RatesTU_SME_1[Powercor],OP_RatesTU_SME_1[[Rate name]:[Rate name]], IF($D50<>"$",$C50,LEFT($C50,LEN($C50)-FIND(" - supply",$C50)-1))),4), 0,1) -> 0 | U50: =IF(ROUND(U15,4)=ROUND( SUMIFS(OP_Rates_SME_1[United Energy],OP_Rates_SME_1[[Rate name]:[Rate name]],$C50)+ SUMIFS(OP_RatesTU_SME_1[United Energy],OP_RatesTU_SME_1[[Rate name]:[Rate name]], IF($D50<>"$",$C50,LEFT($C50,LEN($C50)-FIND(" - supply",$C50)-1))),4), 0,1) -> 0
C51: Controlled load | D51: $/kWh | E51: Residential | G51: =IF(ROUND(G16,4)=ROUND( SUMIFS(OP_Rates_RES_1[Ausnet],OP_Rates_RES_1[[Rate name]:[Rate name]],$C51)+ SUMIFS(OP_RatesTU_RES_1[Ausnet],OP_RatesTU_RES_1[[Rate name]:[Rate name]], IF($D51<>"$",$C51,LEFT($C51,LEN($C51)-FIND(" - supply",$C51)-1))),4), 0,1) -> 0 | H51: =IF(ROUND(H16,4)=ROUND( SUMIFS(OP_Rates_RES_1[Citipower],OP_Rates_RES_1[[Rate name]:[Rate name]],$C51)+ SUMIFS(OP_RatesTU_RES_1[Citipower],OP_RatesTU_RES_1[[Rate name]:[Rate name]], IF($D51<>"$",$C51,LEFT($C51,LEN($C51)-FIND(" - supply",$C51)-1))),4), 0,1) -> 0 | I51: =IF(ROUND(I16,4)=ROUND( SUMIFS(OP_Rates_RES_1[Jemena],OP_Rates_RES_1[[Rate name]:[Rate name]],$C51)+ SUMIFS(OP_RatesTU_RES_1[Jemena],OP_RatesTU_RES_1[[Rate name]:[Rate name]], IF($D51<>"$",$C51,LEFT($C51,LEN($C51)-FIND(" - supply",$C51)-1))),4), 0,1) -> 0 | J51: =IF(ROUND(J16,4)=ROUND( SUMIFS(OP_Rates_RES_1[Powercor],OP_Rates_RES_1[[Rate name]:[Rate name]],$C51)+ SUMIFS(OP_RatesTU_RES_1[Powercor],OP_RatesTU_RES_1[[Rate name]:[Rate name]], IF($D51<>"$",$C51,LEFT($C51,LEN($C51)-FIND(" - supply",$C51)-1))),4), 0,1) -> 0 | K51: =IF(ROUND(K16,4)=ROUND( SUMIFS(OP_Rates_RES_1[United Energy],OP_Rates_RES_1[[Rate name]:[Rate name]],$C51)+ SUMIFS(OP_RatesTU_RES_1[United Energy],OP_RatesTU_RES_1[[Rate name]:[Rate name]], IF($D51<>"$",$C51,LEFT($C51,LEN($C51)-FIND(" - supply",$C51)-1))),4), 0,1) -> 0
C53: =C$18&" - checks" -> Residential calculated rate - checks | M53: =M$18&" - checks" -> Small business calculated rate - checks
C54: Rate name | D54: Unit | E54: Customer type | G54: Ausnet | H54: Citipower | I54: Jemena | J54: Powercor | K54: United Energy | M54: Rate name | N54: Unit | O54: Customer type | Q54: Ausnet | R54: Citipower | S54: Jemena | T54: Powercor | U54: United Energy
C55: Anytime - supply | D55: $ | E55: Residential | G55: =IF(G20="-","-", IF(ROUND(G20,8)= ROUND((( (SUMIFS(Calc_NetworkF_1[Ausnet],Calc_NetworkF_1[[Cost item]:[Cost item]],$C55,Calc_NetworkF_1[[Customer type]:[Customer type]],$E55)+ SUMIFS(Calc_Fixed_1[Ausnet],Calc_Fixed_1[[Customer type]:[Customer type]],"All")+ SUMIFS(Calc_Fixed_1[Ausnet],Calc_Fixed_1[[Customer type]:[Customer type]],$E55))/DiY)*(1+Calc_ROM_1[Ausnet]))*(1+GST),8),0,1)) -> 0 | H55: =IF(H20="-","-", IF(ROUND(H20,8)= ROUND((( (SUMIFS(Calc_NetworkF_1[Citipower],Calc_NetworkF_1[[Cost item]:[Cost item]],$C55,Calc_NetworkF_1[[Customer type]:[Customer type]],$E55)+ SUMIFS(Calc_Fixed_1[Citipower],Calc_Fixed_1[[Customer type]:[Customer type]],"All")+ SUMIFS(Calc_Fixed_1[Citipower],Calc_Fixed_1[[Customer type]:[Customer type]],$E55))/DiY)*(1+Calc_ROM_1[Citipower]))*(1+GST),8),0,1)) -> 0 | I55: =IF(I20="-","-", IF(ROUND(I20,8)= ROUND((( (SUMIFS(Calc_NetworkF_1[Jemena],Calc_NetworkF_1[[Cost item]:[Cost item]],$C55,Calc_NetworkF_1[[Customer type]:[Customer type]],$E55)+ SUMIFS(Calc_Fixed_1[Jemena],Calc_Fixed_1[[Customer type]:[Customer type]],"All")+ SUMIFS(Calc_Fixed_1[Jemena],Calc_Fixed_1[[Customer type]:[Customer type]],$E55))/DiY)*(1+Calc_ROM_1[Jemena]))*(1+GST),8),0,1)) -> 0 | J55: =IF(J20="-","-", IF(ROUND(J20,8)= ROUND((( (SUMIFS(Calc_NetworkF_1[Powercor],Calc_NetworkF_1[[Cost item]:[Cost item]],$C55,Calc_NetworkF_1[[Customer type]:[Customer type]],$E55)+ SUMIFS(Calc_Fixed_1[Powercor],Calc_Fixed_1[[Customer type]:[Customer type]],"All")+ SUMIFS(Calc_Fixed_1[Powercor],Calc_Fixed_1[[Customer type]:[Customer type]],$E55))/DiY)*(1+Calc_ROM_1[Powercor]))*(1+GST),8),0,1)) -> 0 | K55: =IF(K20="-","-", IF(ROUND(K20,8)= ROUND((( (SUMIFS(Calc_NetworkF_1[United Energy],Calc_NetworkF_1[[Cost item]:[Cost item]],$C55,Calc_NetworkF_1[[Customer type]:[Customer type]],$E55)+ SUMIFS(Calc_Fixed_1[United Energy],Calc_Fixed_1[[Customer type]:[Customer type]],"All")+ SUMIFS(Calc_Fixed_1[United Energy],Calc_Fixed_1[[Customer type]:[Customer type]],$E55))/DiY)*(1+Calc_ROM_1[United Energy]))*(1+GST),8),0,1)) -> 0 | M55: Anytime - supply | N55: $ | O55: Small business | Q55: =IF(Q20="-","-", IF(ROUND(Q20,8)= ROUND((( (SUMIFS(Calc_NetworkF_1[Ausnet],Calc_NetworkF_1[[Cost item]:[Cost item]],$M55,Calc_NetworkF_1[[Customer type]:[Customer type]],$O55)+ SUMIFS(Calc_Fixed_1[Ausnet],Calc_Fixed_1[[Customer type]:[Customer type]],"All")+ SUMIFS(Calc_Fixed_1[Ausnet],Calc_Fixed_1[[Customer type]:[Customer type]],$O55))/DiY)*(1+Calc_ROM_1[Ausnet]))*(1+GST),8),0,1)) -> 0 | R55: =IF(R20="-","-", IF(ROUND(R20,8)= ROUND((( (SUMIFS(Calc_NetworkF_1[Citipower],Calc_NetworkF_1[[Cost item]:[Cost item]],$M55,Calc_NetworkF_1[[Customer type]:[Customer type]],$O55)+ SUMIFS(Calc_Fixed_1[Citipower],Calc_Fixed_1[[Customer type]:[Customer type]],"All")+ SUMIFS(Calc_Fixed_1[Citipower],Calc_Fixed_1[[Customer type]:[Customer type]],$O55))/DiY)*(1+Calc_ROM_1[Citipower]))*(1+GST),8),0,1)) -> 0 | S55: =IF(S20="-","-", IF(ROUND(S20,8)= ROUND((( (SUMIFS(Calc_NetworkF_1[Jemena],Calc_NetworkF_1[[Cost item]:[Cost item]],$M55,Calc_NetworkF_1[[Customer type]:[Customer type]],$O55)+ SUMIFS(Calc_Fixed_1[Jemena],Calc_Fixed_1[[Customer type]:[Customer type]],"All")+ SUMIFS(Calc_Fixed_1[Jemena],Calc_Fixed_1[[Customer type]:[Customer type]],$O55))/DiY)*(1+Calc_ROM_1[Jemena]))*(1+GST),8),0,1)) -> 0 | T55: =IF(T20="-","-", IF(ROUND(T20,8)= ROUND((( (SUMIFS(Calc_NetworkF_1[Powercor],Calc_NetworkF_1[[Cost item]:[Cost item]],$M55,Calc_NetworkF_1[[Customer type]:[Customer type]],$O55)+ SUMIFS(Calc_Fixed_1[Powercor],Calc_Fixed_1[[Customer type]:[Customer type]],"All")+ SUMIFS(Calc_Fixed_1[Powercor],Calc_Fixed_1[[Customer type]:[Customer type]],$O55))/DiY)*(1+Calc_ROM_1[Powercor]))*(1+GST),8),0,1)) -> 0 | U55: =IF(U20="-","-", IF(ROUND(U20,8)= ROUND((( (SUMIFS(Calc_NetworkF_1[United Energy],Calc_NetworkF_1[[Cost item]:[Cost item]],$M55,Calc_NetworkF_1[[Customer type]:[Customer type]],$O55)+ SUMIFS(Calc_Fixed_1[United Energy],Calc_Fixed_1[[Customer type]:[Customer type]],"All")+ SUMIFS(Calc_Fixed_1[United Energy],Calc_Fixed_1[[Customer type]:[Customer type]],$O55))/DiY)*(1+Calc_ROM_1[United Energy]))*(1+GST),8),0,1)) -> 0
C56: Block 1 | D56: $/kWh | E56: Residential | G56: =IF(G21="-","-", IF(ROUND(G21,8)=ROUND( ((SUMIFS(Calc_Variable_1[Ausnet],Calc_Variable_1[[Customer type]:[Customer type]],"All")+ SUMIFS(Calc_Variable_1[Ausnet],Calc_Variable_1[[Customer type]:[Customer type]],OP_Rates!$E56)+ SUMIFS(Calc_NetworkV_1[Ausnet],Calc_NetworkV_1[[Customer type]:[Customer type]],OP_Rates!$E56,Calc_NetworkV_1[[Cost item]:[Cost item]],OP_Rates!$C56))*(1+Calc_ROM_1[Ausnet]))*(1+GST),8),0,1)) -> 0 | H56: =IF(H21="-","-", IF(ROUND(H21,8)=ROUND( ((SUMIFS(Calc_Variable_1[Citipower],Calc_Variable_1[[Customer type]:[Customer type]],"All")+ SUMIFS(Calc_Variable_1[Citipower],Calc_Variable_1[[Customer type]:[Customer type]],OP_Rates!$E56)+ SUMIFS(Calc_NetworkV_1[Citipower],Calc_NetworkV_1[[Customer type]:[Customer type]],OP_Rates!$E56,Calc_NetworkV_1[[Cost item]:[Cost item]],OP_Rates!$C56))*(1+Calc_ROM_1[Citipower]))*(1+GST),8),0,1)) -> - | I56: =IF(I21="-","-", IF(ROUND(I21,8)=ROUND( ((SUMIFS(Calc_Variable_1[Jemena],Calc_Variable_1[[Customer type]:[Customer type]],"All")+ SUMIFS(Calc_Variable_1[Jemena],Calc_Variable_1[[Customer type]:[Customer type]],OP_Rates!$E56)+ SUMIFS(Calc_NetworkV_1[Jemena],Calc_NetworkV_1[[Customer type]:[Customer type]],OP_Rates!$E56,Calc_NetworkV_1[[Cost item]:[Cost item]],OP_Rates!$C56))*(1+Calc_ROM_1[Jemena]))*(1+GST),8),0,1)) -> - | J56: =IF(J21="-","-", IF(ROUND(J21,8)=ROUND( ((SUMIFS(Calc_Variable_1[Powercor],Calc_Variable_1[[Customer type]:[Customer type]],"All")+ SUMIFS(Calc_Variable_1[Powercor],Calc_Variable_1[[Customer type]:[Customer type]],OP_Rates!$E56)+ SUMIFS(Calc_NetworkV_1[Powercor],Calc_NetworkV_1[[Customer type]:[Customer type]],OP_Rates!$E56,Calc_NetworkV_1[[Cost item]:[Cost item]],OP_Rates!$C56))*(1+Calc_ROM_1[Powercor]))*(1+GST),8),0,1)) -> - | K56: =IF(K21="-","-", IF(ROUND(K21,8)=ROUND( ((SUMIFS(Calc_Variable_1[United Energy],Calc_Variable_1[[Customer type]:[Customer type]],"All")+ SUMIFS(Calc_Variable_1[United Energy],Calc_Variable_1[[Customer type]:[Customer type]],OP_Rates!$E56)+ SUMIFS(Calc_NetworkV_1[United Energy],Calc_NetworkV_1[[Customer type]:[Customer type]],OP_Rates!$E56,Calc_NetworkV_1[[Cost item]:[Cost item]],OP_Rates!$C56))*(1+Calc_ROM_1[United Energy]))*(1+GST),8),0,1)) -> - | M56: Block 1 | N56: $/kWh | O56: Small business | Q56: =IF(Q21="-","-", IF(ROUND(Q21,8)=ROUND( ((SUMIFS(Calc_Variable_1[Ausnet],Calc_Variable_1[[Customer type]:[Customer type]],"All")+ SUMIFS(Calc_Variable_1[Ausnet],Calc_Variable_1[[Customer type]:[Customer type]],OP_Rates!$O56)+ SUMIFS(Calc_NetworkV_1[Ausnet],Calc_NetworkV_1[[Customer type]:[Customer type]],OP_Rates!$O56,Calc_NetworkV_1[[Cost item]:[Cost item]],OP_Rates!$M56))*(1+Calc_ROM_1[Ausnet]))*(1+GST),8),0,1)) -> 0 | R56: =IF(R21="-","-", IF(ROUND(R21,8)=ROUND( ((SUMIFS(Calc_Variable_1[Citipower],Calc_Variable_1[[Customer type]:[Customer type]],"All")+ SUMIFS(Calc_Variable_1[Citipower],Calc_Variable_1[[Customer type]:[Customer type]],OP_Rates!$O56)+ SUMIFS(Calc_NetworkV_1[Citipower],Calc_NetworkV_1[[Customer type]:[Customer type]],OP_Rates!$O56,Calc_NetworkV_1[[Cost item]:[Cost item]],OP_Rates!$M56))*(1+Calc_ROM_1[Citipower]))*(1+GST),8),0,1)) -> - | S56: =IF(S21="-","-", IF(ROUND(S21,8)=ROUND( ((SUMIFS(Calc_Variable_1[Jemena],Calc_Variable_1[[Customer type]:[Customer type]],"All")+ SUMIFS(Calc_Variable_1[Jemena],Calc_Variable_1[[Customer type]:[Customer type]],OP_Rates!$O56)+ SUMIFS(Calc_NetworkV_1[Jemena],Calc_NetworkV_1[[Customer type]:[Customer type]],OP_Rates!$O56,Calc_NetworkV_1[[Cost item]:[Cost item]],OP_Rates!$M56))*(1+Calc_ROM_1[Jemena]))*(1+GST),8),0,1)) -> - | T56: =IF(T21="-","-", IF(ROUND(T21,8)=ROUND( ((SUMIFS(Calc_Variable_1[Powercor],Calc_Variable_1[[Customer type]:[Customer type]],"All")+ SUMIFS(Calc_Variable_1[Powercor],Calc_Variable_1[[Customer type]:[Customer type]],OP_Rates!$O56)+ SUMIFS(Calc_NetworkV_1[Powercor],Calc_NetworkV_1[[Customer type]:[Customer type]],OP_Rates!$O56,Calc_NetworkV_1[[Cost item]:[Cost item]],OP_Rates!$M56))*(1+Calc_ROM_1[Powercor]))*(1+GST),8),0,1)) -> - | U56: =IF(U21="-","-", IF(ROUND(U21,8)=ROUND( ((SUMIFS(Calc_Variable_1[United Energy],Calc_Variable_1[[Customer type]:[Customer type]],"All")+ SUMIFS(Calc_Variable_1[United Energy],Calc_Variable_1[[Customer type]:[Customer type]],OP_Rates!$O56)+ SUMIFS(Calc_NetworkV_1[United Energy],Calc_NetworkV_1[[Customer type]:[Customer type]],OP_Rates!$O56,Calc_NetworkV_1[[Cost item]:[Cost item]],OP_Rates!$M56))*(1+Calc_ROM_1[United Energy]))*(1+GST),8),0,1)) -> -
C57: Balance | D57: $/kWh | E57: Residential | G57: =IF(G22="-","-", IF(ROUND(G22,8)=ROUND( ((SUMIFS(Calc_Variable_1[Ausnet],Calc_Variable_1[[Customer type]:[Customer type]],"All")+ SUMIFS(Calc_Variable_1[Ausnet],Calc_Variable_1[[Customer type]:[Customer type]],OP_Rates!$E57)+ SUMIFS(Calc_NetworkV_1[Ausnet],Calc_NetworkV_1[[Customer type]:[Customer type]],OP_Rates!$E57,Calc_NetworkV_1[[Cost item]:[Cost item]],OP_Rates!$C57))*(1+Calc_ROM_1[Ausnet]))*(1+GST),8),0,1)) -> 0 | H57: =IF(H22="-","-", IF(ROUND(H22,8)=ROUND( ((SUMIFS(Calc_Variable_1[Citipower],Calc_Variable_1[[Customer type]:[Customer type]],"All")+ SUMIFS(Calc_Variable_1[Citipower],Calc_Variable_1[[Customer type]:[Customer type]],OP_Rates!$E57)+ SUMIFS(Calc_NetworkV_1[Citipower],Calc_NetworkV_1[[Customer type]:[Customer type]],OP_Rates!$E57,Calc_NetworkV_1[[Cost item]:[Cost item]],OP_Rates!$C57))*(1+Calc_ROM_1[Citipower]))*(1+GST),8),0,1)) -> - | I57: =IF(I22="-","-", IF(ROUND(I22,8)=ROUND( ((SUMIFS(Calc_Variable_1[Jemena],Calc_Variable_1[[Customer type]:[Customer type]],"All")+ SUMIFS(Calc_Variable_1[Jemena],Calc_Variable_1[[Customer type]:[Customer type]],OP_Rates!$E57)+ SUMIFS(Calc_NetworkV_1[Jemena],Calc_NetworkV_1[[Customer type]:[Customer type]],OP_Rates!$E57,Calc_NetworkV_1[[Cost item]:[Cost item]],OP_Rates!$C57))*(1+Calc_ROM_1[Jemena]))*(1+GST),8),0,1)) -> - | J57: =IF(J22="-","-", IF(ROUND(J22,8)=ROUND( ((SUMIFS(Calc_Variable_1[Powercor],Calc_Variable_1[[Customer type]:[Customer type]],"All")+ SUMIFS(Calc_Variable_1[Powercor],Calc_Variable_1[[Customer type]:[Customer type]],OP_Rates!$E57)+ SUMIFS(Calc_NetworkV_1[Powercor],Calc_NetworkV_1[[Customer type]:[Customer type]],OP_Rates!$E57,Calc_NetworkV_1[[Cost item]:[Cost item]],OP_Rates!$C57))*(1+Calc_ROM_1[Powercor]))*(1+GST),8),0,1)) -> - | K57: =IF(K22="-","-", IF(ROUND(K22,8)=ROUND( ((SUMIFS(Calc_Variable_1[United Energy],Calc_Variable_1[[Customer type]:[Customer type]],"All")+ SUMIFS(Calc_Variable_1[United Energy],Calc_Variable_1[[Customer type]:[Customer type]],OP_Rates!$E57)+ SUMIFS(Calc_NetworkV_1[United Energy],Calc_NetworkV_1[[Customer type]:[Customer type]],OP_Rates!$E57,Calc_NetworkV_1[[Cost item]:[Cost item]],OP_Rates!$C57))*(1+Calc_ROM_1[United Energy]))*(1+GST),8),0,1)) -> - | M57: Balance | N57: $/kWh | O57: Small business | Q57: =IF(Q22="-","-", IF(ROUND(Q22,8)=ROUND( ((SUMIFS(Calc_Variable_1[Ausnet],Calc_Variable_1[[Customer type]:[Customer type]],"All")+ SUMIFS(Calc_Variable_1[Ausnet],Calc_Variable_1[[Customer type]:[Customer type]],OP_Rates!$O57)+ SUMIFS(Calc_NetworkV_1[Ausnet],Calc_NetworkV_1[[Customer type]:[Customer type]],OP_Rates!$O57,Calc_NetworkV_1[[Cost item]:[Cost item]],OP_Rates!$M57))*(1+Calc_ROM_1[Ausnet]))*(1+GST),8),0,1)) -> 0 | R57: =IF(R22="-","-", IF(ROUND(R22,8)=ROUND( ((SUMIFS(Calc_Variable_1[Citipower],Calc_Variable_1[[Customer type]:[Customer type]],"All")+ SUMIFS(Calc_Variable_1[Citipower],Calc_Variable_1[[Customer type]:[Customer type]],OP_Rates!$O57)+ SUMIFS(Calc_NetworkV_1[Citipower],Calc_NetworkV_1[[Customer type]:[Customer type]],OP_Rates!$O57,Calc_NetworkV_1[[Cost item]:[Cost item]],OP_Rates!$M57))*(1+Calc_ROM_1[Citipower]))*(1+GST),8),0,1)) -> - | S57: =IF(S22="-","-", IF(ROUND(S22,8)=ROUND( ((SUMIFS(Calc_Variable_1[Jemena],Calc_Variable_1[[Customer type]:[Customer type]],"All")+ SUMIFS(Calc_Variable_1[Jemena],Calc_Variable_1[[Customer type]:[Customer type]],OP_Rates!$O57)+ SUMIFS(Calc_NetworkV_1[Jemena],Calc_NetworkV_1[[Customer type]:[Customer type]],OP_Rates!$O57,Calc_NetworkV_1[[Cost item]:[Cost item]],OP_Rates!$M57))*(1+Calc_ROM_1[Jemena]))*(1+GST),8),0,1)) -> - | T57: =IF(T22="-","-", IF(ROUND(T22,8)=ROUND( ((SUMIFS(Calc_Variable_1[Powercor],Calc_Variable_1[[Customer type]:[Customer type]],"All")+ SUMIFS(Calc_Variable_1[Powercor],Calc_Variable_1[[Customer type]:[Customer type]],OP_Rates!$O57)+ SUMIFS(Calc_NetworkV_1[Powercor],Calc_NetworkV_1[[Customer type]:[Customer type]],OP_Rates!$O57,Calc_NetworkV_1[[Cost item]:[Cost item]],OP_Rates!$M57))*(1+Calc_ROM_1[Powercor]))*(1+GST),8),0,1)) -> - | U57: =IF(U22="-","-", IF(ROUND(U22,8)=ROUND( ((SUMIFS(Calc_Variable_1[United Energy],Calc_Variable_1[[Customer type]:[Customer type]],"All")+ SUMIFS(Calc_Variable_1[United Energy],Calc_Variable_1[[Customer type]:[Customer type]],OP_Rates!$O57)+ SUMIFS(Calc_NetworkV_1[United Energy],Calc_NetworkV_1[[Customer type]:[Customer type]],OP_Rates!$O57,Calc_NetworkV_1[[Cost item]:[Cost item]],OP_Rates!$M57))*(1+Calc_ROM_1[United Energy]))*(1+GST),8),0,1)) -> -
C58: Single rate | D58: $/kWh | E58: Residential | G58: =IF(G23="-","-", IF(ROUND(G23,8)=ROUND( ((SUMIFS(Calc_Variable_1[Ausnet],Calc_Variable_1[[Customer type]:[Customer type]],"All")+ SUMIFS(Calc_Variable_1[Ausnet],Calc_Variable_1[[Customer type]:[Customer type]],OP_Rates!$E58)+ SUMIFS(Calc_NetworkV_1[Ausnet],Calc_NetworkV_1[[Customer type]:[Customer type]],OP_Rates!$E58,Calc_NetworkV_1[[Cost item]:[Cost item]],OP_Rates!$C58))*(1+Calc_ROM_1[Ausnet]))*(1+GST),8),0,1)) -> - | H58: =IF(H23="-","-", IF(ROUND(H23,8)=ROUND( ((SUMIFS(Calc_Variable_1[Citipower],Calc_Variable_1[[Customer type]:[Customer type]],"All")+ SUMIFS(Calc_Variable_1[Citipower],Calc_Variable_1[[Customer type]:[Customer type]],OP_Rates!$E58)+ SUMIFS(Calc_NetworkV_1[Citipower],Calc_NetworkV_1[[Customer type]:[Customer type]],OP_Rates!$E58,Calc_NetworkV_1[[Cost item]:[Cost item]],OP_Rates!$C58))*(1+Calc_ROM_1[Citipower]))*(1+GST),8),0,1)) -> 0 | I58: =IF(I23="-","-", IF(ROUND(I23,8)=ROUND( ((SUMIFS(Calc_Variable_1[Jemena],Calc_Variable_1[[Customer type]:[Customer type]],"All")+ SUMIFS(Calc_Variable_1[Jemena],Calc_Variable_1[[Customer type]:[Customer type]],OP_Rates!$E58)+ SUMIFS(Calc_NetworkV_1[Jemena],Calc_NetworkV_1[[Customer type]:[Customer type]],OP_Rates!$E58,Calc_NetworkV_1[[Cost item]:[Cost item]],OP_Rates!$C58))*(1+Calc_ROM_1[Jemena]))*(1+GST),8),0,1)) -> 0 | J58: =IF(J23="-","-", IF(ROUND(J23,8)=ROUND( ((SUMIFS(Calc_Variable_1[Powercor],Calc_Variable_1[[Customer type]:[Customer type]],"All")+ SUMIFS(Calc_Variable_1[Powercor],Calc_Variable_1[[Customer type]:[Customer type]],OP_Rates!$E58)+ SUMIFS(Calc_NetworkV_1[Powercor],Calc_NetworkV_1[[Customer type]:[Customer type]],OP_Rates!$E58,Calc_NetworkV_1[[Cost item]:[Cost item]],OP_Rates!$C58))*(1+Calc_ROM_1[Powercor]))*(1+GST),8),0,1)) -> 0 | K58: =IF(K23="-","-", IF(ROUND(K23,8)=ROUND( ((SUMIFS(Calc_Variable_1[United Energy],Calc_Variable_1[[Customer type]:[Customer type]],"All")+ SUMIFS(Calc_Variable_1[United Energy],Calc_Variable_1[[Customer type]:[Customer type]],OP_Rates!$E58)+ SUMIFS(Calc_NetworkV_1[United Energy],Calc_NetworkV_1[[Customer type]:[Customer type]],OP_Rates!$E58,Calc_NetworkV_1[[Cost item]:[Cost item]],OP_Rates!$C58))*(1+Calc_ROM_1[United Energy]))*(1+GST),8),0,1)) -> 0 | M58: Single rate | N58: $/kWh | O58: Small business | Q58: =IF(Q23="-","-", IF(ROUND(Q23,8)=ROUND( ((SUMIFS(Calc_Variable_1[Ausnet],Calc_Variable_1[[Customer type]:[Customer type]],"All")+ SUMIFS(Calc_Variable_1[Ausnet],Calc_Variable_1[[Customer type]:[Customer type]],OP_Rates!$O58)+ SUMIFS(Calc_NetworkV_1[Ausnet],Calc_NetworkV_1[[Customer type]:[Customer type]],OP_Rates!$O58,Calc_NetworkV_1[[Cost item]:[Cost item]],OP_Rates!$M58))*(1+Calc_ROM_1[Ausnet]))*(1+GST),8),0,1)) -> - | R58: =IF(R23="-","-", IF(ROUND(R23,8)=ROUND( ((SUMIFS(Calc_Variable_1[Citipower],Calc_Variable_1[[Customer type]:[Customer type]],"All")+ SUMIFS(Calc_Variable_1[Citipower],Calc_Variable_1[[Customer type]:[Customer type]],OP_Rates!$O58)+ SUMIFS(Calc_NetworkV_1[Citipower],Calc_NetworkV_1[[Customer type]:[Customer type]],OP_Rates!$O58,Calc_NetworkV_1[[Cost item]:[Cost item]],OP_Rates!$M58))*(1+Calc_ROM_1[Citipower]))*(1+GST),8),0,1)) -> 0 | S58: =IF(S23="-","-", IF(ROUND(S23,8)=ROUND( ((SUMIFS(Calc_Variable_1[Jemena],Calc_Variable_1[[Customer type]:[Customer type]],"All")+ SUMIFS(Calc_Variable_1[Jemena],Calc_Variable_1[[Customer type]:[Customer type]],OP_Rates!$O58)+ SUMIFS(Calc_NetworkV_1[Jemena],Calc_NetworkV_1[[Customer type]:[Customer type]],OP_Rates!$O58,Calc_NetworkV_1[[Cost item]:[Cost item]],OP_Rates!$M58))*(1+Calc_ROM_1[Jemena]))*(1+GST),8),0,1)) -> 0 | T58: =IF(T23="-","-", IF(ROUND(T23,8)=ROUND( ((SUMIFS(Calc_Variable_1[Powercor],Calc_Variable_1[[Customer type]:[Customer type]],"All")+ SUMIFS(Calc_Variable_1[Powercor],Calc_Variable_1[[Customer type]:[Customer type]],OP_Rates!$O58)+ SUMIFS(Calc_NetworkV_1[Powercor],Calc_NetworkV_1[[Customer type]:[Customer type]],OP_Rates!$O58,Calc_NetworkV_1[[Cost item]:[Cost item]],OP_Rates!$M58))*(1+Calc_ROM_1[Powercor]))*(1+GST),8),0,1)) -> 0 | U58: =IF(U23="-","-", IF(ROUND(U23,8)=ROUND( ((SUMIFS(Calc_Variable_1[United Energy],Calc_Variable_1[[Customer type]:[Customer type]],"All")+ SUMIFS(Calc_Variable_1[United Energy],Calc_Variable_1[[Customer type]:[Customer type]],OP_Rates!$O58)+ SUMIFS(Calc_NetworkV_1[United Energy],Calc_NetworkV_1[[Customer type]:[Customer type]],OP_Rates!$O58,Calc_NetworkV_1[[Cost item]:[Cost item]],OP_Rates!$M58))*(1+Calc_ROM_1[United Energy]))*(1+GST),8),0,1)) -> 0
C59: TOU - supply | D59: $ | E59: Residential | G59: =IF(G24="-","-", IF(ROUND(G24,8)= ROUND((((SUMIFS(Calc_NetworkF_1[Ausnet],Calc_NetworkF_1[[Cost item]:[Cost item]],$C59,Calc_NetworkF_1[[Customer type]:[Customer type]],$E59)+SUMIFS(Calc_Fixed_1[Ausnet],Calc_Fixed_1[[Customer type]:[Customer type]],"All")+SUMIFS(Calc_Fixed_1[Ausnet],Calc_Fixed_1[[Customer type]:[Customer type]],$E59))/DiY)*(1+Calc_ROM_1[Ausnet]))*(1+GST),8),0,1)) -> 0 | H59: =IF(H24="-","-", IF(ROUND(H24,8)= ROUND((((SUMIFS(Calc_NetworkF_1[Citipower],Calc_NetworkF_1[[Cost item]:[Cost item]],$C59,Calc_NetworkF_1[[Customer type]:[Customer type]],$E59)+SUMIFS(Calc_Fixed_1[Citipower],Calc_Fixed_1[[Customer type]:[Customer type]],"All")+SUMIFS(Calc_Fixed_1[Citipower],Calc_Fixed_1[[Customer type]:[Customer type]],$E59))/DiY)*(1+Calc_ROM_1[Citipower]))*(1+GST),8),0,1)) -> 0 | I59: =IF(I24="-","-", IF(ROUND(I24,8)= ROUND((((SUMIFS(Calc_NetworkF_1[Jemena],Calc_NetworkF_1[[Cost item]:[Cost item]],$C59,Calc_NetworkF_1[[Customer type]:[Customer type]],$E59)+SUMIFS(Calc_Fixed_1[Jemena],Calc_Fixed_1[[Customer type]:[Customer type]],"All")+SUMIFS(Calc_Fixed_1[Jemena],Calc_Fixed_1[[Customer type]:[Customer type]],$E59))/DiY)*(1+Calc_ROM_1[Jemena]))*(1+GST),8),0,1)) -> 0 | J59: =IF(J24="-","-", IF(ROUND(J24,8)= ROUND((((SUMIFS(Calc_NetworkF_1[Powercor],Calc_NetworkF_1[[Cost item]:[Cost item]],$C59,Calc_NetworkF_1[[Customer type]:[Customer type]],$E59)+SUMIFS(Calc_Fixed_1[Powercor],Calc_Fixed_1[[Customer type]:[Customer type]],"All")+SUMIFS(Calc_Fixed_1[Powercor],Calc_Fixed_1[[Customer type]:[Customer type]],$E59))/DiY)*(1+Calc_ROM_1[Powercor]))*(1+GST),8),0,1)) -> 0 | K59: =IF(K24="-","-", IF(ROUND(K24,8)= ROUND((((SUMIFS(Calc_NetworkF_1[United Energy],Calc_NetworkF_1[[Cost item]:[Cost item]],$C59,Calc_NetworkF_1[[Customer type]:[Customer type]],$E59)+SUMIFS(Calc_Fixed_1[United Energy],Calc_Fixed_1[[Customer type]:[Customer type]],"All")+SUMIFS(Calc_Fixed_1[United Energy],Calc_Fixed_1[[Customer type]:[Customer type]],$E59))/DiY)*(1+Calc_ROM_1[United Energy]))*(1+GST),8),0,1)) -> 0 | M59: TOU - supply | N59: $ | O59: Small business | Q59: =IF(Q24="-","-", IF(ROUND(Q24,8)= ROUND((((SUMIFS(Calc_NetworkF_1[Ausnet],Calc_NetworkF_1[[Cost item]:[Cost item]],$M59,Calc_NetworkF_1[[Customer type]:[Customer type]],$O59)+SUMIFS(Calc_Fixed_1[Ausnet],Calc_Fixed_1[[Customer type]:[Customer type]],"All")+SUMIFS(Calc_Fixed_1[Ausnet],Calc_Fixed_1[[Customer type]:[Customer type]],$O59))/DiY)*(1+Calc_ROM_1[Ausnet]))*(1+GST),8),0,1)) -> 0 | R59: =IF(R24="-","-", IF(ROUND(R24,8)= ROUND((((SUMIFS(Calc_NetworkF_1[Citipower],Calc_NetworkF_1[[Cost item]:[Cost item]],$M59,Calc_NetworkF_1[[Customer type]:[Customer type]],$O59)+SUMIFS(Calc_Fixed_1[Citipower],Calc_Fixed_1[[Customer type]:[Customer type]],"All")+SUMIFS(Calc_Fixed_1[Citipower],Calc_Fixed_1[[Customer type]:[Customer type]],$O59))/DiY)*(1+Calc_ROM_1[Citipower]))*(1+GST),8),0,1)) -> 0 | S59: =IF(S24="-","-", IF(ROUND(S24,8)= ROUND((((SUMIFS(Calc_NetworkF_1[Jemena],Calc_NetworkF_1[[Cost item]:[Cost item]],$M59,Calc_NetworkF_1[[Customer type]:[Customer type]],$O59)+SUMIFS(Calc_Fixed_1[Jemena],Calc_Fixed_1[[Customer type]:[Customer type]],"All")+SUMIFS(Calc_Fixed_1[Jemena],Calc_Fixed_1[[Customer type]:[Customer type]],$O59))/DiY)*(1+Calc_ROM_1[Jemena]))*(1+GST),8),0,1)) -> 0 | T59: =IF(T24="-","-", IF(ROUND(T24,8)= ROUND((((SUMIFS(Calc_NetworkF_1[Powercor],Calc_NetworkF_1[[Cost item]:[Cost item]],$M59,Calc_NetworkF_1[[Customer type]:[Customer type]],$O59)+SUMIFS(Calc_Fixed_1[Powercor],Calc_Fixed_1[[Customer type]:[Customer type]],"All")+SUMIFS(Calc_Fixed_1[Powercor],Calc_Fixed_1[[Customer type]:[Customer type]],$O59))/DiY)*(1+Calc_ROM_1[Powercor]))*(1+GST),8),0,1)) -> 0 | U59: =IF(U24="-","-", IF(ROUND(U24,8)= ROUND((((SUMIFS(Calc_NetworkF_1[United Energy],Calc_NetworkF_1[[Cost item]:[Cost item]],$M59,Calc_NetworkF_1[[Customer type]:[Customer type]],$O59)+SUMIFS(Calc_Fixed_1[United Energy],Calc_Fixed_1[[Customer type]:[Customer type]],"All")+SUMIFS(Calc_Fixed_1[United Energy],Calc_Fixed_1[[Customer type]:[Customer type]],$O59))/DiY)*(1+Calc_ROM_1[United Energy]))*(1+GST),8),0,1)) -> 0
C60: Peak | D60: $/kWh | E60: Residential | G60: =IF(G25="-","-", IF(ROUND(G25,8)=ROUND( ((SUMIFS(Calc_Variable_1[Ausnet],Calc_Variable_1[[Customer type]:[Customer type]],"All")+ SUMIFS(Calc_Variable_1[Ausnet],Calc_Variable_1[[Customer type]:[Customer type]],OP_Rates!$E60)+ SUMIFS(Calc_NetworkV_1[Ausnet],Calc_NetworkV_1[[Customer type]:[Customer type]],OP_Rates!$E60,Calc_NetworkV_1[[Cost item]:[Cost item]],OP_Rates!$C60))*(1+Calc_ROM_1[Ausnet]))*(1+GST),8),0,1)) -> 0 | H60: =IF(H25="-","-", IF(ROUND(H25,8)=ROUND( ((SUMIFS(Calc_Variable_1[Citipower],Calc_Variable_1[[Customer type]:[Customer type]],"All")+ SUMIFS(Calc_Variable_1[Citipower],Calc_Variable_1[[Customer type]:[Customer type]],OP_Rates!$E60)+ SUMIFS(Calc_NetworkV_1[Citipower],Calc_NetworkV_1[[Customer type]:[Customer type]],OP_Rates!$E60,Calc_NetworkV_1[[Cost item]:[Cost item]],OP_Rates!$C60))*(1+Calc_ROM_1[Citipower]))*(1+GST),8),0,1)) -> 0 | I60: =IF(I25="-","-", IF(ROUND(I25,8)=ROUND( ((SUMIFS(Calc_Variable_1[Jemena],Calc_Variable_1[[Customer type]:[Customer type]],"All")+ SUMIFS(Calc_Variable_1[Jemena],Calc_Variable_1[[Customer type]:[Customer type]],OP_Rates!$E60)+ SUMIFS(Calc_NetworkV_1[Jemena],Calc_NetworkV_1[[Customer type]:[Customer type]],OP_Rates!$E60,Calc_NetworkV_1[[Cost item]:[Cost item]],OP_Rates!$C60))*(1+Calc_ROM_1[Jemena]))*(1+GST),8),0,1)) -> 0 | J60: =IF(J25="-","-", IF(ROUND(J25,8)=ROUND( ((SUMIFS(Calc_Variable_1[Powercor],Calc_Variable_1[[Customer type]:[Customer type]],"All")+ SUMIFS(Calc_Variable_1[Powercor],Calc_Variable_1[[Customer type]:[Customer type]],OP_Rates!$E60)+ SUMIFS(Calc_NetworkV_1[Powercor],Calc_NetworkV_1[[Customer type]:[Customer type]],OP_Rates!$E60,Calc_NetworkV_1[[Cost item]:[Cost item]],OP_Rates!$C60))*(1+Calc_ROM_1[Powercor]))*(1+GST),8),0,1)) -> 0 | K60: =IF(K25="-","-", IF(ROUND(K25,8)=ROUND( ((SUMIFS(Calc_Variable_1[United Energy],Calc_Variable_1[[Customer type]:[Customer type]],"All")+ SUMIFS(Calc_Variable_1[United Energy],Calc_Variable_1[[Customer type]:[Customer type]],OP_Rates!$E60)+ SUMIFS(Calc_NetworkV_1[United Energy],Calc_NetworkV_1[[Customer type]:[Customer type]],OP_Rates!$E60,Calc_NetworkV_1[[Cost item]:[Cost item]],OP_Rates!$C60))*(1+Calc_ROM_1[United Energy]))*(1+GST),8),0,1)) -> 0 | M60: Peak | N60: $/kWh | O60: Small business | Q60: =IF(Q25="-","-", IF(ROUND(Q25,8)=ROUND( ((SUMIFS(Calc_Variable_1[Ausnet],Calc_Variable_1[[Customer type]:[Customer type]],"All")+ SUMIFS(Calc_Variable_1[Ausnet],Calc_Variable_1[[Customer type]:[Customer type]],OP_Rates!$O60)+ SUMIFS(Calc_NetworkV_1[Ausnet],Calc_NetworkV_1[[Customer type]:[Customer type]],OP_Rates!$O60,Calc_NetworkV_1[[Cost item]:[Cost item]],OP_Rates!$M60))*(1+Calc_ROM_1[Ausnet]))*(1+GST),8),0,1)) -> 0 | R60: =IF(R25="-","-", IF(ROUND(R25,8)=ROUND( ((SUMIFS(Calc_Variable_1[Citipower],Calc_Variable_1[[Customer type]:[Customer type]],"All")+ SUMIFS(Calc_Variable_1[Citipower],Calc_Variable_1[[Customer type]:[Customer type]],OP_Rates!$O60)+ SUMIFS(Calc_NetworkV_1[Citipower],Calc_NetworkV_1[[Customer type]:[Customer type]],OP_Rates!$O60,Calc_NetworkV_1[[Cost item]:[Cost item]],OP_Rates!$M60))*(1+Calc_ROM_1[Citipower]))*(1+GST),8),0,1)) -> 0 | S60: =IF(S25="-","-", IF(ROUND(S25,8)=ROUND( ((SUMIFS(Calc_Variable_1[Jemena],Calc_Variable_1[[Customer type]:[Customer type]],"All")+ SUMIFS(Calc_Variable_1[Jemena],Calc_Variable_1[[Customer type]:[Customer type]],OP_Rates!$O60)+ SUMIFS(Calc_NetworkV_1[Jemena],Calc_NetworkV_1[[Customer type]:[Customer type]],OP_Rates!$O60,Calc_NetworkV_1[[Cost item]:[Cost item]],OP_Rates!$M60))*(1+Calc_ROM_1[Jemena]))*(1+GST),8),0,1)) -> 0 | T60: =IF(T25="-","-", IF(ROUND(T25,8)=ROUND( ((SUMIFS(Calc_Variable_1[Powercor],Calc_Variable_1[[Customer type]:[Customer type]],"All")+ SUMIFS(Calc_Variable_1[Powercor],Calc_Variable_1[[Customer type]:[Customer type]],OP_Rates!$O60)+ SUMIFS(Calc_NetworkV_1[Powercor],Calc_NetworkV_1[[Customer type]:[Customer type]],OP_Rates!$O60,Calc_NetworkV_1[[Cost item]:[Cost item]],OP_Rates!$M60))*(1+Calc_ROM_1[Powercor]))*(1+GST),8),0,1)) -> 0 | U60: =IF(U25="-","-", IF(ROUND(U25,8)=ROUND( ((SUMIFS(Calc_Variable_1[United Energy],Calc_Variable_1[[Customer type]:[Customer type]],"All")+ SUMIFS(Calc_Variable_1[United Energy],Calc_Variable_1[[Customer type]:[Customer type]],OP_Rates!$O60)+ SUMIFS(Calc_NetworkV_1[United Energy],Calc_NetworkV_1[[Customer type]:[Customer type]],OP_Rates!$O60,Calc_NetworkV_1[[Cost item]:[Cost item]],OP_Rates!$M60))*(1+Calc_ROM_1[United Energy]))*(1+GST),8),0,1)) -> 0
C61: Off peak | D61: $/kWh | E61: Residential | G61: =IF(G26="-","-", IF(ROUND(G26,8)=ROUND( ((SUMIFS(Calc_Variable_1[Ausnet],Calc_Variable_1[[Customer type]:[Customer type]],"All")+ SUMIFS(Calc_Variable_1[Ausnet],Calc_Variable_1[[Customer type]:[Customer type]],OP_Rates!$E61)+ SUMIFS(Calc_NetworkV_1[Ausnet],Calc_NetworkV_1[[Customer type]:[Customer type]],OP_Rates!$E61,Calc_NetworkV_1[[Cost item]:[Cost item]],OP_Rates!$C61))*(1+Calc_ROM_1[Ausnet]))*(1+GST),8),0,1)) -> 0 | H61: =IF(H26="-","-", IF(ROUND(H26,8)=ROUND( ((SUMIFS(Calc_Variable_1[Citipower],Calc_Variable_1[[Customer type]:[Customer type]],"All")+ SUMIFS(Calc_Variable_1[Citipower],Calc_Variable_1[[Customer type]:[Customer type]],OP_Rates!$E61)+ SUMIFS(Calc_NetworkV_1[Citipower],Calc_NetworkV_1[[Customer type]:[Customer type]],OP_Rates!$E61,Calc_NetworkV_1[[Cost item]:[Cost item]],OP_Rates!$C61))*(1+Calc_ROM_1[Citipower]))*(1+GST),8),0,1)) -> 0 | I61: =IF(I26="-","-", IF(ROUND(I26,8)=ROUND( ((SUMIFS(Calc_Variable_1[Jemena],Calc_Variable_1[[Customer type]:[Customer type]],"All")+ SUMIFS(Calc_Variable_1[Jemena],Calc_Variable_1[[Customer type]:[Customer type]],OP_Rates!$E61)+ SUMIFS(Calc_NetworkV_1[Jemena],Calc_NetworkV_1[[Customer type]:[Customer type]],OP_Rates!$E61,Calc_NetworkV_1[[Cost item]:[Cost item]],OP_Rates!$C61))*(1+Calc_ROM_1[Jemena]))*(1+GST),8),0,1)) -> 0 | J61: =IF(J26="-","-", IF(ROUND(J26,8)=ROUND( ((SUMIFS(Calc_Variable_1[Powercor],Calc_Variable_1[[Customer type]:[Customer type]],"All")+ SUMIFS(Calc_Variable_1[Powercor],Calc_Variable_1[[Customer type]:[Customer type]],OP_Rates!$E61)+ SUMIFS(Calc_NetworkV_1[Powercor],Calc_NetworkV_1[[Customer type]:[Customer type]],OP_Rates!$E61,Calc_NetworkV_1[[Cost item]:[Cost item]],OP_Rates!$C61))*(1+Calc_ROM_1[Powercor]))*(1+GST),8),0,1)) -> 0 | K61: =IF(K26="-","-", IF(ROUND(K26,8)=ROUND( ((SUMIFS(Calc_Variable_1[United Energy],Calc_Variable_1[[Customer type]:[Customer type]],"All")+ SUMIFS(Calc_Variable_1[United Energy],Calc_Variable_1[[Customer type]:[Customer type]],OP_Rates!$E61)+ SUMIFS(Calc_NetworkV_1[United Energy],Calc_NetworkV_1[[Customer type]:[Customer type]],OP_Rates!$E61,Calc_NetworkV_1[[Cost item]:[Cost item]],OP_Rates!$C61))*(1+Calc_ROM_1[United Energy]))*(1+GST),8),0,1)) -> 0 | M61: Off peak | N61: $/kWh | O61: Small business | Q61: =IF(Q26="-","-", IF(ROUND(Q26,8)=ROUND( ((SUMIFS(Calc_Variable_1[Ausnet],Calc_Variable_1[[Customer type]:[Customer type]],"All")+ SUMIFS(Calc_Variable_1[Ausnet],Calc_Variable_1[[Customer type]:[Customer type]],OP_Rates!$O61)+ SUMIFS(Calc_NetworkV_1[Ausnet],Calc_NetworkV_1[[Customer type]:[Customer type]],OP_Rates!$O61,Calc_NetworkV_1[[Cost item]:[Cost item]],OP_Rates!$M61))*(1+Calc_ROM_1[Ausnet]))*(1+GST),8),0,1)) -> 0 | R61: =IF(R26="-","-", IF(ROUND(R26,8)=ROUND( ((SUMIFS(Calc_Variable_1[Citipower],Calc_Variable_1[[Customer type]:[Customer type]],"All")+ SUMIFS(Calc_Variable_1[Citipower],Calc_Variable_1[[Customer type]:[Customer type]],OP_Rates!$O61)+ SUMIFS(Calc_NetworkV_1[Citipower],Calc_NetworkV_1[[Customer type]:[Customer type]],OP_Rates!$O61,Calc_NetworkV_1[[Cost item]:[Cost item]],OP_Rates!$M61))*(1+Calc_ROM_1[Citipower]))*(1+GST),8),0,1)) -> 0 | S61: =IF(S26="-","-", IF(ROUND(S26,8)=ROUND( ((SUMIFS(Calc_Variable_1[Jemena],Calc_Variable_1[[Customer type]:[Customer type]],"All")+ SUMIFS(Calc_Variable_1[Jemena],Calc_Variable_1[[Customer type]:[Customer type]],OP_Rates!$O61)+ SUMIFS(Calc_NetworkV_1[Jemena],Calc_NetworkV_1[[Customer type]:[Customer type]],OP_Rates!$O61,Calc_NetworkV_1[[Cost item]:[Cost item]],OP_Rates!$M61))*(1+Calc_ROM_1[Jemena]))*(1+GST),8),0,1)) -> 0 | T61: =IF(T26="-","-", IF(ROUND(T26,8)=ROUND( ((SUMIFS(Calc_Variable_1[Powercor],Calc_Variable_1[[Customer type]:[Customer type]],"All")+ SUMIFS(Calc_Variable_1[Powercor],Calc_Variable_1[[Customer type]:[Customer type]],OP_Rates!$O61)+ SUMIFS(Calc_NetworkV_1[Powercor],Calc_NetworkV_1[[Customer type]:[Customer type]],OP_Rates!$O61,Calc_NetworkV_1[[Cost item]:[Cost item]],OP_Rates!$M61))*(1+Calc_ROM_1[Powercor]))*(1+GST),8),0,1)) -> 0 | U61: =IF(U26="-","-", IF(ROUND(U26,8)=ROUND( ((SUMIFS(Calc_Variable_1[United Energy],Calc_Variable_1[[Customer type]:[Customer type]],"All")+ SUMIFS(Calc_Variable_1[United Energy],Calc_Variable_1[[Customer type]:[Customer type]],OP_Rates!$O61)+ SUMIFS(Calc_NetworkV_1[United Energy],Calc_NetworkV_1[[Customer type]:[Customer type]],OP_Rates!$O61,Calc_NetworkV_1[[Cost item]:[Cost item]],OP_Rates!$M61))*(1+Calc_ROM_1[United Energy]))*(1+GST),8),0,1)) -> 0
C62: Controlled load | D62: $/kWh | E62: Residential | G62: =IF(G27="-","-", IF(ROUND(G27,8)=ROUND( ((SUMIFS(Calc_Variable_1[Ausnet],Calc_Variable_1[[Customer type]:[Customer type]],"All")+ SUMIFS(Calc_Variable_1[Ausnet],Calc_Variable_1[[Customer type]:[Customer type]],OP_Rates!$E62)+ SUMIFS(Calc_NetworkV_1[Ausnet],Calc_NetworkV_1[[Customer type]:[Customer type]],OP_Rates!$E62,Calc_NetworkV_1[[Cost item]:[Cost item]],OP_Rates!$C62))*(1+Calc_ROM_1[Ausnet]))*(1+GST),8),0,1)) -> 0 | H62: =IF(H27="-","-", IF(ROUND(H27,8)=ROUND( ((SUMIFS(Calc_Variable_1[Citipower],Calc_Variable_1[[Customer type]:[Customer type]],"All")+ SUMIFS(Calc_Variable_1[Citipower],Calc_Variable_1[[Customer type]:[Customer type]],OP_Rates!$E62)+ SUMIFS(Calc_NetworkV_1[Citipower],Calc_NetworkV_1[[Customer type]:[Customer type]],OP_Rates!$E62,Calc_NetworkV_1[[Cost item]:[Cost item]],OP_Rates!$C62))*(1+Calc_ROM_1[Citipower]))*(1+GST),8),0,1)) -> 0 | I62: =IF(I27="-","-", IF(ROUND(I27,8)=ROUND( ((SUMIFS(Calc_Variable_1[Jemena],Calc_Variable_1[[Customer type]:[Customer type]],"All")+ SUMIFS(Calc_Variable_1[Jemena],Calc_Variable_1[[Customer type]:[Customer type]],OP_Rates!$E62)+ SUMIFS(Calc_NetworkV_1[Jemena],Calc_NetworkV_1[[Customer type]:[Customer type]],OP_Rates!$E62,Calc_NetworkV_1[[Cost item]:[Cost item]],OP_Rates!$C62))*(1+Calc_ROM_1[Jemena]))*(1+GST),8),0,1)) -> 0 | J62: =IF(J27="-","-", IF(ROUND(J27,8)=ROUND( ((SUMIFS(Calc_Variable_1[Powercor],Calc_Variable_1[[Customer type]:[Customer type]],"All")+ SUMIFS(Calc_Variable_1[Powercor],Calc_Variable_1[[Customer type]:[Customer type]],OP_Rates!$E62)+ SUMIFS(Calc_NetworkV_1[Powercor],Calc_NetworkV_1[[Customer type]:[Customer type]],OP_Rates!$E62,Calc_NetworkV_1[[Cost item]:[Cost item]],OP_Rates!$C62))*(1+Calc_ROM_1[Powercor]))*(1+GST),8),0,1)) -> 0 | K62: =IF(K27="-","-", IF(ROUND(K27,8)=ROUND( ((SUMIFS(Calc_Variable_1[United Energy],Calc_Variable_1[[Customer type]:[Customer type]],"All")+ SUMIFS(Calc_Variable_1[United Energy],Calc_Variable_1[[Customer type]:[Customer type]],OP_Rates!$E62)+ SUMIFS(Calc_NetworkV_1[United Energy],Calc_NetworkV_1[[Customer type]:[Customer type]],OP_Rates!$E62,Calc_NetworkV_1[[Cost item]:[Cost item]],OP_Rates!$C62))*(1+Calc_ROM_1[United Energy]))*(1+GST),8),0,1)) -> 0
C64: =C$29&" - checks" -> Residential True Up - checks | M64: =M$29&" - checks" -> Small business True Up - checks
C65: Rate name | D65: Unit | E65: Customer type | F65: Cost element | G65: Ausnet | H65: Citipower | I65: Jemena | J65: Powercor | K65: United Energy | M65: Rate name | N65: Unit | O65: Customer type | P65: Cost element | Q65: Ausnet | R65: Citipower | S65: Jemena | T65: Powercor | U65: United Energy
C66: Anytime | D66: $ | E66: Residential | F66: Network | G66: =IF(G31="-","-", IF(ROUND(G31,8)= IF($F66="Network", IF($C66<>"Controlled load", ROUND(INDEX(Calc_TUR_Net_1[[Ausnet]:[United Energy]],MATCH(1,(Calc_TUR_Net_1[[Customer type]:[Customer type]]=OP_Rates!$E66)*(Calc_TUR_Net_1[[Rate type]:[Rate type]]=OP_Rates!$C66),0),MATCH(OP_Rates!G$65,Calc_TUR_Net_1[[#Headers],[Ausnet]:[United Energy]],0)),8), ROUND(INDEX(Calc_TUR_NetCL_1[[Ausnet]:[United Energy]],MATCH(OP_Rates!$E66,Calc_TUR_Net_1[[Customer type]:[Customer type]],0),MATCH(OP_Rates!G$65,Calc_TUR_Net_1[[#Headers],[Ausnet]:[United Energy]],0)),8)), IF($F66="Environmental", ROUND(SUMIFS(Calc_TUR_Env_1[Ausnet],Calc_TUR_Env_1[[Customer type]:[Customer type]],OP_Rates!$E66,Calc_TUR_Env_1[[Rate type]:[Rate type]],OP_Rates!$C66),8))),0,1)) -> - | H66: =IF(H31="-","-", IF(ROUND(H31,8)= IF($F66="Network", IF($C66<>"Controlled load", ROUND(INDEX(Calc_TUR_Net_1[[Ausnet]:[United Energy]],MATCH(1,(Calc_TUR_Net_1[[Customer type]:[Customer type]]=OP_Rates!$E66)*(Calc_TUR_Net_1[[Rate type]:[Rate type]]=OP_Rates!$C66),0),MATCH(OP_Rates!H$65,Calc_TUR_Net_1[[#Headers],[Ausnet]:[United Energy]],0)),8), ROUND(INDEX(Calc_TUR_NetCL_1[[Ausnet]:[United Energy]],MATCH(OP_Rates!$E66,Calc_TUR_Net_1[[Customer type]:[Customer type]],0),MATCH(OP_Rates!H$65,Calc_TUR_Net_1[[#Headers],[Ausnet]:[United Energy]],0)),8)), IF($F66="Environmental", ROUND(SUMIFS(Calc_TUR_Env_1[Citipower],Calc_TUR_Env_1[[Customer type]:[Customer type]],OP_Rates!$E66,Calc_TUR_Env_1[[Rate type]:[Rate type]],OP_Rates!$C66),8))),0,1)) -> - | I66: =IF(I31="-","-", IF(ROUND(I31,8)= IF($F66="Network", IF($C66<>"Controlled load", ROUND(INDEX(Calc_TUR_Net_1[[Ausnet]:[United Energy]],MATCH(1,(Calc_TUR_Net_1[[Customer type]:[Customer type]]=OP_Rates!$E66)*(Calc_TUR_Net_1[[Rate type]:[Rate type]]=OP_Rates!$C66),0),MATCH(OP_Rates!I$65,Calc_TUR_Net_1[[#Headers],[Ausnet]:[United Energy]],0)),8), ROUND(INDEX(Calc_TUR_NetCL_1[[Ausnet]:[United Energy]],MATCH(OP_Rates!$E66,Calc_TUR_Net_1[[Customer type]:[Customer type]],0),MATCH(OP_Rates!I$65,Calc_TUR_Net_1[[#Headers],[Ausnet]:[United Energy]],0)),8)), IF($F66="Environmental", ROUND(SUMIFS(Calc_TUR_Env_1[Jemena],Calc_TUR_Env_1[[Customer type]:[Customer type]],OP_Rates!$E66,Calc_TUR_Env_1[[Rate type]:[Rate type]],OP_Rates!$C66),8))),0,1)) -> - | J66: =IF(J31="-","-", IF(ROUND(J31,8)= IF($F66="Network", IF($C66<>"Controlled load", ROUND(INDEX(Calc_TUR_Net_1[[Ausnet]:[United Energy]],MATCH(1,(Calc_TUR_Net_1[[Customer type]:[Customer type]]=OP_Rates!$E66)*(Calc_TUR_Net_1[[Rate type]:[Rate type]]=OP_Rates!$C66),0),MATCH(OP_Rates!J$65,Calc_TUR_Net_1[[#Headers],[Ausnet]:[United Energy]],0)),8), ROUND(INDEX(Calc_TUR_NetCL_1[[Ausnet]:[United Energy]],MATCH(OP_Rates!$E66,Calc_TUR_Net_1[[Customer type]:[Customer type]],0),MATCH(OP_Rates!J$65,Calc_TUR_Net_1[[#Headers],[Ausnet]:[United Energy]],0)),8)), IF($F66="Environmental", ROUND(SUMIFS(Calc_TUR_Env_1[Powercor],Calc_TUR_Env_1[[Customer type]:[Customer type]],OP_Rates!$E66,Calc_TUR_Env_1[[Rate type]:[Rate type]],OP_Rates!$C66),8))),0,1)) -> - | K66: =IF(K31="-","-", IF(ROUND(K31,8)= IF($F66="Network", IF($C66<>"Controlled load", ROUND(INDEX(Calc_TUR_Net_1[[Ausnet]:[United Energy]],MATCH(1,(Calc_TUR_Net_1[[Customer type]:[Customer type]]=OP_Rates!$E66)*(Calc_TUR_Net_1[[Rate type]:[Rate type]]=OP_Rates!$C66),0),MATCH(OP_Rates!K$65,Calc_TUR_Net_1[[#Headers],[Ausnet]:[United Energy]],0)),8), ROUND(INDEX(Calc_TUR_NetCL_1[[Ausnet]:[United Energy]],MATCH(OP_Rates!$E66,Calc_TUR_Net_1[[Customer type]:[Customer type]],0),MATCH(OP_Rates!K$65,Calc_TUR_Net_1[[#Headers],[Ausnet]:[United Energy]],0)),8)), IF($F66="Environmental", ROUND(SUMIFS(Calc_TUR_Env_1[United Energy],Calc_TUR_Env_1[[Customer type]:[Customer type]],OP_Rates!$E66,Calc_TUR_Env_1[[Rate type]:[Rate type]],OP_Rates!$C66),8))),0,1)) -> - | M66: Anytime | N66: $ | O66: Small business | P66: Network | Q66: =IF(Q31="-","-", IF(ROUND(Q31,8)= IF($P66="Network", ROUND(INDEX(Calc_TUR_Net_1[[Ausnet]:[United Energy]],MATCH(1,(Calc_TUR_Net_1[[Customer type]:[Customer type]]=OP_Rates!$O66)*(Calc_TUR_Net_1[[Rate type]:[Rate type]]=OP_Rates!$C66),0),MATCH(OP_Rates!Q$65,Calc_TUR_Net_1[[#Headers],[Ausnet]:[United Energy]],0)),8), IF($P66="Environmental", ROUND(SUMIFS(Calc_TUR_Env_1[Ausnet],Calc_TUR_Env_1[[Customer type]:[Customer type]],OP_Rates!$O66,Calc_TUR_Env_1[[Rate type]:[Rate type]],OP_Rates!$C66),8))),0,1)) -> - | R66: =IF(R31="-","-", IF(ROUND(R31,8)= IF($P66="Network", ROUND(INDEX(Calc_TUR_Net_1[[Ausnet]:[United Energy]],MATCH(1,(Calc_TUR_Net_1[[Customer type]:[Customer type]]=OP_Rates!$O66)*(Calc_TUR_Net_1[[Rate type]:[Rate type]]=OP_Rates!$C66),0),MATCH(OP_Rates!R$65,Calc_TUR_Net_1[[#Headers],[Ausnet]:[United Energy]],0)),8), IF($P66="Environmental", ROUND(SUMIFS(Calc_TUR_Env_1[Citipower],Calc_TUR_Env_1[[Customer type]:[Customer type]],OP_Rates!$O66,Calc_TUR_Env_1[[Rate type]:[Rate type]],OP_Rates!$C66),8))),0,1)) -> - | S66: =IF(S31="-","-", IF(ROUND(S31,8)= IF($P66="Network", ROUND(INDEX(Calc_TUR_Net_1[[Ausnet]:[United Energy]],MATCH(1,(Calc_TUR_Net_1[[Customer type]:[Customer type]]=OP_Rates!$O66)*(Calc_TUR_Net_1[[Rate type]:[Rate type]]=OP_Rates!$C66),0),MATCH(OP_Rates!S$65,Calc_TUR_Net_1[[#Headers],[Ausnet]:[United Energy]],0)),8), IF($P66="Environmental", ROUND(SUMIFS(Calc_TUR_Env_1[Jemena],Calc_TUR_Env_1[[Customer type]:[Customer type]],OP_Rates!$O66,Calc_TUR_Env_1[[Rate type]:[Rate type]],OP_Rates!$C66),8))),0,1)) -> - | T66: =IF(T31="-","-", IF(ROUND(T31,8)= IF($P66="Network", ROUND(INDEX(Calc_TUR_Net_1[[Ausnet]:[United Energy]],MATCH(1,(Calc_TUR_Net_1[[Customer type]:[Customer type]]=OP_Rates!$O66)*(Calc_TUR_Net_1[[Rate type]:[Rate type]]=OP_Rates!$C66),0),MATCH(OP_Rates!T$65,Calc_TUR_Net_1[[#Headers],[Ausnet]:[United Energy]],0)),8), IF($P66="Environmental", ROUND(SUMIFS(Calc_TUR_Env_1[Powercor],Calc_TUR_Env_1[[Customer type]:[Customer type]],OP_Rates!$O66,Calc_TUR_Env_1[[Rate type]:[Rate type]],OP_Rates!$C66),8))),0,1)) -> - | U66: =IF(U31="-","-", IF(ROUND(U31,8)= IF($P66="Network", ROUND(INDEX(Calc_TUR_Net_1[[Ausnet]:[United Energy]],MATCH(1,(Calc_TUR_Net_1[[Customer type]:[Customer type]]=OP_Rates!$O66)*(Calc_TUR_Net_1[[Rate type]:[Rate type]]=OP_Rates!$C66),0),MATCH(OP_Rates!U$65,Calc_TUR_Net_1[[#Headers],[Ausnet]:[United Energy]],0)),8), IF($P66="Environmental", ROUND(SUMIFS(Calc_TUR_Env_1[United Energy],Calc_TUR_Env_1[[Customer type]:[Customer type]],OP_Rates!$O66,Calc_TUR_Env_1[[Rate type]:[Rate type]],OP_Rates!$C66),8))),0,1)) -> -
C67: TOU | D67: $ | E67: Residential | F67: Network | G67: =IF(G32="-","-", IF(ROUND(G32,8)= IF($F67="Network", IF($C67<>"Controlled load", ROUND(INDEX(Calc_TUR_Net_1[[Ausnet]:[United Energy]],MATCH(1,(Calc_TUR_Net_1[[Customer type]:[Customer type]]=OP_Rates!$E67)*(Calc_TUR_Net_1[[Rate type]:[Rate type]]=OP_Rates!$C67),0),MATCH(OP_Rates!G$65,Calc_TUR_Net_1[[#Headers],[Ausnet]:[United Energy]],0)),8), ROUND(INDEX(Calc_TUR_NetCL_1[[Ausnet]:[United Energy]],MATCH(OP_Rates!$E67,Calc_TUR_Net_1[[Customer type]:[Customer type]],0),MATCH(OP_Rates!G$65,Calc_TUR_Net_1[[#Headers],[Ausnet]:[United Energy]],0)),8)), IF($F67="Environmental", ROUND(SUMIFS(Calc_TUR_Env_1[Ausnet],Calc_TUR_Env_1[[Customer type]:[Customer type]],OP_Rates!$E67,Calc_TUR_Env_1[[Rate type]:[Rate type]],OP_Rates!$C67),8))),0,1)) -> - | H67: =IF(H32="-","-", IF(ROUND(H32,8)= IF($F67="Network", IF($C67<>"Controlled load", ROUND(INDEX(Calc_TUR_Net_1[[Ausnet]:[United Energy]],MATCH(1,(Calc_TUR_Net_1[[Customer type]:[Customer type]]=OP_Rates!$E67)*(Calc_TUR_Net_1[[Rate type]:[Rate type]]=OP_Rates!$C67),0),MATCH(OP_Rates!H$65,Calc_TUR_Net_1[[#Headers],[Ausnet]:[United Energy]],0)),8), ROUND(INDEX(Calc_TUR_NetCL_1[[Ausnet]:[United Energy]],MATCH(OP_Rates!$E67,Calc_TUR_Net_1[[Customer type]:[Customer type]],0),MATCH(OP_Rates!H$65,Calc_TUR_Net_1[[#Headers],[Ausnet]:[United Energy]],0)),8)), IF($F67="Environmental", ROUND(SUMIFS(Calc_TUR_Env_1[Citipower],Calc_TUR_Env_1[[Customer type]:[Customer type]],OP_Rates!$E67,Calc_TUR_Env_1[[Rate type]:[Rate type]],OP_Rates!$C67),8))),0,1)) -> - | I67: =IF(I32="-","-", IF(ROUND(I32,8)= IF($F67="Network", IF($C67<>"Controlled load", ROUND(INDEX(Calc_TUR_Net_1[[Ausnet]:[United Energy]],MATCH(1,(Calc_TUR_Net_1[[Customer type]:[Customer type]]=OP_Rates!$E67)*(Calc_TUR_Net_1[[Rate type]:[Rate type]]=OP_Rates!$C67),0),MATCH(OP_Rates!I$65,Calc_TUR_Net_1[[#Headers],[Ausnet]:[United Energy]],0)),8), ROUND(INDEX(Calc_TUR_NetCL_1[[Ausnet]:[United Energy]],MATCH(OP_Rates!$E67,Calc_TUR_Net_1[[Customer type]:[Customer type]],0),MATCH(OP_Rates!I$65,Calc_TUR_Net_1[[#Headers],[Ausnet]:[United Energy]],0)),8)), IF($F67="Environmental", ROUND(SUMIFS(Calc_TUR_Env_1[Jemena],Calc_TUR_Env_1[[Customer type]:[Customer type]],OP_Rates!$E67,Calc_TUR_Env_1[[Rate type]:[Rate type]],OP_Rates!$C67),8))),0,1)) -> - | J67: =IF(J32="-","-", IF(ROUND(J32,8)= IF($F67="Network", IF($C67<>"Controlled load", ROUND(INDEX(Calc_TUR_Net_1[[Ausnet]:[United Energy]],MATCH(1,(Calc_TUR_Net_1[[Customer type]:[Customer type]]=OP_Rates!$E67)*(Calc_TUR_Net_1[[Rate type]:[Rate type]]=OP_Rates!$C67),0),MATCH(OP_Rates!J$65,Calc_TUR_Net_1[[#Headers],[Ausnet]:[United Energy]],0)),8), ROUND(INDEX(Calc_TUR_NetCL_1[[Ausnet]:[United Energy]],MATCH(OP_Rates!$E67,Calc_TUR_Net_1[[Customer type]:[Customer type]],0),MATCH(OP_Rates!J$65,Calc_TUR_Net_1[[#Headers],[Ausnet]:[United Energy]],0)),8)), IF($F67="Environmental", ROUND(SUMIFS(Calc_TUR_Env_1[Powercor],Calc_TUR_Env_1[[Customer type]:[Customer type]],OP_Rates!$E67,Calc_TUR_Env_1[[Rate type]:[Rate type]],OP_Rates!$C67),8))),0,1)) -> - | K67: =IF(K32="-","-", IF(ROUND(K32,8)= IF($F67="Network", IF($C67<>"Controlled load", ROUND(INDEX(Calc_TUR_Net_1[[Ausnet]:[United Energy]],MATCH(1,(Calc_TUR_Net_1[[Customer type]:[Customer type]]=OP_Rates!$E67)*(Calc_TUR_Net_1[[Rate type]:[Rate type]]=OP_Rates!$C67),0),MATCH(OP_Rates!K$65,Calc_TUR_Net_1[[#Headers],[Ausnet]:[United Energy]],0)),8), ROUND(INDEX(Calc_TUR_NetCL_1[[Ausnet]:[United Energy]],MATCH(OP_Rates!$E67,Calc_TUR_Net_1[[Customer type]:[Customer type]],0),MATCH(OP_Rates!K$65,Calc_TUR_Net_1[[#Headers],[Ausnet]:[United Energy]],0)),8)), IF($F67="Environmental", ROUND(SUMIFS(Calc_TUR_Env_1[United Energy],Calc_TUR_Env_1[[Customer type]:[Customer type]],OP_Rates!$E67,Calc_TUR_Env_1[[Rate type]:[Rate type]],OP_Rates!$C67),8))),0,1)) -> - | M67: TOU | N67: $ | O67: Small business | P67: Network | Q67: =IF(Q32="-","-", IF(ROUND(Q32,8)= IF($P67="Network", ROUND(INDEX(Calc_TUR_Net_1[[Ausnet]:[United Energy]],MATCH(1,(Calc_TUR_Net_1[[Customer type]:[Customer type]]=OP_Rates!$O67)*(Calc_TUR_Net_1[[Rate type]:[Rate type]]=OP_Rates!$C67),0),MATCH(OP_Rates!Q$65,Calc_TUR_Net_1[[#Headers],[Ausnet]:[United Energy]],0)),8), IF($P67="Environmental", ROUND(SUMIFS(Calc_TUR_Env_1[Ausnet],Calc_TUR_Env_1[[Customer type]:[Customer type]],OP_Rates!$O67,Calc_TUR_Env_1[[Rate type]:[Rate type]],OP_Rates!$C67),8))),0,1)) -> - | R67: =IF(R32="-","-", IF(ROUND(R32,8)= IF($P67="Network", ROUND(INDEX(Calc_TUR_Net_1[[Ausnet]:[United Energy]],MATCH(1,(Calc_TUR_Net_1[[Customer type]:[Customer type]]=OP_Rates!$O67)*(Calc_TUR_Net_1[[Rate type]:[Rate type]]=OP_Rates!$C67),0),MATCH(OP_Rates!R$65,Calc_TUR_Net_1[[#Headers],[Ausnet]:[United Energy]],0)),8), IF($P67="Environmental", ROUND(SUMIFS(Calc_TUR_Env_1[Citipower],Calc_TUR_Env_1[[Customer type]:[Customer type]],OP_Rates!$O67,Calc_TUR_Env_1[[Rate type]:[Rate type]],OP_Rates!$C67),8))),0,1)) -> - | S67: =IF(S32="-","-", IF(ROUND(S32,8)= IF($P67="Network", ROUND(INDEX(Calc_TUR_Net_1[[Ausnet]:[United Energy]],MATCH(1,(Calc_TUR_Net_1[[Customer type]:[Customer type]]=OP_Rates!$O67)*(Calc_TUR_Net_1[[Rate type]:[Rate type]]=OP_Rates!$C67),0),MATCH(OP_Rates!S$65,Calc_TUR_Net_1[[#Headers],[Ausnet]:[United Energy]],0)),8), IF($P67="Environmental", ROUND(SUMIFS(Calc_TUR_Env_1[Jemena],Calc_TUR_Env_1[[Customer type]:[Customer type]],OP_Rates!$O67,Calc_TUR_Env_1[[Rate type]:[Rate type]],OP_Rates!$C67),8))),0,1)) -> - | T67: =IF(T32="-","-", IF(ROUND(T32,8)= IF($P67="Network", ROUND(INDEX(Calc_TUR_Net_1[[Ausnet]:[United Energy]],MATCH(1,(Calc_TUR_Net_1[[Customer type]:[Customer type]]=OP_Rates!$O67)*(Calc_TUR_Net_1[[Rate type]:[Rate type]]=OP_Rates!$C67),0),MATCH(OP_Rates!T$65,Calc_TUR_Net_1[[#Headers],[Ausnet]:[United Energy]],0)),8), IF($P67="Environmental", ROUND(SUMIFS(Calc_TUR_Env_1[Powercor],Calc_TUR_Env_1[[Customer type]:[Customer type]],OP_Rates!$O67,Calc_TUR_Env_1[[Rate type]:[Rate type]],OP_Rates!$C67),8))),0,1)) -> - | U67: =IF(U32="-","-", IF(ROUND(U32,8)= IF($P67="Network", ROUND(INDEX(Calc_TUR_Net_1[[Ausnet]:[United Energy]],MATCH(1,(Calc_TUR_Net_1[[Customer type]:[Customer type]]=OP_Rates!$O67)*(Calc_TUR_Net_1[[Rate type]:[Rate type]]=OP_Rates!$C67),0),MATCH(OP_Rates!U$65,Calc_TUR_Net_1[[#Headers],[Ausnet]:[United Energy]],0)),8), IF($P67="Environmental", ROUND(SUMIFS(Calc_TUR_Env_1[United Energy],Calc_TUR_Env_1[[Customer type]:[Customer type]],OP_Rates!$O67,Calc_TUR_Env_1[[Rate type]:[Rate type]],OP_Rates!$C67),8))),0,1)) -> -
C68: Controlled load | D68: $/kWh | E68: Residential | F68: Network | G68: =IF(G33="-","-", IF(ROUND(G33,8)= IF($F68="Network", IF($C68<>"Controlled load", ROUND(INDEX(Calc_TUR_Net_1[[Ausnet]:[United Energy]],MATCH(1,(Calc_TUR_Net_1[[Customer type]:[Customer type]]=OP_Rates!$E68)*(Calc_TUR_Net_1[[Rate type]:[Rate type]]=OP_Rates!$C68),0),MATCH(OP_Rates!G$65,Calc_TUR_Net_1[[#Headers],[Ausnet]:[United Energy]],0)),8), ROUND(INDEX(Calc_TUR_NetCL_1[[Ausnet]:[United Energy]],MATCH(OP_Rates!$E68,Calc_TUR_Net_1[[Customer type]:[Customer type]],0),MATCH(OP_Rates!G$65,Calc_TUR_Net_1[[#Headers],[Ausnet]:[United Energy]],0)),8)), IF($F68="Environmental", ROUND(SUMIFS(Calc_TUR_Env_1[Ausnet],Calc_TUR_Env_1[[Customer type]:[Customer type]],OP_Rates!$E68,Calc_TUR_Env_1[[Rate type]:[Rate type]],OP_Rates!$C68),8))),0,1)) -> - | H68: =IF(H33="-","-", IF(ROUND(H33,8)= IF($F68="Network", IF($C68<>"Controlled load", ROUND(INDEX(Calc_TUR_Net_1[[Ausnet]:[United Energy]],MATCH(1,(Calc_TUR_Net_1[[Customer type]:[Customer type]]=OP_Rates!$E68)*(Calc_TUR_Net_1[[Rate type]:[Rate type]]=OP_Rates!$C68),0),MATCH(OP_Rates!H$65,Calc_TUR_Net_1[[#Headers],[Ausnet]:[United Energy]],0)),8), ROUND(INDEX(Calc_TUR_NetCL_1[[Ausnet]:[United Energy]],MATCH(OP_Rates!$E68,Calc_TUR_Net_1[[Customer type]:[Customer type]],0),MATCH(OP_Rates!H$65,Calc_TUR_Net_1[[#Headers],[Ausnet]:[United Energy]],0)),8)), IF($F68="Environmental", ROUND(SUMIFS(Calc_TUR_Env_1[Citipower],Calc_TUR_Env_1[[Customer type]:[Customer type]],OP_Rates!$E68,Calc_TUR_Env_1[[Rate type]:[Rate type]],OP_Rates!$C68),8))),0,1)) -> - | I68: =IF(I33="-","-", IF(ROUND(I33,8)= IF($F68="Network", IF($C68<>"Controlled load", ROUND(INDEX(Calc_TUR_Net_1[[Ausnet]:[United Energy]],MATCH(1,(Calc_TUR_Net_1[[Customer type]:[Customer type]]=OP_Rates!$E68)*(Calc_TUR_Net_1[[Rate type]:[Rate type]]=OP_Rates!$C68),0),MATCH(OP_Rates!I$65,Calc_TUR_Net_1[[#Headers],[Ausnet]:[United Energy]],0)),8), ROUND(INDEX(Calc_TUR_NetCL_1[[Ausnet]:[United Energy]],MATCH(OP_Rates!$E68,Calc_TUR_Net_1[[Customer type]:[Customer type]],0),MATCH(OP_Rates!I$65,Calc_TUR_Net_1[[#Headers],[Ausnet]:[United Energy]],0)),8)), IF($F68="Environmental", ROUND(SUMIFS(Calc_TUR_Env_1[Jemena],Calc_TUR_Env_1[[Customer type]:[Customer type]],OP_Rates!$E68,Calc_TUR_Env_1[[Rate type]:[Rate type]],OP_Rates!$C68),8))),0,1)) -> - | J68: =IF(J33="-","-", IF(ROUND(J33,8)= IF($F68="Network", IF($C68<>"Controlled load", ROUND(INDEX(Calc_TUR_Net_1[[Ausnet]:[United Energy]],MATCH(1,(Calc_TUR_Net_1[[Customer type]:[Customer type]]=OP_Rates!$E68)*(Calc_TUR_Net_1[[Rate type]:[Rate type]]=OP_Rates!$C68),0),MATCH(OP_Rates!J$65,Calc_TUR_Net_1[[#Headers],[Ausnet]:[United Energy]],0)),8), ROUND(INDEX(Calc_TUR_NetCL_1[[Ausnet]:[United Energy]],MATCH(OP_Rates!$E68,Calc_TUR_Net_1[[Customer type]:[Customer type]],0),MATCH(OP_Rates!J$65,Calc_TUR_Net_1[[#Headers],[Ausnet]:[United Energy]],0)),8)), IF($F68="Environmental", ROUND(SUMIFS(Calc_TUR_Env_1[Powercor],Calc_TUR_Env_1[[Customer type]:[Customer type]],OP_Rates!$E68,Calc_TUR_Env_1[[Rate type]:[Rate type]],OP_Rates!$C68),8))),0,1)) -> - | K68: =IF(K33="-","-", IF(ROUND(K33,8)= IF($F68="Network", IF($C68<>"Controlled load", ROUND(INDEX(Calc_TUR_Net_1[[Ausnet]:[United Energy]],MATCH(1,(Calc_TUR_Net_1[[Customer type]:[Customer type]]=OP_Rates!$E68)*(Calc_TUR_Net_1[[Rate type]:[Rate type]]=OP_Rates!$C68),0),MATCH(OP_Rates!K$65,Calc_TUR_Net_1[[#Headers],[Ausnet]:[United Energy]],0)),8), ROUND(INDEX(Calc_TUR_NetCL_1[[Ausnet]:[United Energy]],MATCH(OP_Rates!$E68,Calc_TUR_Net_1[[Customer type]:[Customer type]],0),MATCH(OP_Rates!K$65,Calc_TUR_Net_1[[#Headers],[Ausnet]:[United Energy]],0)),8)), IF($F68="Environmental", ROUND(SUMIFS(Calc_TUR_Env_1[United Energy],Calc_TUR_Env_1[[Customer type]:[Customer type]],OP_Rates!$E68,Calc_TUR_Env_1[[Rate type]:[Rate type]],OP_Rates!$C68),8))),0,1)) -> - | Q68: =IF(Q33="-","-", IF(ROUND(Q33,8)= IF($P68="Network", ROUND(INDEX(Calc_TUR_Net_1[[Ausnet]:[United Energy]],MATCH(1,(Calc_TUR_Net_1[[Customer type]:[Customer type]]=OP_Rates!$O68)*(Calc_TUR_Net_1[[Rate type]:[Rate type]]=OP_Rates!$C68),0),MATCH(OP_Rates!Q$65,Calc_TUR_Net_1[[#Headers],[Ausnet]:[United Energy]],0)),8), IF($P68="Environmental", ROUND(SUMIFS(Calc_TUR_Env_1[Ausnet],Calc_TUR_Env_1[[Customer type]:[Customer type]],OP_Rates!$O68,Calc_TUR_Env_1[[Rate type]:[Rate type]],OP_Rates!$C68),8))),0,1)) -> - | R68: =IF(R33="-","-", IF(ROUND(R33,8)= IF($P68="Network", ROUND(INDEX(Calc_TUR_Net_1[[Ausnet]:[United Energy]],MATCH(1,(Calc_TUR_Net_1[[Customer type]:[Customer type]]=OP_Rates!$O68)*(Calc_TUR_Net_1[[Rate type]:[Rate type]]=OP_Rates!$C68),0),MATCH(OP_Rates!R$65,Calc_TUR_Net_1[[#Headers],[Ausnet]:[United Energy]],0)),8), IF($P68="Environmental", ROUND(SUMIFS(Calc_TUR_Env_1[Citipower],Calc_TUR_Env_1[[Customer type]:[Customer type]],OP_Rates!$O68,Calc_TUR_Env_1[[Rate type]:[Rate type]],OP_Rates!$C68),8))),0,1)) -> - | S68: =IF(S33="-","-", IF(ROUND(S33,8)= IF($P68="Network", ROUND(INDEX(Calc_TUR_Net_1[[Ausnet]:[United Energy]],MATCH(1,(Calc_TUR_Net_1[[Customer type]:[Customer type]]=OP_Rates!$O68)*(Calc_TUR_Net_1[[Rate type]:[Rate type]]=OP_Rates!$C68),0),MATCH(OP_Rates!S$65,Calc_TUR_Net_1[[#Headers],[Ausnet]:[United Energy]],0)),8), IF($P68="Environmental", ROUND(SUMIFS(Calc_TUR_Env_1[Jemena],Calc_TUR_Env_1[[Customer type]:[Customer type]],OP_Rates!$O68,Calc_TUR_Env_1[[Rate type]:[Rate type]],OP_Rates!$C68),8))),0,1)) -> - | T68: =IF(T33="-","-", IF(ROUND(T33,8)= IF($P68="Network", ROUND(INDEX(Calc_TUR_Net_1[[Ausnet]:[United Energy]],MATCH(1,(Calc_TUR_Net_1[[Customer type]:[Customer type]]=OP_Rates!$O68)*(Calc_TUR_Net_1[[Rate type]:[Rate type]]=OP_Rates!$C68),0),MATCH(OP_Rates!T$65,Calc_TUR_Net_1[[#Headers],[Ausnet]:[United Energy]],0)),8), IF($P68="Environmental", ROUND(SUMIFS(Calc_TUR_Env_1[Powercor],Calc_TUR_Env_1[[Customer type]:[Customer type]],OP_Rates!$O68,Calc_TUR_Env_1[[Rate type]:[Rate type]],OP_Rates!$C68),8))),0,1)) -> - | U68: =IF(U33="-","-", IF(ROUND(U33,8)= IF($P68="Network", ROUND(INDEX(Calc_TUR_Net_1[[Ausnet]:[United Energy]],MATCH(1,(Calc_TUR_Net_1[[Customer type]:[Customer type]]=OP_Rates!$O68)*(Calc_TUR_Net_1[[Rate type]:[Rate type]]=OP_Rates!$C68),0),MATCH(OP_Rates!U$65,Calc_TUR_Net_1[[#Headers],[Ausnet]:[United Energy]],0)),8), IF($P68="Environmental", ROUND(SUMIFS(Calc_TUR_Env_1[United Energy],Calc_TUR_Env_1[[Customer type]:[Customer type]],OP_Rates!$O68,Calc_TUR_Env_1[[Rate type]:[Rate type]],OP_Rates!$C68),8))),0,1)) -> -
C69: Block 1 | D69: $/kWh | E69: Residential | F69: Environmental | G69: =IF(G34="-","-", IF(ROUND(G34,8)= IF($F69="Network", IF($C69<>"Controlled load", ROUND(INDEX(Calc_TUR_Net_1[[Ausnet]:[United Energy]],MATCH(1,(Calc_TUR_Net_1[[Customer type]:[Customer type]]=OP_Rates!$E69)*(Calc_TUR_Net_1[[Rate type]:[Rate type]]=OP_Rates!$C69),0),MATCH(OP_Rates!G$65,Calc_TUR_Net_1[[#Headers],[Ausnet]:[United Energy]],0)),8), ROUND(INDEX(Calc_TUR_NetCL_1[[Ausnet]:[United Energy]],MATCH(OP_Rates!$E69,Calc_TUR_Net_1[[Customer type]:[Customer type]],0),MATCH(OP_Rates!G$65,Calc_TUR_Net_1[[#Headers],[Ausnet]:[United Energy]],0)),8)), IF($F69="Environmental", ROUND(SUMIFS(Calc_TUR_Env_1[Ausnet],Calc_TUR_Env_1[[Customer type]:[Customer type]],OP_Rates!$E69,Calc_TUR_Env_1[[Rate type]:[Rate type]],OP_Rates!$C69),8))),0,1)) -> 0 | H69: =IF(H34="-","-", IF(ROUND(H34,8)= IF($F69="Network", IF($C69<>"Controlled load", ROUND(INDEX(Calc_TUR_Net_1[[Ausnet]:[United Energy]],MATCH(1,(Calc_TUR_Net_1[[Customer type]:[Customer type]]=OP_Rates!$E69)*(Calc_TUR_Net_1[[Rate type]:[Rate type]]=OP_Rates!$C69),0),MATCH(OP_Rates!H$65,Calc_TUR_Net_1[[#Headers],[Ausnet]:[United Energy]],0)),8), ROUND(INDEX(Calc_TUR_NetCL_1[[Ausnet]:[United Energy]],MATCH(OP_Rates!$E69,Calc_TUR_Net_1[[Customer type]:[Customer type]],0),MATCH(OP_Rates!H$65,Calc_TUR_Net_1[[#Headers],[Ausnet]:[United Energy]],0)),8)), IF($F69="Environmental", ROUND(SUMIFS(Calc_TUR_Env_1[Citipower],Calc_TUR_Env_1[[Customer type]:[Customer type]],OP_Rates!$E69,Calc_TUR_Env_1[[Rate type]:[Rate type]],OP_Rates!$C69),8))),0,1)) -> 0 | I69: =IF(I34="-","-", IF(ROUND(I34,8)= IF($F69="Network", IF($C69<>"Controlled load", ROUND(INDEX(Calc_TUR_Net_1[[Ausnet]:[United Energy]],MATCH(1,(Calc_TUR_Net_1[[Customer type]:[Customer type]]=OP_Rates!$E69)*(Calc_TUR_Net_1[[Rate type]:[Rate type]]=OP_Rates!$C69),0),MATCH(OP_Rates!I$65,Calc_TUR_Net_1[[#Headers],[Ausnet]:[United Energy]],0)),8), ROUND(INDEX(Calc_TUR_NetCL_1[[Ausnet]:[United Energy]],MATCH(OP_Rates!$E69,Calc_TUR_Net_1[[Customer type]:[Customer type]],0),MATCH(OP_Rates!I$65,Calc_TUR_Net_1[[#Headers],[Ausnet]:[United Energy]],0)),8)), IF($F69="Environmental", ROUND(SUMIFS(Calc_TUR_Env_1[Jemena],Calc_TUR_Env_1[[Customer type]:[Customer type]],OP_Rates!$E69,Calc_TUR_Env_1[[Rate type]:[Rate type]],OP_Rates!$C69),8))),0,1)) -> 0 | J69: =IF(J34="-","-", IF(ROUND(J34,8)= IF($F69="Network", IF($C69<>"Controlled load", ROUND(INDEX(Calc_TUR_Net_1[[Ausnet]:[United Energy]],MATCH(1,(Calc_TUR_Net_1[[Customer type]:[Customer type]]=OP_Rates!$E69)*(Calc_TUR_Net_1[[Rate type]:[Rate type]]=OP_Rates!$C69),0),MATCH(OP_Rates!J$65,Calc_TUR_Net_1[[#Headers],[Ausnet]:[United Energy]],0)),8), ROUND(INDEX(Calc_TUR_NetCL_1[[Ausnet]:[United Energy]],MATCH(OP_Rates!$E69,Calc_TUR_Net_1[[Customer type]:[Customer type]],0),MATCH(OP_Rates!J$65,Calc_TUR_Net_1[[#Headers],[Ausnet]:[United Energy]],0)),8)), IF($F69="Environmental", ROUND(SUMIFS(Calc_TUR_Env_1[Powercor],Calc_TUR_Env_1[[Customer type]:[Customer type]],OP_Rates!$E69,Calc_TUR_Env_1[[Rate type]:[Rate type]],OP_Rates!$C69),8))),0,1)) -> 0 | K69: =IF(K34="-","-", IF(ROUND(K34,8)= IF($F69="Network", IF($C69<>"Controlled load", ROUND(INDEX(Calc_TUR_Net_1[[Ausnet]:[United Energy]],MATCH(1,(Calc_TUR_Net_1[[Customer type]:[Customer type]]=OP_Rates!$E69)*(Calc_TUR_Net_1[[Rate type]:[Rate type]]=OP_Rates!$C69),0),MATCH(OP_Rates!K$65,Calc_TUR_Net_1[[#Headers],[Ausnet]:[United Energy]],0)),8), ROUND(INDEX(Calc_TUR_NetCL_1[[Ausnet]:[United Energy]],MATCH(OP_Rates!$E69,Calc_TUR_Net_1[[Customer type]:[Customer type]],0),MATCH(OP_Rates!K$65,Calc_TUR_Net_1[[#Headers],[Ausnet]:[United Energy]],0)),8)), IF($F69="Environmental", ROUND(SUMIFS(Calc_TUR_Env_1[United Energy],Calc_TUR_Env_1[[Customer type]:[Customer type]],OP_Rates!$E69,Calc_TUR_Env_1[[Rate type]:[Rate type]],OP_Rates!$C69),8))),0,1)) -> 0 | M69: Block 1 | N69: $/kWh | O69: Small business | P69: Environmental | Q69: =IF(Q34="-","-", IF(ROUND(Q34,8)= IF($P69="Network", ROUND(INDEX(Calc_TUR_Net_1[[Ausnet]:[United Energy]],MATCH(1,(Calc_TUR_Net_1[[Customer type]:[Customer type]]=OP_Rates!$O69)*(Calc_TUR_Net_1[[Rate type]:[Rate type]]=OP_Rates!$C69),0),MATCH(OP_Rates!Q$65,Calc_TUR_Net_1[[#Headers],[Ausnet]:[United Energy]],0)),8), IF($P69="Environmental", ROUND(SUMIFS(Calc_TUR_Env_1[Ausnet],Calc_TUR_Env_1[[Customer type]:[Customer type]],OP_Rates!$O69,Calc_TUR_Env_1[[Rate type]:[Rate type]],OP_Rates!$C69),8))),0,1)) -> 0 | R69: =IF(R34="-","-", IF(ROUND(R34,8)= IF($P69="Network", ROUND(INDEX(Calc_TUR_Net_1[[Ausnet]:[United Energy]],MATCH(1,(Calc_TUR_Net_1[[Customer type]:[Customer type]]=OP_Rates!$O69)*(Calc_TUR_Net_1[[Rate type]:[Rate type]]=OP_Rates!$C69),0),MATCH(OP_Rates!R$65,Calc_TUR_Net_1[[#Headers],[Ausnet]:[United Energy]],0)),8), IF($P69="Environmental", ROUND(SUMIFS(Calc_TUR_Env_1[Citipower],Calc_TUR_Env_1[[Customer type]:[Customer type]],OP_Rates!$O69,Calc_TUR_Env_1[[Rate type]:[Rate type]],OP_Rates!$C69),8))),0,1)) -> 0 | S69: =IF(S34="-","-", IF(ROUND(S34,8)= IF($P69="Network", ROUND(INDEX(Calc_TUR_Net_1[[Ausnet]:[United Energy]],MATCH(1,(Calc_TUR_Net_1[[Customer type]:[Customer type]]=OP_Rates!$O69)*(Calc_TUR_Net_1[[Rate type]:[Rate type]]=OP_Rates!$C69),0),MATCH(OP_Rates!S$65,Calc_TUR_Net_1[[#Headers],[Ausnet]:[United Energy]],0)),8), IF($P69="Environmental", ROUND(SUMIFS(Calc_TUR_Env_1[Jemena],Calc_TUR_Env_1[[Customer type]:[Customer type]],OP_Rates!$O69,Calc_TUR_Env_1[[Rate type]:[Rate type]],OP_Rates!$C69),8))),0,1)) -> 0 | T69: =IF(T34="-","-", IF(ROUND(T34,8)= IF($P69="Network", ROUND(INDEX(Calc_TUR_Net_1[[Ausnet]:[United Energy]],MATCH(1,(Calc_TUR_Net_1[[Customer type]:[Customer type]]=OP_Rates!$O69)*(Calc_TUR_Net_1[[Rate type]:[Rate type]]=OP_Rates!$C69),0),MATCH(OP_Rates!T$65,Calc_TUR_Net_1[[#Headers],[Ausnet]:[United Energy]],0)),8), IF($P69="Environmental", ROUND(SUMIFS(Calc_TUR_Env_1[Powercor],Calc_TUR_Env_1[[Customer type]:[Customer type]],OP_Rates!$O69,Calc_TUR_Env_1[[Rate type]:[Rate type]],OP_Rates!$C69),8))),0,1)) -> 0 | U69: =IF(U34="-","-", IF(ROUND(U34,8)= IF($P69="Network", ROUND(INDEX(Calc_TUR_Net_1[[Ausnet]:[United Energy]],MATCH(1,(Calc_TUR_Net_1[[Customer type]:[Customer type]]=OP_Rates!$O69)*(Calc_TUR_Net_1[[Rate type]:[Rate type]]=OP_Rates!$C69),0),MATCH(OP_Rates!U$65,Calc_TUR_Net_1[[#Headers],[Ausnet]:[United Energy]],0)),8), IF($P69="Environmental", ROUND(SUMIFS(Calc_TUR_Env_1[United Energy],Calc_TUR_Env_1[[Customer type]:[Customer type]],OP_Rates!$O69,Calc_TUR_Env_1[[Rate type]:[Rate type]],OP_Rates!$C69),8))),0,1)) -> 0
C70: Balance | D70: $/kWh | E70: Residential | F70: Environmental | G70: =IF(G35="-","-", IF(ROUND(G35,8)= IF($F70="Network", IF($C70<>"Controlled load", ROUND(INDEX(Calc_TUR_Net_1[[Ausnet]:[United Energy]],MATCH(1,(Calc_TUR_Net_1[[Customer type]:[Customer type]]=OP_Rates!$E70)*(Calc_TUR_Net_1[[Rate type]:[Rate type]]=OP_Rates!$C70),0),MATCH(OP_Rates!G$65,Calc_TUR_Net_1[[#Headers],[Ausnet]:[United Energy]],0)),8), ROUND(INDEX(Calc_TUR_NetCL_1[[Ausnet]:[United Energy]],MATCH(OP_Rates!$E70,Calc_TUR_Net_1[[Customer type]:[Customer type]],0),MATCH(OP_Rates!G$65,Calc_TUR_Net_1[[#Headers],[Ausnet]:[United Energy]],0)),8)), IF($F70="Environmental", ROUND(SUMIFS(Calc_TUR_Env_1[Ausnet],Calc_TUR_Env_1[[Customer type]:[Customer type]],OP_Rates!$E70,Calc_TUR_Env_1[[Rate type]:[Rate type]],OP_Rates!$C70),8))),0,1)) -> 0 | H70: =IF(H35="-","-", IF(ROUND(H35,8)= IF($F70="Network", IF($C70<>"Controlled load", ROUND(INDEX(Calc_TUR_Net_1[[Ausnet]:[United Energy]],MATCH(1,(Calc_TUR_Net_1[[Customer type]:[Customer type]]=OP_Rates!$E70)*(Calc_TUR_Net_1[[Rate type]:[Rate type]]=OP_Rates!$C70),0),MATCH(OP_Rates!H$65,Calc_TUR_Net_1[[#Headers],[Ausnet]:[United Energy]],0)),8), ROUND(INDEX(Calc_TUR_NetCL_1[[Ausnet]:[United Energy]],MATCH(OP_Rates!$E70,Calc_TUR_Net_1[[Customer type]:[Customer type]],0),MATCH(OP_Rates!H$65,Calc_TUR_Net_1[[#Headers],[Ausnet]:[United Energy]],0)),8)), IF($F70="Environmental", ROUND(SUMIFS(Calc_TUR_Env_1[Citipower],Calc_TUR_Env_1[[Customer type]:[Customer type]],OP_Rates!$E70,Calc_TUR_Env_1[[Rate type]:[Rate type]],OP_Rates!$C70),8))),0,1)) -> 0 | I70: =IF(I35="-","-", IF(ROUND(I35,8)= IF($F70="Network", IF($C70<>"Controlled load", ROUND(INDEX(Calc_TUR_Net_1[[Ausnet]:[United Energy]],MATCH(1,(Calc_TUR_Net_1[[Customer type]:[Customer type]]=OP_Rates!$E70)*(Calc_TUR_Net_1[[Rate type]:[Rate type]]=OP_Rates!$C70),0),MATCH(OP_Rates!I$65,Calc_TUR_Net_1[[#Headers],[Ausnet]:[United Energy]],0)),8), ROUND(INDEX(Calc_TUR_NetCL_1[[Ausnet]:[United Energy]],MATCH(OP_Rates!$E70,Calc_TUR_Net_1[[Customer type]:[Customer type]],0),MATCH(OP_Rates!I$65,Calc_TUR_Net_1[[#Headers],[Ausnet]:[United Energy]],0)),8)), IF($F70="Environmental", ROUND(SUMIFS(Calc_TUR_Env_1[Jemena],Calc_TUR_Env_1[[Customer type]:[Customer type]],OP_Rates!$E70,Calc_TUR_Env_1[[Rate type]:[Rate type]],OP_Rates!$C70),8))),0,1)) -> 0 | J70: =IF(J35="-","-", IF(ROUND(J35,8)= IF($F70="Network", IF($C70<>"Controlled load", ROUND(INDEX(Calc_TUR_Net_1[[Ausnet]:[United Energy]],MATCH(1,(Calc_TUR_Net_1[[Customer type]:[Customer type]]=OP_Rates!$E70)*(Calc_TUR_Net_1[[Rate type]:[Rate type]]=OP_Rates!$C70),0),MATCH(OP_Rates!J$65,Calc_TUR_Net_1[[#Headers],[Ausnet]:[United Energy]],0)),8), ROUND(INDEX(Calc_TUR_NetCL_1[[Ausnet]:[United Energy]],MATCH(OP_Rates!$E70,Calc_TUR_Net_1[[Customer type]:[Customer type]],0),MATCH(OP_Rates!J$65,Calc_TUR_Net_1[[#Headers],[Ausnet]:[United Energy]],0)),8)), IF($F70="Environmental", ROUND(SUMIFS(Calc_TUR_Env_1[Powercor],Calc_TUR_Env_1[[Customer type]:[Customer type]],OP_Rates!$E70,Calc_TUR_Env_1[[Rate type]:[Rate type]],OP_Rates!$C70),8))),0,1)) -> 0 | K70: =IF(K35="-","-", IF(ROUND(K35,8)= IF($F70="Network", IF($C70<>"Controlled load", ROUND(INDEX(Calc_TUR_Net_1[[Ausnet]:[United Energy]],MATCH(1,(Calc_TUR_Net_1[[Customer type]:[Customer type]]=OP_Rates!$E70)*(Calc_TUR_Net_1[[Rate type]:[Rate type]]=OP_Rates!$C70),0),MATCH(OP_Rates!K$65,Calc_TUR_Net_1[[#Headers],[Ausnet]:[United Energy]],0)),8), ROUND(INDEX(Calc_TUR_NetCL_1[[Ausnet]:[United Energy]],MATCH(OP_Rates!$E70,Calc_TUR_Net_1[[Customer type]:[Customer type]],0),MATCH(OP_Rates!K$65,Calc_TUR_Net_1[[#Headers],[Ausnet]:[United Energy]],0)),8)), IF($F70="Environmental", ROUND(SUMIFS(Calc_TUR_Env_1[United Energy],Calc_TUR_Env_1[[Customer type]:[Customer type]],OP_Rates!$E70,Calc_TUR_Env_1[[Rate type]:[Rate type]],OP_Rates!$C70),8))),0,1)) -> 0 | M70: Balance | N70: $/kWh | O70: Small business | P70: Environmental | Q70: =IF(Q35="-","-", IF(ROUND(Q35,8)= IF($P70="Network", ROUND(INDEX(Calc_TUR_Net_1[[Ausnet]:[United Energy]],MATCH(1,(Calc_TUR_Net_1[[Customer type]:[Customer type]]=OP_Rates!$O70)*(Calc_TUR_Net_1[[Rate type]:[Rate type]]=OP_Rates!$C70),0),MATCH(OP_Rates!Q$65,Calc_TUR_Net_1[[#Headers],[Ausnet]:[United Energy]],0)),8), IF($P70="Environmental", ROUND(SUMIFS(Calc_TUR_Env_1[Ausnet],Calc_TUR_Env_1[[Customer type]:[Customer type]],OP_Rates!$O70,Calc_TUR_Env_1[[Rate type]:[Rate type]],OP_Rates!$C70),8))),0,1)) -> 0 | R70: =IF(R35="-","-", IF(ROUND(R35,8)= IF($P70="Network", ROUND(INDEX(Calc_TUR_Net_1[[Ausnet]:[United Energy]],MATCH(1,(Calc_TUR_Net_1[[Customer type]:[Customer type]]=OP_Rates!$O70)*(Calc_TUR_Net_1[[Rate type]:[Rate type]]=OP_Rates!$C70),0),MATCH(OP_Rates!R$65,Calc_TUR_Net_1[[#Headers],[Ausnet]:[United Energy]],0)),8), IF($P70="Environmental", ROUND(SUMIFS(Calc_TUR_Env_1[Citipower],Calc_TUR_Env_1[[Customer type]:[Customer type]],OP_Rates!$O70,Calc_TUR_Env_1[[Rate type]:[Rate type]],OP_Rates!$C70),8))),0,1)) -> 0 | S70: =IF(S35="-","-", IF(ROUND(S35,8)= IF($P70="Network", ROUND(INDEX(Calc_TUR_Net_1[[Ausnet]:[United Energy]],MATCH(1,(Calc_TUR_Net_1[[Customer type]:[Customer type]]=OP_Rates!$O70)*(Calc_TUR_Net_1[[Rate type]:[Rate type]]=OP_Rates!$C70),0),MATCH(OP_Rates!S$65,Calc_TUR_Net_1[[#Headers],[Ausnet]:[United Energy]],0)),8), IF($P70="Environmental", ROUND(SUMIFS(Calc_TUR_Env_1[Jemena],Calc_TUR_Env_1[[Customer type]:[Customer type]],OP_Rates!$O70,Calc_TUR_Env_1[[Rate type]:[Rate type]],OP_Rates!$C70),8))),0,1)) -> 0 | T70: =IF(T35="-","-", IF(ROUND(T35,8)= IF($P70="Network", ROUND(INDEX(Calc_TUR_Net_1[[Ausnet]:[United Energy]],MATCH(1,(Calc_TUR_Net_1[[Customer type]:[Customer type]]=OP_Rates!$O70)*(Calc_TUR_Net_1[[Rate type]:[Rate type]]=OP_Rates!$C70),0),MATCH(OP_Rates!T$65,Calc_TUR_Net_1[[#Headers],[Ausnet]:[United Energy]],0)),8), IF($P70="Environmental", ROUND(SUMIFS(Calc_TUR_Env_1[Powercor],Calc_TUR_Env_1[[Customer type]:[Customer type]],OP_Rates!$O70,Calc_TUR_Env_1[[Rate type]:[Rate type]],OP_Rates!$C70),8))),0,1)) -> 0 | U70: =IF(U35="-","-", IF(ROUND(U35,8)= IF($P70="Network", ROUND(INDEX(Calc_TUR_Net_1[[Ausnet]:[United Energy]],MATCH(1,(Calc_TUR_Net_1[[Customer type]:[Customer type]]=OP_Rates!$O70)*(Calc_TUR_Net_1[[Rate type]:[Rate type]]=OP_Rates!$C70),0),MATCH(OP_Rates!U$65,Calc_TUR_Net_1[[#Headers],[Ausnet]:[United Energy]],0)),8), IF($P70="Environmental", ROUND(SUMIFS(Calc_TUR_Env_1[United Energy],Calc_TUR_Env_1[[Customer type]:[Customer type]],OP_Rates!$O70,Calc_TUR_Env_1[[Rate type]:[Rate type]],OP_Rates!$C70),8))),0,1)) -> 0
C71: Single rate | D71: $/kWh | E71: Residential | F71: Environmental | G71: =IF(G36="-","-", IF(ROUND(G36,8)= IF($F71="Network", IF($C71<>"Controlled load", ROUND(INDEX(Calc_TUR_Net_1[[Ausnet]:[United Energy]],MATCH(1,(Calc_TUR_Net_1[[Customer type]:[Customer type]]=OP_Rates!$E71)*(Calc_TUR_Net_1[[Rate type]:[Rate type]]=OP_Rates!$C71),0),MATCH(OP_Rates!G$65,Calc_TUR_Net_1[[#Headers],[Ausnet]:[United Energy]],0)),8), ROUND(INDEX(Calc_TUR_NetCL_1[[Ausnet]:[United Energy]],MATCH(OP_Rates!$E71,Calc_TUR_Net_1[[Customer type]:[Customer type]],0),MATCH(OP_Rates!G$65,Calc_TUR_Net_1[[#Headers],[Ausnet]:[United Energy]],0)),8)), IF($F71="Environmental", ROUND(SUMIFS(Calc_TUR_Env_1[Ausnet],Calc_TUR_Env_1[[Customer type]:[Customer type]],OP_Rates!$E71,Calc_TUR_Env_1[[Rate type]:[Rate type]],OP_Rates!$C71),8))),0,1)) -> 0 | H71: =IF(H36="-","-", IF(ROUND(H36,8)= IF($F71="Network", IF($C71<>"Controlled load", ROUND(INDEX(Calc_TUR_Net_1[[Ausnet]:[United Energy]],MATCH(1,(Calc_TUR_Net_1[[Customer type]:[Customer type]]=OP_Rates!$E71)*(Calc_TUR_Net_1[[Rate type]:[Rate type]]=OP_Rates!$C71),0),MATCH(OP_Rates!H$65,Calc_TUR_Net_1[[#Headers],[Ausnet]:[United Energy]],0)),8), ROUND(INDEX(Calc_TUR_NetCL_1[[Ausnet]:[United Energy]],MATCH(OP_Rates!$E71,Calc_TUR_Net_1[[Customer type]:[Customer type]],0),MATCH(OP_Rates!H$65,Calc_TUR_Net_1[[#Headers],[Ausnet]:[United Energy]],0)),8)), IF($F71="Environmental", ROUND(SUMIFS(Calc_TUR_Env_1[Citipower],Calc_TUR_Env_1[[Customer type]:[Customer type]],OP_Rates!$E71,Calc_TUR_Env_1[[Rate type]:[Rate type]],OP_Rates!$C71),8))),0,1)) -> 0 | I71: =IF(I36="-","-", IF(ROUND(I36,8)= IF($F71="Network", IF($C71<>"Controlled load", ROUND(INDEX(Calc_TUR_Net_1[[Ausnet]:[United Energy]],MATCH(1,(Calc_TUR_Net_1[[Customer type]:[Customer type]]=OP_Rates!$E71)*(Calc_TUR_Net_1[[Rate type]:[Rate type]]=OP_Rates!$C71),0),MATCH(OP_Rates!I$65,Calc_TUR_Net_1[[#Headers],[Ausnet]:[United Energy]],0)),8), ROUND(INDEX(Calc_TUR_NetCL_1[[Ausnet]:[United Energy]],MATCH(OP_Rates!$E71,Calc_TUR_Net_1[[Customer type]:[Customer type]],0),MATCH(OP_Rates!I$65,Calc_TUR_Net_1[[#Headers],[Ausnet]:[United Energy]],0)),8)), IF($F71="Environmental", ROUND(SUMIFS(Calc_TUR_Env_1[Jemena],Calc_TUR_Env_1[[Customer type]:[Customer type]],OP_Rates!$E71,Calc_TUR_Env_1[[Rate type]:[Rate type]],OP_Rates!$C71),8))),0,1)) -> 0 | J71: =IF(J36="-","-", IF(ROUND(J36,8)= IF($F71="Network", IF($C71<>"Controlled load", ROUND(INDEX(Calc_TUR_Net_1[[Ausnet]:[United Energy]],MATCH(1,(Calc_TUR_Net_1[[Customer type]:[Customer type]]=OP_Rates!$E71)*(Calc_TUR_Net_1[[Rate type]:[Rate type]]=OP_Rates!$C71),0),MATCH(OP_Rates!J$65,Calc_TUR_Net_1[[#Headers],[Ausnet]:[United Energy]],0)),8), ROUND(INDEX(Calc_TUR_NetCL_1[[Ausnet]:[United Energy]],MATCH(OP_Rates!$E71,Calc_TUR_Net_1[[Customer type]:[Customer type]],0),MATCH(OP_Rates!J$65,Calc_TUR_Net_1[[#Headers],[Ausnet]:[United Energy]],0)),8)), IF($F71="Environmental", ROUND(SUMIFS(Calc_TUR_Env_1[Powercor],Calc_TUR_Env_1[[Customer type]:[Customer type]],OP_Rates!$E71,Calc_TUR_Env_1[[Rate type]:[Rate type]],OP_Rates!$C71),8))),0,1)) -> 0 | K71: =IF(K36="-","-", IF(ROUND(K36,8)= IF($F71="Network", IF($C71<>"Controlled load", ROUND(INDEX(Calc_TUR_Net_1[[Ausnet]:[United Energy]],MATCH(1,(Calc_TUR_Net_1[[Customer type]:[Customer type]]=OP_Rates!$E71)*(Calc_TUR_Net_1[[Rate type]:[Rate type]]=OP_Rates!$C71),0),MATCH(OP_Rates!K$65,Calc_TUR_Net_1[[#Headers],[Ausnet]:[United Energy]],0)),8), ROUND(INDEX(Calc_TUR_NetCL_1[[Ausnet]:[United Energy]],MATCH(OP_Rates!$E71,Calc_TUR_Net_1[[Customer type]:[Customer type]],0),MATCH(OP_Rates!K$65,Calc_TUR_Net_1[[#Headers],[Ausnet]:[United Energy]],0)),8)), IF($F71="Environmental", ROUND(SUMIFS(Calc_TUR_Env_1[United Energy],Calc_TUR_Env_1[[Customer type]:[Customer type]],OP_Rates!$E71,Calc_TUR_Env_1[[Rate type]:[Rate type]],OP_Rates!$C71),8))),0,1)) -> 0 | M71: Single rate | N71: $/kWh | O71: Small business | P71: Environmental | Q71: =IF(Q36="-","-", IF(ROUND(Q36,8)= IF($P71="Network", ROUND(INDEX(Calc_TUR_Net_1[[Ausnet]:[United Energy]],MATCH(1,(Calc_TUR_Net_1[[Customer type]:[Customer type]]=OP_Rates!$O71)*(Calc_TUR_Net_1[[Rate type]:[Rate type]]=OP_Rates!$C71),0),MATCH(OP_Rates!Q$65,Calc_TUR_Net_1[[#Headers],[Ausnet]:[United Energy]],0)),8), IF($P71="Environmental", ROUND(SUMIFS(Calc_TUR_Env_1[Ausnet],Calc_TUR_Env_1[[Customer type]:[Customer type]],OP_Rates!$O71,Calc_TUR_Env_1[[Rate type]:[Rate type]],OP_Rates!$C71),8))),0,1)) -> 0 | R71: =IF(R36="-","-", IF(ROUND(R36,8)= IF($P71="Network", ROUND(INDEX(Calc_TUR_Net_1[[Ausnet]:[United Energy]],MATCH(1,(Calc_TUR_Net_1[[Customer type]:[Customer type]]=OP_Rates!$O71)*(Calc_TUR_Net_1[[Rate type]:[Rate type]]=OP_Rates!$C71),0),MATCH(OP_Rates!R$65,Calc_TUR_Net_1[[#Headers],[Ausnet]:[United Energy]],0)),8), IF($P71="Environmental", ROUND(SUMIFS(Calc_TUR_Env_1[Citipower],Calc_TUR_Env_1[[Customer type]:[Customer type]],OP_Rates!$O71,Calc_TUR_Env_1[[Rate type]:[Rate type]],OP_Rates!$C71),8))),0,1)) -> 0 | S71: =IF(S36="-","-", IF(ROUND(S36,8)= IF($P71="Network", ROUND(INDEX(Calc_TUR_Net_1[[Ausnet]:[United Energy]],MATCH(1,(Calc_TUR_Net_1[[Customer type]:[Customer type]]=OP_Rates!$O71)*(Calc_TUR_Net_1[[Rate type]:[Rate type]]=OP_Rates!$C71),0),MATCH(OP_Rates!S$65,Calc_TUR_Net_1[[#Headers],[Ausnet]:[United Energy]],0)),8), IF($P71="Environmental", ROUND(SUMIFS(Calc_TUR_Env_1[Jemena],Calc_TUR_Env_1[[Customer type]:[Customer type]],OP_Rates!$O71,Calc_TUR_Env_1[[Rate type]:[Rate type]],OP_Rates!$C71),8))),0,1)) -> 0 | T71: =IF(T36="-","-", IF(ROUND(T36,8)= IF($P71="Network", ROUND(INDEX(Calc_TUR_Net_1[[Ausnet]:[United Energy]],MATCH(1,(Calc_TUR_Net_1[[Customer type]:[Customer type]]=OP_Rates!$O71)*(Calc_TUR_Net_1[[Rate type]:[Rate type]]=OP_Rates!$C71),0),MATCH(OP_Rates!T$65,Calc_TUR_Net_1[[#Headers],[Ausnet]:[United Energy]],0)),8), IF($P71="Environmental", ROUND(SUMIFS(Calc_TUR_Env_1[Powercor],Calc_TUR_Env_1[[Customer type]:[Customer type]],OP_Rates!$O71,Calc_TUR_Env_1[[Rate type]:[Rate type]],OP_Rates!$C71),8))),0,1)) -> 0 | U71: =IF(U36="-","-", IF(ROUND(U36,8)= IF($P71="Network", ROUND(INDEX(Calc_TUR_Net_1[[Ausnet]:[United Energy]],MATCH(1,(Calc_TUR_Net_1[[Customer type]:[Customer type]]=OP_Rates!$O71)*(Calc_TUR_Net_1[[Rate type]:[Rate type]]=OP_Rates!$C71),0),MATCH(OP_Rates!U$65,Calc_TUR_Net_1[[#Headers],[Ausnet]:[United Energy]],0)),8), IF($P71="Environmental", ROUND(SUMIFS(Calc_TUR_Env_1[United Energy],Calc_TUR_Env_1[[Customer type]:[Customer type]],OP_Rates!$O71,Calc_TUR_Env_1[[Rate type]:[Rate type]],OP_Rates!$C71),8))),0,1)) -> 0
C72: Peak | D72: $/kWh | E72: Residential | F72: Environmental | G72: =IF(G37="-","-", IF(ROUND(G37,8)= IF($F72="Network", IF($C72<>"Controlled load", ROUND(INDEX(Calc_TUR_Net_1[[Ausnet]:[United Energy]],MATCH(1,(Calc_TUR_Net_1[[Customer type]:[Customer type]]=OP_Rates!$E72)*(Calc_TUR_Net_1[[Rate type]:[Rate type]]=OP_Rates!$C72),0),MATCH(OP_Rates!G$65,Calc_TUR_Net_1[[#Headers],[Ausnet]:[United Energy]],0)),8), ROUND(INDEX(Calc_TUR_NetCL_1[[Ausnet]:[United Energy]],MATCH(OP_Rates!$E72,Calc_TUR_Net_1[[Customer type]:[Customer type]],0),MATCH(OP_Rates!G$65,Calc_TUR_Net_1[[#Headers],[Ausnet]:[United Energy]],0)),8)), IF($F72="Environmental", ROUND(SUMIFS(Calc_TUR_Env_1[Ausnet],Calc_TUR_Env_1[[Customer type]:[Customer type]],OP_Rates!$E72,Calc_TUR_Env_1[[Rate type]:[Rate type]],OP_Rates!$C72),8))),0,1)) -> 0 | H72: =IF(H37="-","-", IF(ROUND(H37,8)= IF($F72="Network", IF($C72<>"Controlled load", ROUND(INDEX(Calc_TUR_Net_1[[Ausnet]:[United Energy]],MATCH(1,(Calc_TUR_Net_1[[Customer type]:[Customer type]]=OP_Rates!$E72)*(Calc_TUR_Net_1[[Rate type]:[Rate type]]=OP_Rates!$C72),0),MATCH(OP_Rates!H$65,Calc_TUR_Net_1[[#Headers],[Ausnet]:[United Energy]],0)),8), ROUND(INDEX(Calc_TUR_NetCL_1[[Ausnet]:[United Energy]],MATCH(OP_Rates!$E72,Calc_TUR_Net_1[[Customer type]:[Customer type]],0),MATCH(OP_Rates!H$65,Calc_TUR_Net_1[[#Headers],[Ausnet]:[United Energy]],0)),8)), IF($F72="Environmental", ROUND(SUMIFS(Calc_TUR_Env_1[Citipower],Calc_TUR_Env_1[[Customer type]:[Customer type]],OP_Rates!$E72,Calc_TUR_Env_1[[Rate type]:[Rate type]],OP_Rates!$C72),8))),0,1)) -> 0 | I72: =IF(I37="-","-", IF(ROUND(I37,8)= IF($F72="Network", IF($C72<>"Controlled load", ROUND(INDEX(Calc_TUR_Net_1[[Ausnet]:[United Energy]],MATCH(1,(Calc_TUR_Net_1[[Customer type]:[Customer type]]=OP_Rates!$E72)*(Calc_TUR_Net_1[[Rate type]:[Rate type]]=OP_Rates!$C72),0),MATCH(OP_Rates!I$65,Calc_TUR_Net_1[[#Headers],[Ausnet]:[United Energy]],0)),8), ROUND(INDEX(Calc_TUR_NetCL_1[[Ausnet]:[United Energy]],MATCH(OP_Rates!$E72,Calc_TUR_Net_1[[Customer type]:[Customer type]],0),MATCH(OP_Rates!I$65,Calc_TUR_Net_1[[#Headers],[Ausnet]:[United Energy]],0)),8)), IF($F72="Environmental", ROUND(SUMIFS(Calc_TUR_Env_1[Jemena],Calc_TUR_Env_1[[Customer type]:[Customer type]],OP_Rates!$E72,Calc_TUR_Env_1[[Rate type]:[Rate type]],OP_Rates!$C72),8))),0,1)) -> 0 | J72: =IF(J37="-","-", IF(ROUND(J37,8)= IF($F72="Network", IF($C72<>"Controlled load", ROUND(INDEX(Calc_TUR_Net_1[[Ausnet]:[United Energy]],MATCH(1,(Calc_TUR_Net_1[[Customer type]:[Customer type]]=OP_Rates!$E72)*(Calc_TUR_Net_1[[Rate type]:[Rate type]]=OP_Rates!$C72),0),MATCH(OP_Rates!J$65,Calc_TUR_Net_1[[#Headers],[Ausnet]:[United Energy]],0)),8), ROUND(INDEX(Calc_TUR_NetCL_1[[Ausnet]:[United Energy]],MATCH(OP_Rates!$E72,Calc_TUR_Net_1[[Customer type]:[Customer type]],0),MATCH(OP_Rates!J$65,Calc_TUR_Net_1[[#Headers],[Ausnet]:[United Energy]],0)),8)), IF($F72="Environmental", ROUND(SUMIFS(Calc_TUR_Env_1[Powercor],Calc_TUR_Env_1[[Customer type]:[Customer type]],OP_Rates!$E72,Calc_TUR_Env_1[[Rate type]:[Rate type]],OP_Rates!$C72),8))),0,1)) -> 0 | K72: =IF(K37="-","-", IF(ROUND(K37,8)= IF($F72="Network", IF($C72<>"Controlled load", ROUND(INDEX(Calc_TUR_Net_1[[Ausnet]:[United Energy]],MATCH(1,(Calc_TUR_Net_1[[Customer type]:[Customer type]]=OP_Rates!$E72)*(Calc_TUR_Net_1[[Rate type]:[Rate type]]=OP_Rates!$C72),0),MATCH(OP_Rates!K$65,Calc_TUR_Net_1[[#Headers],[Ausnet]:[United Energy]],0)),8), ROUND(INDEX(Calc_TUR_NetCL_1[[Ausnet]:[United Energy]],MATCH(OP_Rates!$E72,Calc_TUR_Net_1[[Customer type]:[Customer type]],0),MATCH(OP_Rates!K$65,Calc_TUR_Net_1[[#Headers],[Ausnet]:[United Energy]],0)),8)), IF($F72="Environmental", ROUND(SUMIFS(Calc_TUR_Env_1[United Energy],Calc_TUR_Env_1[[Customer type]:[Customer type]],OP_Rates!$E72,Calc_TUR_Env_1[[Rate type]:[Rate type]],OP_Rates!$C72),8))),0,1)) -> 0 | M72: Peak | N72: $/kWh | O72: Small business | P72: Environmental | Q72: =IF(Q37="-","-", IF(ROUND(Q37,8)= IF($P72="Network", ROUND(INDEX(Calc_TUR_Net_1[[Ausnet]:[United Energy]],MATCH(1,(Calc_TUR_Net_1[[Customer type]:[Customer type]]=OP_Rates!$O72)*(Calc_TUR_Net_1[[Rate type]:[Rate type]]=OP_Rates!$C72),0),MATCH(OP_Rates!Q$65,Calc_TUR_Net_1[[#Headers],[Ausnet]:[United Energy]],0)),8), IF($P72="Environmental", ROUND(SUMIFS(Calc_TUR_Env_1[Ausnet],Calc_TUR_Env_1[[Customer type]:[Customer type]],OP_Rates!$O72,Calc_TUR_Env_1[[Rate type]:[Rate type]],OP_Rates!$C72),8))),0,1)) -> 0 | R72: =IF(R37="-","-", IF(ROUND(R37,8)= IF($P72="Network", ROUND(INDEX(Calc_TUR_Net_1[[Ausnet]:[United Energy]],MATCH(1,(Calc_TUR_Net_1[[Customer type]:[Customer type]]=OP_Rates!$O72)*(Calc_TUR_Net_1[[Rate type]:[Rate type]]=OP_Rates!$C72),0),MATCH(OP_Rates!R$65,Calc_TUR_Net_1[[#Headers],[Ausnet]:[United Energy]],0)),8), IF($P72="Environmental", ROUND(SUMIFS(Calc_TUR_Env_1[Citipower],Calc_TUR_Env_1[[Customer type]:[Customer type]],OP_Rates!$O72,Calc_TUR_Env_1[[Rate type]:[Rate type]],OP_Rates!$C72),8))),0,1)) -> 0 | S72: =IF(S37="-","-", IF(ROUND(S37,8)= IF($P72="Network", ROUND(INDEX(Calc_TUR_Net_1[[Ausnet]:[United Energy]],MATCH(1,(Calc_TUR_Net_1[[Customer type]:[Customer type]]=OP_Rates!$O72)*(Calc_TUR_Net_1[[Rate type]:[Rate type]]=OP_Rates!$C72),0),MATCH(OP_Rates!S$65,Calc_TUR_Net_1[[#Headers],[Ausnet]:[United Energy]],0)),8), IF($P72="Environmental", ROUND(SUMIFS(Calc_TUR_Env_1[Jemena],Calc_TUR_Env_1[[Customer type]:[Customer type]],OP_Rates!$O72,Calc_TUR_Env_1[[Rate type]:[Rate type]],OP_Rates!$C72),8))),0,1)) -> 0 | T72: =IF(T37="-","-", IF(ROUND(T37,8)= IF($P72="Network", ROUND(INDEX(Calc_TUR_Net_1[[Ausnet]:[United Energy]],MATCH(1,(Calc_TUR_Net_1[[Customer type]:[Customer type]]=OP_Rates!$O72)*(Calc_TUR_Net_1[[Rate type]:[Rate type]]=OP_Rates!$C72),0),MATCH(OP_Rates!T$65,Calc_TUR_Net_1[[#Headers],[Ausnet]:[United Energy]],0)),8), IF($P72="Environmental", ROUND(SUMIFS(Calc_TUR_Env_1[Powercor],Calc_TUR_Env_1[[Customer type]:[Customer type]],OP_Rates!$O72,Calc_TUR_Env_1[[Rate type]:[Rate type]],OP_Rates!$C72),8))),0,1)) -> 0 | U72: =IF(U37="-","-", IF(ROUND(U37,8)= IF($P72="Network", ROUND(INDEX(Calc_TUR_Net_1[[Ausnet]:[United Energy]],MATCH(1,(Calc_TUR_Net_1[[Customer type]:[Customer type]]=OP_Rates!$O72)*(Calc_TUR_Net_1[[Rate type]:[Rate type]]=OP_Rates!$C72),0),MATCH(OP_Rates!U$65,Calc_TUR_Net_1[[#Headers],[Ausnet]:[United Energy]],0)),8), IF($P72="Environmental", ROUND(SUMIFS(Calc_TUR_Env_1[United Energy],Calc_TUR_Env_1[[Customer type]:[Customer type]],OP_Rates!$O72,Calc_TUR_Env_1[[Rate type]:[Rate type]],OP_Rates!$C72),8))),0,1)) -> 0
C73: Off peak | D73: $/kWh | E73: Residential | F73: Environmental | G73: =IF(G38="-","-", IF(ROUND(G38,8)= IF($F73="Network", IF($C73<>"Controlled load", ROUND(INDEX(Calc_TUR_Net_1[[Ausnet]:[United Energy]],MATCH(1,(Calc_TUR_Net_1[[Customer type]:[Customer type]]=OP_Rates!$E73)*(Calc_TUR_Net_1[[Rate type]:[Rate type]]=OP_Rates!$C73),0),MATCH(OP_Rates!G$65,Calc_TUR_Net_1[[#Headers],[Ausnet]:[United Energy]],0)),8), ROUND(INDEX(Calc_TUR_NetCL_1[[Ausnet]:[United Energy]],MATCH(OP_Rates!$E73,Calc_TUR_Net_1[[Customer type]:[Customer type]],0),MATCH(OP_Rates!G$65,Calc_TUR_Net_1[[#Headers],[Ausnet]:[United Energy]],0)),8)), IF($F73="Environmental", ROUND(SUMIFS(Calc_TUR_Env_1[Ausnet],Calc_TUR_Env_1[[Customer type]:[Customer type]],OP_Rates!$E73,Calc_TUR_Env_1[[Rate type]:[Rate type]],OP_Rates!$C73),8))),0,1)) -> 0 | H73: =IF(H38="-","-", IF(ROUND(H38,8)= IF($F73="Network", IF($C73<>"Controlled load", ROUND(INDEX(Calc_TUR_Net_1[[Ausnet]:[United Energy]],MATCH(1,(Calc_TUR_Net_1[[Customer type]:[Customer type]]=OP_Rates!$E73)*(Calc_TUR_Net_1[[Rate type]:[Rate type]]=OP_Rates!$C73),0),MATCH(OP_Rates!H$65,Calc_TUR_Net_1[[#Headers],[Ausnet]:[United Energy]],0)),8), ROUND(INDEX(Calc_TUR_NetCL_1[[Ausnet]:[United Energy]],MATCH(OP_Rates!$E73,Calc_TUR_Net_1[[Customer type]:[Customer type]],0),MATCH(OP_Rates!H$65,Calc_TUR_Net_1[[#Headers],[Ausnet]:[United Energy]],0)),8)), IF($F73="Environmental", ROUND(SUMIFS(Calc_TUR_Env_1[Citipower],Calc_TUR_Env_1[[Customer type]:[Customer type]],OP_Rates!$E73,Calc_TUR_Env_1[[Rate type]:[Rate type]],OP_Rates!$C73),8))),0,1)) -> 0 | I73: =IF(I38="-","-", IF(ROUND(I38,8)= IF($F73="Network", IF($C73<>"Controlled load", ROUND(INDEX(Calc_TUR_Net_1[[Ausnet]:[United Energy]],MATCH(1,(Calc_TUR_Net_1[[Customer type]:[Customer type]]=OP_Rates!$E73)*(Calc_TUR_Net_1[[Rate type]:[Rate type]]=OP_Rates!$C73),0),MATCH(OP_Rates!I$65,Calc_TUR_Net_1[[#Headers],[Ausnet]:[United Energy]],0)),8), ROUND(INDEX(Calc_TUR_NetCL_1[[Ausnet]:[United Energy]],MATCH(OP_Rates!$E73,Calc_TUR_Net_1[[Customer type]:[Customer type]],0),MATCH(OP_Rates!I$65,Calc_TUR_Net_1[[#Headers],[Ausnet]:[United Energy]],0)),8)), IF($F73="Environmental", ROUND(SUMIFS(Calc_TUR_Env_1[Jemena],Calc_TUR_Env_1[[Customer type]:[Customer type]],OP_Rates!$E73,Calc_TUR_Env_1[[Rate type]:[Rate type]],OP_Rates!$C73),8))),0,1)) -> 0 | J73: =IF(J38="-","-", IF(ROUND(J38,8)= IF($F73="Network", IF($C73<>"Controlled load", ROUND(INDEX(Calc_TUR_Net_1[[Ausnet]:[United Energy]],MATCH(1,(Calc_TUR_Net_1[[Customer type]:[Customer type]]=OP_Rates!$E73)*(Calc_TUR_Net_1[[Rate type]:[Rate type]]=OP_Rates!$C73),0),MATCH(OP_Rates!J$65,Calc_TUR_Net_1[[#Headers],[Ausnet]:[United Energy]],0)),8), ROUND(INDEX(Calc_TUR_NetCL_1[[Ausnet]:[United Energy]],MATCH(OP_Rates!$E73,Calc_TUR_Net_1[[Customer type]:[Customer type]],0),MATCH(OP_Rates!J$65,Calc_TUR_Net_1[[#Headers],[Ausnet]:[United Energy]],0)),8)), IF($F73="Environmental", ROUND(SUMIFS(Calc_TUR_Env_1[Powercor],Calc_TUR_Env_1[[Customer type]:[Customer type]],OP_Rates!$E73,Calc_TUR_Env_1[[Rate type]:[Rate type]],OP_Rates!$C73),8))),0,1)) -> 0 | K73: =IF(K38="-","-", IF(ROUND(K38,8)= IF($F73="Network", IF($C73<>"Controlled load", ROUND(INDEX(Calc_TUR_Net_1[[Ausnet]:[United Energy]],MATCH(1,(Calc_TUR_Net_1[[Customer type]:[Customer type]]=OP_Rates!$E73)*(Calc_TUR_Net_1[[Rate type]:[Rate type]]=OP_Rates!$C73),0),MATCH(OP_Rates!K$65,Calc_TUR_Net_1[[#Headers],[Ausnet]:[United Energy]],0)),8), ROUND(INDEX(Calc_TUR_NetCL_1[[Ausnet]:[United Energy]],MATCH(OP_Rates!$E73,Calc_TUR_Net_1[[Customer type]:[Customer type]],0),MATCH(OP_Rates!K$65,Calc_TUR_Net_1[[#Headers],[Ausnet]:[United Energy]],0)),8)), IF($F73="Environmental", ROUND(SUMIFS(Calc_TUR_Env_1[United Energy],Calc_TUR_Env_1[[Customer type]:[Customer type]],OP_Rates!$E73,Calc_TUR_Env_1[[Rate type]:[Rate type]],OP_Rates!$C73),8))),0,1)) -> 0 | M73: Off peak | N73: $/kWh | O73: Small business | P73: Environmental | Q73: =IF(Q38="-","-", IF(ROUND(Q38,8)= IF($P73="Network", ROUND(INDEX(Calc_TUR_Net_1[[Ausnet]:[United Energy]],MATCH(1,(Calc_TUR_Net_1[[Customer type]:[Customer type]]=OP_Rates!$O73)*(Calc_TUR_Net_1[[Rate type]:[Rate type]]=OP_Rates!$C73),0),MATCH(OP_Rates!Q$65,Calc_TUR_Net_1[[#Headers],[Ausnet]:[United Energy]],0)),8), IF($P73="Environmental", ROUND(SUMIFS(Calc_TUR_Env_1[Ausnet],Calc_TUR_Env_1[[Customer type]:[Customer type]],OP_Rates!$O73,Calc_TUR_Env_1[[Rate type]:[Rate type]],OP_Rates!$C73),8))),0,1)) -> 0 | R73: =IF(R38="-","-", IF(ROUND(R38,8)= IF($P73="Network", ROUND(INDEX(Calc_TUR_Net_1[[Ausnet]:[United Energy]],MATCH(1,(Calc_TUR_Net_1[[Customer type]:[Customer type]]=OP_Rates!$O73)*(Calc_TUR_Net_1[[Rate type]:[Rate type]]=OP_Rates!$C73),0),MATCH(OP_Rates!R$65,Calc_TUR_Net_1[[#Headers],[Ausnet]:[United Energy]],0)),8), IF($P73="Environmental", ROUND(SUMIFS(Calc_TUR_Env_1[Citipower],Calc_TUR_Env_1[[Customer type]:[Customer type]],OP_Rates!$O73,Calc_TUR_Env_1[[Rate type]:[Rate type]],OP_Rates!$C73),8))),0,1)) -> 0 | S73: =IF(S38="-","-", IF(ROUND(S38,8)= IF($P73="Network", ROUND(INDEX(Calc_TUR_Net_1[[Ausnet]:[United Energy]],MATCH(1,(Calc_TUR_Net_1[[Customer type]:[Customer type]]=OP_Rates!$O73)*(Calc_TUR_Net_1[[Rate type]:[Rate type]]=OP_Rates!$C73),0),MATCH(OP_Rates!S$65,Calc_TUR_Net_1[[#Headers],[Ausnet]:[United Energy]],0)),8), IF($P73="Environmental", ROUND(SUMIFS(Calc_TUR_Env_1[Jemena],Calc_TUR_Env_1[[Customer type]:[Customer type]],OP_Rates!$O73,Calc_TUR_Env_1[[Rate type]:[Rate type]],OP_Rates!$C73),8))),0,1)) -> 0 | T73: =IF(T38="-","-", IF(ROUND(T38,8)= IF($P73="Network", ROUND(INDEX(Calc_TUR_Net_1[[Ausnet]:[United Energy]],MATCH(1,(Calc_TUR_Net_1[[Customer type]:[Customer type]]=OP_Rates!$O73)*(Calc_TUR_Net_1[[Rate type]:[Rate type]]=OP_Rates!$C73),0),MATCH(OP_Rates!T$65,Calc_TUR_Net_1[[#Headers],[Ausnet]:[United Energy]],0)),8), IF($P73="Environmental", ROUND(SUMIFS(Calc_TUR_Env_1[Powercor],Calc_TUR_Env_1[[Customer type]:[Customer type]],OP_Rates!$O73,Calc_TUR_Env_1[[Rate type]:[Rate type]],OP_Rates!$C73),8))),0,1)) -> 0 | U73: =IF(U38="-","-", IF(ROUND(U38,8)= IF($P73="Network", ROUND(INDEX(Calc_TUR_Net_1[[Ausnet]:[United Energy]],MATCH(1,(Calc_TUR_Net_1[[Customer type]:[Customer type]]=OP_Rates!$O73)*(Calc_TUR_Net_1[[Rate type]:[Rate type]]=OP_Rates!$C73),0),MATCH(OP_Rates!U$65,Calc_TUR_Net_1[[#Headers],[Ausnet]:[United Energy]],0)),8), IF($P73="Environmental", ROUND(SUMIFS(Calc_TUR_Env_1[United Energy],Calc_TUR_Env_1[[Customer type]:[Customer type]],OP_Rates!$O73,Calc_TUR_Env_1[[Rate type]:[Rate type]],OP_Rates!$C73),8))),0,1)) -> 0
C74: Controlled load | D74: $/kWh | E74: Residential | F74: Environmental | G74: =IF(G39="-","-", IF(ROUND(G39,8)= IF($F74="Network", IF($C74<>"Controlled load", ROUND(INDEX(Calc_TUR_Net_1[[Ausnet]:[United Energy]],MATCH(1,(Calc_TUR_Net_1[[Customer type]:[Customer type]]=OP_Rates!$E74)*(Calc_TUR_Net_1[[Rate type]:[Rate type]]=OP_Rates!$C74),0),MATCH(OP_Rates!G$65,Calc_TUR_Net_1[[#Headers],[Ausnet]:[United Energy]],0)),8), ROUND(INDEX(Calc_TUR_NetCL_1[[Ausnet]:[United Energy]],MATCH(OP_Rates!$E74,Calc_TUR_Net_1[[Customer type]:[Customer type]],0),MATCH(OP_Rates!G$65,Calc_TUR_Net_1[[#Headers],[Ausnet]:[United Energy]],0)),8)), IF($F74="Environmental", ROUND(SUMIFS(Calc_TUR_Env_1[Ausnet],Calc_TUR_Env_1[[Customer type]:[Customer type]],OP_Rates!$E74,Calc_TUR_Env_1[[Rate type]:[Rate type]],OP_Rates!$C74),8))),0,1)) -> 0 | H74: =IF(H39="-","-", IF(ROUND(H39,8)= IF($F74="Network", IF($C74<>"Controlled load", ROUND(INDEX(Calc_TUR_Net_1[[Ausnet]:[United Energy]],MATCH(1,(Calc_TUR_Net_1[[Customer type]:[Customer type]]=OP_Rates!$E74)*(Calc_TUR_Net_1[[Rate type]:[Rate type]]=OP_Rates!$C74),0),MATCH(OP_Rates!H$65,Calc_TUR_Net_1[[#Headers],[Ausnet]:[United Energy]],0)),8), ROUND(INDEX(Calc_TUR_NetCL_1[[Ausnet]:[United Energy]],MATCH(OP_Rates!$E74,Calc_TUR_Net_1[[Customer type]:[Customer type]],0),MATCH(OP_Rates!H$65,Calc_TUR_Net_1[[#Headers],[Ausnet]:[United Energy]],0)),8)), IF($F74="Environmental", ROUND(SUMIFS(Calc_TUR_Env_1[Citipower],Calc_TUR_Env_1[[Customer type]:[Customer type]],OP_Rates!$E74,Calc_TUR_Env_1[[Rate type]:[Rate type]],OP_Rates!$C74),8))),0,1)) -> 0 | I74: =IF(I39="-","-", IF(ROUND(I39,8)= IF($F74="Network", IF($C74<>"Controlled load", ROUND(INDEX(Calc_TUR_Net_1[[Ausnet]:[United Energy]],MATCH(1,(Calc_TUR_Net_1[[Customer type]:[Customer type]]=OP_Rates!$E74)*(Calc_TUR_Net_1[[Rate type]:[Rate type]]=OP_Rates!$C74),0),MATCH(OP_Rates!I$65,Calc_TUR_Net_1[[#Headers],[Ausnet]:[United Energy]],0)),8), ROUND(INDEX(Calc_TUR_NetCL_1[[Ausnet]:[United Energy]],MATCH(OP_Rates!$E74,Calc_TUR_Net_1[[Customer type]:[Customer type]],0),MATCH(OP_Rates!I$65,Calc_TUR_Net_1[[#Headers],[Ausnet]:[United Energy]],0)),8)), IF($F74="Environmental", ROUND(SUMIFS(Calc_TUR_Env_1[Jemena],Calc_TUR_Env_1[[Customer type]:[Customer type]],OP_Rates!$E74,Calc_TUR_Env_1[[Rate type]:[Rate type]],OP_Rates!$C74),8))),0,1)) -> 0 | J74: =IF(J39="-","-", IF(ROUND(J39,8)= IF($F74="Network", IF($C74<>"Controlled load", ROUND(INDEX(Calc_TUR_Net_1[[Ausnet]:[United Energy]],MATCH(1,(Calc_TUR_Net_1[[Customer type]:[Customer type]]=OP_Rates!$E74)*(Calc_TUR_Net_1[[Rate type]:[Rate type]]=OP_Rates!$C74),0),MATCH(OP_Rates!J$65,Calc_TUR_Net_1[[#Headers],[Ausnet]:[United Energy]],0)),8), ROUND(INDEX(Calc_TUR_NetCL_1[[Ausnet]:[United Energy]],MATCH(OP_Rates!$E74,Calc_TUR_Net_1[[Customer type]:[Customer type]],0),MATCH(OP_Rates!J$65,Calc_TUR_Net_1[[#Headers],[Ausnet]:[United Energy]],0)),8)), IF($F74="Environmental", ROUND(SUMIFS(Calc_TUR_Env_1[Powercor],Calc_TUR_Env_1[[Customer type]:[Customer type]],OP_Rates!$E74,Calc_TUR_Env_1[[Rate type]:[Rate type]],OP_Rates!$C74),8))),0,1)) -> 0 | K74: =IF(K39="-","-", IF(ROUND(K39,8)= IF($F74="Network", IF($C74<>"Controlled load", ROUND(INDEX(Calc_TUR_Net_1[[Ausnet]:[United Energy]],MATCH(1,(Calc_TUR_Net_1[[Customer type]:[Customer type]]=OP_Rates!$E74)*(Calc_TUR_Net_1[[Rate type]:[Rate type]]=OP_Rates!$C74),0),MATCH(OP_Rates!K$65,Calc_TUR_Net_1[[#Headers],[Ausnet]:[United Energy]],0)),8), ROUND(INDEX(Calc_TUR_NetCL_1[[Ausnet]:[United Energy]],MATCH(OP_Rates!$E74,Calc_TUR_Net_1[[Customer type]:[Customer type]],0),MATCH(OP_Rates!K$65,Calc_TUR_Net_1[[#Headers],[Ausnet]:[United Energy]],0)),8)), IF($F74="Environmental", ROUND(SUMIFS(Calc_TUR_Env_1[United Energy],Calc_TUR_Env_1[[Customer type]:[Customer type]],OP_Rates!$E74,Calc_TUR_Env_1[[Rate type]:[Rate type]],OP_Rates!$C74),8))),0,1)) -> 0
B78: =MAX(B$3:B77)+0.01 -> 5.02 | C78: ="VDO rates - "&Calc_Rates!$D$279 -> VDO rates - VDO 2024-25 - Final
C80: VDO residential rates | M80: VDO small business rates
C81: Rate name | D81: Unit | E81: Customer type | F81: - | G81: Ausnet | H81: Citipower | I81: Jemena | J81: Powercor | K81: United Energy | M81: Rate name | N81: Unit | O81: Customer type | P81: - | Q81: Ausnet | R81: Citipower | S81: Jemena | T81: Powercor | U81: United Energy
C82: Anytime - supply | D82: $ | E82: Residential | F82: - | G82: =ROUND( SUMIFS(OP_Rates_RES_2[Ausnet],OP_Rates_RES_2[[Rate name]:[Rate name]],OP_TotalRates_RES_2[[#This Row],[Rate name]:[Rate name]])+ SUMIFS(OP_RatesTU_RES_2[Ausnet], OP_RatesTU_RES_2[[Rate name]:[Rate name]], IF(OP_TotalRates_RES_2[[#This Row],[Unit]:[Unit]]<>"$",OP_TotalRates_RES_2[[#This Row],[Rate name]:[Rate name]], IF(OP_TotalRates_RES_2[[#This Row],[Rate name]:[Rate name]]="Anytime - supply","Anytime","TOU"))),4) -> 1.3354 | H82: =ROUND( SUMIFS(OP_Rates_RES_2[Citipower],OP_Rates_RES_2[[Rate name]:[Rate name]],OP_TotalRates_RES_2[[#This Row],[Rate name]:[Rate name]])+ SUMIFS(OP_RatesTU_RES_2[Citipower], OP_RatesTU_RES_2[[Rate name]:[Rate name]], IF(OP_TotalRates_RES_2[[#This Row],[Unit]:[Unit]]<>"$",OP_TotalRates_RES_2[[#This Row],[Rate name]:[Rate name]], IF(OP_TotalRates_RES_2[[#This Row],[Rate name]:[Rate name]]="Anytime - supply","Anytime","TOU"))),4) -> 1.1673 | I82: =ROUND( SUMIFS(OP_Rates_RES_2[Jemena],OP_Rates_RES_2[[Rate name]:[Rate name]],OP_TotalRates_RES_2[[#This Row],[Rate name]:[Rate name]])+ SUMIFS(OP_RatesTU_RES_2[Jemena], OP_RatesTU_RES_2[[Rate name]:[Rate name]], IF(OP_TotalRates_RES_2[[#This Row],[Unit]:[Unit]]<>"$",OP_TotalRates_RES_2[[#This Row],[Rate name]:[Rate name]], IF(OP_TotalRates_RES_2[[#This Row],[Rate name]:[Rate name]]="Anytime - supply","Anytime","TOU"))),4) -> 1.2105 | J82: =ROUND( SUMIFS(OP_Rates_RES_2[Powercor],OP_Rates_RES_2[[Rate name]:[Rate name]],OP_TotalRates_RES_2[[#This Row],[Rate name]:[Rate name]])+ SUMIFS(OP_RatesTU_RES_2[Powercor], OP_RatesTU_RES_2[[Rate name]:[Rate name]], IF(OP_TotalRates_RES_2[[#This Row],[Unit]:[Unit]]<>"$",OP_TotalRates_RES_2[[#This Row],[Rate name]:[Rate name]], IF(OP_TotalRates_RES_2[[#This Row],[Rate name]:[Rate name]]="Anytime - supply","Anytime","TOU"))),4) -> 1.3163 | K82: =ROUND( SUMIFS(OP_Rates_RES_2[United Energy],OP_Rates_RES_2[[Rate name]:[Rate name]],OP_TotalRates_RES_2[[#This Row],[Rate name]:[Rate name]])+ SUMIFS(OP_RatesTU_RES_2[United Energy], OP_RatesTU_RES_2[[Rate name]:[Rate name]], IF(OP_TotalRates_RES_2[[#This Row],[Unit]:[Unit]]<>"$",OP_TotalRates_RES_2[[#This Row],[Rate name]:[Rate name]], IF(OP_TotalRates_RES_2[[#This Row],[Rate name]:[Rate name]]="Anytime - supply","Anytime","TOU"))),4) -> 1.0955 | M82: Anytime - supply | N82: $ | O82: Small business | P82: - | Q82: =ROUND( SUMIFS(OP_Rates_SME_2[Ausnet],OP_Rates_SME_2[[Rate name]:[Rate name]],OP_TotalRates_SME_2[[#This Row],[Rate name]:[Rate name]])+ SUMIFS(OP_RatesTU_SME_2[Ausnet], OP_RatesTU_SME_2[[Rate name]:[Rate name]], IF(OP_TotalRates_SME_2[[#This Row],[Unit]:[Unit]]<>"$",OP_TotalRates_SME_2[[#This Row],[Rate name]:[Rate name]], IF(OP_TotalRates_SME_2[[#This Row],[Rate name]:[Rate name]]="Anytime - supply","Anytime","TOU"))),4) -> 1.3354 | R82: =ROUND( SUMIFS(OP_Rates_SME_2[Citipower],OP_Rates_SME_2[[Rate name]:[Rate name]],OP_TotalRates_SME_2[[#This Row],[Rate name]:[Rate name]])+ SUMIFS(OP_RatesTU_SME_2[Citipower], OP_RatesTU_SME_2[[Rate name]:[Rate name]], IF(OP_TotalRates_SME_2[[#This Row],[Unit]:[Unit]]<>"$",OP_TotalRates_SME_2[[#This Row],[Rate name]:[Rate name]], IF(OP_TotalRates_SME_2[[#This Row],[Rate name]:[Rate name]]="Anytime - supply","Anytime","TOU"))),4) -> 1.3583 | S82: =ROUND( SUMIFS(OP_Rates_SME_2[Jemena],OP_Rates_SME_2[[Rate name]:[Rate name]],OP_TotalRates_SME_2[[#This Row],[Rate name]:[Rate name]])+ SUMIFS(OP_RatesTU_SME_2[Jemena], OP_RatesTU_SME_2[[Rate name]:[Rate name]], IF(OP_TotalRates_SME_2[[#This Row],[Unit]:[Unit]]<>"$",OP_TotalRates_SME_2[[#This Row],[Rate name]:[Rate name]], IF(OP_TotalRates_SME_2[[#This Row],[Rate name]:[Rate name]]="Anytime - supply","Anytime","TOU"))),4) -> 1.4055 | T82: =ROUND( SUMIFS(OP_Rates_SME_2[Powercor],OP_Rates_SME_2[[Rate name]:[Rate name]],OP_TotalRates_SME_2[[#This Row],[Rate name]:[Rate name]])+ SUMIFS(OP_RatesTU_SME_2[Powercor], OP_RatesTU_SME_2[[Rate name]:[Rate name]], IF(OP_TotalRates_SME_2[[#This Row],[Unit]:[Unit]]<>"$",OP_TotalRates_SME_2[[#This Row],[Rate name]:[Rate name]], IF(OP_TotalRates_SME_2[[#This Row],[Rate name]:[Rate name]]="Anytime - supply","Anytime","TOU"))),4) -> 1.4594 | U82: =ROUND( SUMIFS(OP_Rates_SME_2[United Energy],OP_Rates_SME_2[[Rate name]:[Rate name]],OP_TotalRates_SME_2[[#This Row],[Rate name]:[Rate name]])+ SUMIFS(OP_RatesTU_SME_2[United Energy], OP_RatesTU_SME_2[[Rate name]:[Rate name]], IF(OP_TotalRates_SME_2[[#This Row],[Unit]:[Unit]]<>"$",OP_TotalRates_SME_2[[#This Row],[Rate name]:[Rate name]], IF(OP_TotalRates_SME_2[[#This Row],[Rate name]:[Rate name]]="Anytime - supply","Anytime","TOU"))),4) -> 1.2865
C83: Block 1 | D83: $/kWh | E83: Residential | F83: - | G83: =ROUND( SUMIFS(OP_Rates_RES_2[Ausnet],OP_Rates_RES_2[[Rate name]:[Rate name]],OP_TotalRates_RES_2[[#This Row],[Rate name]:[Rate name]])+ SUMIFS(OP_RatesTU_RES_2[Ausnet], OP_RatesTU_RES_2[[Rate name]:[Rate name]], IF(OP_TotalRates_RES_2[[#This Row],[Unit]:[Unit]]<>"$",OP_TotalRates_RES_2[[#This Row],[Rate name]:[Rate name]], IF(OP_TotalRates_RES_2[[#This Row],[Rate name]:[Rate name]]="Anytime - supply","Anytime","TOU"))),4) -> 0.3536 | H83: =ROUND( SUMIFS(OP_Rates_RES_2[Citipower],OP_Rates_RES_2[[Rate name]:[Rate name]],OP_TotalRates_RES_2[[#This Row],[Rate name]:[Rate name]])+ SUMIFS(OP_RatesTU_RES_2[Citipower], OP_RatesTU_RES_2[[Rate name]:[Rate name]], IF(OP_TotalRates_RES_2[[#This Row],[Unit]:[Unit]]<>"$",OP_TotalRates_RES_2[[#This Row],[Rate name]:[Rate name]], IF(OP_TotalRates_RES_2[[#This Row],[Rate name]:[Rate name]]="Anytime - supply","Anytime","TOU"))),4) -> 0 | I83: =ROUND( SUMIFS(OP_Rates_RES_2[Jemena],OP_Rates_RES_2[[Rate name]:[Rate name]],OP_TotalRates_RES_2[[#This Row],[Rate name]:[Rate name]])+ SUMIFS(OP_RatesTU_RES_2[Jemena], OP_RatesTU_RES_2[[Rate name]:[Rate name]], IF(OP_TotalRates_RES_2[[#This Row],[Unit]:[Unit]]<>"$",OP_TotalRates_RES_2[[#This Row],[Rate name]:[Rate name]], IF(OP_TotalRates_RES_2[[#This Row],[Rate name]:[Rate name]]="Anytime - supply","Anytime","TOU"))),4) -> 0 | J83: =ROUND( SUMIFS(OP_Rates_RES_2[Powercor],OP_Rates_RES_2[[Rate name]:[Rate name]],OP_TotalRates_RES_2[[#This Row],[Rate name]:[Rate name]])+ SUMIFS(OP_RatesTU_RES_2[Powercor], OP_RatesTU_RES_2[[Rate name]:[Rate name]], IF(OP_TotalRates_RES_2[[#This Row],[Unit]:[Unit]]<>"$",OP_TotalRates_RES_2[[#This Row],[Rate name]:[Rate name]], IF(OP_TotalRates_RES_2[[#This Row],[Rate name]:[Rate name]]="Anytime - supply","Anytime","TOU"))),4) -> 0 | K83: =ROUND( SUMIFS(OP_Rates_RES_2[United Energy],OP_Rates_RES_2[[Rate name]:[Rate name]],OP_TotalRates_RES_2[[#This Row],[Rate name]:[Rate name]])+ SUMIFS(OP_RatesTU_RES_2[United Energy], OP_RatesTU_RES_2[[Rate name]:[Rate name]], IF(OP_TotalRates_RES_2[[#This Row],[Unit]:[Unit]]<>"$",OP_TotalRates_RES_2[[#This Row],[Rate name]:[Rate name]], IF(OP_TotalRates_RES_2[[#This Row],[Rate name]:[Rate name]]="Anytime - supply","Anytime","TOU"))),4) -> 0 | M83: Block 1 | N83: $/kWh | O83: Small business | P83: - | Q83: =ROUND( SUMIFS(OP_Rates_SME_2[Ausnet],OP_Rates_SME_2[[Rate name]:[Rate name]],OP_TotalRates_SME_2[[#This Row],[Rate name]:[Rate name]])+ SUMIFS(OP_RatesTU_SME_2[Ausnet], OP_RatesTU_SME_2[[Rate name]:[Rate name]], IF(OP_TotalRates_SME_2[[#This Row],[Unit]:[Unit]]<>"$",OP_TotalRates_SME_2[[#This Row],[Rate name]:[Rate name]], IF(OP_TotalRates_SME_2[[#This Row],[Rate name]:[Rate name]]="Anytime - supply","Anytime","TOU"))),4) -> 0.3837 | R83: =ROUND( SUMIFS(OP_Rates_SME_2[Citipower],OP_Rates_SME_2[[Rate name]:[Rate name]],OP_TotalRates_SME_2[[#This Row],[Rate name]:[Rate name]])+ SUMIFS(OP_RatesTU_SME_2[Citipower], OP_RatesTU_SME_2[[Rate name]:[Rate name]], IF(OP_TotalRates_SME_2[[#This Row],[Unit]:[Unit]]<>"$",OP_TotalRates_SME_2[[#This Row],[Rate name]:[Rate name]], IF(OP_TotalRates_SME_2[[#This Row],[Rate name]:[Rate name]]="Anytime - supply","Anytime","TOU"))),4) -> 0 | S83: =ROUND( SUMIFS(OP_Rates_SME_2[Jemena],OP_Rates_SME_2[[Rate name]:[Rate name]],OP_TotalRates_SME_2[[#This Row],[Rate name]:[Rate name]])+ SUMIFS(OP_RatesTU_SME_2[Jemena], OP_RatesTU_SME_2[[Rate name]:[Rate name]], IF(OP_TotalRates_SME_2[[#This Row],[Unit]:[Unit]]<>"$",OP_TotalRates_SME_2[[#This Row],[Rate name]:[Rate name]], IF(OP_TotalRates_SME_2[[#This Row],[Rate name]:[Rate name]]="Anytime - supply","Anytime","TOU"))),4) -> 0 | T83: =ROUND( SUMIFS(OP_Rates_SME_2[Powercor],OP_Rates_SME_2[[Rate name]:[Rate name]],OP_TotalRates_SME_2[[#This Row],[Rate name]:[Rate name]])+ SUMIFS(OP_RatesTU_SME_2[Powercor], OP_RatesTU_SME_2[[Rate name]:[Rate name]], IF(OP_TotalRates_SME_2[[#This Row],[Unit]:[Unit]]<>"$",OP_TotalRates_SME_2[[#This Row],[Rate name]:[Rate name]], IF(OP_TotalRates_SME_2[[#This Row],[Rate name]:[Rate name]]="Anytime - supply","Anytime","TOU"))),4) -> 0 | U83: =ROUND( SUMIFS(OP_Rates_SME_2[United Energy],OP_Rates_SME_2[[Rate name]:[Rate name]],OP_TotalRates_SME_2[[#This Row],[Rate name]:[Rate name]])+ SUMIFS(OP_RatesTU_SME_2[United Energy], OP_RatesTU_SME_2[[Rate name]:[Rate name]], IF(OP_TotalRates_SME_2[[#This Row],[Unit]:[Unit]]<>"$",OP_TotalRates_SME_2[[#This Row],[Rate name]:[Rate name]], IF(OP_TotalRates_SME_2[[#This Row],[Rate name]:[Rate name]]="Anytime - supply","Anytime","TOU"))),4) -> 0
A84: Section/Item notes (where necessary) | C84: Balance | D84: $/kWh | E84: Residential | F84: - | G84: =ROUND( SUMIFS(OP_Rates_RES_2[Ausnet],OP_Rates_RES_2[[Rate name]:[Rate name]],OP_TotalRates_RES_2[[#This Row],[Rate name]:[Rate name]])+ SUMIFS(OP_RatesTU_RES_2[Ausnet], OP_RatesTU_RES_2[[Rate name]:[Rate name]], IF(OP_TotalRates_RES_2[[#This Row],[Unit]:[Unit]]<>"$",OP_TotalRates_RES_2[[#This Row],[Rate name]:[Rate name]], IF(OP_TotalRates_RES_2[[#This Row],[Rate name]:[Rate name]]="Anytime - supply","Anytime","TOU"))),4) -> 0.3617 | H84: =ROUND( SUMIFS(OP_Rates_RES_2[Citipower],OP_Rates_RES_2[[Rate name]:[Rate name]],OP_TotalRates_RES_2[[#This Row],[Rate name]:[Rate name]])+ SUMIFS(OP_RatesTU_RES_2[Citipower], OP_RatesTU_RES_2[[Rate name]:[Rate name]], IF(OP_TotalRates_RES_2[[#This Row],[Unit]:[Unit]]<>"$",OP_TotalRates_RES_2[[#This Row],[Rate name]:[Rate name]], IF(OP_TotalRates_RES_2[[#This Row],[Rate name]:[Rate name]]="Anytime - supply","Anytime","TOU"))),4) -> 0 | I84: =ROUND( SUMIFS(OP_Rates_RES_2[Jemena],OP_Rates_RES_2[[Rate name]:[Rate name]],OP_TotalRates_RES_2[[#This Row],[Rate name]:[Rate name]])+ SUMIFS(OP_RatesTU_RES_2[Jemena], OP_RatesTU_RES_2[[Rate name]:[Rate name]], IF(OP_TotalRates_RES_2[[#This Row],[Unit]:[Unit]]<>"$",OP_TotalRates_RES_2[[#This Row],[Rate name]:[Rate name]], IF(OP_TotalRates_RES_2[[#This Row],[Rate name]:[Rate name]]="Anytime - supply","Anytime","TOU"))),4) -> 0 | J84: =ROUND( SUMIFS(OP_Rates_RES_2[Powercor],OP_Rates_RES_2[[Rate name]:[Rate name]],OP_TotalRates_RES_2[[#This Row],[Rate name]:[Rate name]])+ SUMIFS(OP_RatesTU_RES_2[Powercor], OP_RatesTU_RES_2[[Rate name]:[Rate name]], IF(OP_TotalRates_RES_2[[#This Row],[Unit]:[Unit]]<>"$",OP_TotalRates_RES_2[[#This Row],[Rate name]:[Rate name]], IF(OP_TotalRates_RES_2[[#This Row],[Rate name]:[Rate name]]="Anytime - supply","Anytime","TOU"))),4) -> 0 | K84: =ROUND( SUMIFS(OP_Rates_RES_2[United Energy],OP_Rates_RES_2[[Rate name]:[Rate name]],OP_TotalRates_RES_2[[#This Row],[Rate name]:[Rate name]])+ SUMIFS(OP_RatesTU_RES_2[United Energy], OP_RatesTU_RES_2[[Rate name]:[Rate name]], IF(OP_TotalRates_RES_2[[#This Row],[Unit]:[Unit]]<>"$",OP_TotalRates_RES_2[[#This Row],[Rate name]:[Rate name]], IF(OP_TotalRates_RES_2[[#This Row],[Rate name]:[Rate name]]="Anytime - supply","Anytime","TOU"))),4) -> 0 | M84: Balance | N84: $/kWh | O84: Small business | P84: - | Q84: =ROUND( SUMIFS(OP_Rates_SME_2[Ausnet],OP_Rates_SME_2[[Rate name]:[Rate name]],OP_TotalRates_SME_2[[#This Row],[Rate name]:[Rate name]])+ SUMIFS(OP_RatesTU_SME_2[Ausnet], OP_RatesTU_SME_2[[Rate name]:[Rate name]], IF(OP_TotalRates_SME_2[[#This Row],[Unit]:[Unit]]<>"$",OP_TotalRates_SME_2[[#This Row],[Rate name]:[Rate name]], IF(OP_TotalRates_SME_2[[#This Row],[Rate name]:[Rate name]]="Anytime - supply","Anytime","TOU"))),4) -> 0.3945 | R84: =ROUND( SUMIFS(OP_Rates_SME_2[Citipower],OP_Rates_SME_2[[Rate name]:[Rate name]],OP_TotalRates_SME_2[[#This Row],[Rate name]:[Rate name]])+ SUMIFS(OP_RatesTU_SME_2[Citipower], OP_RatesTU_SME_2[[Rate name]:[Rate name]], IF(OP_TotalRates_SME_2[[#This Row],[Unit]:[Unit]]<>"$",OP_TotalRates_SME_2[[#This Row],[Rate name]:[Rate name]], IF(OP_TotalRates_SME_2[[#This Row],[Rate name]:[Rate name]]="Anytime - supply","Anytime","TOU"))),4) -> 0 | S84: =ROUND( SUMIFS(OP_Rates_SME_2[Jemena],OP_Rates_SME_2[[Rate name]:[Rate name]],OP_TotalRates_SME_2[[#This Row],[Rate name]:[Rate name]])+ SUMIFS(OP_RatesTU_SME_2[Jemena], OP_RatesTU_SME_2[[Rate name]:[Rate name]], IF(OP_TotalRates_SME_2[[#This Row],[Unit]:[Unit]]<>"$",OP_TotalRates_SME_2[[#This Row],[Rate name]:[Rate name]], IF(OP_TotalRates_SME_2[[#This Row],[Rate name]:[Rate name]]="Anytime - supply","Anytime","TOU"))),4) -> 0 | T84: =ROUND( SUMIFS(OP_Rates_SME_2[Powercor],OP_Rates_SME_2[[Rate name]:[Rate name]],OP_TotalRates_SME_2[[#This Row],[Rate name]:[Rate name]])+ SUMIFS(OP_RatesTU_SME_2[Powercor], OP_RatesTU_SME_2[[Rate name]:[Rate name]], IF(OP_TotalRates_SME_2[[#This Row],[Unit]:[Unit]]<>"$",OP_TotalRates_SME_2[[#This Row],[Rate name]:[Rate name]], IF(OP_TotalRates_SME_2[[#This Row],[Rate name]:[Rate name]]="Anytime - supply","Anytime","TOU"))),4) -> 0 | U84: =ROUND( SUMIFS(OP_Rates_SME_2[United Energy],OP_Rates_SME_2[[Rate name]:[Rate name]],OP_TotalRates_SME_2[[#This Row],[Rate name]:[Rate name]])+ SUMIFS(OP_RatesTU_SME_2[United Energy], OP_RatesTU_SME_2[[Rate name]:[Rate name]], IF(OP_TotalRates_SME_2[[#This Row],[Unit]:[Unit]]<>"$",OP_TotalRates_SME_2[[#This Row],[Rate name]:[Rate name]], IF(OP_TotalRates_SME_2[[#This Row],[Rate name]:[Rate name]]="Anytime - supply","Anytime","TOU"))),4) -> 0
